Workbook

Sheet Record
C3: Mott MacDonald
C4: Issue and Revision Record
C6: 405335 | D6: SESRO Engineering Gate 2
C9: Revision | D9: Date | E9: Tab | F9: Originator | G9: Checker | H9: Approver | I9: Description | J9: Check Row | K9: Approve Row
C10: 1 | D10: 2022-09-26 | E10: Table 5a&b | F10: P Depala | G10: P Depala | H10: TBC - J Newton | I10: Interim checks have been completed to ensure values in Table 5a&b tab align to latest costs agreed on 23/09/2022. However, final QA to be complete for final issue on 28/09/2022 | J10: =SUMPRODUCT(ROW(#REF!),--(#REF!="CHECKED"),--(#REF!=C10))-ROW(#REF!) ->  | K10: =SUMPRODUCT(ROW(#REF!),--(#REF!="APPROVED"),--(#REF!=C10))-ROW(#REF!) -> 
C11: 2 | D11: 2022-09-28 | E11: Table 5a&b | F11: P Depala | G11: J Newton | H11: J Newton | I11: Final issue following QA checks - includes updates to maintenance opex, construction profiles and allocation of planning and development costs. | J11: =SUMPRODUCT(ROW(#REF!),--(#REF!="CHECKED"),--(#REF!=C11))-ROW(#REF!) ->  | K11: =SUMPRODUCT(ROW(#REF!),--(#REF!="APPROVED"),--(#REF!=C11))-ROW(#REF!) -> 
C12: 3 | D12: 2022-10-03 | E12: Table 5a&b | F12: P Depala | I12: Updated Fens tables to allow for reservoir completion date of 2035 rather than 2037 | J12: =SUMPRODUCT(ROW(#REF!),--(#REF!="CHECKED"),--(#REF!=C12))-ROW(#REF!) ->  | K12: =SUMPRODUCT(ROW(#REF!),--(#REF!="APPROVED"),--(#REF!=C12))-ROW(#REF!) -> 
C13: 4 | D13: 2022-10-17 | E13: Table 5a&b | F13: P Depala | I13: Updated price base to March 2021 to match WRMP costs | J13: =SUMPRODUCT(ROW(#REF!),--(#REF!="CHECKED"),--(#REF!=C13))-ROW(#REF!) ->  | K13: =SUMPRODUCT(ROW(#REF!),--(#REF!="APPROVED"),--(#REF!=C13))-ROW(#REF!) -> 
J14: =SUMPRODUCT(ROW(#REF!),--(#REF!="CHECKED"),--(#REF!=C14))-ROW(#REF!) ->  | K14: =SUMPRODUCT(ROW(#REF!),--(#REF!="APPROVED"),--(#REF!=C14))-ROW(#REF!) -> 
J15: =SUMPRODUCT(ROW(#REF!),--(#REF!="CHECKED"),--(#REF!=C15))-ROW(#REF!) ->  | K15: =SUMPRODUCT(ROW(#REF!),--(#REF!="APPROVED"),--(#REF!=C15))-ROW(#REF!) -> 
J16: =SUMPRODUCT(ROW(#REF!),--(#REF!="CHECKED"),--(#REF!=C16))-ROW(#REF!) ->  | K16: =SUMPRODUCT(ROW(#REF!),--(#REF!="APPROVED"),--(#REF!=C16))-ROW(#REF!) -> 
J17: =SUMPRODUCT(ROW(#REF!),--(#REF!="CHECKED"),--(#REF!=C17))-ROW(#REF!) ->  | K17: =SUMPRODUCT(ROW(#REF!),--(#REF!="APPROVED"),--(#REF!=C17))-ROW(#REF!) -> 
C19: Information class: | F19: Confidential

Sheet QA
C3: Project Information | K3: Key
C5: Item | D5: Detail | K5: Item
C6: Project Title | D6: South Lincs Reservoir Strategic Resource Option | K6: Automatic cells, do not edit
C7: Project Number | D7: NA | K7: Complete these cells
C8: Calculation Index Number | D8: NA | K8: Optional cell
C9: Calculation Name | D9: Water Resources Planning Table 5a & 5b | K9: Approver to complete
C10: Location | K10: Checks OK
C11: Version Number | D11: 1 | K11: Corrections required
C12: Project Principal | K12: Password to un-protect cover sheet is "CalcSheet"
C13: Project Manager
C14: Office | D14: Cambridge-22 Station Road
C16: Resources
C18: Originator | D18: Date | E18: Checker | G18: Date | H18: Approver | J18: Date | K18: Calculation Status
C19: P Depala | D19: 2022-09-23 | E19: James Newton | G19: TBC | H19: James Newton | J19: TBC | K19: Draft for issue - final QA to be complete
C21: Computer Applications | D21: Version
C22: Excel | D22: 2016
C26: Description
C28: Role | D28: Heading | E28: Content
C29: Originator | D29: Priyesh Depala | E29: Population of Options, Profiles and Metrics tabs to "automate" the population of "Table 5a &b"
C40: Checker | D40: James Newton | E40: Approved
C44: Input Data Sources (linked spreadsheets, origins of the data)
C46: Source ID | D46: Source Name | G46: Filepath
C47: A
C48: B
C50: A
C51: B
C52: C
C53: D
C54: E
C55: F
C57: G
C58: Note: To add more rows: Copy above row, right click on this row and then hit Insert Copied Cells
C61: Checking
F63: Originator | H63: Checker | L63: Corrections | O63: Check of Corrections | S63: Worksheet Number
C64: Version | D64: Items | E64: Checking Tasks | F64: Name | G64: Date | H64: Name | I64: Date | J64: OK? | K64: Details | L64: Name | M64: Date | N64: Details | O64: Name | P64: Date | Q64: OK? | R64: Details
C68: Note: To add more rows: Copy above row, right click on this row and then hit Insert Copied Cells
C70: For guidance on how to use this template please follow the guidance in Best Practice Paper 2: Preparation, Checking and Approval of Technical Work
C73: Data / Model File Disclaimer These data files are issued for the party which commissioned the work and for specific purposes connected with that project only. They should not be relied upon by any party or used for any other purpose. We accept no responsibility for the consequences of these data files being relied upon by any other party, or being used for any other purpose, or containing any error or omission which is due to an error or omission in data supplied to us by other parties. Furthermore you warrant that those of your employees who use the information for the specified project have been suitably trained to do so. You accept that Mott MacDonald shall not be liable for any losses incurred by you due to the actions of your employees whom are not properly qualified to interpret the information contained in the data or model files. These data files contain confidential information and proprietary intellectual property. They should not be shown to other parties without consent from us and from the party which commissioned them.

Sheet Notes on Template
B2: Purpose
B3: This spreadsheet has been prepared for the purpose of calculation of Average Incremental Costs for strategic water resource options
B5: Instructions
B6: This tool can be used to calculate the NPVs and AIC of an option. This can be done in 1 of 2 ways:
B7: 1) By pasting in the relevant data for an option from the WRSE upload template profiles tab into the table on the Inputs tab
B8: Please note that if modelling the AIC of a real option it will be necessary to include the costs for all stages (Planning, Development and 'Construction & Operation')
B9: If modelling a real option the stages will get reprofiled on the 'AIC calc' tab to ensure the Planning, Development and 'Construction & Operation' are done consecutively
B10: 2) Manually entering a profile of opex and capex in the table in the Inputs tab. The blank template has all the possible opex and capex categories that can be used, any of these rows can be duplicated if required
B11: Please also ensure the other input cells (shown in orange) in rows 3-11 of the Inputs tab are also completed
B12: All calculations are performed using standard excel calculations on the 'AIC calc' tab
B13: The outputs are given in cells H4:J7 of the Inputs tab and C4:D7 of the 'AIC calc' tabs
B15: Assumptions
B16: Capital costs are converted into a financing charge and depreciation charge as set out in Section 6.3 of the ACWG Cost Consistency Methodology using asset life categories defined in Table 6-2.
B17: Discount rates and associated discount factors used align with Table 7 of the HM Treasury Green Book (2020)
B19: Revision record
B21: Revision | C21: Date | D21: Originator | E21: Checker | F21: Approver | G21: Comment
B22: A | C22: 2021-04-19 | D22: Bill Hume Smith | E22: Adam Grove | F22: Bill Hume Smith
B23: B | C23: 2021-04-22 | D23: Bill Hume Smith | E23: Rob McNicoll | F23: Bill Hume Smith | G23: Correction of cell references for NPV calculations on "AIC calc" sheet
B24: C | C24: 2021-05-21 | D24: Bill Hume Smith | E24: Rob McNicoll | F24: Bill Hume Smith | G24: Correction of discount factors in cells AL113 and CE113 of AIC calc tab
B25: D | D25: Adam Grove | E25: Katie Halford | G25: Adapted to cycle through multiple options for calculating AIC
B26: E | C26: 2022-07-18 | D26: Adam Grove | E26: Rob McNicoll | F26: Bill Hume Smith | G26: Adapted to new Ofwat guidence and table 5a and 5b included
B27: F | C27: 2022-07-21 | D27: Adam Grove | E27: Rob McNicoll | F27: Bill Hume Smith | G27: Added section for changing cost base and fix for if no earliest start entered
B28: G | C28: 2022-08-01 | D28: Adam Grove | E28: Rob McNicoll | F28: Bill Hume Smith | G28: Updated Table 5b to have Variable Opex as total £m at Capacity rather than £m/Ml
B30: Disclaimer
B31: This Spreadsheet has been prepared solely for use by the party which commissioned it (the 'Client') in connection with the captioned project. It should not be used for any other purpose. No person other than the Client or any party who has expressly agreed terms of reliance with us (the 'Recipient(s)') may rely on the content, information or any views expressed in the Spreadsheet. This Spreadsheet is confidential and contains proprietary intellectual property and we accept no duty of care, responsibility or liability to any other recipient of this Spreadsheet. No representation, warranty or undertaking, express or implied, is made and no responsibility or liability is accepted by us to any party other than the Client or any Recipient(s), as to the accuracy or completeness of the information contained in this Spreadsheet. For the avoidance of doubt this Spreadsheet does not in any way purport to include any legal, insurance or financial advice or opinion. We disclaim all and any liability whether arising in tort, contract or otherwise which we might otherwise have to any party other than the Client or the Recipient(s), in respect of this Spreadsheet, or any information contained in it. We accept no responsibility for any error or omission in the Spreadsheet which is due to an error or omission in data, personal data (as defined in the Data Protection Act 2018), information or statements supplied to us by other parties including the Client (the 'Data'). We have not independently verified the Data or otherwise examined it to determine the accuracy, completeness, sufficiency for any purpose or feasibility for any particular outcome including financial. Forecasts presented in this document were prepared using the Data and the Spreadsheet is dependent or based on the Data. Inevitably, some of the assumptions used to develop the forecasts will not be realised and unanticipated events and circumstances may occur. Consequently, we do not guarantee or warrant the conclusions contained in the Spreadsheet as there are likely to be differences between the forecasts and the actual results and those differences may be material. While we consider that the information and opinions given in this Spreadsheet are sound all parties must rely on their own skill and judgement when making use of it. Information and opinions are current only as of the date of the Spreadsheet and we accept no responsibility for updating such information or opinion. It should, therefore, not be assumed that any such information or opinion continues to be accurate subsequent to the date of the Spreadsheet. Under no circumstances may this Spreadsheet or any extract or summary thereof be used in connection with any public or private securities offering including any related memorandum or prospectus for any securities offering or stock exchange listing or announcement. By acceptance of this Spreadsheet you agree to be bound by this disclaimer. This disclaimer and any issues, disputes or claims arising out of or in connection with it (whether contractual or non-contractual in nature such as claims in tort, from breach of statute or regulation or otherwise) shall be governed by, and construed in accordance with, the laws of England and Wales to the exclusion of all conflict of laws principles and rules. All disputes or claims arising out of or relating to this disclaimer shall be subject to the exclusive jurisdiction of the English and Welsh courts to which the parties irrevocably submit.

Sheet Notable data and assumptions
B2: Category | C2: Value/comment
B3: Cost price year | C3: 2020-09-01
B4: Planning and development costs | C4: Client indirect costs + specific land purchase and survey costs not covered by client indirects included within planning and development costs. These costs have been spread equally over the proposed 4 year period up to estimated construction start date.
B5: Construction profile | C5: Estimated construction profile highlighted in cells F to K. This represents a top down representation of the build up of muckshift activities and the staged construction of the pipelines and WTW over the 6 year construction period. | F5: ='BOQ + C55 Capex'!M46 -> Year 1 | G5: ='BOQ + C55 Capex'!N46 -> Year 2 | H5: ='BOQ + C55 Capex'!O46 -> Year 3 | I5: ='BOQ + C55 Capex'!P46 -> Year 4 | J5: ='BOQ + C55 Capex'!Q46 -> Year 5 | K5: ='BOQ + C55 Capex'!R46 -> Year 6
B6: Utilisation of scheme | C6: Opex costs represent 100% utilisation of the overall scheme. To account for this the annual average utilisation of abstraction and reservoir filling components have been estimated. These can be seen in the "Opex" tab columns G | F6: ='BOQ + C55 Capex'!M47 -> 0.05 | G6: ='BOQ + C55 Capex'!N47 -> 0.05 | H6: ='BOQ + C55 Capex'!O47 -> 0.15 | I6: ='BOQ + C55 Capex'!P47 -> 0.3 | J6: ='BOQ + C55 Capex'!Q47 -> 0.3 | K6: ='BOQ + C55 Capex'!R47 -> 0.15

Sheet Settings
B2: Relative_Years[Relative Year] | C2: Relative_Years[STPR] | D2: Relative_Years[STPR Discount Factor] | F2: Resource Items
B3: 1 | C3: 0 | D3: 1 | F3: Integrated Option
B4: 2 | C4: 0.035 | D4: 0.9661835749 | F4: Resource Enhancement
B5: 3 | C5: 0.035 | D5: 0.9335107004 | F5: Resource Initial
B6: 4 | C6: 0.035 | D6: 0.9019427057 | F6: Resource Potable
B7: 5 | C7: 0.035 | D7: 0.8714422277 | F7: Water Treatment Initial
B8: 6 | C8: 0.035 | D8: 0.8419731669 | F8: Water Treatment Enhancement
B9: 7 | C9: 0.035 | D9: 0.8135006443
B10: 8 | C10: 0.035 | D10: 0.7859909607
B11: 9 | C11: 0.035 | D11: 0.7594115562
B12: 10 | C12: 0.035 | D12: 0.7337309722
B13: 11 | C13: 0.035 | D13: 0.7089188137
B14: 12 | C14: 0.035 | D14: 0.6849457137
B15: 13 | C15: 0.035 | D15: 0.6617832983
B16: 14 | C16: 0.035 | D16: 0.6394041529
B17: 15 | C17: 0.035 | D17: 0.6177817903
B18: 16 | C18: 0.035 | D18: 0.5968906186
B19: 17 | C19: 0.035 | D19: 0.5767059117
B20: 18 | C20: 0.035 | D20: 0.5572037794
B21: 19 | C21: 0.035 | D21: 0.5383611396
B22: 20 | C22: 0.035 | D22: 0.5201556904
B23: 21 | C23: 0.035 | D23: 0.5025658844
B24: 22 | C24: 0.035 | D24: 0.4855709028
B25: 23 | C25: 0.035 | D25: 0.4691506308
B26: 24 | C26: 0.035 | D26: 0.4532856336
B27: 25 | C27: 0.035 | D27: 0.4379571339
B28: 26 | C28: 0.035 | D28: 0.4231469893
B29: 27 | C29: 0.035 | D29: 0.4088376708
B30: 28 | C30: 0.035 | D30: 0.3950122423
B31: 29 | C31: 0.035 | D31: 0.3816543404
B32: 30 | C32: 0.035 | D32: 0.368748155
B33: 31 | C33: 0.035 | D33: 0.3562784106
B34: 32 | C34: 0.03 | D34: 0.3459013695
B35: 33 | C35: 0.03 | D35: 0.3358265723
B36: 34 | C36: 0.03 | D36: 0.3260452159
B37: 35 | C37: 0.03 | D37: 0.3165487533
B38: 36 | C38: 0.03 | D38: 0.3073288867
B39: 37 | C39: 0.03 | D39: 0.2983775599
B40: 38 | C40: 0.03 | D40: 0.2896869513
B41: 39 | C41: 0.03 | D41: 0.2812494673
B42: 40 | C42: 0.03 | D42: 0.2730577353
B43: 41 | C43: 0.03 | D43: 0.2651045973
B44: 42 | C44: 0.03 | D44: 0.2573831042
B45: 43 | C45: 0.03 | D45: 0.2498865089
B46: 44 | C46: 0.03 | D46: 0.2426082611
B47: 45 | C47: 0.03 | D47: 0.2355420011
B48: 46 | C48: 0.03 | D48: 0.2286815544
B49: 47 | C49: 0.03 | D49: 0.2220209266
B50: 48 | C50: 0.03 | D50: 0.2155542977
B51: 49 | C51: 0.03 | D51: 0.2092760172
B52: 50 | C52: 0.03 | D52: 0.2031805992
B53: 51 | C53: 0.03 | D53: 0.1972627177
B54: 52 | C54: 0.03 | D54: 0.1915172016
B55: 53 | C55: 0.03 | D55: 0.1859390307
B56: 54 | C56: 0.03 | D56: 0.1805233308
B57: 55 | C57: 0.03 | D57: 0.1752653697
B58: 56 | C58: 0.03 | D58: 0.1701605531
B59: 57 | C59: 0.03 | D59: 0.1652044205
B60: 58 | C60: 0.03 | D60: 0.1603926413
B61: 59 | C61: 0.03 | D61: 0.1557210109
B62: 60 | C62: 0.03 | D62: 0.1511854475
B63: 61 | C63: 0.03 | D63: 0.1467819879
B64: 62 | C64: 0.03 | D64: 0.1425067843
B65: 63 | C65: 0.03 | D65: 0.1383561013
B66: 64 | C66: 0.03 | D66: 0.1343263119
B67: 65 | C67: 0.03 | D67: 0.1304138951
B68: 66 | C68: 0.03 | D68: 0.1266154321
B69: 67 | C69: 0.03 | D69: 0.122927604
B70: 68 | C70: 0.03 | D70: 0.1193471884
B71: 69 | C71: 0.03 | D71: 0.1158710567
B72: 70 | C72: 0.03 | D72: 0.1124961715
B73: 71 | C73: 0.03 | D73: 0.109219584
B74: 72 | C74: 0.03 | D74: 0.1060384311
B75: 73 | C75: 0.03 | D75: 0.1029499331
B76: 74 | C76: 0.03 | D76: 0.09995139133
B77: 75 | C77: 0.03 | D77: 0.09704018575
B78: 76 | C78: 0.03 | D78: 0.09421377258
B79: 77 | C79: 0.025 | D79: 0.09191587568
B80: 78 | C80: 0.025 | D80: 0.08967402506
B81: 79 | C81: 0.025 | D81: 0.08748685372
B82: 80 | C82: 0.025 | D82: 0.08535302801
B83: 81 | C83: 0.025 | D83: 0.08327124684
B84: 82 | C84: 0.025 | D84: 0.08124024082
B85: 83 | C85: 0.025 | D85: 0.07925877153
B86: 84 | C86: 0.025 | D86: 0.07732563077
B87: 85 | C87: 0.025 | D87: 0.07543963977
B88: 86 | C88: 0.025 | D88: 0.07359964856
B89: 87 | C89: 0.025 | D89: 0.07180453518
B90: 88 | C90: 0.025 | D90: 0.07005320505
B91: 89 | C91: 0.025 | D91: 0.06834459029
B92: 90 | C92: 0.025 | D92: 0.06667764907
B93: 91 | C93: 0.025 | D93: 0.06505136494
B94: 92 | C94: 0.025 | D94: 0.06346474629
B95: 93 | C95: 0.025 | D95: 0.06191682565
B96: 94 | C96: 0.025 | D96: 0.06040665917
B97: 95 | C97: 0.025 | D97: 0.05893332602
B98: 96 | C98: 0.025 | D98: 0.05749592782
B99: 97 | C99: 0.025 | D99: 0.05609358812
B100: 98 | C100: 0.025 | D100: 0.05472545182
B101: 99 | C101: 0.025 | D101: 0.0533906847
B102: 100 | C102: 0.025 | D102: 0.05208847288
B103: 101 | C103: 0.025 | D103: 0.05081802232
B104: 102 | C104: 0.025 | D104: 0.04957855837
B105: 103 | C105: 0.025 | D105: 0.04836932523
B106: 104 | C106: 0.025 | D106: 0.04718958559
B107: 105 | C107: 0.025 | D107: 0.04603862009
B108: 106 | C108: 0.025 | D108: 0.04491572692
B109: 107 | C109: 0.025 | D109: 0.04382022138
B110: 108 | C110: 0.025 | D110: 0.0427514355
B111: 109 | C111: 0.025 | D111: 0.04170871756
B112: 110 | C112: 0.025 | D112: 0.04069143176
B113: 111 | C113: 0.025 | D113: 0.03969895782
B114: 112 | C114: 0.025 | D114: 0.03873069055
B115: 113 | C115: 0.025 | D115: 0.03778603957
B116: 114 | C116: 0.025 | D116: 0.03686442884
B117: 115 | C117: 0.025 | D117: 0.03596529643
B118: 116 | C118: 0.025 | D118: 0.03508809408
B119: 117 | C119: 0.025 | D119: 0.03423228691
B120: 118 | C120: 0.025 | D120: 0.03339735308
B121: 119 | C121: 0.025 | D121: 0.03258278349
B122: 120 | C122: 0.025 | D122: 0.03178808146
B123: 121 | C123: 0.025 | D123: 0.0310127624
B124: 122 | C124: 0.025 | D124: 0.03025635356
B125: 123 | C125: 0.025 | D125: 0.02951839372
B126: 124 | C126: 0.025 | D126: 0.02879843289
B127: 125 | C127: 0.025 | D127: 0.02809603209
B128: 126 | C128: 0.025 | D128: 0.02741076302
B129: 127 | C129: 0.02 | D129: 0.02687329707
B130: 128 | C130: 0.02 | D130: 0.02634636968
B131: 129 | C131: 0.02 | D131: 0.0258297742
B132: 130 | C132: 0.02 | D132: 0.02532330804
B133: 131 | C133: 0.02 | D133: 0.02482677258
B134: 132 | C134: 0.02 | D134: 0.02433997312
B135: 133 | C135: 0.02 | D135: 0.02386271875
B136: 134 | C136: 0.02 | D136: 0.0233948223
B137: 135 | C137: 0.02 | D137: 0.0229361003
B138: 136 | C138: 0.02 | D138: 0.02248637284
B139: 137 | C139: 0.02 | D139: 0.02204546357
B140: 138 | C140: 0.02 | D140: 0.02161319958
B141: 139 | C141: 0.02 | D141: 0.02118941135
B142: 140 | C142: 0.02 | D142: 0.02077393269
B143: 141 | C143: 0.02 | D143: 0.02036660068
B144: 142 | C144: 0.02 | D144: 0.01996725557
B145: 143 | C145: 0.02 | D145: 0.01957574075
B146: 144 | C146: 0.02 | D146: 0.0191919027
B147: 145 | C147: 0.02 | D147: 0.01881559088
B148: 146 | C148: 0.02 | D148: 0.01844665773
B149: 147 | C149: 0.02 | D149: 0.01808495856
B150: 148 | C150: 0.02 | D150: 0.01773035153
B151: 149 | C151: 0.02 | D151: 0.01738269758
B152: 150 | C152: 0.02 | D152: 0.01704186037
B153: 151 | C153: 0.02 | D153: 0.01670770624
B154: 152 | C154: 0.02 | D154: 0.01638010416
B155: 153 | C155: 0.02 | D155: 0.01605892565
B156: 154 | C156: 0.02 | D156: 0.01574404475
B157: 155 | C157: 0.02 | D157: 0.01543533799
B158: 156 | C158: 0.02 | D158: 0.01513268431
B159: 157 | C159: 0.02 | D159: 0.01483596501
B160: 158 | C160: 0.02 | D160: 0.01454506373
B161: 159 | C161: 0.02 | D161: 0.0142598664
B162: 160 | C162: 0.02 | D162: 0.01398026118
B163: 161 | C163: 0.02 | D163: 0.01370613841
B164: 162 | C164: 0.02 | D164: 0.0134373906
B165: 163 | C165: 0.02 | D165: 0.01317391235
B166: 164 | C166: 0.02 | D166: 0.01291560035
B167: 165 | C167: 0.02 | D167: 0.01266235328
B168: 166 | C168: 0.02 | D168: 0.01241407184
B169: 167 | C169: 0.02 | D169: 0.01217065867
B170: 168 | C170: 0.02 | D170: 0.0119320183
B171: 169 | C171: 0.02 | D171: 0.01169805716
B172: 170 | C172: 0.02 | D172: 0.01146868349
B173: 171 | C173: 0.02 | D173: 0.01124380734
B174: 172 | C174: 0.02 | D174: 0.01102334053
B175: 173 | C175: 0.02 | D175: 0.0108071966
B176: 174 | C176: 0.02 | D176: 0.01059529079
B177: 175 | C177: 0.02 | D177: 0.01038753999
B178: 176 | C178: 0.02 | D178: 0.01018386273
B179: 177 | C179: 0.02 | D179: 0.009984179148
B180: 178 | C180: 0.02 | D180: 0.009788410929
B181: 179 | C181: 0.02 | D181: 0.009596481303
B182: 180 | C182: 0.02 | D182: 0.009408315003
B183: 181 | C183: 0.02 | D183: 0.009223838238
B184: 182 | C184: 0.02 | D184: 0.009042978665
B185: 183 | C185: 0.02 | D185: 0.008865665358
B186: 184 | C186: 0.02 | D186: 0.008691828782
B187: 185 | C187: 0.02 | D187: 0.008521400767
B188: 186 | C188: 0.02 | D188: 0.008354314477
B189: 187 | C189: 0.02 | D189: 0.00819050439
B190: 188 | C190: 0.02 | D190: 0.008029906264
B191: 189 | C191: 0.02 | D191: 0.007872457122
B192: 190 | C192: 0.02 | D192: 0.007718095218
B193: 191 | C193: 0.02 | D193: 0.007566760017
B194: 192 | C194: 0.02 | D194: 0.007418392174
B195: 193 | C195: 0.02 | D195: 0.007272933504
B196: 194 | C196: 0.02 | D196: 0.007130326964
B197: 195 | C197: 0.02 | D197: 0.006990516632
B198: 196 | C198: 0.02 | D198: 0.006853447678
B199: 197 | C199: 0.02 | D199: 0.006719066351
B200: 198 | C200: 0.02 | D200: 0.006587319952
B201: 199 | C201: 0.02 | D201: 0.006458156816
... 103 more rows

Sheet Options
B2: Options
B3: In this sheet all options to be uploaded need to be entered. Option Groups (e.g. STT transfer), Real Option (the overall option, where an option has been separated into stages) and the stages of a real option should be entered here.
Y4: Confidential to Water Company | Z4: Confidential to Water Company | AA4: Confidential to Water Company | AE4: Confidential to Water Company | AF4: Confidential to Water Company | AI4: Confidential to Water Company | AJ4: Confidential to Water Company
A5: Description | B5: The predefined code for the option, group or stage | E5: This field can be used to group options into schemes that will deliver DO together, or are phased. | F5: Please provide a public facing description of the option, please ensure there are no line breaks (this will be checked in the validation process) | G5: This field can be used to sure the water companies own ID for the option to allow for easier mapping between the WRSE and company options. | H5: Please select one of the options. Please see the glossary on the instruction page for more information | J5: Please select from the options in the list, please note a number can be added after the component to denote items in series in a group | L5: This field is used to populate the correct section of the EA table 5 | M5: This field is required in order to track the status of projects compared to WRMP 19 | N5: This field is required to help the EA identify options which are new or have changed significantly | P5: For modelling DO what tier has the option been assigned to? | Q5: For items that are enhancements (second phases) can it be repeated multiple times? | R5: If the option requires a minimum flow (above 0) in order to operate as required (e.g. a sweetening flow) please enter it here | S5: This field is for the theoretical maximum design capacity of the option and is independent of any planning scenario | T5: If the option represents a currently operational option, or an option under construction then please select true | U5: The date for which all costs are current for, indexing will be applied to make all costs consistent. For a specific financial year please choose 1st September of that year. | V5: The earliest date the first phase of the project can start | W5: Comma separated list of all the exclusive groups the option belongs to (in an exclusive group at most one option can be selected by the optimiser) | X5: Comma separated list of all the inclusive groups the option belongs to (in an inclusive group either all or no options can be selected by the optimiser) | Y5: GIS information can be entered here using the SQL Format for geometry (https://docs.microsoft.com/en-us/sql/relational-databases/spatial/spatial-data-sql-server?view=sql-server-ver15). GIS information can also be issued in Shapefiles if entries are linked to the option ID | Z5: Please use these fields if location data has not been separately submitted as a geo-database/shapefile or using the GIS Shape field | AD5: Please select from the list, please note the waterbodies are the WFD waterbodies | AE5: Please enter the location on the waterbody the water is taken from | AH5: Please select from the list, please note the waterbodies are the WFD waterbodies | AI5: Please enter the location on the waterbody the water is provided to | AK5: If any mitigation measures for the environmental impact have been included in the option please describe them here. | AL5: These fields will be used when required to remove an option (either superseded, withdrawn or rejected) from being selected
A6: Default | N6: Default: Change | O6: Default: n/a | P6: Default: n/a | R6: Default = 0 | T6: Blank assumes false | V6: Default: anytime
A7: Type | B7: Text | C7: Free text (no _, | or line break) | D7: Free text (no | or line break) | E7: Dropdown | F7: Free text (no _, | or line break) | G7: Free text (no _, | or line break) | H7: Dropdown | I7: Dropdown | J7: Dropdown | K7: Dropdown | L7: Dropdown | M7: Dropdown | N7: Dropdown | O7: Dropdown | P7: Dropdown | Q7: True/False | R7: Decimal | T7: True/False | U7: Date | V7: Date | W7: Dropdown | X7: Dropdown | Y7: Free text (SQL Geometry) | Z7: Decimal | AA7: Decimal | AB7: Decimal | AD7: Dropdown, can override | AE7: Decimal | AF7: Decimal | AH7: Dropdown, can override | AI7: Decimal | AJ7: Decimal | AK7: Free text (no | or line break) | AL7: Date | AM7: Free text (no | or line break) | AN7: Tre/False | AO7: Free text (no | or line break)
Y8: Location | AC8: Donor & Recipient details | AL8: Rejection Register
B9: Option ID | C9: ID Name | D9: Option Name | E9: Parent ID | F9: Option Description | G9: Company Code | H9: Stage/Type | I9: Classification | J9: Component | K9: Sub-Component | L9: EA Classification | M9: WRMP 19 Status | N9: WRMP 19 Change | O9: Strategic Classification | P9: DO Tier | Q9: Is Repeatable | R9: Minimum Flow (Ml/d) | S9: Capacity (Ml/d) | T9: Current Asset? | U9: Cost Base | V9: Earliest Operational Start | W9: Exclusive Group ID | X9: Inclusive Group ID | Y9: GIS Shape | Z9: Location Longitude | AA9: Location Latitude | AB9: Radius (m) | AC9: Donor Zone | AD9: Donor Waterbody | AE9: Donor Longitude | AF9: Donor Latitude | AG9: Recipient Zone | AH9: Recipient Waterbody | AI9: Recipient Longitude | AJ9: Recipient Latitude | AK9: Enviromental Mitigation Identified | AL9: Rejection Date | AM9: Rejection Stage | AN9: Pass? | AO9: Description of Rejection
B10: Fens_PLA_55Mm3 | C10: Fens | D10: Fens | F10: Fens | H10: Planning | R10: 16.6 | S10: 83 | V10: 2035-04-01
B11: Fens_CNO_55Mm3 | C11: Fens | D11: Fens | F11: Fens | H11: Construction & Operation | R11: 16.6 | S11: 83 | V11: 2035-04-01
B12: Fens_DEV_55Mm3 | C12: Fens | D12: Fens | F12: Fens | H12: Development | R12: 16.6 | S12: 83 | V12: 2035-04-01

Sheet Profiles
B2: Profiles
B3: This table is used to enter attributes about an option (or stage etc.) that are profiled over different years.
A5: Comment | B5: Please ensure the ID is in the Options table | C5: If there is a metric you would like to upload that is not listed please contact Mott MacDonald | E5: Please select if the value is a fixed value for the year or variable (dependent on the volume in Ml) | F5: If the metric varies across different planning scenarios please select the scenario | G5: If a uncertainty profile is possible please enter percentiles as separate rows, if using please ensure at least P5, P50 and P95 used | H5: Free text to explain the value or give context to the value | I5: Water company name if the entry is confidential, if the value can be viewed by more than one company please list, separated by a comma | J5: Where the profile of inputs represents specific years (as opposed to the optimiser picking the year) please enter the year that year 1 represents here | K5: Units for each metric shown in column CI
A6: Assumptions | C6: Capex/Opex | G6: Empty = No uncertainty | I6: If empty all costs and carbon are confidential to the water company
A7: Type | B7: Dropdown | C7: Dropdown | D7: Dropdown | E7: Dropdown | F7: Dropdown | G7: Decimal [0-1] | H7: Free text (no | or line break) | I7: Free text (water company) | J7: Integer | K7: Decimal | L7: Decimal | M7: Decimal | N7: Decimal | O7: Decimal | P7: Decimal | Q7: Decimal | R7: Decimal | S7: Decimal | T7: Decimal | U7: Decimal | V7: Decimal | W7: Decimal | X7: Decimal | Y7: Decimal | Z7: Decimal | AA7: Decimal | AB7: Decimal | AC7: Decimal | AD7: Decimal | AE7: Decimal | AF7: Decimal | AG7: Decimal | AH7: Decimal | AI7: Decimal | AJ7: Decimal | AK7: Decimal | AL7: Decimal | AM7: Decimal | AN7: Decimal | AO7: Decimal | AP7: Decimal | AQ7: Decimal | AR7: Decimal | AS7: Decimal | AT7: Decimal | AU7: Decimal | AV7: Decimal | AW7: Decimal | AX7: Decimal | AY7: Decimal | AZ7: Decimal | BA7: Decimal | BB7: Decimal | BC7: Decimal | BD7: Decimal | BE7: Decimal | BF7: Decimal | BG7: Decimal | BH7: Decimal | BI7: Decimal | BJ7: Decimal | BK7: Decimal | BL7: Decimal | BM7: Decimal | BN7: Decimal | BO7: Decimal | BP7: Decimal | BQ7: Decimal | BR7: Decimal | BS7: Decimal | BT7: Decimal | BU7: Decimal | BV7: Decimal | BW7: Decimal | BX7: Decimal | BY7: Decimal | BZ7: Decimal | CA7: Decimal | CB7: Decimal | CC7: Decimal | CD7: Decimal | CE7: Decimal | CF7: Decimal | CG7: Decimal | CH7: Decimal | CI7: Decimal | CJ7: Decimal | CK7: Decimal | CL7: Decimal
B8: Option ID | C8: Metric | D8: Sub-Metric | E8: Fixed/Variable | F8: Scenario | G8: Percentile | H8: Comment/Description | I8: Confidentiality | J8: Year 1 Year | K8: Year 1 | L8: Year 2 | M8: Year 3 | N8: Year 4 | O8: Year 5 | P8: Year 6 | Q8: Year 7 | R8: Year 8 | S8: Year 9 | T8: Year 10 | U8: Year 11 | V8: Year 12 | W8: Year 13 | X8: Year 14 | Y8: Year 15 | Z8: Year 16 | AA8: Year 17 | AB8: Year 18 | AC8: Year 19 | AD8: Year 20 | AE8: Year 21 | AF8: Year 22 | AG8: Year 23 | AH8: Year 24 | AI8: Year 25 | AJ8: Year 26 | AK8: Year 27 | AL8: Year 28 | AM8: Year 29 | AN8: Year 30 | AO8: Year 31 | AP8: Year 32 | AQ8: Year 33 | AR8: Year 34 | AS8: Year 35 | AT8: Year 36 | AU8: Year 37 | AV8: Year 38 | AW8: Year 39 | AX8: Year 40 | AY8: Year 41 | AZ8: Year 42 | BA8: Year 43 | BB8: Year 44 | BC8: Year 45 | BD8: Year 46 | BE8: Year 47 | BF8: Year 48 | BG8: Year 49 | BH8: Year 50 | BI8: Year 51 | BJ8: Year 52 | BK8: Year 53 | BL8: Year 54 | BM8: Year 55 | BN8: Year 56 | BO8: Year 57 | BP8: Year 58 | BQ8: Year 59 | BR8: Year 60 | BS8: Year 61 | BT8: Year 62 | BU8: Year 63 | BV8: Year 64 | BW8: Year 65 | BX8: Year 66 | BY8: Year 67 | BZ8: Year 68 | CA8: Year 69 | CB8: Year 70 | CC8: Year 71 | CD8: Year 72 | CE8: Year 73 | CF8: Year 74 | CG8: Year 75 | CH8: Year 76 | CI8: Year 77 | CJ8: Year 78 | CK8: Year 79 | CL8: Year 80 | CM8: Unit
B9: Fens_CNO_55Mm3 | C9: Opex | D9: Cost | E9: Fixed | Q9: =Opex!$M$8 -> 1814648.01 | R9: =Opex!$M$8 -> 1814648.01 | S9: =Opex!$M$8 -> 1814648.01 | T9: =Opex!$M$8 -> 1814648.01 | U9: =Opex!$M$8 -> 1814648.01 | V9: =Opex!$M$8 -> 1814648.01 | W9: =Opex!$M$8 -> 1814648.01 | X9: =Opex!$M$8 -> 1814648.01 | Y9: =Opex!$M$8 -> 1814648.01 | Z9: =Opex!$M$8 -> 1814648.01 | AA9: =Opex!$M$8 -> 1814648.01 | AB9: =Opex!$M$8 -> 1814648.01 | AC9: =Opex!$M$8 -> 1814648.01 | AD9: =Opex!$M$8 -> 1814648.01 | AE9: =Opex!$M$8 -> 1814648.01 | AF9: =Opex!$M$8 -> 1814648.01 | AG9: =Opex!$M$8 -> 1814648.01 | AH9: =Opex!$M$8 -> 1814648.01 | AI9: =Opex!$M$8 -> 1814648.01 | AJ9: =Opex!$M$8 -> 1814648.01 | AK9: =Opex!$M$8 -> 1814648.01 | AL9: =Opex!$M$8 -> 1814648.01 | AM9: =Opex!$M$8 -> 1814648.01 | AN9: =Opex!$M$8 -> 1814648.01 | AO9: =Opex!$M$8 -> 1814648.01 | AP9: =Opex!$M$8 -> 1814648.01 | AQ9: =Opex!$M$8 -> 1814648.01 | AR9: =Opex!$M$8 -> 1814648.01 | AS9: =Opex!$M$8 -> 1814648.01 | AT9: =Opex!$M$8 -> 1814648.01 | AU9: =Opex!$M$8 -> 1814648.01 | AV9: =Opex!$M$8 -> 1814648.01 | AW9: =Opex!$M$8 -> 1814648.01 | AX9: =Opex!$M$8 -> 1814648.01 | AY9: =Opex!$M$8 -> 1814648.01 | AZ9: =Opex!$M$8 -> 1814648.01 | BA9: =Opex!$M$8 -> 1814648.01 | BB9: =Opex!$M$8 -> 1814648.01 | BC9: =Opex!$M$8 -> 1814648.01 | BD9: =Opex!$M$8 -> 1814648.01 | BE9: =Opex!$M$8 -> 1814648.01 | BF9: =Opex!$M$8 -> 1814648.01 | BG9: =Opex!$M$8 -> 1814648.01 | BH9: =Opex!$M$8 -> 1814648.01 | BI9: =Opex!$M$8 -> 1814648.01 | BJ9: =Opex!$M$8 -> 1814648.01 | BK9: =Opex!$M$8 -> 1814648.01 | BL9: =Opex!$M$8 -> 1814648.01 | BM9: =Opex!$M$8 -> 1814648.01 | BN9: =Opex!$M$8 -> 1814648.01 | BO9: =Opex!$M$8 -> 1814648.01 | BP9: =Opex!$M$8 -> 1814648.01 | BQ9: =Opex!$M$8 -> 1814648.01 | BR9: =Opex!$M$8 -> 1814648.01 | BS9: =Opex!$M$8 -> 1814648.01 | BT9: =Opex!$M$8 -> 1814648.01 | BU9: =Opex!$M$8 -> 1814648.01 | BV9: =Opex!$M$8 -> 1814648.01 | BW9: =Opex!$M$8 -> 1814648.01 | BX9: =Opex!$M$8 -> 1814648.01 | BY9: =Opex!$M$8 -> 1814648.01 | BZ9: =Opex!$M$8 -> 1814648.01 | CA9: =Opex!$M$8 -> 1814648.01 | CB9: =Opex!$M$8 -> 1814648.01 | CC9: =Opex!$M$8 -> 1814648.01 | CD9: =Opex!$M$8 -> 1814648.01 | CE9: =Opex!$M$8 -> 1814648.01 | CF9: =Opex!$M$8 -> 1814648.01 | CG9: =Opex!$M$8 -> 1814648.01 | CH9: =Opex!$M$8 -> 1814648.01 | CI9: =Opex!$M$8 -> 1814648.01 | CJ9: =Opex!$M$8 -> 1814648.01 | CK9: =Opex!$M$8 -> 1814648.01 | CL9: =Opex!$M$8 -> 1814648.01
B10: Fens_CNO_55Mm3 | C10: Opex | D10: Cost | E10: Variable | Q10: =Opex!$P$8 -> 437.5858048 | R10: =Opex!$P$8 -> 437.5858048 | S10: =Opex!$P$8 -> 437.5858048 | T10: =Opex!$P$8 -> 437.5858048 | U10: =Opex!$P$8 -> 437.5858048 | V10: =Opex!$P$8 -> 437.5858048 | W10: =Opex!$P$8 -> 437.5858048 | X10: =Opex!$P$8 -> 437.5858048 | Y10: =Opex!$P$8 -> 437.5858048 | Z10: =Opex!$P$8 -> 437.5858048 | AA10: =Opex!$P$8 -> 437.5858048 | AB10: =Opex!$P$8 -> 437.5858048 | AC10: =Opex!$P$8 -> 437.5858048 | AD10: =Opex!$P$8 -> 437.5858048 | AE10: =Opex!$P$8 -> 437.5858048 | AF10: =Opex!$P$8 -> 437.5858048 | AG10: =Opex!$P$8 -> 437.5858048 | AH10: =Opex!$P$8 -> 437.5858048 | AI10: =Opex!$P$8 -> 437.5858048 | AJ10: =Opex!$P$8 -> 437.5858048 | AK10: =Opex!$P$8 -> 437.5858048 | AL10: =Opex!$P$8 -> 437.5858048 | AM10: =Opex!$P$8 -> 437.5858048 | AN10: =Opex!$P$8 -> 437.5858048 | AO10: =Opex!$P$8 -> 437.5858048 | AP10: =Opex!$P$8 -> 437.5858048 | AQ10: =Opex!$P$8 -> 437.5858048 | AR10: =Opex!$P$8 -> 437.5858048 | AS10: =Opex!$P$8 -> 437.5858048 | AT10: =Opex!$P$8 -> 437.5858048 | AU10: =Opex!$P$8 -> 437.5858048 | AV10: =Opex!$P$8 -> 437.5858048 | AW10: =Opex!$P$8 -> 437.5858048 | AX10: =Opex!$P$8 -> 437.5858048 | AY10: =Opex!$P$8 -> 437.5858048 | AZ10: =Opex!$P$8 -> 437.5858048 | BA10: =Opex!$P$8 -> 437.5858048 | BB10: =Opex!$P$8 -> 437.5858048 | BC10: =Opex!$P$8 -> 437.5858048 | BD10: =Opex!$P$8 -> 437.5858048 | BE10: =Opex!$P$8 -> 437.5858048 | BF10: =Opex!$P$8 -> 437.5858048 | BG10: =Opex!$P$8 -> 437.5858048 | BH10: =Opex!$P$8 -> 437.5858048 | BI10: =Opex!$P$8 -> 437.5858048 | BJ10: =Opex!$P$8 -> 437.5858048 | BK10: =Opex!$P$8 -> 437.5858048 | BL10: =Opex!$P$8 -> 437.5858048 | BM10: =Opex!$P$8 -> 437.5858048 | BN10: =Opex!$P$8 -> 437.5858048 | BO10: =Opex!$P$8 -> 437.5858048 | BP10: =Opex!$P$8 -> 437.5858048 | BQ10: =Opex!$P$8 -> 437.5858048 | BR10: =Opex!$P$8 -> 437.5858048 | BS10: =Opex!$P$8 -> 437.5858048 | BT10: =Opex!$P$8 -> 437.5858048 | BU10: =Opex!$P$8 -> 437.5858048 | BV10: =Opex!$P$8 -> 437.5858048 | BW10: =Opex!$P$8 -> 437.5858048 | BX10: =Opex!$P$8 -> 437.5858048 | BY10: =Opex!$P$8 -> 437.5858048 | BZ10: =Opex!$P$8 -> 437.5858048 | CA10: =Opex!$P$8 -> 437.5858048 | CB10: =Opex!$P$8 -> 437.5858048 | CC10: =Opex!$P$8 -> 437.5858048 | CD10: =Opex!$P$8 -> 437.5858048 | CE10: =Opex!$P$8 -> 437.5858048 | CF10: =Opex!$P$8 -> 437.5858048 | CG10: =Opex!$P$8 -> 437.5858048 | CH10: =Opex!$P$8 -> 437.5858048 | CI10: =Opex!$P$8 -> 437.5858048 | CJ10: =Opex!$P$8 -> 437.5858048 | CK10: =Opex!$P$8 -> 437.5858048 | CL10: =Opex!$P$8 -> 437.5858048
B11: Fens_CNO_55Mm3 | C11: Capex | D11: Reinforced Concrete Tanks / Service Reservoirs (80) | E11: Fixed | K11: ='BOQ + C55 Capex'!M49 -> 3192864.446 | L11: ='BOQ + C55 Capex'!N49 -> 3192864.446 | M11: ='BOQ + C55 Capex'!O49 -> 9578593.337 | N11: ='BOQ + C55 Capex'!P49 -> 19157186.67 | O11: ='BOQ + C55 Capex'!Q49 -> 19157186.67 | P11: ='BOQ + C55 Capex'!R49 -> 9578593.337
B12: Fens_CNO_55Mm3 | C12: Capex | D12: Pipelines (100) | E12: Fixed | K12: ='BOQ + C55 Capex'!M50 -> 13160390.26 | L12: ='BOQ + C55 Capex'!N50 -> 13160390.26 | M12: ='BOQ + C55 Capex'!O50 -> 39481170.79 | N12: ='BOQ + C55 Capex'!P50 -> 78962341.57 | O12: ='BOQ + C55 Capex'!Q50 -> 78962341.57 | P12: ='BOQ + C55 Capex'!R50 -> 39481170.79
B13: Fens_CNO_55Mm3 | C13: Capex | D13: M&E (Mechanical and Electrical) Works on Pumping Stations and Treatment Works (20) | E13: Fixed | K13: ='BOQ + C55 Capex'!M51 -> 4248031.254 | L13: ='BOQ + C55 Capex'!N51 -> 4248031.254 | M13: ='BOQ + C55 Capex'!O51 -> 12744093.76 | N13: ='BOQ + C55 Capex'!P51 -> 25488187.53 | O13: ='BOQ + C55 Capex'!Q51 -> 25488187.53 | P13: ='BOQ + C55 Capex'!R51 -> 12744093.76
B14: Fens_CNO_55Mm3 | C14: Capex | D14: ICA (Instrumentation, Control & Automation) (10) | E14: Fixed | K14: ='BOQ + C55 Capex'!M52 -> 166730.529 | L14: ='BOQ + C55 Capex'!N52 -> 166730.529 | M14: ='BOQ + C55 Capex'!O52 -> 500191.5869 | N14: ='BOQ + C55 Capex'!P52 -> 1000383.174 | O14: ='BOQ + C55 Capex'!Q52 -> 1000383.174 | P14: ='BOQ + C55 Capex'!R52 -> 500191.5869
B15: Fens_CNO_55Mm3 | C15: Capex | D15: Brick/Concrete Office Structures (50) | E15: Fixed | K15: ='BOQ + C55 Capex'!M53 -> 2160440.806 | L15: ='BOQ + C55 Capex'!N53 -> 2160440.806 | M15: ='BOQ + C55 Capex'!O53 -> 6481322.417 | N15: ='BOQ + C55 Capex'!P53 -> 12962644.83 | O15: ='BOQ + C55 Capex'!Q53 -> 12962644.83 | P15: ='BOQ + C55 Capex'!R53 -> 6481322.417
B16: Fens_CNO_55Mm3 | C16: Capex | D16: Bridges (40) | E16: Fixed | K16: ='BOQ + C55 Capex'!M54 -> 244341.4896 | L16: ='BOQ + C55 Capex'!N54 -> 244341.4896 | M16: ='BOQ + C55 Capex'!O54 -> 733024.4688 | N16: ='BOQ + C55 Capex'!P54 -> 1466048.938 | O16: ='BOQ + C55 Capex'!Q54 -> 1466048.938 | P16: ='BOQ + C55 Capex'!R54 -> 733024.4688
B17: Fens_CNO_55Mm3 | C17: Capex | D17: Embankment Works (250) | E17: Fixed | K17: ='BOQ + C55 Capex'!M55 -> 10496563.22 | L17: ='BOQ + C55 Capex'!N55 -> 10496563.22 | M17: ='BOQ + C55 Capex'!O55 -> 31489689.66 | N17: ='BOQ + C55 Capex'!P55 -> 62979379.33 | O17: ='BOQ + C55 Capex'!Q55 -> 62979379.33 | P17: ='BOQ + C55 Capex'!R55 -> 31489689.66
B18: Fens_CNO_55Mm3 | C18: Capex | D18: Fencing (10) | E18: Fixed | K18: ='BOQ + C55 Capex'!M56 -> 28285.79452 | L18: ='BOQ + C55 Capex'!N56 -> 28285.79452 | M18: ='BOQ + C55 Capex'!O56 -> 84857.38356 | N18: ='BOQ + C55 Capex'!P56 -> 169714.7671 | O18: ='BOQ + C55 Capex'!Q56 -> 169714.7671 | P18: ='BOQ + C55 Capex'!R56 -> 84857.38356
B19: Fens_CNO_55Mm3 | C19: Capex | D19: Landscaping/Environmental Works (30) | E19: Fixed | K19: ='BOQ + C55 Capex'!M57 -> 1283122.823 | L19: ='BOQ + C55 Capex'!N57 -> 1283122.823 | M19: ='BOQ + C55 Capex'!O57 -> 3849368.47 | N19: ='BOQ + C55 Capex'!P57 -> 7698736.941 | O19: ='BOQ + C55 Capex'!Q57 -> 7698736.941 | P19: ='BOQ + C55 Capex'!R57 -> 3849368.47
B20: Fens_CNO_55Mm3 | C20: Capex | D20: Other Non-Depreciating Assets (Non depreciating) | E20: Fixed | K20: ='BOQ + C55 Capex'!M58 -> 266327.3208 | L20: ='BOQ + C55 Capex'!N58 -> 266327.3208 | M20: ='BOQ + C55 Capex'!O58 -> 798981.9624 | N20: ='BOQ + C55 Capex'!P58 -> 1597963.925 | O20: ='BOQ + C55 Capex'!Q58 -> 1597963.925 | P20: ='BOQ + C55 Capex'!R58 -> 798981.9624
B21: Fens_CNO_55Mm3 | C21: Capex | D21: Power Supply (25) | E21: Fixed | K21: ='BOQ + C55 Capex'!M59 -> 3464784.435 | L21: ='BOQ + C55 Capex'!N59 -> 3464784.435 | M21: ='BOQ + C55 Capex'!O59 -> 10394353.3 | N21: ='BOQ + C55 Capex'!P59 -> 20788706.61 | O21: ='BOQ + C55 Capex'!Q59 -> 20788706.61 | P21: ='BOQ + C55 Capex'!R59 -> 10394353.3
B22: Fens_CNO_55Mm3 | C22: Capex | D22: Roads and Car Parks (60) | E22: Fixed | K22: ='BOQ + C55 Capex'!M60 -> 3528313.128 | L22: ='BOQ + C55 Capex'!N60 -> 3528313.128 | M22: ='BOQ + C55 Capex'!O60 -> 10584939.38 | N22: ='BOQ + C55 Capex'!P60 -> 21169878.77 | O22: ='BOQ + C55 Capex'!Q60 -> 21169878.77 | P22: ='BOQ + C55 Capex'!R60 -> 10584939.38
B23: Fens_CNO_55Mm3 | C23: Capex | D23: Tunnels (100) | E23: Fixed | K23: ='BOQ + C55 Capex'!M61 -> 219912.4685 | L23: ='BOQ + C55 Capex'!N61 -> 219912.4685 | M23: ='BOQ + C55 Capex'!O61 -> 659737.4055 | N23: ='BOQ + C55 Capex'!P61 -> 1319474.811 | O23: ='BOQ + C55 Capex'!Q61 -> 1319474.811 | P23: ='BOQ + C55 Capex'!R61 -> 659737.4055
B24: Fens_CNO_55Mm3 | C24: Capex | D24: Water Towers (60) | E24: Fixed | K24: ='BOQ + C55 Capex'!M62 -> 162363.184 | L24: ='BOQ + C55 Capex'!N62 -> 162363.184 | M24: ='BOQ + C55 Capex'!O62 -> 487089.5521 | N24: ='BOQ + C55 Capex'!P62 -> 974179.1041 | O24: ='BOQ + C55 Capex'!Q62 -> 974179.1041 | P24: ='BOQ + C55 Capex'!R62 -> 487089.5521
B25: Fens_PLA_55Mm3 | C25: Capex | D25: Planning and Development (Non depreciating) | E25: Fixed | K25: ='BOQ + C55 Capex'!M63 -> 88898978.02 | L25: ='BOQ + C55 Capex'!N63 -> 88898978.02 | M25: ='BOQ + C55 Capex'!O63 -> 88898978.02 | N25: ='BOQ + C55 Capex'!P63 -> 88898978.02 | O25: ='BOQ + C55 Capex'!Q63 -> 0 | P25: ='BOQ + C55 Capex'!R63 -> 0 | Q25: ='BOQ + C55 Capex'!S63 -> 0
B26: Fens_PLA_55Mm3 | C26: Capex | D26: Land (Non depreciating) | E26: Fixed | K26: ='BOQ + C55 Capex'!M64 -> 12297831.62 | L26: ='BOQ + C55 Capex'!N64 -> 12297831.62 | M26: ='BOQ + C55 Capex'!O64 -> 12297831.62 | N26: ='BOQ + C55 Capex'!P64 -> 12297831.62 | O26: ='BOQ + C55 Capex'!Q64 -> 0 | P26: ='BOQ + C55 Capex'!R64 -> 0 | Q26: ='BOQ + C55 Capex'!S64 -> 0
B27: Fens_CNO_55Mm3 | C27: Capex | D27: Costed Risk | K27: ='BOQ + C55 Capex'!M65 -> 12337487.48 | L27: ='BOQ + C55 Capex'!N65 -> 12337487.48 | M27: ='BOQ + C55 Capex'!O65 -> 37012462.44 | N27: ='BOQ + C55 Capex'!P65 -> 74024924.88 | O27: ='BOQ + C55 Capex'!Q65 -> 74024924.88 | P27: ='BOQ + C55 Capex'!R65 -> 37012462.44
D28: Cost

Sheet Metrics
B2: Metrics
B3: This table is used to enter attributes about an option (or stage etc.) that are profiled over different years.
A5: Comment | B5: Please ensure the ID is in the Options table | C5: If there is a metric you would like to upload that is not listed please contact Mott MacDonald | E5: If the metric varies across different planning scenarios please select the scenario | F5: If a profile is possible please enter percentiles as separate rows, if using please ensure at least P5, P50 and P95 used | G5: Free text to explain the value or give context to the value | H5: Water company name if the entry is confidential, if the value can be viewed by more than one company please list separated by a comma
A6: Assumptions | F6: Empty = No uncertainty | H6: If empty all costs and carbon are confidential to the water company
A7: Type | B7: Dropdown | C7: Dropdown | D7: Dropdown | E7: Dropdown | F7: Decimal [0-1] | G7: Free text (no | or line break) | H7: Free text (water company) | I7: Decimal
B8: Option ID | C8: Metric | D8: Sub-Metric | E8: Scenario | F8: Percentile | G8: Comment/Description | H8: Confidentiality | I8: Value | J8: Unit
B9: Fens_CNO_55Mm3 | C9: Adjusted Optimism Bias | D9: Adjusted Optimism Bias | I9: 0.37 | J9: %
B10: Fens_PLA_55Mm3 | C10: Adjusted Optimism Bias | D10: Adjusted Optimism Bias | I10: 0.37 | J10: %
B11: Fens_DEV_55Mm3 | C11: Adjusted Optimism Bias | D11: Adjusted Optimism Bias | I11: 0.37 | J11: %
B12: Fens_CNO_55Mm3 | C12: Lead Time | I12: 6 | J12: Years
B13: Fens_PLA_55Mm3 | C13: Lead Time | I13: 4 | J13: Years
B14: Fens_DEV_55Mm3 | C14: Lead Time | I14: 0 | J14: Years

Sheet Options AIC (hidden)
B1: Cost Base | C1: 2021-04-01
B2: Weather Scenario | C2: 1 in 500 average
B3: 1 | C3: 2 | D3: 3 | E3: 4 | F3: 5 | G3: 6 | H3: =F3+1 -> 6 | I3: =H3+1 -> 7 | J3: 8 | K3: 9 | L3: 10 | M3: 11 | N3: 12 | O3: 13 | P3: 14 | Q3: 15 | R3: 16
B4: Option | C4: Planning WRSE Code | D4: Development WRSE Code | E4: Construction WRSE Code | F4: Single WRSE Code | G4: OFFSET | H4: AIC Min p/m3 | I4: AIC Max p/m3 | J4: NPC Capex Max | K4: NPV Capex Min | L4: NPV Finance Min | M4: NPV Finance Max | N4: NPV opex Min | O4: NPV opex Max | P4: NPV WAFU Min | Q4: NPV WAFU Max | R4: Populated Date | S4: Check Comments
A5: only after beckton | B5: Deephams Reuse – 46.5 Ml/d, to TLT | C5: TWU_KGV_HI-REU_RE1_PLA_deephams reuse 46.5b | D5: TWU_KGV_HI-REU_RE1_DEV_deephams reuse 46.5b | E5: TWU_KGV_HI-REU_RE1_CNO_deephams reuse 46.5b | H5: 83.70559296 | I5: 100.0196298 | J5: 241723793.1 | K5: 241723793.1 | L5: 226433463.9 | M5: 226433463.9 | N5: 59871116.67 | O5: 115671252.7 | P5: 342037575.4 | Q5: 342037575.4 | R5: 2021-11-25T20:34:22 | Y5: 83.70559296 | Z5: 100.0196298
B6: Deephams Reuse – 46.5 Ml/d, direct to KGV | C6: TWU_KGV_HI-REU_RE1_PLA_deephams reuse 46.5 | D6: TWU_KGV_HI-REU_RE1_DEV_deephams reuse 46.5 | E6: TWU_KGV_HI-REU_RE1_CNO_deephams reuse 46.5 | H6: 90.86369144 | I6: 107.265871 | J6: 268365125.5 | K6: 268365125.5 | L6: 250169382.6 | M6: 250169382.6 | N6: 60618584.5 | O6: 116720201.9 | P6: 342037575.4 | Q6: 342037575.4 | R6: 2021-11-20T22:58:14 | Y6: 90.86369144 | Z6: 107.265871
B7: Reuse Beckton 50 MLD | C7: TWU_KGV_HI-REU_RE1_PLA_reuse beckton | D7: TWU_KGV_HI-REU_RE1_DEV_reuse beckton | E7: TWU_KGV_HI-REU_RE1_CNO_reuse beckton 50|TWU_KGV_HI-TFR_KGV_ALL_bectontokgv100 | H7: 152.129432 | I7: 176.9848501 | J7: 502608652.9 | K7: 502608652.9 | L7: 454375504.1 | M7: 454375504.1 | N7: 72005181.84 | O7: 158007028 | P7: 346008447.5 | Q7: 346008447.5 | R7: 2021-11-20T22:58:17 | S7: same combination as Jacobs | Y7: 152.129432 | Z7: 176.9848501
B8: Reuse Beckton 50 MLD Enhanced | F8: TWU_KGV_HI-REU_RE2_ALL_reuse beckton 50 p2 | G8: 5 | H8: 93.02937265 | I8: 117.1913769 | J8: 213167169.8 | K8: 213167169.8 | L8: 196103712.5 | M8: 196103712.5 | N8: 53562794.06 | O8: 118407294.4 | P8: 268373847.3 | Q8: 268373847.3 | R8: 2021-11-20T22:58:19 | Y8: 92.88581365 | Z8: 117.0478179
B9: Reuse Beckton 150 MLD | C9: TWU_KGV_HI-REU_RE1_PLA_reuse beckton | D9: TWU_KGV_HI-REU_RE1_DEV_reuse beckton | E9: TWU_KGV_HI-REU_RE1_CNO_reuse beckton 150|TWU_KGV_HI-TFR_KGV_ALL_beckton to lockwood|TWU_KGV_HI-TFR_KGV_ALL_lockwood ps-kgv res | H9: 126.7793238 | I9: 153.7020747 | J9: 1143258587 | K9: 1143258587 | L9: 1045969523 | M9: 1045969523 | N9: 193742044.6 | O9: 457006153.8 | P9: 977849960.2 | Q9: 977849960.2 | R9: 2021-11-20T22:58:22 | S9: same combination as Jacobs | Y9: 126.7793238 | Z9: 153.7020747
B10: Reuse Beckton 150 MLD Enhanced | F10: TWU_KGV_HI-REU_RE2_ALL_reuse beckton 150 p2 | H10: 82.23902371 | I10: 108.0164784 | J10: 675416758.2 | K10: 675416758.2 | L10: 634789535.3 | M10: 634789535.3 | N10: 169384725.3 | O10: 421449555.8 | P10: 977849960.2 | Q10: 977849960.2 | R10: 2021-11-20T22:58:24 | Y10: 82.23902371 | Z10: 108.0164784
B11: Reuse Beckton 100 MLD | C11: TWU_KGV_HI-REU_RE1_PLA_reuse beckton | D11: TWU_KGV_HI-REU_RE1_DEV_reuse beckton | E11: TWU_KGV_HI-REU_RE1_CNO_reuse beckton 100 |TWU_KGV_HI-TFR_KGV_ALL_bectontokgv100 | H11: 109.0538884 | I11: 134.4239716 | J11: 664018376.9 | K11: 664018376.9 | L11: 603564080.9 | M11: 603564080.9 | N11: 126498403.9 | O11: 296338711.5 | P11: 669451126.6 | Q11: 669451126.6 | R11: 2021-11-20T22:58:27 | S11: same combination as Jacobs | Y11: 109.0538884 | Z11: 134.4239716
B12: Reuse Beckton 100 MLD Enhanced | F12: TWU_KGV_HI-REU_RE2_ALL_reuse beckton 100 p2 | H12: 79.63976458 | I12: 104.6041675 | J12: 423191039.2 | K12: 423191039.2 | L12: 393436199.2 | M12: 393436199.2 | N12: 118746556.5 | O12: 279298722.3 | P12: 643124396.9 | Q12: 643124396.9 | R12: 2021-11-20T22:58:29 | Y12: 79.63976458 | Z12: 104.6041675
B13: Reuse Mogden 50 MLD Phase 1 | C13: TWU_WLJ_HI-REU_RE1_PLA_reuse mogden | D13: TWU_WLJ_HI-REU_RE1_DEV_reuse mogden | E13: TWU_WLJ_HI-REU_RE1_CNO_reuse mogden 50 p1|TWU_WLJ_HI-TFR_WLJ_ALL_reuse mogden/walton | H13: 156.8625677 | I13: 184.0624111 | J13: 513051694.1 | K13: 513051694.1 | L13: 465121449.7 | M13: 465121449.7 | N13: 77636285.3 | O13: 171750041.4 | P13: 346008447.5 | Q13: 346008447.5 | R13: 2021-11-20T22:58:32 | S13: same combination as Jacobs | Y13: 156.8625677 | Z13: 184.0624111
B14: Reuse Mogden 50 MLD Phase 2 | F14: TWU_WLJ_HI-REU_RE2_ALL_reuse mogden 50 p2 | H14: 96.18090623 | I14: 120.464834 | J14: 268066872.2 | K14: 268066872.2 | L14: 249100379.6 | M14: 249100379.6 | N14: 64377156.03 | O14: 143524526.6 | P14: 325924913.7 | Q14: 325924913.7 | R14: 2021-11-20T22:58:35 | Y14: 96.18090623 | Z14: 120.464834
B15: Reuse Mogden 100 MLD Phase 1 | C15: TWU_WLJ_HI-REU_RE1_PLA_reuse mogden | D15: TWU_WLJ_HI-REU_RE1_DEV_reuse mogden | E15: TWU_WLJ_HI-REU_RE1_CNO_reuse mogden 100 p1|TWU_WLJ_HI-TFR_WLJ_ALL_reuse mogden/walton | H15: 120.3850259 | I15: 150.1920691 | J15: 715247185.8 | K15: 715247185.8 | L15: 654741425.4 | M15: 654741425.4 | N15: 142122218.3 | O15: 339423742 | P15: 661929203.8 | Q15: 661929203.8 | R15: 2021-11-20T22:58:38 | S15: same combination as Jacobs | Y15: 120.3850259 | Z15: 150.1920691
B16: Reuse Mogden 100 MLD Phase 2 | F16: TWU_WLJ_HI-REU_RE2_ALL_reuse mogden 100 p2 | H16: 87.39373286 | I16: 114.8961137 | J16: 483374809.9 | K16: 483374809.9 | L16: 452648383.7 | M16: 452648383.7 | N16: 125836256.5 | O16: 307882546.7 | P16: 661929203.8 | Q16: 661929203.8 | R16: 2021-11-20T22:58:40 | Y16: 87.39373286 | Z16: 114.8961137
B17: Reuse Mogden South Sewer | F17: TWU_WLJ_HI-REU_RE1_ALL_reuse mogden s sewer | H17: 128.193471 | I17: 159.7882416 | J17: 399174261.5 | K17: 399174261.5 | L17: 369102428.1 | M17: 369102428.1 | N17: 90803144.83 | O17: 204152217.7 | P17: 358758967.5 | Q17: 358758967.5 | R17: 2021-11-20T22:58:42 | S17: same combination as Jacobs | Y17: 128.193471 | Z17: 159.7882416
B18: Reuse Mogden to Walton 200 MLD | F18: TWU_WLJ_HI-TFR_WLJ_ALL_reuse mogden/walton | H18: 14.87729902 | I18: 18.09651004 | J18: 274321680.6 | K18: 274321680.6 | L18: 246753078.6 | M18: 246753078.6 | N18: 11821597.78 | O18: 67773047.45 | P18: 1738048526 | Q18: 1738048526 | R18: 2021-11-20T22:58:45 | Y18: 14.87729902 | Z18: 18.09651004
B19: Mogden to Teddington outfall | F19: TWU_WLJ_HI-TFR_WLJ_ALL_teddingtondramog/ted | H19: 8.256694333 | I19: 8.494915932 | J19: 114536702.4 | K19: 114536702.4 | L19: 103594293.5 | M19: 103594293.5 | N19: 4034722.121 | O19: 7140027.365 | P19: 1303536395 | Q19: 1303536395 | R19: 2021-11-20T22:58:47 | Y19: 8.256694333 | Z19: 8.494915932
B20: Direct River Abstraction - Teddington to Thames Lee Tunnel Shaft 150 MLD | F20: TWU_KGV_HI-TFR_WLJ_ALL_teddingtondrated/tlt | H20: 6.329110263 | I20: 7.359615467 | J20: 63111293.73 | K20: 63111293.73 | L20: 59564512.94 | M20: 59564512.94 | N20: 25957453.83 | O20: 39882133.3 | P20: 1351247857 | Q20: 1351247857 | R20: 2021-11-20T22:58:49 | Y20: 6.329110263 | Z20: 7.359615467
B21: Teddington DRA 50 MLD | C21: TWU_KGV_HI-RAB_RE1_PLA_teddington dra | D21: TWU_KGV_HI-RAB_RE1_DEV_teddington dra | E21: TWU_KGV_HI-RAB_RE1_CNO_teddington dra 50|TWU_KGV_HI-TFR_WLJ_ALL_teddingtondrated/tlt|TWU_WLJ_HI-TFR_WLJ_ALL_teddingtondramog/ted | H21: 70.77368462 | I21: 75.16623037 | J21: 232379243 | K21: 232379243 | L21: 212239273.3 | M21: 212239273.3 | N21: 32643654.04 | O21: 47842233.39 | P21: 346008447.5 | Q21: 346008447.5 | R21: 2021-11-20T22:58:52 | S21: same combination as Jacobs | Y21: 70.77368462 | Z21: 75.16623037
A22: including Lockwood to KGV tunnel for comparison | B22: Teddington DRA 50 MLD + lockwood to KGV | C22: TWU_KGV_HI-RAB_RE1_PLA_teddington dra | D22: TWU_KGV_HI-RAB_RE1_DEV_teddington dra | E22: TWU_KGV_HI-RAB_RE1_CNO_teddington dra 50|TWU_KGV_HI-TFR_WLJ_ALL_teddingtondrated/tlt|TWU_WLJ_HI-TFR_WLJ_ALL_teddingtondramog/ted|TWU_KGV_HI-TFR_KGV_ALL_lockwood ps-kgv res | H22: 129.9508091 | I22: 135.9529604 | J22: 445901921.6 | K22: 445901921.6 | L22: 405027525.9 | M22: 405027525.9 | N22: 44613251.32 | O22: 65381201.71 | P22: 346008447.5 | Q22: 346008447.5 | R22: 2021-11-20T22:58:55 | Y22: 129.9508091 | Z22: 135.9529604
B23: Teddington DRA 50 MLD Phase 2 | F23: TWU_KGV_HI-RAB_RE2_ALL_teddington dra 50 p2 | H23: 24.98125287 | I23: 27.95742452 | J23: 85319224.12 | K23: 85319224.12 | L23: 79047607.97 | M23: 79047607.97 | N23: 6678247.129 | O23: 16891300.11 | P23: 343160751.5 | Q23: 343160751.5 | R23: 2021-11-20T22:58:57 | Y23: 24.98125287 | Z23: 27.95742452
B24: Teddington DRA 75 MLD | C24: TWU_KGV_HI-RAB_RE1_PLA_teddington dra | D24: TWU_KGV_HI-RAB_RE1_DEV_teddington dra | E24: TWU_KGV_HI-RAB_RE1_CNO_teddington dra 75|TWU_KGV_HI-TFR_WLJ_ALL_teddingtondrated/tlt|TWU_WLJ_HI-TFR_WLJ_ALL_teddingtondramog/ted | H24: 55.90839526 | I24: 61.26270858 | J24: 269091900.9 | K24: 269091900.9 | L24: 246158048.7 | M24: 246158048.7 | N24: 35602834.33 | O24: 62586904.27 | P24: 503968825.6 | Q24: 503968825.6 | R24: 2021-11-20T22:59:00 | S24: same combination as Jacobs | Y24: 55.90839526 | Z24: 61.26270858
A25: including Lockwood to KGV tunnel for comparison | B25: Teddington DRA 75 MLD + lockwood to KGV | C25: TWU_KGV_HI-RAB_RE1_PLA_teddington dra | D25: TWU_KGV_HI-RAB_RE1_DEV_teddington dra | E25: TWU_KGV_HI-RAB_RE1_CNO_teddington dra 75|TWU_KGV_HI-TFR_WLJ_ALL_teddingtondrated/tlt|TWU_WLJ_HI-TFR_WLJ_ALL_teddingtondramog/ted|TWU_KGV_HI-TFR_KGV_ALL_lockwood ps-kgv res | H25: 96.53746583 | I25: 103.5013847 | J25: 482614579.4 | K25: 482614579.4 | L25: 438946301.2 | M25: 438946301.2 | N25: 47572431.62 | O25: 82668411.55 | P25: 503968825.6 | Q25: 503968825.6 | R25: 2021-11-20T22:59:03 | Y25: 96.53746583 | Z25: 103.5013847
B26: Teddington DRA 75 MLD Phase 2 | F26: TWU_KGV_HI-RAB_RE2_ALL_teddington dra 75 p2 | H26: 23.94772075 | I26: 27.85147814 | J26: 124544631.1 | K26: 124544631.1 | L26: 115499048.9 | M26: 115499048.9 | N26: 9637427.425 | O26: 30036130.45 | P26: 522540235.3 | Q26: 522540235.3 | R26: 2021-11-20T22:59:06 | Y26: 23.94772075 | Z26: 27.85147814
B27: TLT extension from Lockwood PS to King George V Reservoir intake | F27: TWU_KGV_HI-TFR_KGV_ALL_lockwood ps-kgv res | H27: 3.316195968 | I27: 4.92580148 | J27: 239476988.3 | K27: 239476988.3 | L27: 216719641.9 | M27: 216719641.9 | N27: 13828738.7 | O27: 125731638.2 | P27: 6952194104 | Q27: 6952194104 | R27: 2021-11-20T22:59:08 | Y27: 3.316195968 | Z27: 4.92580148
B28: Beckton to Lockwood Tunnel | F28: TWU_KGV_HI-TFR_KGV_ALL_beckton to lockwood | H28: 11.44021374 | I28: 11.44021374 | J28: 322780627.3 | K28: 322780627.3 | L28: 289188341.1 | M28: 289188341.1 | N28: 9066358.236 | O28: 9066358.236 | P28: 2607072789 | Q28: 2607072789 | R28: 2021-11-20T22:59:11 | Y28: 11.44021374 | Z28: 11.44021374
A29: only after beckton, no 1 in 2 average DO | B29: Crossness Reuse 50 Ml/d Phase 1 | C29: TWU_LON_HI-REU_RE1_PLA_reusecrossness| TWU_LON_HI-TFR_LON_PLA_beckton-crossness|TWU_LON_HI-TFR_LON_PLA_crossness to beckton | D29: TWU_LON_HI-REU_RE1_DEV_reusecrossness|TWU_LON_HI-TFR_LON_DEV_beckton-crossness|TWU_LON_HI-TFR_LON_DEV_crossness to beckton | E29: TWU_LON_HI-REU_RE1_CNO_reusecrossness 50 p1|TWU_LON_HI-TFR_LON_CNO_beckton-crossness|TWU_LON_HI-TFR_LON_CNO_crossness to beckton | H29: 142.5478709 | I29: 168.5241696 | J29: 465345039.5 | K29: 465345039.5 | L29: 423241870.5 | M29: 423241870.5 | N29: 31038488.12 | O29: 113821361.3 | P29: 318686176 | Q29: 318686176 | R29: 2021-11-20T22:59:14 | S29: not done by Jacobs | Y29: 142.5478709 | Z29: 168.5241696
A30: only after beckton, no 1 in 2 average DO | B30: Crossness Reuse 50 Ml/d Enhanced | F30: TWU_LON_HI-REU_RE2_ALL_reusecrossness 50 p2 | H30: 77.08831924 | I30: 103.9611584 | J30: 233911192.2 | K30: 233911192.2 | L30: 223775719 | M30: 223775719 | N30: 33459603.06 | O30: 123131339.3 | P30: 333689104.4 | Q30: 333689104.4 | R30: 2021-11-20T22:59:17 | Y30: 77.08831924 | Z30: 103.9611584
A31: only after beckton, no 1 in 2 average DO | B31: Crossness Reuse 40 Ml/d Phase 4 | F31: TWU_LON_HI-REU_RE2_ALL_reusecrossness 40 p4 | H31: 81.69274661 | I31: 109.8158621 | J31: 193574484 | K31: 193574484 | L31: 185091680.3 | M31: 185091680.3 | N31: 28247289.32 | O31: 101690241.6 | P31: 261147994.8 | Q31: 261147994.8 | R31: 2021-11-20T22:59:19 | Y31: 81.69274661 | Z31: 109.8158621
A32: only after beckton, no 1 in 2 average DO | B32: Crossness Reuse 100 Ml/d Phase 1 | C32: TWU_LON_HI-REU_RE1_PLA_reusecrossness| TWU_LON_HI-TFR_LON_PLA_beckton-crossness|TWU_LON_HI-TFR_LON_PLA_crossness to beckton | D32: TWU_LON_HI-REU_RE1_DEV_reusecrossness|TWU_LON_HI-TFR_LON_DEV_beckton-crossness|TWU_LON_HI-TFR_LON_DEV_crossness to beckton | E32: TWU_LON_HI-REU_RE1_CNO_reusecrossness 100p1|TWU_LON_HI-TFR_LON_CNO_beckton-crossness|TWU_LON_HI-TFR_LON_CNO_crossness to beckton | H32: 104.4628558 | I32: 129.706552 | J32: 637654279.5 | K32: 637654279.5 | L32: 587043100.2 | M32: 587043100.2 | N32: 58392096.8 | O32: 214363038.3 | P32: 617860953.4 | Q32: 617860953.4 | R32: 2021-11-20T22:59:22 | S32: not done by Jacobs | Y32: 104.4628558 | Z32: 129.706552
A33: only after beckton, no 1 in 2 average DO | B33: Crossness Reuse 90 Ml/d Phase 2 | F33: TWU_LON_HI-REU_RE2_ALL_reusecrossness 90 p2 | H33: 75.69242356 | I33: 102.2890856 | J33: 389018254.6 | K33: 389018254.6 | L33: 373076443.7 | M33: 373076443.7 | N33: 60697735.71 | O33: 213116494.3 | P33: 573074766.3 | Q33: 573074766.3 | R33: 2021-11-20T22:59:24 | Y33: 75.69242356 | Z33: 102.2890856
B34: Reuse Crossness to Beckton Tunnel | C34: TWU_LON_HI-TFR_LON_PLA_crossness to beckton | D34: TWU_LON_HI-TFR_LON_DEV_crossness to beckton | E34: TWU_LON_HI-TFR_LON_CNO_crossness to beckton | H34: 8.814244348 | I34: 9.045703179 | J34: 151071561.5 | K34: 151071561.5 | L34: 135416672.7 | M34: 135416672.7 | N34: 0 | O34: 3555992.269 | P34: 1536338991 | Q34: 1536338991 | R34: 2021-11-20T22:59:26 | Y34: 8.814244348 | Z34: 9.045703179
A35: assigned costs based on EES v9, manual categorisation and 66% OB from WRMP19, No DO - using Capacity | B35: River Lee abstraction at Three Mills Lock, transfer to North Woolwich Road site for treatment to potable quality, followed by transfer to service reservoir | F35: RES-DRA-LEE1-35|CON-DRA-LEE1-LOC-35 | H35: 70.54000784 | I35: 81.93450474 | J35: 187144015.3 | K35: 187144015.3 | L35: 173731363.4 | M35: 173731363.4 | N35: 40822060.69 | O35: 75479390.66 | P35: 304158492.1 | Q35: 304158492.1 | R35: 2021-11-20T22:59:29 | S35: not done by Jacobs | Y35: 70.54000784 | Z35: 81.93450474
A36: as above but includeding Lockwood to KGV tunnel | B36: River Lee abstraction at Three Mills Lock, transfer to North Woolwich Road site for treatment to potable quality, followed by transfer to service reservoir + Lockwood to KGV | F36: RES-DRA-LEE1-35|CON-DRA-LEE1-LOC-35|TWU_KGV_HI-TFR_KGV_ALL_lockwood ps-kgv res | H36: 158.9238367 | I36: 171.3760743 | J36: 466715725.3 | K36: 466715725.3 | L36: 427051002.2 | M36: 427051002.2 | N36: 56329342.88 | O36: 94203881.22 | P36: 304158492.1 | Q36: 304158492.1 | R36: 2021-11-20T22:59:32 | Y36: 158.9238367 | Z36: 171.3760743
B37: Beckton to KGV 100 MLD | F37: TWU_KGV_HI-TFR_KGV_ALL_bectontokgv100 | H37: 31.26031874 | I37: 31.26031874 | J37: 292315886.5 | K37: 292315886.5 | L37: 262703875 | M37: 262703875 | N37: 8955879.591 | O37: 8955879.591 | P37: 869024263.1 | Q37: 869024263.1 | R37: 2021-11-20T22:59:35 | Y37: 31.26031874 | Z37: 31.26031874
B38: GUC 1 50 | F38: AFW_AZ3_HI-IMP_AZ3_ALL_guc1 50|AFW_AZ3_HI-ROC_WT1_ALL_guc hemel wtw 50 | H38: 86.99788706 | I38: 121.1734812 | J38: 296913542.3 | K38: 296913542.3 | L38: 267884853.4 | M38: 267884853.4 | N38: 71368104.58 | O38: 204637679.3 | P38: 389955399.4 | Q38: 389955399.4 | R38: 2021-11-20T22:59:38 | Y38: 86.99788706 | Z38: 121.1734812
B39: GUC 1 100 | F39: AFW_AZ3_HI-IMP_AZ3_ALL_guc1 100|AFW_AZ3_HI-ROC_WT1_ALL_guc hemel wtw 100 | H39: 77.78141524 | I39: 108.7393759 | J39: 534625583.1 | K39: 534625583.1 | L39: 483088343.1 | M39: 483088343.1 | N39: 101977455.3 | O39: 334840844.8 | P39: 752192277.1 | Q39: 752192277.1 | R39: 2021-11-20T22:59:40 | Y39: 77.78141524 | Z39: 108.7393759
B40: GUC 3 50 | F40: AFW_AZ3_HI-IMP_AZ3_ALL_guc3 50|AFW_AZ3_HI-ROC_WT1_ALL_guc hemel wtw 50 | G40: 5 | H40: 84.82156691 | I40: 120.5158887 | J40: 243843512.1 | K40: 243843512.1 | L40: 218135982.3 | M40: 218135982.3 | N40: 57695250.32 | O40: 173769606.6 | P40: 325189975.5 | Q40: 325189975.5 | R40: 2021-11-20T22:59:43 | Y40: 84.62102816 | Z40: 120.3066102
B41: GUC 3 100 | F41: AFW_AZ3_HI-IMP_AZ3_ALL_guc3 100|AFW_AZ3_HI-ROC_WT1_ALL_guc hemel wtw 100 | H41: 75.57486998 | I41: 108.2182432 | J41: 520607979.6 | K41: 520607979.6 | L41: 470784652.1 | M41: 470784652.1 | N41: 97683683.27 | O41: 343224615.5 | P41: 752192277.1 | Q41: 752192277.1 | R41: 2021-11-20T22:59:46 | Y41: 75.57486998 | Z41: 108.2182432
B42: GUC 6 50 | F42: AFW_AZ3_HI-IMP_AZ3_ALL_guc6 50|AFW_AZ3_HI-ROC_WT1_ALL_guc hemel wtw 50 | H42: 115.2909327 | I42: 150.5772862 | J42: 418422704.6 | K42: 418422704.6 | L42: 377437320.9 | M42: 377437320.9 | N42: 72145896.3 | O42: 209746936.8 | P42: 389955399.4 | Q42: 389955399.4 | R42: 2021-11-20T22:59:48 | Y42: 115.2909327 | Z42: 150.5772862
B43: GUC 6 100 | F43: AFW_AZ3_HI-IMP_AZ3_ALL_guc6 100|AFW_AZ3_HI-ROC_WT1_ALL_guc hemel wtw 100 | H43: 102.0681299 | I43: 135.0229813 | J43: 673883357 | K43: 673883357 | L43: 610638234.2 | M43: 610638234.2 | N43: 157110356.6 | O43: 404994203.2 | P43: 752192277.1 | Q43: 752192277.1 | R43: 2021-11-20T22:59:50 | Y43: 102.0681299 | Z43: 135.0229813
B44: T2AT Beckton 50 Transfer | C44: AFW_AZ3_HI-TFR_KGV_PLA_beckton_conv | D44: AFW_AZ3_HI-TFR_KGV_DEV_beckton_conv | E44: AFW_AZ3_HI-TFR_KGV_CNO_beckton_conv50 | G44: 5 | H44: 22.82787806 | I44: 27.70283804 | J44: 61691181.79 | K44: 61691181.79 | L44: 56319990.05 | M44: 56319990.05 | N44: 10189735.37 | O44: 24393081.34 | P44: 291353078.2 | Q44: 291353078.2 | R44: 2021-11-20T22:59:53 | Y44: 25.59300273 | Z44: 30.46796272
B45: T2AT Beckton 100 Transfer | C45: AFW_AZ3_HI-TFR_KGV_PLA_beckton_conv | D45: AFW_AZ3_HI-TFR_KGV_DEV_beckton_conv | E45: AFW_AZ3_HI-TFR_KGV_CNO_beckton_conv100 | H45: 19.30420739 | I45: 23.59570793 | J45: 124885592.6 | K45: 124885592.6 | L45: 114461644 | M45: 114461644 | N45: 20578151.31 | O45: 50598723.62 | P45: 699535559.9 | Q45: 699535559.9 | R45: 2021-11-20T22:59:55 | Y45: 19.30420739 | Z45: 23.59570793
B46: North Mimms WTW P1 | C46: AFW_AZ3_HI-ROC_WT1_PLA_new_nmymms_wtw | D46: AFW_AZ3_HI-ROC_WT1_DEV_new_nmymms_wtw | E46: AFW_AZ3_HI-ROC_WT1_CNO_new_nmymms_wtw | G46: 5 | H46: 24.79546862 | I46: 26.76300038 | J46: 67779212.64 | K46: 67779212.64 | L46: 63925553.66 | M46: 63925553.66 | N46: 8316807.422 | O46: 14049271.77 | P46: 291353078.2 | Q46: 291353078.2 | R46: 2021-11-20T22:59:58 | Y46: 26.76559689 | Z46: 28.73312865
B47: North Mimms WTW P2 (delayed 10 years) | F47: AFW_AZ3_HI-ROC_WT2_ALL_new_nmymms_wtw_50p2 | G47: 10 | H47: 14.45842301 | I47: 16.42593654 | J47: 39679710.37 | K47: 39679710.37 | L47: 38743058.77 | M47: 38743058.77 | N47: 4956994.446 | O47: 10903731.92 | P47: 302246332 | Q47: 302246332 | R47: 2021-11-20T23:00:01 | Y47: 14.45842301 | Z47: 16.42593654

Sheet Checking pivot (hidden)
A3: Sum of Value | B3: Column Labels
B4: DO | K4: Optimism Bias | L4: Grand Total
A5: Row Labels | B5: 1 in 10 average | C5: 1 in 10 peak | D5: 1 in 100 average | E5: 1 in 100 peak | F5: 1 in 2 average | G5: 1 in 200 average | H5: 1 in 200 peak | I5: 1 in 500 average | J5: 1 in 500 peak | K5: (blank)
A6: CON-DRA-LEE1-LOC-35 | K6: 0.66 | L6: 0.66
A7: RES-DRA-LEE1-35 | K7: 0.66 | L7: 0.66
A8: TWU_GUI_HI-GRW_ALL_ALL_dapdune lic disagg | F8: 0 | I8: 0 | J8: 2.2 | K8: 0.1168516667 | L8: 2.316851667
A9: TWU_GUI_HI-GRW_ALL_ALL_dapdune roc | F9: 0 | I9: 0 | J9: 1 | K9: 0.1160521667 | L9: 1.116052167
A10: TWU_GUI_HI-TFR_RZ5_ALL_sewtogui | K10: 0.2101978963 | L10: 0.2101978963
A11: TWU_HON_HI-ROC_NET_CNO_cop'mills-honoroak | K11: 0.379525 | L11: 0.379525
A12: TWU_HON_HI-ROC_NET_DEV_cop'mills-honoroak | K12: 0.379525 | L12: 0.379525
A13: TWU_HON_HI-ROC_NET_PLA_cop'mills-honoroak | K13: 0.379525 | L13: 0.379525
A14: TWU_KGV_HI-RAB_RE1_CNO_teddington dra 50 | F14: 46 | I14: 46 | J14: 46 | K14: 0.452175 | L14: 138.452175
A15: TWU_KGV_HI-RAB_RE1_CNO_teddington dra 75 | F15: 67 | I15: 67 | J15: 67 | K15: 0.452175 | L15: 201.452175
A16: TWU_KGV_HI-RAB_RE1_DEV_teddington dra | K16: 0.452175 | L16: 0.452175
A17: TWU_KGV_HI-RAB_RE1_PLA_teddington dra | K17: 0.452175 | L17: 0.452175
A18: TWU_KGV_HI-RAB_RE2_ALL_teddington dra 50 p2 | F18: 44 | I18: 44 | J18: 44 | K18: 0.452175 | L18: 132.452175
A19: TWU_KGV_HI-RAB_RE2_ALL_teddington dra 75 p2 | F19: 67 | I19: 67 | J19: 67 | K19: 0.452175 | L19: 201.452175
A20: TWU_KGV_HI-REU_RE1_CNO_deephams reuse 46.5 | F20: 42.3 | I20: 42.3 | J20: 42.3 | K20: 0.5 | L20: 127.4
A21: TWU_KGV_HI-REU_RE1_CNO_deephams reuse 46.5b | F21: 42.3 | I21: 42.3 | J21: 42.3 | K21: 0.5 | L21: 127.4
A22: TWU_KGV_HI-REU_RE1_CNO_reuse beckton 100 | F22: 89 | I22: 89 | J22: 89 | K22: 0.49827 | L22: 267.49827
A23: TWU_KGV_HI-REU_RE1_CNO_reuse beckton 150 | F23: 130 | I23: 130 | J23: 130 | K23: 0.49827 | L23: 390.49827
A24: TWU_KGV_HI-REU_RE1_CNO_reuse beckton 50 | F24: 46 | I24: 46 | J24: 46 | K24: 0.49827 | L24: 138.49827
A25: TWU_KGV_HI-REU_RE1_DEV_deephams reuse 46.5 | K25: 0.5 | L25: 0.5
A26: TWU_KGV_HI-REU_RE1_DEV_deephams reuse 46.5b | K26: 0.5 | L26: 0.5
A27: TWU_KGV_HI-REU_RE1_DEV_reuse beckton | K27: 0.49827 | L27: 0.49827
A28: TWU_KGV_HI-REU_RE1_PLA_deephams reuse 46.5 | K28: 0.5 | L28: 0.5
A29: TWU_KGV_HI-REU_RE1_PLA_deephams reuse 46.5b | K29: 0.5 | L29: 0.5
A30: TWU_KGV_HI-REU_RE1_PLA_reuse beckton | K30: 0.49827 | L30: 0.49827
A31: TWU_KGV_HI-REU_RE2_ALL_reuse beckton 100 p2 | F31: 85.5 | I31: 85.5 | J31: 85.5 | K31: 0.49827 | L31: 256.99827
A32: TWU_KGV_HI-REU_RE2_ALL_reuse beckton 150 p2 | F32: 130 | I32: 130 | J32: 130 | K32: 0.49827 | L32: 390.49827
A33: TWU_KGV_HI-REU_RE2_ALL_reuse beckton 50 p2 | F33: 42.8 | I33: 42.8 | J33: 42.8 | K33: 0.49827 | L33: 128.89827
A34: TWU_KGV_HI-TFR_KGV_ALL_beckton to lockwood | F34: 300 | I34: 300 | J34: 300 | K34: 0.4072 | L34: 900.4072
A35: TWU_KGV_HI-TFR_KGV_ALL_bectontokgv100 | K35: 0.3754592708 | L35: 0.3754592708
A36: TWU_KGV_HI-TFR_KGV_ALL_kgv res intake | K36: 0.249970844 | L36: 0.249970844
A37: TWU_KGV_HI-TFR_KGV_ALL_kgv res to bt | K37: 0.2508093191 | L37: 0.2508093191
A38: TWU_KGV_HI-TFR_KGV_ALL_lockwood ps-kgv res | K38: 0.401 | L38: 0.401
A39: TWU_KGV_HI-TFR_WLJ_ALL_teddingtondrated/tlt | K39: 0.440175 | L39: 0.440175
A40: TWU_KVZ_HI-GRW_ALL_ALL_east woodhay roc | F40: 0 | I40: 0 | J40: 2.1 | K40: 0.1086231296 | L40: 2.20862313
A41: TWU_KVZ_HI-GRW_ALL_ALL_mortimer recomm | F41: 4.5 | I41: 4.5 | J41: 4.5 | K41: 0.1193338278 | L41: 13.61933383
A42: TWU_LON_HI-DES_ALL_ALL_beckton desal 50p2a | F42: 44.18 | I42: 44.18 | J42: 44.18 | K42: 0.4935285319 | L42: 133.0335285
A43: TWU_LON_HI-DES_ALL_ALL_beckton desal 50p2b | F43: 44.18 | I43: 44.18 | J43: 44.18 | K43: 0.4935285319 | L43: 133.0335285
A44: TWU_LON_HI-DES_ALL_ALL_crossnessdesal100p2 | F44: 89.3 | I44: 89.3 | J44: 89.3 | K44: 0.4941606935 | L44: 268.3941607
A45: TWU_LON_HI-DES_ALL_ALL_crossnessdesal50p2 | F45: 44.18 | I45: 44.18 | J45: 44.18 | K45: 0.4931539688 | L45: 133.033154
A46: TWU_LON_HI-DES_ALL_CNO_beckton desal 100p1 | F46: 89.3 | I46: 89.3 | J46: 89.3 | K46: 0.4945729061 | L46: 268.3945729
A47: TWU_LON_HI-DES_ALL_CNO_beckton desal 150 | F47: 133.48 | I47: 133.48 | J47: 133.48 | K47: 0.494564119 | L47: 400.9345641
A48: TWU_LON_HI-DES_ALL_CNO_beckton desal 50 p1 | F48: 44.18 | I48: 44.18 | J48: 44.18 | K48: 0.4935285319 | L48: 133.0335285
A49: TWU_LON_HI-DES_ALL_CNO_crossnessdesal100p1 | F49: 89.3 | I49: 89.3 | J49: 89.3 | K49: 0.4941606935 | L49: 268.3941607
A50: TWU_LON_HI-DES_ALL_CNO_crossnessdesal50p1 | F50: 44.18 | I50: 44.18 | J50: 44.18 | K50: 0.4931539688 | L50: 133.033154
A51: TWU_LON_HI-DES_ALL_DEV_beckton desal | K51: 0.494564119 | L51: 0.494564119
A52: TWU_LON_HI-DES_ALL_DEV_crossnessdesal | K52: 0.4941606935 | L52: 0.4941606935
A53: TWU_LON_HI-DES_ALL_PLA_beckton desal | K53: 0.494564119 | L53: 0.494564119
A54: TWU_LON_HI-DES_ALL_PLA_crossnessdesal | K54: 0.4941606935 | L54: 0.4941606935
A55: TWU_LON_HI-GRW_ALL_ALL_addington asr | F55: 3 | I55: 3 | J55: 5 | K55: 0.3932589894 | L55: 11.39325899
A56: TWU_LON_HI-GRW_ALL_ALL_addington gw | F56: 2.73 | I56: 2.73 | J56: 5.68 | K56: 0.1099648009 | L56: 11.2499648
A57: TWU_LON_HI-GRW_ALL_ALL_epsom roc | F57: 3 | I57: 3 | J57: 2.8 | K57: 0.1634739832 | L57: 8.963473983
A58: TWU_LON_HI-GRW_ALL_ALL_honor oak gw | F58: 1.35 | I58: 1.35 | J58: 2.66 | K58: 0.1434087092 | L58: 5.503408709
A59: TWU_LON_HI-GRW_ALL_ALL_london conchalk | F59: 2 | I59: 2 | J59: 2 | K59: 0.1493971064 | L59: 6.149397106
A60: TWU_LON_HI-GRW_ALL_ALL_merton recommission | F60: 2 | I60: 2 | J60: 6 | K60: 0.1009806906 | L60: 10.10098069
A61: TWU_LON_HI-GRW_ALL_ALL_nonsuch do | I61: 1.27 | J61: 1.27 | L61: 2.54
A62: TWU_LON_HI-GRW_ALL_ALL_s'fleet lic disagg | F62: 8.8 | I62: 8.8 | J62: 8.8 | K62: 0.1517617986 | L62: 26.5517618
A63: TWU_LON_HI-GRW_ALL_ALL_streatham ar | F63: 5 | I63: 5 | J63: 7 | K63: 0.3438134249 | L63: 17.34381342
A64: TWU_LON_HI-GRW_ALL_ALL_thames valley asr | F64: 3 | I64: 3 | J64: 5 | K64: 0.396464133 | L64: 11.39646413
A65: TWU_LON_HI-GRW_ALL_CNO_kidbrooke slars | F65: 8.1 | I65: 8.1 | J65: 8.1 | K65: 0.3804174445 | L65: 24.68041744
A66: TWU_LON_HI-GRW_ALL_CNO_merton ar | F66: 6 | I66: 6 | J66: 5 | K66: 0.3746263827 | L66: 17.37462638
A67: TWU_LON_HI-GRW_ALL_DEV_kidbrooke slars | K67: 0.3804174445 | L67: 0.3804174445
A68: TWU_LON_HI-GRW_ALL_DEV_merton ar | K68: 0.3746263827 | L68: 0.3746263827
A69: TWU_LON_HI-GRW_ALL_PLA_kidbrooke slars | K69: 0.3804174445 | L69: 0.3804174445
A70: TWU_LON_HI-GRW_ALL_PLA_merton ar | K70: 0.3746263827 | L70: 0.3746263827
A71: TWU_LON_HI-OTH_ALL_ALL_ch'ford purchase | F71: 0 | I71: 18.8 | J71: 18.8 | K71: 0.1639925569 | L71: 37.76399256
A72: TWU_LON_HI-OTH_ALL_ALL_didcot purchase | F72: 0 | I72: 22.6 | J72: 22.6 | K72: 0.1314579167 | L72: 45.33145792
A73: TWU_LON_HI-REU_RE1_CNO_reusecrossness 100p1 | I73: 95 | K73: 0.6420575151 | L73: 95.64205752
A74: TWU_LON_HI-REU_RE1_CNO_reusecrossness 50 p1 | I74: 49 | K74: 0.6241150303 | L74: 49.62411503
A75: TWU_LON_HI-REU_RE2_ALL_reusecrossness 40 p4 | I75: 36 | K75: 0.6151437879 | L75: 36.61514379
A76: TWU_LON_HI-REU_RE2_ALL_reusecrossness 50 p2 | I76: 46 | K76: 0.6241150303 | L76: 46.62411503
A77: TWU_LON_HI-REU_RE2_ALL_reusecrossness 90 p2 | I77: 79 | K77: 0.6418358724 | L77: 79.64183587
A78: TWU_LON_HI-ROC_NET_ALL_barrowhillpump | K78: 0.1738416667 | L78: 0.1738416667
A79: TWU_LON_HI-ROC_NET_ALL_twrm ht-coppermills | K79: 0.2342741093 | L79: 0.2342741093
A80: TWU_LON_HI-ROC_NET_CNO_crossness-beckton | K80: 0.3896379642 | L80: 0.3896379642
A81: TWU_LON_HI-ROC_NET_CNO_hampton-battersea | K81: 0.379525 | L81: 0.379525
A82: TWU_LON_HI-ROC_NET_DEV_crossness-beckton | K82: 0.3896379642 | L82: 0.3896379642
A83: TWU_LON_HI-ROC_NET_DEV_hampton-battersea | K83: 0.379525 | L83: 0.379525
A84: TWU_LON_HI-ROC_NET_PLA_crossness-beckton | K84: 0.3896379642 | L84: 0.3896379642
A85: TWU_LON_HI-ROC_NET_PLA_hampton-battersea | K85: 0.379525 | L85: 0.379525
A86: TWU_LON_HI-ROC_WT1_ALL_eastlonwtwexisting | B86: 0 | C86: 0 | D86: 0 | E86: 0 | F86: 0 | G86: 50 | H86: 50 | I86: 50 | J86: 50 | L86: 200
A87: TWU_LON_HI-ROC_WT1_CNO_eastlondonwtw100p1 | K87: 0.2948427176 | L87: 0.2948427176
A88: TWU_LON_HI-ROC_WT1_CNO_eastlondonwtw150 | K88: 0.2948159917 | L88: 0.2948159917
A89: TWU_LON_HI-ROC_WT1_CNO_eastlondonwtw200 | K89: 0.2948475565 | L89: 0.2948475565
A90: TWU_LON_HI-ROC_WT1_CNO_eastlondonwtw300 | K90: 0.2950858515 | L90: 0.2950858515
A91: TWU_LON_HI-ROC_WT1_CNO_kemptonwtw100 p1 | K91: 0.1707516383 | L91: 0.1707516383
A92: TWU_LON_HI-ROC_WT1_CNO_kemptonwtw150 | K92: 0.1709617264 | L92: 0.1709617264
A93: TWU_LON_HI-ROC_WT1_CNO_kemptonwtw300 | K93: 0.1710445839 | L93: 0.1710445839
A94: TWU_LON_HI-ROC_WT1_DEV_eastlondonwtw | K94: 0.2948427176 | L94: 0.2948427176
A95: TWU_LON_HI-ROC_WT1_DEV_kemptonwtw | K95: 0.1707516383 | L95: 0.1707516383
A96: TWU_LON_HI-ROC_WT1_PLA_eastlondonwtw | K96: 0.2948427176 | L96: 0.2948427176
A97: TWU_LON_HI-ROC_WT1_PLA_kemptonwtw | K97: 0.1707516383 | L97: 0.1707516383
A98: TWU_LON_HI-ROC_WT2_ALL_eastlondonwtw100p2 | K98: 0.2948427176 | L98: 0.2948427176
A99: TWU_LON_HI-ROC_WT2_ALL_kemptonwtw100 p2 | K99: 0.1707516383 | L99: 0.1707516383
A100: TWU_LON_HI-RSR_RE1_ALL_res_aylesbury 75 | F100: 0 | I100: 161 | J100: 161 | L100: 322
A101: TWU_LON_HI-TFR_LON_ALL_ch'ford s intake | K101: 0.1639925569 | L101: 0.1639925569
A102: TWU_LON_HI-TFR_LON_ALL_datchet int-qm | K102: 0.2501503138 | L102: 0.2501503138
A103: TWU_LON_HI-TFR_LON_ALL_deephams-kgvpipe | K103: 0.306056353 | L103: 0.306056353
A104: TWU_LON_HI-TFR_LON_ALL_deephams-tlt | K104: 0.2872593499 | L104: 0.2872593499
A105: TWU_LON_HI-TFR_LON_ALL_littleton int-qm | K105: 0.2486002431 | L105: 0.2486002431
A106: TWU_LON_HI-TFR_LON_ALL_newriverhead pump 4 | K106: 0.2105879167 | L106: 0.2105879167
A107: TWU_LON_HI-TFR_LON_CNO_beckton-coppermills | K107: 0.3896440382 | L107: 0.3896440382
A108: TWU_LON_HI-TFR_LON_CNO_beckton-crossness | K108: 0.38965 | L108: 0.38965
A109: TWU_LON_HI-TFR_LON_CNO_crossness to beckton | K109: 0.3896379642 | L109: 0.3896379642
A110: TWU_LON_HI-TFR_LON_CNO_second spine tunnel | K110: 0.35 | L110: 0.35
A111: TWU_LON_HI-TFR_LON_CNO_surbiton int-walton | K111: 0.22878906 | L111: 0.22878906
A112: TWU_LON_HI-TFR_LON_CNO_tlt upgrade - roc | K112: 0.3454265622 | L112: 0.3454265622
A113: TWU_LON_HI-TFR_LON_DEV_beckton-coppermills | K113: 0.3896440382 | L113: 0.3896440382
A114: TWU_LON_HI-TFR_LON_DEV_beckton-crossness | K114: 0.38965 | L114: 0.38965
A115: TWU_LON_HI-TFR_LON_DEV_second spine tunnel | K115: 0.35 | L115: 0.35
A116: TWU_LON_HI-TFR_LON_DEV_surbiton int-walton | K116: 0.22878906 | L116: 0.22878906
A117: TWU_LON_HI-TFR_LON_DEV_tlt upgrade - roc | K117: 0.3454265622 | L117: 0.3454265622
A118: TWU_LON_HI-TFR_LON_PLA_beckton-coppermills | K118: 0.3896440382 | L118: 0.3896440382
A119: TWU_LON_HI-TFR_LON_PLA_beckton-crossness | K119: 0.38965 | L119: 0.38965
A120: TWU_LON_HI-TFR_LON_PLA_second spine tunnel | K120: 0.35 | L120: 0.35
A121: TWU_LON_HI-TFR_LON_PLA_surbiton int-walton | K121: 0.22878906 | L121: 0.22878906
A122: TWU_LON_HI-TFR_LON_PLA_tlt upgrade - roc | K122: 0.3454265622 | L122: 0.3454265622
A123: TWU_SWA_HI-GRW_ALL_ALL_datchet gw | F123: 6.2 | I123: 6.2 | J123: 6.2 | L123: 18.6
A124: TWU_SWA_HI-ROC_WT1_CNO_medmenhamwtw ph1 | K124: 0.2018846361 | L124: 0.2018846361
A125: TWU_SWA_HI-ROC_WT1_DEV_medmenhamwtw ph1 | K125: 0.2018846361 | L125: 0.2018846361
A126: TWU_SWA_HI-ROC_WT1_PLA_medmenhamwtw ph1 | K126: 0.2018846361 | L126: 0.2018846361
A127: TWU_SWA_HI-ROC_WT2_ALL_medmenhamwtw ph2 | K127: 0.2018846361 | L127: 0.2018846361
A128: TWU_SWA_HI-TFR_HEN_ALL_henley-swa2.4 | K128: 0.1800779091 | L128: 0.1800779091
A129: TWU_SWA_HI-TFR_HEN_ALL_henley-swa5 | K129: 0.1849137831 | L129: 0.1849137831
A130: TWU_SWA_HI-TFR_SWX_ALL_swoxswa48 | K130: 0.2203827499 | L130: 0.2203827499
A131: TWU_SWA_HI-TFR_SWX_ALL_swoxswa72 | K131: 0.2212126897 | L131: 0.2212126897
A132: TWU_SWA_HI-TFR_UTC_ALL_medmenham intake 53 | K132: 0.2463653969 | L132: 0.2463653969
A133: TWU_SWA_HI-TFR_UTC_ALL_medmenham intake 80 | K133: 0.2462910321 | L133: 0.2462910321
A134: TWU_SWX_HI-GRW_ALL_ALL_ashton keynes roc | F134: 0 | I134: 0 | J134: 2.04 | K134: 0.1111036086 | L134: 2.151103609
A135: TWU_SWX_HI-GRW_ALL_ALL_moulsford gw | F135: 2 | I135: 2 | J135: 3.5 | K135: 0.1510738276 | L135: 7.651073828
A136: TWU_SWX_HI-GRW_RE1_ALL_britwell roc | F136: 1.3 | I136: 1.3 | J136: 1.3 | K136: 0.1421034657 | L136: 4.042103466
A137: TWU_SWX_HI-IMP_SWX_ALL_wessextoswoxflax | F137: 2.9 | I137: 2.9 | J137: 2.9 | K137: 0.2014097849 | L137: 8.901409785
A138: TWU_SWX_HI-IMP_SWX_CNO_oxc-dukes cutswox | F138: 12 | I138: 12 | J138: 12 | K138: 0.500575 | L138: 36.500575
A139: TWU_SWX_HI-IMP_SWX_DEV_oxc-dukes cutswox | K139: 0.500575 | L139: 0.500575
A140: TWU_SWX_HI-IMP_SWX_PLA_oxc-dukes cutswox | K140: 0.500575 | L140: 0.500575
A141: TWU_SWX_HI-ROC_WT1_ALL_radcotwtw | K141: 0.1639898251 | L141: 0.1639898251
A142: TWU_SWX_HI-ROC_WT1_CNO_abingdon wtw ph1 | K142: 0.1425940748 | L142: 0.1425940748
A143: TWU_SWX_HI-ROC_WT1_DEV_abingdon wtw ph1 | K143: 0.1425940748 | L143: 0.1425940748
A144: TWU_SWX_HI-ROC_WT1_PLA_abingdon wtw ph1 | K144: 0.1425940748 | L144: 0.1425940748
A145: TWU_SWX_HI-ROC_WT2_ALL_abingdon wtw ph2 | K145: 0.1425940748 | L145: 0.1425940748
A146: TWU_SWX_HI-ROC_WT2_ALL_radcotwtwenhanced | K146: 0.1639898251 | L146: 0.1639898251
A147: TWU_SWX_HI-TFR_HEN_ALL_henley-swox2.4 | K147: 0.2320009375 | L147: 0.2320009375
A148: TWU_SWX_HI-TFR_HEN_ALL_henley-swox5 | K148: 0.235595707 | L148: 0.235595707
A149: TWU_SWX_HI-TFR_KVZ_ALL_kennet-swox2.3 | K149: 0.214577085 | L149: 0.214577085
A150: TWU_SWX_HI-TFR_KVZ_ALL_kennet-swox6.7 | K150: 0.2053301826 | L150: 0.2053301826
A151: TWU_SWX_HI-TFR_STR_ALL_abing-farmoor pipe | K151: 0.2117818561 | L151: 0.2117818561
A152: TWU_SWX_HI-TFR_SWX_ALL_dukescut-farmoor | K152: 0.1541495262 | L152: 0.1541495262
A153: TWU_UTC_HI-IMP_UTC_CNO_oxcanal-cropredy | F153: 10.3 | I153: 10.3 | J153: 10.3 | K153: 0.500575 | L153: 31.400575
A154: TWU_UTC_HI-IMP_UTC_DEV_oxcanal-cropredy | K154: 0.500575 | L154: 0.500575
A155: TWU_UTC_HI-IMP_UTC_PLA_oxcanal-cropredy | K155: 0.500575 | L155: 0.500575
A156: TWU_UTC_HI-RSR_RE1_ALL_res_chinnor_1 | I156: 89 | L156: 89
A157: TWU_UTC_HI-RSR_RE1_ALL_res_chinnor_75 | I157: 89 | L157: 89
A158: TWU_WLJ_HI-REU_RE1_ALL_reuse mogden s sewer | F158: 46 | I158: 46 | J158: 46 | K158: 0.4531829787 | L158: 138.453183
A159: TWU_WLJ_HI-REU_RE1_CNO_reuse mogden 100 p1 | F159: 88 | I159: 88 | J159: 88 | K159: 0.523395 | L159: 264.523395
A160: TWU_WLJ_HI-REU_RE1_CNO_reuse mogden 50 p1 | F160: 46 | I160: 46 | J160: 49 | K160: 0.523395 | L160: 141.523395
A161: TWU_WLJ_HI-REU_RE1_DEV_reuse mogden | K161: 0.523395 | L161: 0.523395
A162: TWU_WLJ_HI-REU_RE1_PLA_reuse mogden | K162: 0.523395 | L162: 0.523395
A163: TWU_WLJ_HI-REU_RE2_ALL_reuse mogden 100 p2 | F163: 88 | I163: 88 | J163: 88 | K163: 0.523395 | L163: 264.523395
A164: TWU_WLJ_HI-REU_RE2_ALL_reuse mogden 50 p2 | F164: 43.33 | I164: 43.33 | J164: 43.33 | K164: 0.523395 | L164: 130.513395
A165: TWU_WLJ_HI-ROC_NET_CNO_twrm shaft kempton | K165: 0.332775 | L165: 0.332775
A166: TWU_WLJ_HI-ROC_NET_DEV_twrm shaft kempton | K166: 0.332775 | L166: 0.332775
A167: TWU_WLJ_HI-ROC_NET_PLA_twrm shaft kempton | K167: 0.332775 | L167: 0.332775
A168: TWU_WLJ_HI-TFR_WLJ_ALL_reuse mogden/walton | K168: 0.3473508333 | L168: 0.3473508333
A169: TWU_WLJ_HI-TFR_WLJ_ALL_teddingtondramog/ted | K169: 0.440175 | L169: 0.440175
A170: TWU_WLJ_HI-TFR_WLJ_CNO_qm res-kempton wtw | K170: 0.3997595361 | L170: 0.3997595361
A171: TWU_WLJ_HI-TFR_WLJ_DEV_qm res-kempton wtw | K171: 0.3997595361 | L171: 0.3997595361
A172: TWU_WLJ_HI-TFR_WLJ_PLA_qm res-kempton wtw | K172: 0.3997595361 | L172: 0.3997595361
A173: Grand Total | B173: 0 | C173: 0 | D173: 0 | E173: 0 | F173: 2149.69 | G173: 50 | H173: 50 | I173: 2886.36 | J173: 2428.26 | K173: 56.25358046 | L173: 7620.56358

Sheet Checking tab (hidden)
E2: DO (metrics) | G2: OB | H2: Min flow | I2: Capcity
B3: RES-DRA-LEE1-35|CON-DRA-LEE1-LOC-35 | C3: =FIND("|",B3) -> 16 | D3: =IF(ISERROR(C3),B3,LEFT(B3,C3-1)) -> RES-DRA-LEE1-35 | E3: =VLOOKUP(D3,'Checking pivot'!$A$5:$K$171,6,FALSE) -> 0 | G3: =VLOOKUP(D3,'Checking pivot'!$A$5:$K$171,11,FALSE) -> 0.66 | H3: =VLOOKUP(D3,#REF!,17, FALSE) ->  | I3: =VLOOKUP(D3,#REF!,18, FALSE) -> 
B4: TWU_KGV_HI-RAB_RE1_CNO_teddington dra 50|TWU_KGV_HI-TFR_WLJ_ALL_teddingtondrated/tlt|TWU_WLJ_HI-TFR_WLJ_ALL_teddingtondramog/ted | C4: =FIND("|",B4) -> 41 | D4: =IF(ISERROR(C4),B4,LEFT(B4,C4-1)) -> TWU_KGV_HI-RAB_RE1_CNO_teddington dra 50 | E4: =VLOOKUP(D4,'Checking pivot'!$A$5:$K$171,6,FALSE) -> 46 | G4: =VLOOKUP(D4,'Checking pivot'!$A$5:$K$171,11,FALSE) -> 0.452175 | H4: =VLOOKUP(D4,#REF!,17, FALSE) ->  | I4: =VLOOKUP(D4,#REF!,18, FALSE) -> 
B5: TWU_KGV_HI-RAB_RE1_CNO_teddington dra 75|TWU_KGV_HI-TFR_WLJ_ALL_teddingtondrated/tlt|TWU_WLJ_HI-TFR_WLJ_ALL_teddingtondramog/ted | C5: 41 | D5: TWU_KGV_HI-RAB_RE1_CNO_teddington dra 75 | E5: =VLOOKUP(D5,'Checking pivot'!$A$5:$K$171,6,FALSE) -> 67 | G5: =VLOOKUP(D5,'Checking pivot'!$A$5:$K$171,11,FALSE) -> 0.452175 | H5: =VLOOKUP(D5,#REF!,17, FALSE) ->  | I5: =VLOOKUP(D5,#REF!,18, FALSE) -> 
B6: TWU_KGV_HI-RAB_RE2_ALL_teddington dra 50 p2 | D6: TWU_KGV_HI-RAB_RE2_ALL_teddington dra 50 p2 | E6: =VLOOKUP(D6,'Checking pivot'!$A$5:$K$171,6,FALSE) -> 44 | G6: =VLOOKUP(D6,'Checking pivot'!$A$5:$K$171,11,FALSE) -> 0.452175 | H6: =VLOOKUP(D6,#REF!,17, FALSE) ->  | I6: =VLOOKUP(D6,#REF!,18, FALSE) -> 
B7: TWU_KGV_HI-RAB_RE2_ALL_teddington dra 75 p2 | D7: TWU_KGV_HI-RAB_RE2_ALL_teddington dra 75 p2 | E7: =VLOOKUP(D7,'Checking pivot'!$A$5:$K$171,6,FALSE) -> 67 | G7: =VLOOKUP(D7,'Checking pivot'!$A$5:$K$171,11,FALSE) -> 0.452175 | H7: =VLOOKUP(D7,#REF!,17, FALSE) ->  | I7: =VLOOKUP(D7,#REF!,18, FALSE) -> 
B8: TWU_KGV_HI-REU_RE1_CNO_deephams reuse 46.5 | D8: TWU_KGV_HI-REU_RE1_CNO_deephams reuse 46.5 | E8: =VLOOKUP(D8,'Checking pivot'!$A$5:$K$171,6,FALSE) -> 42.3 | G8: =VLOOKUP(D8,'Checking pivot'!$A$5:$K$171,11,FALSE) -> 0.5 | H8: =VLOOKUP(D8,#REF!,17, FALSE) ->  | I8: =VLOOKUP(D8,#REF!,18, FALSE) -> 
B9: TWU_KGV_HI-REU_RE1_CNO_deephams reuse 46.5b | D9: TWU_KGV_HI-REU_RE1_CNO_deephams reuse 46.5b | E9: =VLOOKUP(D9,'Checking pivot'!$A$5:$K$171,6,FALSE) -> 42.3 | G9: =VLOOKUP(D9,'Checking pivot'!$A$5:$K$171,11,FALSE) -> 0.5 | H9: =VLOOKUP(D9,#REF!,17, FALSE) ->  | I9: =VLOOKUP(D9,#REF!,18, FALSE) -> 
B10: TWU_KGV_HI-REU_RE1_CNO_reuse beckton 100 |TWU_KGV_HI-TFR_KGV_ALL_bectontokgv100 | C10: 42 | D10: TWU_KGV_HI-REU_RE1_CNO_reuse beckton 100 | E10: =VLOOKUP(D10,'Checking pivot'!$A$5:$K$171,6,FALSE) -> 89 | G10: =VLOOKUP(D10,'Checking pivot'!$A$5:$K$171,11,FALSE) -> 0.49827 | H10: =VLOOKUP(D10,#REF!,17, FALSE) ->  | I10: =VLOOKUP(D10,#REF!,18, FALSE) -> 
B11: TWU_KGV_HI-REU_RE1_CNO_reuse beckton 150|TWU_KGV_HI-TFR_KGV_ALL_beckton to lockwood|TWU_KGV_HI-TFR_KGV_ALL_lockwood ps-kgv res | C11: 41 | D11: TWU_KGV_HI-REU_RE1_CNO_reuse beckton 150 | E11: =VLOOKUP(D11,'Checking pivot'!$A$5:$K$171,6,FALSE) -> 130 | G11: =VLOOKUP(D11,'Checking pivot'!$A$5:$K$171,11,FALSE) -> 0.49827 | H11: =VLOOKUP(D11,#REF!,17, FALSE) ->  | I11: =VLOOKUP(D11,#REF!,18, FALSE) -> 
B12: TWU_KGV_HI-REU_RE1_CNO_reuse beckton 50|TWU_KGV_HI-TFR_KGV_ALL_bectontokgv100 | C12: 40 | D12: TWU_KGV_HI-REU_RE1_CNO_reuse beckton 50 | E12: =VLOOKUP(D12,'Checking pivot'!$A$5:$K$171,6,FALSE) -> 46 | G12: =VLOOKUP(D12,'Checking pivot'!$A$5:$K$171,11,FALSE) -> 0.49827 | H12: =VLOOKUP(D12,#REF!,17, FALSE) ->  | I12: =VLOOKUP(D12,#REF!,18, FALSE) -> 
B13: TWU_KGV_HI-REU_RE2_ALL_reuse beckton 100 p2 | D13: TWU_KGV_HI-REU_RE2_ALL_reuse beckton 100 p2 | E13: =VLOOKUP(D13,'Checking pivot'!$A$5:$K$171,6,FALSE) -> 85.5 | G13: =VLOOKUP(D13,'Checking pivot'!$A$5:$K$171,11,FALSE) -> 0.49827 | H13: =VLOOKUP(D13,#REF!,17, FALSE) ->  | I13: =VLOOKUP(D13,#REF!,18, FALSE) -> 
B14: TWU_KGV_HI-REU_RE2_ALL_reuse beckton 150 p2 | D14: TWU_KGV_HI-REU_RE2_ALL_reuse beckton 150 p2 | E14: =VLOOKUP(D14,'Checking pivot'!$A$5:$K$171,6,FALSE) -> 130 | G14: =VLOOKUP(D14,'Checking pivot'!$A$5:$K$171,11,FALSE) -> 0.49827 | H14: =VLOOKUP(D14,#REF!,17, FALSE) ->  | I14: =VLOOKUP(D14,#REF!,18, FALSE) -> 
B15: TWU_KGV_HI-REU_RE2_ALL_reuse beckton 50 p2 | D15: TWU_KGV_HI-REU_RE2_ALL_reuse beckton 50 p2 | E15: =VLOOKUP(D15,'Checking pivot'!$A$5:$K$171,6,FALSE) -> 42.8 | G15: =VLOOKUP(D15,'Checking pivot'!$A$5:$K$171,11,FALSE) -> 0.49827 | H15: =VLOOKUP(D15,#REF!,17, FALSE) ->  | I15: =VLOOKUP(D15,#REF!,18, FALSE) -> 
B16: TWU_KGV_HI-TFR_KGV_ALL_beckton to lockwood | D16: TWU_KGV_HI-TFR_KGV_ALL_beckton to lockwood | E16: =VLOOKUP(D16,'Checking pivot'!$A$5:$K$171,6,FALSE) -> 300 | G16: =VLOOKUP(D16,'Checking pivot'!$A$5:$K$171,11,FALSE) -> 0.4072 | H16: =VLOOKUP(D16,#REF!,17, FALSE) ->  | I16: =VLOOKUP(D16,#REF!,18, FALSE) -> 
B17: TWU_KGV_HI-TFR_KGV_ALL_bectontokgv100 | D17: TWU_KGV_HI-TFR_KGV_ALL_bectontokgv100 | E17: =VLOOKUP(D17,'Checking pivot'!$A$5:$K$171,6,FALSE) -> 0 | G17: =VLOOKUP(D17,'Checking pivot'!$A$5:$K$171,11,FALSE) -> 0.3754592708 | H17: =VLOOKUP(D17,#REF!,17, FALSE) ->  | I17: =VLOOKUP(D17,#REF!,18, FALSE) -> 
B18: TWU_KGV_HI-TFR_KGV_ALL_lockwood ps-kgv res | D18: TWU_KGV_HI-TFR_KGV_ALL_lockwood ps-kgv res | E18: =VLOOKUP(D18,'Checking pivot'!$A$5:$K$171,6,FALSE) -> 0 | G18: =VLOOKUP(D18,'Checking pivot'!$A$5:$K$171,11,FALSE) -> 0.401 | H18: =VLOOKUP(D18,#REF!,17, FALSE) ->  | I18: =VLOOKUP(D18,#REF!,18, FALSE) -> 
B19: TWU_KGV_HI-TFR_WLJ_ALL_teddingtondrated/tlt | D19: TWU_KGV_HI-TFR_WLJ_ALL_teddingtondrated/tlt | E19: =VLOOKUP(D19,'Checking pivot'!$A$5:$K$171,6,FALSE) -> 0 | G19: =VLOOKUP(D19,'Checking pivot'!$A$5:$K$171,11,FALSE) -> 0.440175 | H19: =VLOOKUP(D19,#REF!,17, FALSE) ->  | I19: =VLOOKUP(D19,#REF!,18, FALSE) -> 
B20: TWU_LON_HI-REU_RE1_CNO_reusecrossness 100p1|TWU_LON_HI-TFR_LON_CNO_beckton-crossness|TWU_LON_HI-TFR_LON_CNO_crossness to beckton | C20: 44 | D20: TWU_LON_HI-REU_RE1_CNO_reusecrossness 100p1 | E20: =VLOOKUP(D20,'Checking pivot'!$A$5:$K$171,6,FALSE) -> 0 | G20: =VLOOKUP(D20,'Checking pivot'!$A$5:$K$171,11,FALSE) -> 0.6420575151 | H20: =VLOOKUP(D20,#REF!,17, FALSE) ->  | I20: =VLOOKUP(D20,#REF!,18, FALSE) -> 
B21: TWU_LON_HI-REU_RE1_CNO_reusecrossness 50 p1|TWU_LON_HI-TFR_LON_CNO_beckton-crossness|TWU_LON_HI-TFR_LON_CNO_crossness to beckton | C21: 44 | D21: TWU_LON_HI-REU_RE1_CNO_reusecrossness 50 p1 | E21: =VLOOKUP(D21,'Checking pivot'!$A$5:$K$171,6,FALSE) -> 0 | G21: =VLOOKUP(D21,'Checking pivot'!$A$5:$K$171,11,FALSE) -> 0.6241150303 | H21: =VLOOKUP(D21,#REF!,17, FALSE) ->  | I21: =VLOOKUP(D21,#REF!,18, FALSE) -> 
B22: TWU_LON_HI-REU_RE2_ALL_reusecrossness 40 p4 | D22: TWU_LON_HI-REU_RE2_ALL_reusecrossness 40 p4 | E22: =VLOOKUP(D22,'Checking pivot'!$A$5:$K$171,6,FALSE) -> 0 | G22: =VLOOKUP(D22,'Checking pivot'!$A$5:$K$171,11,FALSE) -> 0.6151437879 | H22: =VLOOKUP(D22,#REF!,17, FALSE) ->  | I22: =VLOOKUP(D22,#REF!,18, FALSE) -> 
B23: TWU_LON_HI-REU_RE2_ALL_reusecrossness 50 p2 | D23: TWU_LON_HI-REU_RE2_ALL_reusecrossness 50 p2 | E23: =VLOOKUP(D23,'Checking pivot'!$A$5:$K$171,6,FALSE) -> 0 | G23: =VLOOKUP(D23,'Checking pivot'!$A$5:$K$171,11,FALSE) -> 0.6241150303 | H23: =VLOOKUP(D23,#REF!,17, FALSE) ->  | I23: =VLOOKUP(D23,#REF!,18, FALSE) -> 
B24: TWU_LON_HI-REU_RE2_ALL_reusecrossness 90 p2 | D24: TWU_LON_HI-REU_RE2_ALL_reusecrossness 90 p2 | E24: =VLOOKUP(D24,'Checking pivot'!$A$5:$K$171,6,FALSE) -> 0 | G24: =VLOOKUP(D24,'Checking pivot'!$A$5:$K$171,11,FALSE) -> 0.6418358724 | H24: =VLOOKUP(D24,#REF!,17, FALSE) ->  | I24: =VLOOKUP(D24,#REF!,18, FALSE) -> 
B25: TWU_LON_HI-TFR_LON_ALL_reuse mogden ss k/w | D25: TWU_LON_HI-TFR_LON_ALL_reuse mogden ss k/w | E25: =VLOOKUP(D25,'Checking pivot'!$A$5:$K$171,6,FALSE) ->  | G25: =VLOOKUP(D25,'Checking pivot'!$A$5:$K$171,11,FALSE) ->  | H25: =VLOOKUP(D25,#REF!,17, FALSE) ->  | I25: =VLOOKUP(D25,#REF!,18, FALSE) -> 
B26: TWU_LON_HI-TFR_LON_CNO_crossness to beckton | D26: TWU_LON_HI-TFR_LON_CNO_crossness to beckton | E26: =VLOOKUP(D26,'Checking pivot'!$A$5:$K$171,6,FALSE) -> 0 | G26: =VLOOKUP(D26,'Checking pivot'!$A$5:$K$171,11,FALSE) -> 0.3896379642 | H26: =VLOOKUP(D26,#REF!,17, FALSE) ->  | I26: =VLOOKUP(D26,#REF!,18, FALSE) -> 
B27: TWU_WLJ_HI-REU_RE1_ALL_reuse mogden s sewer | D27: TWU_WLJ_HI-REU_RE1_ALL_reuse mogden s sewer | E27: =VLOOKUP(D27,'Checking pivot'!$A$5:$K$171,6,FALSE) -> 46 | G27: =VLOOKUP(D27,'Checking pivot'!$A$5:$K$171,11,FALSE) -> 0.4531829787 | H27: =VLOOKUP(D27,#REF!,17, FALSE) ->  | I27: =VLOOKUP(D27,#REF!,18, FALSE) -> 
B28: TWU_WLJ_HI-REU_RE1_CNO_reuse mogden 100 p1|TWU_WLJ_HI-TFR_WLJ_ALL_reuse mogden/walton | C28: 43 | D28: TWU_WLJ_HI-REU_RE1_CNO_reuse mogden 100 p1 | E28: =VLOOKUP(D28,'Checking pivot'!$A$5:$K$171,6,FALSE) -> 88 | G28: =VLOOKUP(D28,'Checking pivot'!$A$5:$K$171,11,FALSE) -> 0.523395 | H28: =VLOOKUP(D28,#REF!,17, FALSE) ->  | I28: =VLOOKUP(D28,#REF!,18, FALSE) -> 
B29: TWU_WLJ_HI-REU_RE1_CNO_reuse mogden 50 p1|TWU_WLJ_HI-TFR_WLJ_ALL_reuse mogden/walton | C29: 42 | D29: TWU_WLJ_HI-REU_RE1_CNO_reuse mogden 50 p1 | E29: =VLOOKUP(D29,'Checking pivot'!$A$5:$K$171,6,FALSE) -> 46 | G29: =VLOOKUP(D29,'Checking pivot'!$A$5:$K$171,11,FALSE) -> 0.523395 | H29: =VLOOKUP(D29,#REF!,17, FALSE) ->  | I29: =VLOOKUP(D29,#REF!,18, FALSE) -> 
B30: TWU_WLJ_HI-REU_RE2_ALL_reuse mogden 100 p2 | D30: TWU_WLJ_HI-REU_RE2_ALL_reuse mogden 100 p2 | E30: =VLOOKUP(D30,'Checking pivot'!$A$5:$K$171,6,FALSE) -> 88 | G30: =VLOOKUP(D30,'Checking pivot'!$A$5:$K$171,11,FALSE) -> 0.523395 | H30: =VLOOKUP(D30,#REF!,17, FALSE) ->  | I30: =VLOOKUP(D30,#REF!,18, FALSE) -> 
B31: TWU_WLJ_HI-REU_RE2_ALL_reuse mogden 50 p2 | D31: TWU_WLJ_HI-REU_RE2_ALL_reuse mogden 50 p2 | E31: =VLOOKUP(D31,'Checking pivot'!$A$5:$K$171,6,FALSE) -> 43.33 | G31: =VLOOKUP(D31,'Checking pivot'!$A$5:$K$171,11,FALSE) -> 0.523395 | H31: =VLOOKUP(D31,#REF!,17, FALSE) ->  | I31: =VLOOKUP(D31,#REF!,18, FALSE) -> 
B32: TWU_WLJ_HI-TFR_WLJ_ALL_reuse mogden/walton | D32: TWU_WLJ_HI-TFR_WLJ_ALL_reuse mogden/walton | E32: =VLOOKUP(D32,'Checking pivot'!$A$5:$K$171,6,FALSE) -> 0 | G32: =VLOOKUP(D32,'Checking pivot'!$A$5:$K$171,11,FALSE) -> 0.3473508333 | H32: =VLOOKUP(D32,#REF!,17, FALSE) ->  | I32: =VLOOKUP(D32,#REF!,18, FALSE) -> 
B33: TWU_WLJ_HI-TFR_WLJ_ALL_teddingtondramog/ted | D33: TWU_WLJ_HI-TFR_WLJ_ALL_teddingtondramog/ted | E33: =VLOOKUP(D33,'Checking pivot'!$A$5:$K$171,6,FALSE) -> 0 | G33: =VLOOKUP(D33,'Checking pivot'!$A$5:$K$171,11,FALSE) -> 0.440175 | H33: =VLOOKUP(D33,#REF!,17, FALSE) ->  | I33: =VLOOKUP(D33,#REF!,18, FALSE) -> 

Sheet AIC calc
D2: Key output information (input cost base) | H2: Key output information (output cost base)
B3: Option Name | E3: Min utilisation | F3: Max utilisation | I3: Min utilisation | J3: Max utilisation | L3: =_xlfn.XLOOKUP(B19:B20&"Adjusted Optimism Bias",MetricsTable[Option ID]&MetricsTable[Sub-Metric],MetricsTable[Value],"",0) -> 0.37
B4: Option to Calculate | C4: =IFERROR(F19,"") -> Fens_CNO_55Mm3 | D4: NPV Capex | E4: =SUMPRODUCT(G107:CH107,G137:CH137) -> 1740536047 | F4: =E4 -> 1740536047 | G4: £ | H4: NPV Capex | I4: =IF($I$12<>"",E4*$I$12,E4) -> 1740536047 | J4: =IF($I$12<>"",F4*$I$12,F4) -> 1740536047 | K4: £
B5: Base Options | C5: =IF(E19="",D19,E19) -> Fens_CNO_55Mm3 | D5: NPV Finance | E5: =SUMPRODUCT(G113:CH113,G137:CH137) -> 1503164035 | F5: =E5 -> 1503164035 | G5: £ | H5: NPV Finance | I5: =IF($I$12<>"",E5*$I$12,E5) -> 1503164035 | J5: 1503164035 | K5: £
B6: WACC | C6: =_xlfn.XLOOKUP(C5&"WACC",MetricsTable[Option ID]&MetricsTable[Metric],MetricsTable[Value],0.0292,0) -> 0.0292 | D6: NPV opex | E6: =SUMPRODUCT(G124:CH124,G137:CH137) -> 85964000.1 | F6: =SUMPRODUCT(G125:CH125,G137:CH137) -> 290102054.9 | G6: £ | H6: NPV opex | I6: =IF($I$13<>"",E6*$I$13,E6) -> 85964000.1 | J6: =IF($I$13<>"",F6*$I$13,F6) -> 290102054.9 | K6: £
B7: Operational Year | C7: =MAX(F11:F14)+1+C8 -> 11 | D7: NPV WAFU | E7: =SUMPRODUCT(G133:CH133,G137:CH137) -> 583137217.1 | F7: =E7 -> 583137217.1 | G7: m3 | H7: NPV WAFU | I7: =E7 -> 583137217.1 | J7: =F7 -> 583137217.1 | K7: m3
B8: Offset | C8: 0 | D8: AIC (p/m3) | E8: =IFERROR((E5+E6)*100/E7,"") -> 272.5135677 | F8: =IFERROR((F5+F6)*100/F7,"") -> 307.520432 | G8: p/m3 | H8: AIC (p/m3) | I8: =IFERROR((I5+I6)*100/I7,"") -> 272.5135677 | J8: =IFERROR((J5+J6)*100/J7,"") -> 307.520432 | K8: p/m3
B9: Min Flow | C9: =_xlfn.XLOOKUP(C5,OptionsTable[Option ID],OptionsTable[Minimum Flow (Ml/d)],0,0)*1 -> 16.6 | D9: NPC | E9: =E6+E5 -> 1589128035 | F9: =F6+F5 -> 1793266090 | G9: £ | H9: NPC | I9: =I6+I5 -> 1589128035 | J9: =J6+J5 -> 1793266090 | K9: £
B10: Capacity | C10: =IFERROR(SUM(_xlfn.ANCHORARRAY(K19)),0) -> 83 | E10: Duration | F10: Cumulative Duration
B11: Earliest Start | C11: =_xlfn.LET(_xlpm.x,_xlfn.XLOOKUP(C5,OptionsTable[Option ID],OptionsTable[Earliest Operational Start],"",0), IF(_xlpm.x="",DATE(2025+C7-1,4,1),_xlpm.x)) -> 2035-04-01 | D11: Planning Duration | E11: =IFERROR(MAX(_xlfn._xlws.FILTER(MetricsTable[Value],(MetricsTable[Metric]="Lead Time")*(COUNTIFS($B$19:$B$28,MetricsTable[Option ID])=1))),0) -> 4 | F11: =E11 -> 4 | H11: Output Cost Base
B12: Max Capex Profile Year | C12: =_xlfn.MAXIFS($G$29:$CH$29,$G$65:$CH$65,">0") -> 10 | D12: Development Duration | E12: =IFERROR(MAX(_xlfn._xlws.FILTER(MetricsTable[Value],(MetricsTable[Metric]="Lead Time")*(COUNTIFS($C$19:$C$28,MetricsTable[Option ID])=1))),0) -> 0 | F12: =F11+E12 -> 4 | H12: Capex Factor
B13: Flag | C13: =IF(C12=C7-1,"No","Yes") -> No | D13: Construction Duration | E13: =IFERROR(MAX(_xlfn._xlws.FILTER(MetricsTable[Value],(MetricsTable[Metric]="Lead Time")*(COUNTIFS($D$19:$D$28,MetricsTable[Option ID])=1))),0) -> 6 | F13: =F12+E13 -> 10 | H13: Opex Factor
B14: Start Year | C14: =IF(C11="",2026,IF(MONTH(C11)>3,YEAR(C11)+1,YEAR(C11))-C7+1) -> 2026 | D14: Integrated Option | E14: =IFERROR(MAX(_xlfn._xlws.FILTER(MetricsTable[Value],(MetricsTable[Metric]="Lead Time")*(COUNTIFS($E$19:$E$28,MetricsTable[Option ID])=1))),0) -> 0 | F14: =E14 -> 0
B15: Optimism Bias | C15: =_xlfn.XLOOKUP(C5&"Adjusted Optimism Bias",MetricsTable[Option ID]&MetricsTable[Sub-Metric],MetricsTable[Value],0,0) -> 0.37
B16: Cost Base | C16: =_xlfn.XLOOKUP(C5,OptionsTable[Option ID],OptionsTable[Cost Base],"",0) -> 00:00:00
B18: Planning WRSE Code | C18: Development WRSE Code | D18: Construction WRSE Code | E18: Single WRSE Code | F18: Main Codes | G18: Component | H18: Unique Components | I18: Include Benefit | J18: Options to model benefit for | K18: Default Benefit | L18: PLA OB | M18: DEV OB | N18: VNO OB | O18: Single OB
B19: Fens_PLA_55Mm3 | C19: Fens_DEV_55Mm3 | D19: Fens_CNO_55Mm3 | F19: =IF(D19="",_xlfn._xlws.FILTER(E19:E28,E19:E28<>""),_xlfn._xlws.FILTER(D19:D28,D19:D28<>"")) -> Fens_CNO_55Mm3 | G19: =_xlfn.XLOOKUP(_xlfn.ANCHORARRAY(F19),OptionsTable[Option ID],OptionsTable[Component],"Integrated Option",0) -> 0 | H19: =IF(_xlfn.ANCHORARRAY(G19)<>"",COUNTA(_xlfn.UNIQUE(_xlfn.ANCHORARRAY(G19))),"") -> 1 | I19: =NOT(ISERROR(MATCH(_xlfn.ANCHORARRAY(G19),Table11[Resource Items],0)))+(_xlfn.ANCHORARRAY(H19)=1) -> 1 | J19: =_xlfn.LET(_xlpm.x,IF(_xlfn.ANCHORARRAY(I19),_xlfn.ANCHORARRAY(F19),""),_xlfn._xlws.FILTER(_xlpm.x,_xlpm.x<>"")) -> Fens_CNO_55Mm3 | K19: =_xlfn.XLOOKUP(_xlfn.ANCHORARRAY(J19)&"DO1 in 500 average",MetricsTable[Option ID]&MetricsTable[Metric]&MetricsTable[Scenario],MetricsTable[Value], _xlfn.XLOOKUP(_xlfn.ANCHORARRAY(J19),OptionsTable[Option ID],OptionsTable[Capacity (Ml/d)],"",0),0) -> 83 | L19: =_xlfn.XLOOKUP($B$19:$B$28&"Adjusted Optimism Bias",MetricsTable[Option ID]&MetricsTable[Sub-Metric],MetricsTable[Value],0,0) -> 0.37 | M19: =_xlfn.XLOOKUP($C$19:$C$28&"Adjusted Optimism Bias",MetricsTable[Option ID]&MetricsTable[Sub-Metric],MetricsTable[Value],0,0) -> 0.37 | N19: =_xlfn.XLOOKUP($D$19:$D$28&"Adjusted Optimism Bias",MetricsTable[Option ID]&MetricsTable[Sub-Metric],MetricsTable[Value],0,0) -> 0.37 | O19: =_xlfn.XLOOKUP($E$19:$E$28&"Adjusted Optimism Bias",MetricsTable[Option ID]&MetricsTable[Sub-Metric],MetricsTable[Value],0,0) -> 0
L20: 0 | M20: 0 | N20: 0 | O20: 0
L21: 0 | M21: 0 | N21: 0 | O21: 0
L22: 0 | M22: 0 | N22: 0 | O22: 0
L23: 0 | M23: 0 | N23: 0 | O23: 0
L24: 0 | M24: 0 | N24: 0 | O24: 0
L25: 0 | M25: 0 | N25: 0 | O25: 0
L26: 0 | M26: 0 | N26: 0 | O26: 0
L27: 0 | M27: 0 | N27: 0 | O27: 0
L28: 0 | M28: 0 | N28: 0 | O28: 0
B29: Planning, development and construction costs reorganised into chronological sequence and includes OB | G29: 1 | H29: 2 | I29: 3 | J29: 4 | K29: 5 | L29: 6 | M29: 7 | N29: 8 | O29: 9 | P29: 10 | Q29: 11 | R29: 12 | S29: 13 | T29: 14 | U29: 15 | V29: 16 | W29: 17 | X29: 18 | Y29: 19 | Z29: 20 | AA29: 21 | AB29: 22 | AC29: 23 | AD29: 24 | AE29: 25 | AF29: 26 | AG29: 27 | AH29: 28 | AI29: 29 | AJ29: 30 | AK29: 31 | AL29: 32 | AM29: 33 | AN29: 34 | AO29: 35 | AP29: 36 | AQ29: 37 | AR29: 38 | AS29: 39 | AT29: 40 | AU29: 41 | AV29: 42 | AW29: 43 | AX29: 44 | AY29: 45 | AZ29: 46 | BA29: 47 | BB29: 48 | BC29: 49 | BD29: 50 | BE29: 51 | BF29: 52 | BG29: 53 | BH29: 54 | BI29: 55 | BJ29: 56 | BK29: 57 | BL29: 58 | BM29: 59 | BN29: 60 | BO29: 61 | BP29: 62 | BQ29: 63 | BR29: 64 | BS29: 65 | BT29: 66 | BU29: 67 | BV29: 68 | BW29: 69 | BX29: 70 | BY29: 71 | BZ29: 72 | CA29: 73 | CB29: 74 | CC29: 75 | CD29: 76 | CE29: 77 | CF29: 78 | CG29: 79 | CH29: 80
B30: Asset life category lookup table | C30: Years | D30: Inc OB | E30: NA2 | F30: TOTAL | G30: Year 1 | H30: Year 2 | I30: Year 3 | J30: Year 4 | K30: Year 5 | L30: Year 6 | M30: Year 7 | N30: Year 8 | O30: Year 9 | P30: Year 10 | Q30: Year 11 | R30: Year 12 | S30: Year 13 | T30: Year 14 | U30: Year 15 | V30: Year 16 | W30: Year 17 | X30: Year 18 | Y30: Year 19 | Z30: Year 20 | AA30: Year 21 | AB30: Year 22 | AC30: Year 23 | AD30: Year 24 | AE30: Year 25 | AF30: Year 26 | AG30: Year 27 | AH30: Year 28 | AI30: Year 29 | AJ30: Year 30 | AK30: Year 31 | AL30: Year 32 | AM30: Year 33 | AN30: Year 34 | AO30: Year 35 | AP30: Year 36 | AQ30: Year 37 | AR30: Year 38 | AS30: Year 39 | AT30: Year 40 | AU30: Year 41 | AV30: Year 42 | AW30: Year 43 | AX30: Year 44 | AY30: Year 45 | AZ30: Year 46 | BA30: Year 47 | BB30: Year 48 | BC30: Year 49 | BD30: Year 50 | BE30: Year 51 | BF30: Year 52 | BG30: Year 53 | BH30: Year 54 | BI30: Year 55 | BJ30: Year 56 | BK30: Year 57 | BL30: Year 58 | BM30: Year 59 | BN30: Year 60 | BO30: Year 61 | BP30: Year 62 | BQ30: Year 63 | BR30: Year 64 | BS30: Year 65 | BT30: Year 66 | BU30: Year 67 | BV30: Year 68 | BW30: Year 69 | BX30: Year 70 | BY30: Year 71 | BZ30: Year 72 | CA30: Year 73 | CB30: Year 74 | CC30: Year 75 | CD30: Year 76 | CE30: Year 77 | CF30: Year 78 | CG30: Year 79 | CH30: Year 80
B31: Land (Non depreciating) | C31: ND | D31: TRUE | F31: =SUM(Table16[[#This Row],[Year 1]:[Year 80]]) -> 67392117.28 | G31: =IF(G$29<=$C$8,0, IF($E$11>=G$29-$C$8,SUM(SUMIFS(OFFSET(ProfilesTable[Year 1],0,G$29-1-$C$8),ProfilesTable[Sub-Metric],Table16[[#This Row],[Asset life category lookup table]],ProfilesTable[Metric],"Capex",ProfilesTable[Option ID],$B$19:$B$28) *IF(Table16[[#This Row],[Inc OB]],1+_xlfn.ANCHORARRAY($L$19),1)),0) +IF(AND($F$11<G$29-$C$8,$F$12>=$G$29-$C$8),SUM(SUMIFS(OFFSET(ProfilesTable[Year 1],0,G$29-1-$F$11-$C$8),ProfilesTable[Sub-Metric],Table16[[#This Row],[Asset life category lookup table]],ProfilesTable[Metric],"Capex",ProfilesTable[Option ID],$C$19:$C$28) *IF(Table16[[#This Row],[Inc OB]],1+_xlfn.ANCHORARRAY($M$19),1)),0) +IF(AND($F$12<G$29-$C$8,$F$13>=$G$29-$C$8),SUM(SUMIFS(OFFSET(ProfilesTable[Year 1],0,G$29-1-$F$12-$C$8),ProfilesTable[Sub-Metric],Table16[[#This Row],[Asset life category lookup table]],ProfilesTable[Metric],"Capex",ProfilesTable[Option ID],$D$19:$D$28) *IF(Table16[[#This Row],[Inc OB]],1+_xlfn.ANCHORARRAY($N$19),1)),0) +SUM(SUMIFS(OFFSET(ProfilesTable[Year 1],0,G$29-1-$C$8),ProfilesTable[Sub-Metric],Table16[[#This Row],[Asset life category lookup table]],ProfilesTable[Metric],"Capex",ProfilesTable[Option ID],$E$19:$E$28) *IF(Table16[[#This Row],[Inc OB]],1+_xlfn.ANCHORARRAY($O$19),1))) -> 16848029.32 | H31: =IF(H$29<=$C$8,0, IF($E$11>=H$29-$C$8,SUM(SUMIFS(OFFSET(ProfilesTable[Year 1],0,H$29-1-$C$8),ProfilesTable[Sub-Metric],Table16[[#This Row],[Asset life category lookup table]],ProfilesTable[Metric],"Capex",ProfilesTable[Option ID],$B$19:$B$28) *IF(Table16[[#This Row],[Inc OB]],1+_xlfn.ANCHORARRAY($L$19),1)),0) +IF(AND($F$11<H$29-$C$8,$F$12>=$G$29-$C$8),SUM(SUMIFS(OFFSET(ProfilesTable[Year 1],0,H$29-1-$F$11-$C$8),ProfilesTable[Sub-Metric],Table16[[#This Row],[Asset life category lookup table]],ProfilesTable[Metric],"Capex",ProfilesTable[Option ID],$C$19:$C$28) *IF(Table16[[#This Row],[Inc OB]],1+_xlfn.ANCHORARRAY($M$19),1)),0) +IF(AND($F$12<H$29-$C$8,$F$13>=$G$29-$C$8),SUM(SUMIFS(OFFSET(ProfilesTable[Year 1],0,H$29-1-$F$12-$C$8),ProfilesTable[Sub-Metric],Table16[[#This Row],[Asset life category lookup table]],ProfilesTable[Metric],"Capex",ProfilesTable[Option ID],$D$19:$D$28) *IF(Table16[[#This Row],[Inc OB]],1+_xlfn.ANCHORARRAY($N$19),1)),0) +SUM(SUMIFS(OFFSET(ProfilesTable[Year 1],0,H$29-1-$C$8),ProfilesTable[Sub-Metric],Table16[[#This Row],[Asset life category lookup table]],ProfilesTable[Metric],"Capex",ProfilesTable[Option ID],$E$19:$E$28) *IF(Table16[[#This Row],[Inc OB]],1+_xlfn.ANCHORARRAY($O$19),1))) -> 16848029.32 | I31: =IF(I$29<=$C$8,0, IF($E$11>=I$29-$C$8,SUM(SUMIFS(OFFSET(ProfilesTable[Year 1],0,I$29-1-$C$8),ProfilesTable[Sub-Metric],Table16[[#This Row],[Asset life category lookup table]],ProfilesTable[Metric],"Capex",ProfilesTable[Option ID],$B$19:$B$28) *IF(Table16[[#This Row],[Inc OB]],1+_xlfn.ANCHORARRAY($L$19),1)),0) +IF(AND($F$11<I$29-$C$8,$F$12>=$G$29-$C$8),SUM(SUMIFS(OFFSET(ProfilesTable[Year 1],0,I$29-1-$F$11-$C$8),ProfilesTable[Sub-Metric],Table16[[#This Row],[Asset life category lookup table]],ProfilesTable[Metric],"Capex",ProfilesTable[Option ID],$C$19:$C$28) *IF(Table16[[#This Row],[Inc OB]],1+_xlfn.ANCHORARRAY($M$19),1)),0) +IF(AND($F$12<I$29-$C$8,$F$13>=$G$29-$C$8),SUM(SUMIFS(OFFSET(ProfilesTable[Year 1],0,I$29-1-$F$12-$C$8),ProfilesTable[Sub-Metric],Table16[[#This Row],[Asset life category lookup table]],ProfilesTable[Metric],"Capex",ProfilesTable[Option ID],$D$19:$D$28) *IF(Table16[[#This Row],[Inc OB]],1+_xlfn.ANCHORARRAY($N$19),1)),0) +SUM(SUMIFS(OFFSET(ProfilesTable[Year 1],0,I$29-1-$C$8),ProfilesTable[Sub-Metric],Table16[[#This Row],[Asset life category lookup table]],ProfilesTable[Metric],"Capex",ProfilesTable[Option ID],$E$19:$E$28) *IF(Table16[[#This Row],[Inc OB]],1+_xlfn.ANCHORARRAY($O$19),1))) -> 16848029.32 | J31: =IF(J$29<=$C$8,0, IF($E$11>=J$29-$C$8,SUM(SUMIFS(OFFSET(ProfilesTable[Year 1],0,J$29-1-$C$8),ProfilesTable[Sub-Metric],Table16[[#This Row],[Asset life category lookup table]],ProfilesTable[Metric],"Capex",ProfilesTable[Option ID],$B$19:$B$28) *IF(Table16[[#This Row],[Inc OB]],1+_xlfn.ANCHORARRAY($L$19),1)),0) +IF(AND($F$11<J$29-$C$8,$F$12>=$G$29-$C$8),SUM(SUMIFS(OFFSET(ProfilesTable[Year 1],0,J$29-1-$F$11-$C$8),ProfilesTable[Sub-Metric],Table16[[#This Row],[Asset life category lookup table]],ProfilesTable[Metric],"Capex",ProfilesTable[Option ID],$C$19:$C$28) *IF(Table16[[#This Row],[Inc OB]],1+_xlfn.ANCHORARRAY($M$19),1)),0) +IF(AND($F$12<J$29-$C$8,$F$13>=$G$29-$C$8),SUM(SUMIFS(OFFSET(ProfilesTable[Year 1],0,J$29-1-$F$12-$C$8),ProfilesTable[Sub-Metric],Table16[[#This Row],[Asset life category lookup table]],ProfilesTable[Metric],"Capex",ProfilesTable[Option ID],$D$19:$D$28) *IF(Table16[[#This Row],[Inc OB]],1+_xlfn.ANCHORARRAY($N$19),1)),0) +SUM(SUMIFS(OFFSET(ProfilesTable[Year 1],0,J$29-1-$C$8),ProfilesTable[Sub-Metric],Table16[[#This Row],[Asset life category lookup table]],ProfilesTable[Metric],"Capex",ProfilesTable[Option ID],$E$19:$E$28) *IF(Table16[[#This Row],[Inc OB]],1+_xlfn.ANCHORARRAY($O$19),1))) -> 16848029.32 | K31: =IF(K$29<=$C$8,0, IF($E$11>=K$29-$C$8,SUM(SUMIFS(OFFSET(ProfilesTable[Year 1],0,K$29-1-$C$8),ProfilesTable[Sub-Metric],Table16[[#This Row],[Asset life category lookup table]],ProfilesTable[Metric],"Capex",ProfilesTable[Option ID],$B$19:$B$28) *IF(Table16[[#This Row],[Inc OB]],1+_xlfn.ANCHORARRAY($L$19),1)),0) +IF(AND($F$11<K$29-$C$8,$F$12>=$G$29-$C$8),SUM(SUMIFS(OFFSET(ProfilesTable[Year 1],0,K$29-1-$F$11-$C$8),ProfilesTable[Sub-Metric],Table16[[#This Row],[Asset life category lookup table]],ProfilesTable[Metric],"Capex",ProfilesTable[Option ID],$C$19:$C$28) *IF(Table16[[#This Row],[Inc OB]],1+_xlfn.ANCHORARRAY($M$19),1)),0) +IF(AND($F$12<K$29-$C$8,$F$13>=$G$29-$C$8),SUM(SUMIFS(OFFSET(ProfilesTable[Year 1],0,K$29-1-$F$12-$C$8),ProfilesTable[Sub-Metric],Table16[[#This Row],[Asset life category lookup table]],ProfilesTable[Metric],"Capex",ProfilesTable[Option ID],$D$19:$D$28) *IF(Table16[[#This Row],[Inc OB]],1+_xlfn.ANCHORARRAY($N$19),1)),0) +SUM(SUMIFS(OFFSET(ProfilesTable[Year 1],0,K$29-1-$C$8),ProfilesTable[Sub-Metric],Table16[[#This Row],[Asset life category lookup table]],ProfilesTable[Metric],"Capex",ProfilesTable[Option ID],$E$19:$E$28) *IF(Table16[[#This Row],[Inc OB]],1+_xlfn.ANCHORARRAY($O$19),1))) -> 0 | L31: =IF(L$29<=$C$8,0, IF($E$11>=L$29-$C$8,SUM(SUMIFS(OFFSET(ProfilesTable[Year 1],0,L$29-1-$C$8),ProfilesTable[Sub-Metric],Table16[[#This Row],[Asset life category lookup table]],ProfilesTable[Metric],"Capex",ProfilesTable[Option ID],$B$19:$B$28) *IF(Table16[[#This Row],[Inc OB]],1+_xlfn.ANCHORARRAY($L$19),1)),0) +IF(AND($F$11<L$29-$C$8,$F$12>=$G$29-$C$8),SUM(SUMIFS(OFFSET(ProfilesTable[Year 1],0,L$29-1-$F$11-$C$8),ProfilesTable[Sub-Metric],Table16[[#This Row],[Asset life category lookup table]],ProfilesTable[Metric],"Capex",ProfilesTable[Option ID],$C$19:$C$28) *IF(Table16[[#This Row],[Inc OB]],1+_xlfn.ANCHORARRAY($M$19),1)),0) +IF(AND($F$12<L$29-$C$8,$F$13>=$G$29-$C$8),SUM(SUMIFS(OFFSET(ProfilesTable[Year 1],0,L$29-1-$F$12-$C$8),ProfilesTable[Sub-Metric],Table16[[#This Row],[Asset life category lookup table]],ProfilesTable[Metric],"Capex",ProfilesTable[Option ID],$D$19:$D$28) *IF(Table16[[#This Row],[Inc OB]],1+_xlfn.ANCHORARRAY($N$19),1)),0) +SUM(SUMIFS(OFFSET(ProfilesTable[Year 1],0,L$29-1-$C$8),ProfilesTable[Sub-Metric],Table16[[#This Row],[Asset life category lookup table]],ProfilesTable[Metric],"Capex",ProfilesTable[Option ID],$E$19:$E$28) *IF(Table16[[#This Row],[Inc OB]],1+_xlfn.ANCHORARRAY($O$19),1))) -> 0 | M31: =IF(M$29<=$C$8,0, IF($E$11>=M$29-$C$8,SUM(SUMIFS(OFFSET(ProfilesTable[Year 1],0,M$29-1-$C$8),ProfilesTable[Sub-Metric],Table16[[#This Row],[Asset life category lookup table]],ProfilesTable[Metric],"Capex",ProfilesTable[Option ID],$B$19:$B$28) *IF(Table16[[#This Row],[Inc OB]],1+_xlfn.ANCHORARRAY($L$19),1)),0) +IF(AND($F$11<M$29-$C$8,$F$12>=$G$29-$C$8),SUM(SUMIFS(OFFSET(ProfilesTable[Year 1],0,M$29-1-$F$11-$C$8),ProfilesTable[Sub-Metric],Table16[[#This Row],[Asset life category lookup table]],ProfilesTable[Metric],"Capex",ProfilesTable[Option ID],$C$19:$C$28) *IF(Table16[[#This Row],[Inc OB]],1+_xlfn.ANCHORARRAY($M$19),1)),0) +IF(AND($F$12<M$29-$C$8,$F$13>=$G$29-$C$8),SUM(SUMIFS(OFFSET(ProfilesTable[Year 1],0,M$29-1-$F$12-$C$8),ProfilesTable[Sub-Metric],Table16[[#This Row],[Asset life category lookup table]],ProfilesTable[Metric],"Capex",ProfilesTable[Option ID],$D$19:$D$28) *IF(Table16[[#This Row],[Inc OB]],1+_xlfn.ANCHORARRAY($N$19),1)),0) +SUM(SUMIFS(OFFSET(ProfilesTable[Year 1],0,M$29-1-$C$8),ProfilesTable[Sub-Metric],Table16[[#This Row],[Asset life category lookup table]],ProfilesTable[Metric],"Capex",ProfilesTable[Option ID],$E$19:$E$28) *IF(Table16[[#This Row],[Inc OB]],1+_xlfn.ANCHORARRAY($O$19),1))) -> 0 | N31: =IF(N$29<=$C$8,0, IF($E$11>=N$29-$C$8,SUM(SUMIFS(OFFSET(ProfilesTable[Year 1],0,N$29-1-$C$8),ProfilesTable[Sub-Metric],Table16[[#This Row],[Asset life category lookup table]],ProfilesTable[Metric],"Capex",ProfilesTable[Option ID],$B$19:$B$28) *IF(Table16[[#This Row],[Inc OB]],1+_xlfn.ANCHORARRAY($L$19),1)),0) +IF(AND($F$11<N$29-$C$8,$F$12>=$G$29-$C$8),SUM(SUMIFS(OFFSET(ProfilesTable[Year 1],0,N$29-1-$F$11-$C$8),ProfilesTable[Sub-Metric],Table16[[#This Row],[Asset life category lookup table]],ProfilesTable[Metric],"Capex",ProfilesTable[Option ID],$C$19:$C$28) *IF(Table16[[#This Row],[Inc OB]],1+_xlfn.ANCHORARRAY($M$19),1)),0) +IF(AND($F$12<N$29-$C$8,$F$13>=$G$29-$C$8),SUM(SUMIFS(OFFSET(ProfilesTable[Year 1],0,N$29-1-$F$12-$C$8),ProfilesTable[Sub-Metric],Table16[[#This Row],[Asset life category lookup table]],ProfilesTable[Metric],"Capex",ProfilesTable[Option ID],$D$19:$D$28) *IF(Table16[[#This Row],[Inc OB]],1+_xlfn.ANCHORARRAY($N$19),1)),0) +SUM(SUMIFS(OFFSET(ProfilesTable[Year 1],0,N$29-1-$C$8),ProfilesTable[Sub-Metric],Table16[[#This Row],[Asset life category lookup table]],ProfilesTable[Metric],"Capex",ProfilesTable[Option ID],$E$19:$E$28) *IF(Table16[[#This Row],[Inc OB]],1+_xlfn.ANCHORARRAY($O$19),1))) -> 0 | O31: =IF(O$29<=$C$8,0, IF($E$11>=O$29-$C$8,SUM(SUMIFS(OFFSET(ProfilesTable[Year 1],0,O$29-1-$C$8),ProfilesTable[Sub-Metric],Table16[[#This Row],[Asset life category lookup table]],ProfilesTable[Metric],"Capex",ProfilesTable[Option ID],$B$19:$B$28) *IF(Table16[[#This Row],[Inc OB]],1+_xlfn.ANCHORARRAY($L$19),1)),0) +IF(AND($F$11<O$29-$C$8,$F$12>=$G$29-$C$8),SUM(SUMIFS(OFFSET(ProfilesTable[Year 1],0,O$29-1-$F$11-$C$8),ProfilesTable[Sub-Metric],Table16[[#This Row],[Asset life category lookup table]],ProfilesTable[Metric],"Capex",ProfilesTable[Option ID],$C$19:$C$28) *IF(Table16[[#This Row],[Inc OB]],1+_xlfn.ANCHORARRAY($M$19),1)),0) +IF(AND($F$12<O$29-$C$8,$F$13>=$G$29-$C$8),SUM(SUMIFS(OFFSET(ProfilesTable[Year 1],0,O$29-1-$F$12-$C$8),ProfilesTable[Sub-Metric],Table16[[#This Row],[Asset life category lookup table]],ProfilesTable[Metric],"Capex",ProfilesTable[Option ID],$D$19:$D$28) *IF(Table16[[#This Row],[Inc OB]],1+_xlfn.ANCHORARRAY($N$19),1)),0) +SUM(SUMIFS(OFFSET(ProfilesTable[Year 1],0,O$29-1-$C$8),ProfilesTable[Sub-Metric],Table16[[#This Row],[Asset life category lookup table]],ProfilesTable[Metric],"Capex",ProfilesTable[Option ID],$E$19:$E$28) *IF(Table16[[#This Row],[Inc OB]],1+_xlfn.ANCHORARRAY($O$19),1))) -> 0 | P31: =IF(P$29<=$C$8,0, IF($E$11>=P$29-$C$8,SUM(SUMIFS(OFFSET(ProfilesTable[Year 1],0,P$29-1-$C$8),ProfilesTable[Sub-Metric],Table16[[#This Row],[Asset life category lookup table]],ProfilesTable[Metric],"Capex",ProfilesTable[Option ID],$B$19:$B$28) *IF(Table16[[#This Row],[Inc OB]],1+_xlfn.ANCHORARRAY($L$19),1)),0) +IF(AND($F$11<P$29-$C$8,$F$12>=$G$29-$C$8),SUM(SUMIFS(OFFSET(ProfilesTable[Year 1],0,P$29-1-$F$11-$C$8),ProfilesTable[Sub-Metric],Table16[[#This Row],[Asset life category lookup table]],ProfilesTable[Metric],"Capex",ProfilesTable[Option ID],$C$19:$C$28) *IF(Table16[[#This Row],[Inc OB]],1+_xlfn.ANCHORARRAY($M$19),1)),0) +IF(AND($F$12<P$29-$C$8,$F$13>=$G$29-$C$8),SUM(SUMIFS(OFFSET(ProfilesTable[Year 1],0,P$29-1-$F$12-$C$8),ProfilesTable[Sub-Metric],Table16[[#This Row],[Asset life category lookup table]],ProfilesTable[Metric],"Capex",ProfilesTable[Option ID],$D$19:$D$28) *IF(Table16[[#This Row],[Inc OB]],1+_xlfn.ANCHORARRAY($N$19),1)),0) +SUM(SUMIFS(OFFSET(ProfilesTable[Year 1],0,P$29-1-$C$8),ProfilesTable[Sub-Metric],Table16[[#This Row],[Asset life category lookup table]],ProfilesTable[Metric],"Capex",ProfilesTable[Option ID],$E$19:$E$28) *IF(Table16[[#This Row],[Inc OB]],1+_xlfn.ANCHORARRAY($O$19),1))) -> 0 | Q31: =IF(Q$29<=$C$8,0, IF($E$11>=Q$29-$C$8,SUM(SUMIFS(OFFSET(ProfilesTable[Year 1],0,Q$29-1-$C$8),ProfilesTable[Sub-Metric],Table16[[#This Row],[Asset life category lookup table]],ProfilesTable[Metric],"Capex",ProfilesTable[Option ID],$B$19:$B$28) *IF(Table16[[#This Row],[Inc OB]],1+_xlfn.ANCHORARRAY($L$19),1)),0) +IF(AND($F$11<Q$29-$C$8,$F$12>=$G$29-$C$8),SUM(SUMIFS(OFFSET(ProfilesTable[Year 1],0,Q$29-1-$F$11-$C$8),ProfilesTable[Sub-Metric],Table16[[#This Row],[Asset life category lookup table]],ProfilesTable[Metric],"Capex",ProfilesTable[Option ID],$C$19:$C$28) *IF(Table16[[#This Row],[Inc OB]],1+_xlfn.ANCHORARRAY($M$19),1)),0) +IF(AND($F$12<Q$29-$C$8,$F$13>=$G$29-$C$8),SUM(SUMIFS(OFFSET(ProfilesTable[Year 1],0,Q$29-1-$F$12-$C$8),ProfilesTable[Sub-Metric],Table16[[#This Row],[Asset life category lookup table]],ProfilesTable[Metric],"Capex",ProfilesTable[Option ID],$D$19:$D$28) *IF(Table16[[#This Row],[Inc OB]],1+_xlfn.ANCHORARRAY($N$19),1)),0) +SUM(SUMIFS(OFFSET(ProfilesTable[Year 1],0,Q$29-1-$C$8),ProfilesTable[Sub-Metric],Table16[[#This Row],[Asset life category lookup table]],ProfilesTable[Metric],"Capex",ProfilesTable[Option ID],$E$19:$E$28) *IF(Table16[[#This Row],[Inc OB]],1+_xlfn.ANCHORARRAY($O$19),1))) -> 0 | R31: =IF(R$29<=$C$8,0, IF($E$11>=R$29-$C$8,SUM(SUMIFS(OFFSET(ProfilesTable[Year 1],0,R$29-1-$C$8),ProfilesTable[Sub-Metric],Table16[[#This Row],[Asset life category lookup table]],ProfilesTable[Metric],"Capex",ProfilesTable[Option ID],$B$19:$B$28) *IF(Table16[[#This Row],[Inc OB]],1+_xlfn.ANCHORARRAY($L$19),1)),0) +IF(AND($F$11<R$29-$C$8,$F$12>=$G$29-$C$8),SUM(SUMIFS(OFFSET(ProfilesTable[Year 1],0,R$29-1-$F$11-$C$8),ProfilesTable[Sub-Metric],Table16[[#This Row],[Asset life category lookup table]],ProfilesTable[Metric],"Capex",ProfilesTable[Option ID],$C$19:$C$28) *IF(Table16[[#This Row],[Inc OB]],1+_xlfn.ANCHORARRAY($M$19),1)),0) +IF(AND($F$12<R$29-$C$8,$F$13>=$G$29-$C$8),SUM(SUMIFS(OFFSET(ProfilesTable[Year 1],0,R$29-1-$F$12-$C$8),ProfilesTable[Sub-Metric],Table16[[#This Row],[Asset life category lookup table]],ProfilesTable[Metric],"Capex",ProfilesTable[Option ID],$D$19:$D$28) *IF(Table16[[#This Row],[Inc OB]],1+_xlfn.ANCHORARRAY($N$19),1)),0) +SUM(SUMIFS(OFFSET(ProfilesTable[Year 1],0,R$29-1-$C$8),ProfilesTable[Sub-Metric],Table16[[#This Row],[Asset life category lookup table]],ProfilesTable[Metric],"Capex",ProfilesTable[Option ID],$E$19:$E$28) *IF(Table16[[#This Row],[Inc OB]],1+_xlfn.ANCHORARRAY($O$19),1))) -> 0 | S31: =IF(S$29<=$C$8,0, IF($E$11>=S$29-$C$8,SUM(SUMIFS(OFFSET(ProfilesTable[Year 1],0,S$29-1-$C$8),ProfilesTable[Sub-Metric],Table16[[#This Row],[Asset life category lookup table]],ProfilesTable[Metric],"Capex",ProfilesTable[Option ID],$B$19:$B$28) *IF(Table16[[#This Row],[Inc OB]],1+_xlfn.ANCHORARRAY($L$19),1)),0) +IF(AND($F$11<S$29-$C$8,$F$12>=$G$29-$C$8),SUM(SUMIFS(OFFSET(ProfilesTable[Year 1],0,S$29-1-$F$11-$C$8),ProfilesTable[Sub-Metric],Table16[[#This Row],[Asset life category lookup table]],ProfilesTable[Metric],"Capex",ProfilesTable[Option ID],$C$19:$C$28) *IF(Table16[[#This Row],[Inc OB]],1+_xlfn.ANCHORARRAY($M$19),1)),0) +IF(AND($F$12<S$29-$C$8,$F$13>=$G$29-$C$8),SUM(SUMIFS(OFFSET(ProfilesTable[Year 1],0,S$29-1-$F$12-$C$8),ProfilesTable[Sub-Metric],Table16[[#This Row],[Asset life category lookup table]],ProfilesTable[Metric],"Capex",ProfilesTable[Option ID],$D$19:$D$28) *IF(Table16[[#This Row],[Inc OB]],1+_xlfn.ANCHORARRAY($N$19),1)),0) +SUM(SUMIFS(OFFSET(ProfilesTable[Year 1],0,S$29-1-$C$8),ProfilesTable[Sub-Metric],Table16[[#This Row],[Asset life category lookup table]],ProfilesTable[Metric],"Capex",ProfilesTable[Option ID],$E$19:$E$28) *IF(Table16[[#This Row],[Inc OB]],1+_xlfn.ANCHORARRAY($O$19),1))) -> 0 | T31: =IF(T$29<=$C$8,0, IF($E$11>=T$29-$C$8,SUM(SUMIFS(OFFSET(ProfilesTable[Year 1],0,T$29-1-$C$8),ProfilesTable[Sub-Metric],Table16[[#This Row],[Asset life category lookup table]],ProfilesTable[Metric],"Capex",ProfilesTable[Option ID],$B$19:$B$28) *IF(Table16[[#This Row],[Inc OB]],1+_xlfn.ANCHORARRAY($L$19),1)),0) +IF(AND($F$11<T$29-$C$8,$F$12>=$G$29-$C$8),SUM(SUMIFS(OFFSET(ProfilesTable[Year 1],0,T$29-1-$F$11-$C$8),ProfilesTable[Sub-Metric],Table16[[#This Row],[Asset life category lookup table]],ProfilesTable[Metric],"Capex",ProfilesTable[Option ID],$C$19:$C$28) *IF(Table16[[#This Row],[Inc OB]],1+_xlfn.ANCHORARRAY($M$19),1)),0) +IF(AND($F$12<T$29-$C$8,$F$13>=$G$29-$C$8),SUM(SUMIFS(OFFSET(ProfilesTable[Year 1],0,T$29-1-$F$12-$C$8),ProfilesTable[Sub-Metric],Table16[[#This Row],[Asset life category lookup table]],ProfilesTable[Metric],"Capex",ProfilesTable[Option ID],$D$19:$D$28) *IF(Table16[[#This Row],[Inc OB]],1+_xlfn.ANCHORARRAY($N$19),1)),0) +SUM(SUMIFS(OFFSET(ProfilesTable[Year 1],0,T$29-1-$C$8),ProfilesTable[Sub-Metric],Table16[[#This Row],[Asset life category lookup table]],ProfilesTable[Metric],"Capex",ProfilesTable[Option ID],$E$19:$E$28) *IF(Table16[[#This Row],[Inc OB]],1+_xlfn.ANCHORARRAY($O$19),1))) -> 0 | U31: =IF(U$29<=$C$8,0, IF($E$11>=U$29-$C$8,SUM(SUMIFS(OFFSET(ProfilesTable[Year 1],0,U$29-1-$C$8),ProfilesTable[Sub-Metric],Table16[[#This Row],[Asset life category lookup table]],ProfilesTable[Metric],"Capex",ProfilesTable[Option ID],$B$19:$B$28) *IF(Table16[[#This Row],[Inc OB]],1+_xlfn.ANCHORARRAY($L$19),1)),0) +IF(AND($F$11<U$29-$C$8,$F$12>=$G$29-$C$8),SUM(SUMIFS(OFFSET(ProfilesTable[Year 1],0,U$29-1-$F$11-$C$8),ProfilesTable[Sub-Metric],Table16[[#This Row],[Asset life category lookup table]],ProfilesTable[Metric],"Capex",ProfilesTable[Option ID],$C$19:$C$28) *IF(Table16[[#This Row],[Inc OB]],1+_xlfn.ANCHORARRAY($M$19),1)),0) +IF(AND($F$12<U$29-$C$8,$F$13>=$G$29-$C$8),SUM(SUMIFS(OFFSET(ProfilesTable[Year 1],0,U$29-1-$F$12-$C$8),ProfilesTable[Sub-Metric],Table16[[#This Row],[Asset life category lookup table]],ProfilesTable[Metric],"Capex",ProfilesTable[Option ID],$D$19:$D$28) *IF(Table16[[#This Row],[Inc OB]],1+_xlfn.ANCHORARRAY($N$19),1)),0) +SUM(SUMIFS(OFFSET(ProfilesTable[Year 1],0,U$29-1-$C$8),ProfilesTable[Sub-Metric],Table16[[#This Row],[Asset life category lookup table]],ProfilesTable[Metric],"Capex",ProfilesTable[Option ID],$E$19:$E$28) *IF(Table16[[#This Row],[Inc OB]],1+_xlfn.ANCHORARRAY($O$19),1))) -> 0 | V31: =IF(V$29<=$C$8,0, IF($E$11>=V$29-$C$8,SUM(SUMIFS(OFFSET(ProfilesTable[Year 1],0,V$29-1-$C$8),ProfilesTable[Sub-Metric],Table16[[#This Row],[Asset life category lookup table]],ProfilesTable[Metric],"Capex",ProfilesTable[Option ID],$B$19:$B$28) *IF(Table16[[#This Row],[Inc OB]],1+_xlfn.ANCHORARRAY($L$19),1)),0) +IF(AND($F$11<V$29-$C$8,$F$12>=$G$29-$C$8),SUM(SUMIFS(OFFSET(ProfilesTable[Year 1],0,V$29-1-$F$11-$C$8),ProfilesTable[Sub-Metric],Table16[[#This Row],[Asset life category lookup table]],ProfilesTable[Metric],"Capex",ProfilesTable[Option ID],$C$19:$C$28) *IF(Table16[[#This Row],[Inc OB]],1+_xlfn.ANCHORARRAY($M$19),1)),0) +IF(AND($F$12<V$29-$C$8,$F$13>=$G$29-$C$8),SUM(SUMIFS(OFFSET(ProfilesTable[Year 1],0,V$29-1-$F$12-$C$8),ProfilesTable[Sub-Metric],Table16[[#This Row],[Asset life category lookup table]],ProfilesTable[Metric],"Capex",ProfilesTable[Option ID],$D$19:$D$28) *IF(Table16[[#This Row],[Inc OB]],1+_xlfn.ANCHORARRAY($N$19),1)),0) +SUM(SUMIFS(OFFSET(ProfilesTable[Year 1],0,V$29-1-$C$8),ProfilesTable[Sub-Metric],Table16[[#This Row],[Asset life category lookup table]],ProfilesTable[Metric],"Capex",ProfilesTable[Option ID],$E$19:$E$28) *IF(Table16[[#This Row],[Inc OB]],1+_xlfn.ANCHORARRAY($O$19),1))) -> 0 | W31: =IF(W$29<=$C$8,0, IF($E$11>=W$29-$C$8,SUM(SUMIFS(OFFSET(ProfilesTable[Year 1],0,W$29-1-$C$8),ProfilesTable[Sub-Metric],Table16[[#This Row],[Asset life category lookup table]],ProfilesTable[Metric],"Capex",ProfilesTable[Option ID],$B$19:$B$28) *IF(Table16[[#This Row],[Inc OB]],1+_xlfn.ANCHORARRAY($L$19),1)),0) +IF(AND($F$11<W$29-$C$8,$F$12>=$G$29-$C$8),SUM(SUMIFS(OFFSET(ProfilesTable[Year 1],0,W$29-1-$F$11-$C$8),ProfilesTable[Sub-Metric],Table16[[#This Row],[Asset life category lookup table]],ProfilesTable[Metric],"Capex",ProfilesTable[Option ID],$C$19:$C$28) *IF(Table16[[#This Row],[Inc OB]],1+_xlfn.ANCHORARRAY($M$19),1)),0) +IF(AND($F$12<W$29-$C$8,$F$13>=$G$29-$C$8),SUM(SUMIFS(OFFSET(ProfilesTable[Year 1],0,W$29-1-$F$12-$C$8),ProfilesTable[Sub-Metric],Table16[[#This Row],[Asset life category lookup table]],ProfilesTable[Metric],"Capex",ProfilesTable[Option ID],$D$19:$D$28) *IF(Table16[[#This Row],[Inc OB]],1+_xlfn.ANCHORARRAY($N$19),1)),0) +SUM(SUMIFS(OFFSET(ProfilesTable[Year 1],0,W$29-1-$C$8),ProfilesTable[Sub-Metric],Table16[[#This Row],[Asset life category lookup table]],ProfilesTable[Metric],"Capex",ProfilesTable[Option ID],$E$19:$E$28) *IF(Table16[[#This Row],[Inc OB]],1+_xlfn.ANCHORARRAY($O$19),1))) -> 0 | X31: =IF(X$29<=$C$8,0, IF($E$11>=X$29-$C$8,SUM(SUMIFS(OFFSET(ProfilesTable[Year 1],0,X$29-1-$C$8),ProfilesTable[Sub-Metric],Table16[[#This Row],[Asset life category lookup table]],ProfilesTable[Metric],"Capex",ProfilesTable[Option ID],$B$19:$B$28) *IF(Table16[[#This Row],[Inc OB]],1+_xlfn.ANCHORARRAY($L$19),1)),0) +IF(AND($F$11<X$29-$C$8,$F$12>=$G$29-$C$8),SUM(SUMIFS(OFFSET(ProfilesTable[Year 1],0,X$29-1-$F$11-$C$8),ProfilesTable[Sub-Metric],Table16[[#This Row],[Asset life category lookup table]],ProfilesTable[Metric],"Capex",ProfilesTable[Option ID],$C$19:$C$28) *IF(Table16[[#This Row],[Inc OB]],1+_xlfn.ANCHORARRAY($M$19),1)),0) +IF(AND($F$12<X$29-$C$8,$F$13>=$G$29-$C$8),SUM(SUMIFS(OFFSET(ProfilesTable[Year 1],0,X$29-1-$F$12-$C$8),ProfilesTable[Sub-Metric],Table16[[#This Row],[Asset life category lookup table]],ProfilesTable[Metric],"Capex",ProfilesTable[Option ID],$D$19:$D$28) *IF(Table16[[#This Row],[Inc OB]],1+_xlfn.ANCHORARRAY($N$19),1)),0) +SUM(SUMIFS(OFFSET(ProfilesTable[Year 1],0,X$29-1-$C$8),ProfilesTable[Sub-Metric],Table16[[#This Row],[Asset life category lookup table]],ProfilesTable[Metric],"Capex",ProfilesTable[Option ID],$E$19:$E$28) *IF(Table16[[#This Row],[Inc OB]],1+_xlfn.ANCHORARRAY($O$19),1))) -> 0 | Y31: =IF(Y$29<=$C$8,0, IF($E$11>=Y$29-$C$8,SUM(SUMIFS(OFFSET(ProfilesTable[Year 1],0,Y$29-1-$C$8),ProfilesTable[Sub-Metric],Table16[[#This Row],[Asset life category lookup table]],ProfilesTable[Metric],"Capex",ProfilesTable[Option ID],$B$19:$B$28) *IF(Table16[[#This Row],[Inc OB]],1+_xlfn.ANCHORARRAY($L$19),1)),0) +IF(AND($F$11<Y$29-$C$8,$F$12>=$G$29-$C$8),SUM(SUMIFS(OFFSET(ProfilesTable[Year 1],0,Y$29-1-$F$11-$C$8),ProfilesTable[Sub-Metric],Table16[[#This Row],[Asset life category lookup table]],ProfilesTable[Metric],"Capex",ProfilesTable[Option ID],$C$19:$C$28) *IF(Table16[[#This Row],[Inc OB]],1+_xlfn.ANCHORARRAY($M$19),1)),0) +IF(AND($F$12<Y$29-$C$8,$F$13>=$G$29-$C$8),SUM(SUMIFS(OFFSET(ProfilesTable[Year 1],0,Y$29-1-$F$12-$C$8),ProfilesTable[Sub-Metric],Table16[[#This Row],[Asset life category lookup table]],ProfilesTable[Metric],"Capex",ProfilesTable[Option ID],$D$19:$D$28) *IF(Table16[[#This Row],[Inc OB]],1+_xlfn.ANCHORARRAY($N$19),1)),0) +SUM(SUMIFS(OFFSET(ProfilesTable[Year 1],0,Y$29-1-$C$8),ProfilesTable[Sub-Metric],Table16[[#This Row],[Asset life category lookup table]],ProfilesTable[Metric],"Capex",ProfilesTable[Option ID],$E$19:$E$28) *IF(Table16[[#This Row],[Inc OB]],1+_xlfn.ANCHORARRAY($O$19),1))) -> 0 | Z31: =IF(Z$29<=$C$8,0, IF($E$11>=Z$29-$C$8,SUM(SUMIFS(OFFSET(ProfilesTable[Year 1],0,Z$29-1-$C$8),ProfilesTable[Sub-Metric],Table16[[#This Row],[Asset life category lookup table]],ProfilesTable[Metric],"Capex",ProfilesTable[Option ID],$B$19:$B$28) *IF(Table16[[#This Row],[Inc OB]],1+_xlfn.ANCHORARRAY($L$19),1)),0) +IF(AND($F$11<Z$29-$C$8,$F$12>=$G$29-$C$8),SUM(SUMIFS(OFFSET(ProfilesTable[Year 1],0,Z$29-1-$F$11-$C$8),ProfilesTable[Sub-Metric],Table16[[#This Row],[Asset life category lookup table]],ProfilesTable[Metric],"Capex",ProfilesTable[Option ID],$C$19:$C$28) *IF(Table16[[#This Row],[Inc OB]],1+_xlfn.ANCHORARRAY($M$19),1)),0) +IF(AND($F$12<Z$29-$C$8,$F$13>=$G$29-$C$8),SUM(SUMIFS(OFFSET(ProfilesTable[Year 1],0,Z$29-1-$F$12-$C$8),ProfilesTable[Sub-Metric],Table16[[#This Row],[Asset life category lookup table]],ProfilesTable[Metric],"Capex",ProfilesTable[Option ID],$D$19:$D$28) *IF(Table16[[#This Row],[Inc OB]],1+_xlfn.ANCHORARRAY($N$19),1)),0) +SUM(SUMIFS(OFFSET(ProfilesTable[Year 1],0,Z$29-1-$C$8),ProfilesTable[Sub-Metric],Table16[[#This Row],[Asset life category lookup table]],ProfilesTable[Metric],"Capex",ProfilesTable[Option ID],$E$19:$E$28) *IF(Table16[[#This Row],[Inc OB]],1+_xlfn.ANCHORARRAY($O$19),1))) -> 0 | AA31: =IF(AA$29<=$C$8,0, IF($E$11>=AA$29-$C$8,SUM(SUMIFS(OFFSET(ProfilesTable[Year 1],0,AA$29-1-$C$8),ProfilesTable[Sub-Metric],Table16[[#This Row],[Asset life category lookup table]],ProfilesTable[Metric],"Capex",ProfilesTable[Option ID],$B$19:$B$28) *IF(Table16[[#This Row],[Inc OB]],1+_xlfn.ANCHORARRAY($L$19),1)),0) +IF(AND($F$11<AA$29-$C$8,$F$12>=$G$29-$C$8),SUM(SUMIFS(OFFSET(ProfilesTable[Year 1],0,AA$29-1-$F$11-$C$8),ProfilesTable[Sub-Metric],Table16[[#This Row],[Asset life category lookup table]],ProfilesTable[Metric],"Capex",ProfilesTable[Option ID],$C$19:$C$28) *IF(Table16[[#This Row],[Inc OB]],1+_xlfn.ANCHORARRAY($M$19),1)),0) +IF(AND($F$12<AA$29-$C$8,$F$13>=$G$29-$C$8),SUM(SUMIFS(OFFSET(ProfilesTable[Year 1],0,AA$29-1-$F$12-$C$8),ProfilesTable[Sub-Metric],Table16[[#This Row],[Asset life category lookup table]],ProfilesTable[Metric],"Capex",ProfilesTable[Option ID],$D$19:$D$28) *IF(Table16[[#This Row],[Inc OB]],1+_xlfn.ANCHORARRAY($N$19),1)),0) +SUM(SUMIFS(OFFSET(ProfilesTable[Year 1],0,AA$29-1-$C$8),ProfilesTable[Sub-Metric],Table16[[#This Row],[Asset life category lookup table]],ProfilesTable[Metric],"Capex",ProfilesTable[Option ID],$E$19:$E$28) *IF(Table16[[#This Row],[Inc OB]],1+_xlfn.ANCHORARRAY($O$19),1))) -> 0 | AB31: =IF(AB$29<=$C$8,0, IF($E$11>=AB$29-$C$8,SUM(SUMIFS(OFFSET(ProfilesTable[Year 1],0,AB$29-1-$C$8),ProfilesTable[Sub-Metric],Table16[[#This Row],[Asset life category lookup table]],ProfilesTable[Metric],"Capex",ProfilesTable[Option ID],$B$19:$B$28) *IF(Table16[[#This Row],[Inc OB]],1+_xlfn.ANCHORARRAY($L$19),1)),0) +IF(AND($F$11<AB$29-$C$8,$F$12>=$G$29-$C$8),SUM(SUMIFS(OFFSET(ProfilesTable[Year 1],0,AB$29-1-$F$11-$C$8),ProfilesTable[Sub-Metric],Table16[[#This Row],[Asset life category lookup table]],ProfilesTable[Metric],"Capex",ProfilesTable[Option ID],$C$19:$C$28) *IF(Table16[[#This Row],[Inc OB]],1+_xlfn.ANCHORARRAY($M$19),1)),0) +IF(AND($F$12<AB$29-$C$8,$F$13>=$G$29-$C$8),SUM(SUMIFS(OFFSET(ProfilesTable[Year 1],0,AB$29-1-$F$12-$C$8),ProfilesTable[Sub-Metric],Table16[[#This Row],[Asset life category lookup table]],ProfilesTable[Metric],"Capex",ProfilesTable[Option ID],$D$19:$D$28) *IF(Table16[[#This Row],[Inc OB]],1+_xlfn.ANCHORARRAY($N$19),1)),0) +SUM(SUMIFS(OFFSET(ProfilesTable[Year 1],0,AB$29-1-$C$8),ProfilesTable[Sub-Metric],Table16[[#This Row],[Asset life category lookup table]],ProfilesTable[Metric],"Capex",ProfilesTable[Option ID],$E$19:$E$28) *IF(Table16[[#This Row],[Inc OB]],1+_xlfn.ANCHORARRAY($O$19),1))) -> 0 | AC31: =IF(AC$29<=$C$8,0, IF($E$11>=AC$29-$C$8,SUM(SUMIFS(OFFSET(ProfilesTable[Year 1],0,AC$29-1-$C$8),ProfilesTable[Sub-Metric],Table16[[#This Row],[Asset life category lookup table]],ProfilesTable[Metric],"Capex",ProfilesTable[Option ID],$B$19:$B$28) *IF(Table16[[#This Row],[Inc OB]],1+_xlfn.ANCHORARRAY($L$19),1)),0) +IF(AND($F$11<AC$29-$C$8,$F$12>=$G$29-$C$8),SUM(SUMIFS(OFFSET(ProfilesTable[Year 1],0,AC$29-1-$F$11-$C$8),ProfilesTable[Sub-Metric],Table16[[#This Row],[Asset life category lookup table]],ProfilesTable[Metric],"Capex",ProfilesTable[Option ID],$C$19:$C$28) *IF(Table16[[#This Row],[Inc OB]],1+_xlfn.ANCHORARRAY($M$19),1)),0) +IF(AND($F$12<AC$29-$C$8,$F$13>=$G$29-$C$8),SUM(SUMIFS(OFFSET(ProfilesTable[Year 1],0,AC$29-1-$F$12-$C$8),ProfilesTable[Sub-Metric],Table16[[#This Row],[Asset life category lookup table]],ProfilesTable[Metric],"Capex",ProfilesTable[Option ID],$D$19:$D$28) *IF(Table16[[#This Row],[Inc OB]],1+_xlfn.ANCHORARRAY($N$19),1)),0) +SUM(SUMIFS(OFFSET(ProfilesTable[Year 1],0,AC$29-1-$C$8),ProfilesTable[Sub-Metric],Table16[[#This Row],[Asset life category lookup table]],ProfilesTable[Metric],"Capex",ProfilesTable[Option ID],$E$19:$E$28) *IF(Table16[[#This Row],[Inc OB]],1+_xlfn.ANCHORARRAY($O$19),1))) -> 0 | AD31: =IF(AD$29<=$C$8,0, IF($E$11>=AD$29-$C$8,SUM(SUMIFS(OFFSET(ProfilesTable[Year 1],0,AD$29-1-$C$8),ProfilesTable[Sub-Metric],Table16[[#This Row],[Asset life category lookup table]],ProfilesTable[Metric],"Capex",ProfilesTable[Option ID],$B$19:$B$28) *IF(Table16[[#This Row],[Inc OB]],1+_xlfn.ANCHORARRAY($L$19),1)),0) +IF(AND($F$11<AD$29-$C$8,$F$12>=$G$29-$C$8),SUM(SUMIFS(OFFSET(ProfilesTable[Year 1],0,AD$29-1-$F$11-$C$8),ProfilesTable[Sub-Metric],Table16[[#This Row],[Asset life category lookup table]],ProfilesTable[Metric],"Capex",ProfilesTable[Option ID],$C$19:$C$28) *IF(Table16[[#This Row],[Inc OB]],1+_xlfn.ANCHORARRAY($M$19),1)),0) +IF(AND($F$12<AD$29-$C$8,$F$13>=$G$29-$C$8),SUM(SUMIFS(OFFSET(ProfilesTable[Year 1],0,AD$29-1-$F$12-$C$8),ProfilesTable[Sub-Metric],Table16[[#This Row],[Asset life category lookup table]],ProfilesTable[Metric],"Capex",ProfilesTable[Option ID],$D$19:$D$28) *IF(Table16[[#This Row],[Inc OB]],1+_xlfn.ANCHORARRAY($N$19),1)),0) +SUM(SUMIFS(OFFSET(ProfilesTable[Year 1],0,AD$29-1-$C$8),ProfilesTable[Sub-Metric],Table16[[#This Row],[Asset life category lookup table]],ProfilesTable[Metric],"Capex",ProfilesTable[Option ID],$E$19:$E$28) *IF(Table16[[#This Row],[Inc OB]],1+_xlfn.ANCHORARRAY($O$19),1))) -> 0 | AE31: =IF(AE$29<=$C$8,0, IF($E$11>=AE$29-$C$8,SUM(SUMIFS(OFFSET(ProfilesTable[Year 1],0,AE$29-1-$C$8),ProfilesTable[Sub-Metric],Table16[[#This Row],[Asset life category lookup table]],ProfilesTable[Metric],"Capex",ProfilesTable[Option ID],$B$19:$B$28) *IF(Table16[[#This Row],[Inc OB]],1+_xlfn.ANCHORARRAY($L$19),1)),0) +IF(AND($F$11<AE$29-$C$8,$F$12>=$G$29-$C$8),SUM(SUMIFS(OFFSET(ProfilesTable[Year 1],0,AE$29-1-$F$11-$C$8),ProfilesTable[Sub-Metric],Table16[[#This Row],[Asset life category lookup table]],ProfilesTable[Metric],"Capex",ProfilesTable[Option ID],$C$19:$C$28) *IF(Table16[[#This Row],[Inc OB]],1+_xlfn.ANCHORARRAY($M$19),1)),0) +IF(AND($F$12<AE$29-$C$8,$F$13>=$G$29-$C$8),SUM(SUMIFS(OFFSET(ProfilesTable[Year 1],0,AE$29-1-$F$12-$C$8),ProfilesTable[Sub-Metric],Table16[[#This Row],[Asset life category lookup table]],ProfilesTable[Metric],"Capex",ProfilesTable[Option ID],$D$19:$D$28) *IF(Table16[[#This Row],[Inc OB]],1+_xlfn.ANCHORARRAY($N$19),1)),0) +SUM(SUMIFS(OFFSET(ProfilesTable[Year 1],0,AE$29-1-$C$8),ProfilesTable[Sub-Metric],Table16[[#This Row],[Asset life category lookup table]],ProfilesTable[Metric],"Capex",ProfilesTable[Option ID],$E$19:$E$28) *IF(Table16[[#This Row],[Inc OB]],1+_xlfn.ANCHORARRAY($O$19),1))) -> 0 | AF31: =IF(AF$29<=$C$8,0, IF($E$11>=AF$29-$C$8,SUM(SUMIFS(OFFSET(ProfilesTable[Year 1],0,AF$29-1-$C$8),ProfilesTable[Sub-Metric],Table16[[#This Row],[Asset life category lookup table]],ProfilesTable[Metric],"Capex",ProfilesTable[Option ID],$B$19:$B$28) *IF(Table16[[#This Row],[Inc OB]],1+_xlfn.ANCHORARRAY($L$19),1)),0) +IF(AND($F$11<AF$29-$C$8,$F$12>=$G$29-$C$8),SUM(SUMIFS(OFFSET(ProfilesTable[Year 1],0,AF$29-1-$F$11-$C$8),ProfilesTable[Sub-Metric],Table16[[#This Row],[Asset life category lookup table]],ProfilesTable[Metric],"Capex",ProfilesTable[Option ID],$C$19:$C$28) *IF(Table16[[#This Row],[Inc OB]],1+_xlfn.ANCHORARRAY($M$19),1)),0) +IF(AND($F$12<AF$29-$C$8,$F$13>=$G$29-$C$8),SUM(SUMIFS(OFFSET(ProfilesTable[Year 1],0,AF$29-1-$F$12-$C$8),ProfilesTable[Sub-Metric],Table16[[#This Row],[Asset life category lookup table]],ProfilesTable[Metric],"Capex",ProfilesTable[Option ID],$D$19:$D$28) *IF(Table16[[#This Row],[Inc OB]],1+_xlfn.ANCHORARRAY($N$19),1)),0) +SUM(SUMIFS(OFFSET(ProfilesTable[Year 1],0,AF$29-1-$C$8),ProfilesTable[Sub-Metric],Table16[[#This Row],[Asset life category lookup table]],ProfilesTable[Metric],"Capex",ProfilesTable[Option ID],$E$19:$E$28) *IF(Table16[[#This Row],[Inc OB]],1+_xlfn.ANCHORARRAY($O$19),1))) -> 0 | AG31: =IF(AG$29<=$C$8,0, IF($E$11>=AG$29-$C$8,SUM(SUMIFS(OFFSET(ProfilesTable[Year 1],0,AG$29-1-$C$8),ProfilesTable[Sub-Metric],Table16[[#This Row],[Asset life category lookup table]],ProfilesTable[Metric],"Capex",ProfilesTable[Option ID],$B$19:$B$28) *IF(Table16[[#This Row],[Inc OB]],1+_xlfn.ANCHORARRAY($L$19),1)),0) +IF(AND($F$11<AG$29-$C$8,$F$12>=$G$29-$C$8),SUM(SUMIFS(OFFSET(ProfilesTable[Year 1],0,AG$29-1-$F$11-$C$8),ProfilesTable[Sub-Metric],Table16[[#This Row],[Asset life category lookup table]],ProfilesTable[Metric],"Capex",ProfilesTable[Option ID],$C$19:$C$28) *IF(Table16[[#This Row],[Inc OB]],1+_xlfn.ANCHORARRAY($M$19),1)),0) +IF(AND($F$12<AG$29-$C$8,$F$13>=$G$29-$C$8),SUM(SUMIFS(OFFSET(ProfilesTable[Year 1],0,AG$29-1-$F$12-$C$8),ProfilesTable[Sub-Metric],Table16[[#This Row],[Asset life category lookup table]],ProfilesTable[Metric],"Capex",ProfilesTable[Option ID],$D$19:$D$28) *IF(Table16[[#This Row],[Inc OB]],1+_xlfn.ANCHORARRAY($N$19),1)),0) +SUM(SUMIFS(OFFSET(ProfilesTable[Year 1],0,AG$29-1-$C$8),ProfilesTable[Sub-Metric],Table16[[#This Row],[Asset life category lookup table]],ProfilesTable[Metric],"Capex",ProfilesTable[Option ID],$E$19:$E$28) *IF(Table16[[#This Row],[Inc OB]],1+_xlfn.ANCHORARRAY($O$19),1))) -> 0 | AH31: =IF(AH$29<=$C$8,0, IF($E$11>=AH$29-$C$8,SUM(SUMIFS(OFFSET(ProfilesTable[Year 1],0,AH$29-1-$C$8),ProfilesTable[Sub-Metric],Table16[[#This Row],[Asset life category lookup table]],ProfilesTable[Metric],"Capex",ProfilesTable[Option ID],$B$19:$B$28) *IF(Table16[[#This Row],[Inc OB]],1+_xlfn.ANCHORARRAY($L$19),1)),0) +IF(AND($F$11<AH$29-$C$8,$F$12>=$G$29-$C$8),SUM(SUMIFS(OFFSET(ProfilesTable[Year 1],0,AH$29-1-$F$11-$C$8),ProfilesTable[Sub-Metric],Table16[[#This Row],[Asset life category lookup table]],ProfilesTable[Metric],"Capex",ProfilesTable[Option ID],$C$19:$C$28) *IF(Table16[[#This Row],[Inc OB]],1+_xlfn.ANCHORARRAY($M$19),1)),0) +IF(AND($F$12<AH$29-$C$8,$F$13>=$G$29-$C$8),SUM(SUMIFS(OFFSET(ProfilesTable[Year 1],0,AH$29-1-$F$12-$C$8),ProfilesTable[Sub-Metric],Table16[[#This Row],[Asset life category lookup table]],ProfilesTable[Metric],"Capex",ProfilesTable[Option ID],$D$19:$D$28) *IF(Table16[[#This Row],[Inc OB]],1+_xlfn.ANCHORARRAY($N$19),1)),0) +SUM(SUMIFS(OFFSET(ProfilesTable[Year 1],0,AH$29-1-$C$8),ProfilesTable[Sub-Metric],Table16[[#This Row],[Asset life category lookup table]],ProfilesTable[Metric],"Capex",ProfilesTable[Option ID],$E$19:$E$28) *IF(Table16[[#This Row],[Inc OB]],1+_xlfn.ANCHORARRAY($O$19),1))) -> 0 | AI31: =IF(AI$29<=$C$8,0, IF($E$11>=AI$29-$C$8,SUM(SUMIFS(OFFSET(ProfilesTable[Year 1],0,AI$29-1-$C$8),ProfilesTable[Sub-Metric],Table16[[#This Row],[Asset life category lookup table]],ProfilesTable[Metric],"Capex",ProfilesTable[Option ID],$B$19:$B$28) *IF(Table16[[#This Row],[Inc OB]],1+_xlfn.ANCHORARRAY($L$19),1)),0) +IF(AND($F$11<AI$29-$C$8,$F$12>=$G$29-$C$8),SUM(SUMIFS(OFFSET(ProfilesTable[Year 1],0,AI$29-1-$F$11-$C$8),ProfilesTable[Sub-Metric],Table16[[#This Row],[Asset life category lookup table]],ProfilesTable[Metric],"Capex",ProfilesTable[Option ID],$C$19:$C$28) *IF(Table16[[#This Row],[Inc OB]],1+_xlfn.ANCHORARRAY($M$19),1)),0) +IF(AND($F$12<AI$29-$C$8,$F$13>=$G$29-$C$8),SUM(SUMIFS(OFFSET(ProfilesTable[Year 1],0,AI$29-1-$F$12-$C$8),ProfilesTable[Sub-Metric],Table16[[#This Row],[Asset life category lookup table]],ProfilesTable[Metric],"Capex",ProfilesTable[Option ID],$D$19:$D$28) *IF(Table16[[#This Row],[Inc OB]],1+_xlfn.ANCHORARRAY($N$19),1)),0) +SUM(SUMIFS(OFFSET(ProfilesTable[Year 1],0,AI$29-1-$C$8),ProfilesTable[Sub-Metric],Table16[[#This Row],[Asset life category lookup table]],ProfilesTable[Metric],"Capex",ProfilesTable[Option ID],$E$19:$E$28) *IF(Table16[[#This Row],[Inc OB]],1+_xlfn.ANCHORARRAY($O$19),1))) -> 0 | AJ31: =IF(AJ$29<=$C$8,0, IF($E$11>=AJ$29-$C$8,SUM(SUMIFS(OFFSET(ProfilesTable[Year 1],0,AJ$29-1-$C$8),ProfilesTable[Sub-Metric],Table16[[#This Row],[Asset life category lookup table]],ProfilesTable[Metric],"Capex",ProfilesTable[Option ID],$B$19:$B$28) *IF(Table16[[#This Row],[Inc OB]],1+_xlfn.ANCHORARRAY($L$19),1)),0) +IF(AND($F$11<AJ$29-$C$8,$F$12>=$G$29-$C$8),SUM(SUMIFS(OFFSET(ProfilesTable[Year 1],0,AJ$29-1-$F$11-$C$8),ProfilesTable[Sub-Metric],Table16[[#This Row],[Asset life category lookup table]],ProfilesTable[Metric],"Capex",ProfilesTable[Option ID],$C$19:$C$28) *IF(Table16[[#This Row],[Inc OB]],1+_xlfn.ANCHORARRAY($M$19),1)),0) +IF(AND($F$12<AJ$29-$C$8,$F$13>=$G$29-$C$8),SUM(SUMIFS(OFFSET(ProfilesTable[Year 1],0,AJ$29-1-$F$12-$C$8),ProfilesTable[Sub-Metric],Table16[[#This Row],[Asset life category lookup table]],ProfilesTable[Metric],"Capex",ProfilesTable[Option ID],$D$19:$D$28) *IF(Table16[[#This Row],[Inc OB]],1+_xlfn.ANCHORARRAY($N$19),1)),0) +SUM(SUMIFS(OFFSET(ProfilesTable[Year 1],0,AJ$29-1-$C$8),ProfilesTable[Sub-Metric],Table16[[#This Row],[Asset life category lookup table]],ProfilesTable[Metric],"Capex",ProfilesTable[Option ID],$E$19:$E$28) *IF(Table16[[#This Row],[Inc OB]],1+_xlfn.ANCHORARRAY($O$19),1))) -> 0 | AK31: =IF(AK$29<=$C$8,0, IF($E$11>=AK$29-$C$8,SUM(SUMIFS(OFFSET(ProfilesTable[Year 1],0,AK$29-1-$C$8),ProfilesTable[Sub-Metric],Table16[[#This Row],[Asset life category lookup table]],ProfilesTable[Metric],"Capex",ProfilesTable[Option ID],$B$19:$B$28) *IF(Table16[[#This Row],[Inc OB]],1+_xlfn.ANCHORARRAY($L$19),1)),0) +IF(AND($F$11<AK$29-$C$8,$F$12>=$G$29-$C$8),SUM(SUMIFS(OFFSET(ProfilesTable[Year 1],0,AK$29-1-$F$11-$C$8),ProfilesTable[Sub-Metric],Table16[[#This Row],[Asset life category lookup table]],ProfilesTable[Metric],"Capex",ProfilesTable[Option ID],$C$19:$C$28) *IF(Table16[[#This Row],[Inc OB]],1+_xlfn.ANCHORARRAY($M$19),1)),0) +IF(AND($F$12<AK$29-$C$8,$F$13>=$G$29-$C$8),SUM(SUMIFS(OFFSET(ProfilesTable[Year 1],0,AK$29-1-$F$12-$C$8),ProfilesTable[Sub-Metric],Table16[[#This Row],[Asset life category lookup table]],ProfilesTable[Metric],"Capex",ProfilesTable[Option ID],$D$19:$D$28) *IF(Table16[[#This Row],[Inc OB]],1+_xlfn.ANCHORARRAY($N$19),1)),0) +SUM(SUMIFS(OFFSET(ProfilesTable[Year 1],0,AK$29-1-$C$8),ProfilesTable[Sub-Metric],Table16[[#This Row],[Asset life category lookup table]],ProfilesTable[Metric],"Capex",ProfilesTable[Option ID],$E$19:$E$28) *IF(Table16[[#This Row],[Inc OB]],1+_xlfn.ANCHORARRAY($O$19),1))) -> 0 | AL31: =IF(AL$29<=$C$8,0, IF($E$11>=AL$29-$C$8,SUM(SUMIFS(OFFSET(ProfilesTable[Year 1],0,AL$29-1-$C$8),ProfilesTable[Sub-Metric],Table16[[#This Row],[Asset life category lookup table]],ProfilesTable[Metric],"Capex",ProfilesTable[Option ID],$B$19:$B$28) *IF(Table16[[#This Row],[Inc OB]],1+_xlfn.ANCHORARRAY($L$19),1)),0) +IF(AND($F$11<AL$29-$C$8,$F$12>=$G$29-$C$8),SUM(SUMIFS(OFFSET(ProfilesTable[Year 1],0,AL$29-1-$F$11-$C$8),ProfilesTable[Sub-Metric],Table16[[#This Row],[Asset life category lookup table]],ProfilesTable[Metric],"Capex",ProfilesTable[Option ID],$C$19:$C$28) *IF(Table16[[#This Row],[Inc OB]],1+_xlfn.ANCHORARRAY($M$19),1)),0) +IF(AND($F$12<AL$29-$C$8,$F$13>=$G$29-$C$8),SUM(SUMIFS(OFFSET(ProfilesTable[Year 1],0,AL$29-1-$F$12-$C$8),ProfilesTable[Sub-Metric],Table16[[#This Row],[Asset life category lookup table]],ProfilesTable[Metric],"Capex",ProfilesTable[Option ID],$D$19:$D$28) *IF(Table16[[#This Row],[Inc OB]],1+_xlfn.ANCHORARRAY($N$19),1)),0) +SUM(SUMIFS(OFFSET(ProfilesTable[Year 1],0,AL$29-1-$C$8),ProfilesTable[Sub-Metric],Table16[[#This Row],[Asset life category lookup table]],ProfilesTable[Metric],"Capex",ProfilesTable[Option ID],$E$19:$E$28) *IF(Table16[[#This Row],[Inc OB]],1+_xlfn.ANCHORARRAY($O$19),1))) -> 0 | AM31: =IF(AM$29<=$C$8,0, IF($E$11>=AM$29-$C$8,SUM(SUMIFS(OFFSET(ProfilesTable[Year 1],0,AM$29-1-$C$8),ProfilesTable[Sub-Metric],Table16[[#This Row],[Asset life category lookup table]],ProfilesTable[Metric],"Capex",ProfilesTable[Option ID],$B$19:$B$28) *IF(Table16[[#This Row],[Inc OB]],1+_xlfn.ANCHORARRAY($L$19),1)),0) +IF(AND($F$11<AM$29-$C$8,$F$12>=$G$29-$C$8),SUM(SUMIFS(OFFSET(ProfilesTable[Year 1],0,AM$29-1-$F$11-$C$8),ProfilesTable[Sub-Metric],Table16[[#This Row],[Asset life category lookup table]],ProfilesTable[Metric],"Capex",ProfilesTable[Option ID],$C$19:$C$28) *IF(Table16[[#This Row],[Inc OB]],1+_xlfn.ANCHORARRAY($M$19),1)),0) +IF(AND($F$12<AM$29-$C$8,$F$13>=$G$29-$C$8),SUM(SUMIFS(OFFSET(ProfilesTable[Year 1],0,AM$29-1-$F$12-$C$8),ProfilesTable[Sub-Metric],Table16[[#This Row],[Asset life category lookup table]],ProfilesTable[Metric],"Capex",ProfilesTable[Option ID],$D$19:$D$28) *IF(Table16[[#This Row],[Inc OB]],1+_xlfn.ANCHORARRAY($N$19),1)),0) +SUM(SUMIFS(OFFSET(ProfilesTable[Year 1],0,AM$29-1-$C$8),ProfilesTable[Sub-Metric],Table16[[#This Row],[Asset life category lookup table]],ProfilesTable[Metric],"Capex",ProfilesTable[Option ID],$E$19:$E$28) *IF(Table16[[#This Row],[Inc OB]],1+_xlfn.ANCHORARRAY($O$19),1))) -> 0 | AN31: =IF(AN$29<=$C$8,0, IF($E$11>=AN$29-$C$8,SUM(SUMIFS(OFFSET(ProfilesTable[Year 1],0,AN$29-1-$C$8),ProfilesTable[Sub-Metric],Table16[[#This Row],[Asset life category lookup table]],ProfilesTable[Metric],"Capex",ProfilesTable[Option ID],$B$19:$B$28) *IF(Table16[[#This Row],[Inc OB]],1+_xlfn.ANCHORARRAY($L$19),1)),0) +IF(AND($F$11<AN$29-$C$8,$F$12>=$G$29-$C$8),SUM(SUMIFS(OFFSET(ProfilesTable[Year 1],0,AN$29-1-$F$11-$C$8),ProfilesTable[Sub-Metric],Table16[[#This Row],[Asset life category lookup table]],ProfilesTable[Metric],"Capex",ProfilesTable[Option ID],$C$19:$C$28) *IF(Table16[[#This Row],[Inc OB]],1+_xlfn.ANCHORARRAY($M$19),1)),0) +IF(AND($F$12<AN$29-$C$8,$F$13>=$G$29-$C$8),SUM(SUMIFS(OFFSET(ProfilesTable[Year 1],0,AN$29-1-$F$12-$C$8),ProfilesTable[Sub-Metric],Table16[[#This Row],[Asset life category lookup table]],ProfilesTable[Metric],"Capex",ProfilesTable[Option ID],$D$19:$D$28) *IF(Table16[[#This Row],[Inc OB]],1+_xlfn.ANCHORARRAY($N$19),1)),0) +SUM(SUMIFS(OFFSET(ProfilesTable[Year 1],0,AN$29-1-$C$8),ProfilesTable[Sub-Metric],Table16[[#This Row],[Asset life category lookup table]],ProfilesTable[Metric],"Capex",ProfilesTable[Option ID],$E$19:$E$28) *IF(Table16[[#This Row],[Inc OB]],1+_xlfn.ANCHORARRAY($O$19),1))) -> 0 | AO31: =IF(AO$29<=$C$8,0, IF($E$11>=AO$29-$C$8,SUM(SUMIFS(OFFSET(ProfilesTable[Year 1],0,AO$29-1-$C$8),ProfilesTable[Sub-Metric],Table16[[#This Row],[Asset life category lookup table]],ProfilesTable[Metric],"Capex",ProfilesTable[Option ID],$B$19:$B$28) *IF(Table16[[#This Row],[Inc OB]],1+_xlfn.ANCHORARRAY($L$19),1)),0) +IF(AND($F$11<AO$29-$C$8,$F$12>=$G$29-$C$8),SUM(SUMIFS(OFFSET(ProfilesTable[Year 1],0,AO$29-1-$F$11-$C$8),ProfilesTable[Sub-Metric],Table16[[#This Row],[Asset life category lookup table]],ProfilesTable[Metric],"Capex",ProfilesTable[Option ID],$C$19:$C$28) *IF(Table16[[#This Row],[Inc OB]],1+_xlfn.ANCHORARRAY($M$19),1)),0) +IF(AND($F$12<AO$29-$C$8,$F$13>=$G$29-$C$8),SUM(SUMIFS(OFFSET(ProfilesTable[Year 1],0,AO$29-1-$F$12-$C$8),ProfilesTable[Sub-Metric],Table16[[#This Row],[Asset life category lookup table]],ProfilesTable[Metric],"Capex",ProfilesTable[Option ID],$D$19:$D$28) *IF(Table16[[#This Row],[Inc OB]],1+_xlfn.ANCHORARRAY($N$19),1)),0) +SUM(SUMIFS(OFFSET(ProfilesTable[Year 1],0,AO$29-1-$C$8),ProfilesTable[Sub-Metric],Table16[[#This Row],[Asset life category lookup table]],ProfilesTable[Metric],"Capex",ProfilesTable[Option ID],$E$19:$E$28) *IF(Table16[[#This Row],[Inc OB]],1+_xlfn.ANCHORARRAY($O$19),1))) -> 0 | AP31: =IF(AP$29<=$C$8,0, IF($E$11>=AP$29-$C$8,SUM(SUMIFS(OFFSET(ProfilesTable[Year 1],0,AP$29-1-$C$8),ProfilesTable[Sub-Metric],Table16[[#This Row],[Asset life category lookup table]],ProfilesTable[Metric],"Capex",ProfilesTable[Option ID],$B$19:$B$28) *IF(Table16[[#This Row],[Inc OB]],1+_xlfn.ANCHORARRAY($L$19),1)),0) +IF(AND($F$11<AP$29-$C$8,$F$12>=$G$29-$C$8),SUM(SUMIFS(OFFSET(ProfilesTable[Year 1],0,AP$29-1-$F$11-$C$8),ProfilesTable[Sub-Metric],Table16[[#This Row],[Asset life category lookup table]],ProfilesTable[Metric],"Capex",ProfilesTable[Option ID],$C$19:$C$28) *IF(Table16[[#This Row],[Inc OB]],1+_xlfn.ANCHORARRAY($M$19),1)),0) +IF(AND($F$12<AP$29-$C$8,$F$13>=$G$29-$C$8),SUM(SUMIFS(OFFSET(ProfilesTable[Year 1],0,AP$29-1-$F$12-$C$8),ProfilesTable[Sub-Metric],Table16[[#This Row],[Asset life category lookup table]],ProfilesTable[Metric],"Capex",ProfilesTable[Option ID],$D$19:$D$28) *IF(Table16[[#This Row],[Inc OB]],1+_xlfn.ANCHORARRAY($N$19),1)),0) +SUM(SUMIFS(OFFSET(ProfilesTable[Year 1],0,AP$29-1-$C$8),ProfilesTable[Sub-Metric],Table16[[#This Row],[Asset life category lookup table]],ProfilesTable[Metric],"Capex",ProfilesTable[Option ID],$E$19:$E$28) *IF(Table16[[#This Row],[Inc OB]],1+_xlfn.ANCHORARRAY($O$19),1))) -> 0 | AQ31: =IF(AQ$29<=$C$8,0, IF($E$11>=AQ$29-$C$8,SUM(SUMIFS(OFFSET(ProfilesTable[Year 1],0,AQ$29-1-$C$8),ProfilesTable[Sub-Metric],Table16[[#This Row],[Asset life category lookup table]],ProfilesTable[Metric],"Capex",ProfilesTable[Option ID],$B$19:$B$28) *IF(Table16[[#This Row],[Inc OB]],1+_xlfn.ANCHORARRAY($L$19),1)),0) +IF(AND($F$11<AQ$29-$C$8,$F$12>=$G$29-$C$8),SUM(SUMIFS(OFFSET(ProfilesTable[Year 1],0,AQ$29-1-$F$11-$C$8),ProfilesTable[Sub-Metric],Table16[[#This Row],[Asset life category lookup table]],ProfilesTable[Metric],"Capex",ProfilesTable[Option ID],$C$19:$C$28) *IF(Table16[[#This Row],[Inc OB]],1+_xlfn.ANCHORARRAY($M$19),1)),0) +IF(AND($F$12<AQ$29-$C$8,$F$13>=$G$29-$C$8),SUM(SUMIFS(OFFSET(ProfilesTable[Year 1],0,AQ$29-1-$F$12-$C$8),ProfilesTable[Sub-Metric],Table16[[#This Row],[Asset life category lookup table]],ProfilesTable[Metric],"Capex",ProfilesTable[Option ID],$D$19:$D$28) *IF(Table16[[#This Row],[Inc OB]],1+_xlfn.ANCHORARRAY($N$19),1)),0) +SUM(SUMIFS(OFFSET(ProfilesTable[Year 1],0,AQ$29-1-$C$8),ProfilesTable[Sub-Metric],Table16[[#This Row],[Asset life category lookup table]],ProfilesTable[Metric],"Capex",ProfilesTable[Option ID],$E$19:$E$28) *IF(Table16[[#This Row],[Inc OB]],1+_xlfn.ANCHORARRAY($O$19),1))) -> 0 | AR31: =IF(AR$29<=$C$8,0, IF($E$11>=AR$29-$C$8,SUM(SUMIFS(OFFSET(ProfilesTable[Year 1],0,AR$29-1-$C$8),ProfilesTable[Sub-Metric],Table16[[#This Row],[Asset life category lookup table]],ProfilesTable[Metric],"Capex",ProfilesTable[Option ID],$B$19:$B$28) *IF(Table16[[#This Row],[Inc OB]],1+_xlfn.ANCHORARRAY($L$19),1)),0) +IF(AND($F$11<AR$29-$C$8,$F$12>=$G$29-$C$8),SUM(SUMIFS(OFFSET(ProfilesTable[Year 1],0,AR$29-1-$F$11-$C$8),ProfilesTable[Sub-Metric],Table16[[#This Row],[Asset life category lookup table]],ProfilesTable[Metric],"Capex",ProfilesTable[Option ID],$C$19:$C$28) *IF(Table16[[#This Row],[Inc OB]],1+_xlfn.ANCHORARRAY($M$19),1)),0) +IF(AND($F$12<AR$29-$C$8,$F$13>=$G$29-$C$8),SUM(SUMIFS(OFFSET(ProfilesTable[Year 1],0,AR$29-1-$F$12-$C$8),ProfilesTable[Sub-Metric],Table16[[#This Row],[Asset life category lookup table]],ProfilesTable[Metric],"Capex",ProfilesTable[Option ID],$D$19:$D$28) *IF(Table16[[#This Row],[Inc OB]],1+_xlfn.ANCHORARRAY($N$19),1)),0) +SUM(SUMIFS(OFFSET(ProfilesTable[Year 1],0,AR$29-1-$C$8),ProfilesTable[Sub-Metric],Table16[[#This Row],[Asset life category lookup table]],ProfilesTable[Metric],"Capex",ProfilesTable[Option ID],$E$19:$E$28) *IF(Table16[[#This Row],[Inc OB]],1+_xlfn.ANCHORARRAY($O$19),1))) -> 0 | AS31: =IF(AS$29<=$C$8,0, IF($E$11>=AS$29-$C$8,SUM(SUMIFS(OFFSET(ProfilesTable[Year 1],0,AS$29-1-$C$8),ProfilesTable[Sub-Metric],Table16[[#This Row],[Asset life category lookup table]],ProfilesTable[Metric],"Capex",ProfilesTable[Option ID],$B$19:$B$28) *IF(Table16[[#This Row],[Inc OB]],1+_xlfn.ANCHORARRAY($L$19),1)),0) +IF(AND($F$11<AS$29-$C$8,$F$12>=$G$29-$C$8),SUM(SUMIFS(OFFSET(ProfilesTable[Year 1],0,AS$29-1-$F$11-$C$8),ProfilesTable[Sub-Metric],Table16[[#This Row],[Asset life category lookup table]],ProfilesTable[Metric],"Capex",ProfilesTable[Option ID],$C$19:$C$28) *IF(Table16[[#This Row],[Inc OB]],1+_xlfn.ANCHORARRAY($M$19),1)),0) +IF(AND($F$12<AS$29-$C$8,$F$13>=$G$29-$C$8),SUM(SUMIFS(OFFSET(ProfilesTable[Year 1],0,AS$29-1-$F$12-$C$8),ProfilesTable[Sub-Metric],Table16[[#This Row],[Asset life category lookup table]],ProfilesTable[Metric],"Capex",ProfilesTable[Option ID],$D$19:$D$28) *IF(Table16[[#This Row],[Inc OB]],1+_xlfn.ANCHORARRAY($N$19),1)),0) +SUM(SUMIFS(OFFSET(ProfilesTable[Year 1],0,AS$29-1-$C$8),ProfilesTable[Sub-Metric],Table16[[#This Row],[Asset life category lookup table]],ProfilesTable[Metric],"Capex",ProfilesTable[Option ID],$E$19:$E$28) *IF(Table16[[#This Row],[Inc OB]],1+_xlfn.ANCHORARRAY($O$19),1))) -> 0 | AT31: =IF(AT$29<=$C$8,0, IF($E$11>=AT$29-$C$8,SUM(SUMIFS(OFFSET(ProfilesTable[Year 1],0,AT$29-1-$C$8),ProfilesTable[Sub-Metric],Table16[[#This Row],[Asset life category lookup table]],ProfilesTable[Metric],"Capex",ProfilesTable[Option ID],$B$19:$B$28) *IF(Table16[[#This Row],[Inc OB]],1+_xlfn.ANCHORARRAY($L$19),1)),0) +IF(AND($F$11<AT$29-$C$8,$F$12>=$G$29-$C$8),SUM(SUMIFS(OFFSET(ProfilesTable[Year 1],0,AT$29-1-$F$11-$C$8),ProfilesTable[Sub-Metric],Table16[[#This Row],[Asset life category lookup table]],ProfilesTable[Metric],"Capex",ProfilesTable[Option ID],$C$19:$C$28) *IF(Table16[[#This Row],[Inc OB]],1+_xlfn.ANCHORARRAY($M$19),1)),0) +IF(AND($F$12<AT$29-$C$8,$F$13>=$G$29-$C$8),SUM(SUMIFS(OFFSET(ProfilesTable[Year 1],0,AT$29-1-$F$12-$C$8),ProfilesTable[Sub-Metric],Table16[[#This Row],[Asset life category lookup table]],ProfilesTable[Metric],"Capex",ProfilesTable[Option ID],$D$19:$D$28) *IF(Table16[[#This Row],[Inc OB]],1+_xlfn.ANCHORARRAY($N$19),1)),0) +SUM(SUMIFS(OFFSET(ProfilesTable[Year 1],0,AT$29-1-$C$8),ProfilesTable[Sub-Metric],Table16[[#This Row],[Asset life category lookup table]],ProfilesTable[Metric],"Capex",ProfilesTable[Option ID],$E$19:$E$28) *IF(Table16[[#This Row],[Inc OB]],1+_xlfn.ANCHORARRAY($O$19),1))) -> 0 | AU31: =IF(AU$29<=$C$8,0, IF($E$11>=AU$29-$C$8,SUM(SUMIFS(OFFSET(ProfilesTable[Year 1],0,AU$29-1-$C$8),ProfilesTable[Sub-Metric],Table16[[#This Row],[Asset life category lookup table]],ProfilesTable[Metric],"Capex",ProfilesTable[Option ID],$B$19:$B$28) *IF(Table16[[#This Row],[Inc OB]],1+_xlfn.ANCHORARRAY($L$19),1)),0) +IF(AND($F$11<AU$29-$C$8,$F$12>=$G$29-$C$8),SUM(SUMIFS(OFFSET(ProfilesTable[Year 1],0,AU$29-1-$F$11-$C$8),ProfilesTable[Sub-Metric],Table16[[#This Row],[Asset life category lookup table]],ProfilesTable[Metric],"Capex",ProfilesTable[Option ID],$C$19:$C$28) *IF(Table16[[#This Row],[Inc OB]],1+_xlfn.ANCHORARRAY($M$19),1)),0) +IF(AND($F$12<AU$29-$C$8,$F$13>=$G$29-$C$8),SUM(SUMIFS(OFFSET(ProfilesTable[Year 1],0,AU$29-1-$F$12-$C$8),ProfilesTable[Sub-Metric],Table16[[#This Row],[Asset life category lookup table]],ProfilesTable[Metric],"Capex",ProfilesTable[Option ID],$D$19:$D$28) *IF(Table16[[#This Row],[Inc OB]],1+_xlfn.ANCHORARRAY($N$19),1)),0) +SUM(SUMIFS(OFFSET(ProfilesTable[Year 1],0,AU$29-1-$C$8),ProfilesTable[Sub-Metric],Table16[[#This Row],[Asset life category lookup table]],ProfilesTable[Metric],"Capex",ProfilesTable[Option ID],$E$19:$E$28) *IF(Table16[[#This Row],[Inc OB]],1+_xlfn.ANCHORARRAY($O$19),1))) -> 0 | AV31: =IF(AV$29<=$C$8,0, IF($E$11>=AV$29-$C$8,SUM(SUMIFS(OFFSET(ProfilesTable[Year 1],0,AV$29-1-$C$8),ProfilesTable[Sub-Metric],Table16[[#This Row],[Asset life category lookup table]],ProfilesTable[Metric],"Capex",ProfilesTable[Option ID],$B$19:$B$28) *IF(Table16[[#This Row],[Inc OB]],1+_xlfn.ANCHORARRAY($L$19),1)),0) +IF(AND($F$11<AV$29-$C$8,$F$12>=$G$29-$C$8),SUM(SUMIFS(OFFSET(ProfilesTable[Year 1],0,AV$29-1-$F$11-$C$8),ProfilesTable[Sub-Metric],Table16[[#This Row],[Asset life category lookup table]],ProfilesTable[Metric],"Capex",ProfilesTable[Option ID],$C$19:$C$28) *IF(Table16[[#This Row],[Inc OB]],1+_xlfn.ANCHORARRAY($M$19),1)),0) +IF(AND($F$12<AV$29-$C$8,$F$13>=$G$29-$C$8),SUM(SUMIFS(OFFSET(ProfilesTable[Year 1],0,AV$29-1-$F$12-$C$8),ProfilesTable[Sub-Metric],Table16[[#This Row],[Asset life category lookup table]],ProfilesTable[Metric],"Capex",ProfilesTable[Option ID],$D$19:$D$28) *IF(Table16[[#This Row],[Inc OB]],1+_xlfn.ANCHORARRAY($N$19),1)),0) +SUM(SUMIFS(OFFSET(ProfilesTable[Year 1],0,AV$29-1-$C$8),ProfilesTable[Sub-Metric],Table16[[#This Row],[Asset life category lookup table]],ProfilesTable[Metric],"Capex",ProfilesTable[Option ID],$E$19:$E$28) *IF(Table16[[#This Row],[Inc OB]],1+_xlfn.ANCHORARRAY($O$19),1))) -> 0 | AW31: =IF(AW$29<=$C$8,0, IF($E$11>=AW$29-$C$8,SUM(SUMIFS(OFFSET(ProfilesTable[Year 1],0,AW$29-1-$C$8),ProfilesTable[Sub-Metric],Table16[[#This Row],[Asset life category lookup table]],ProfilesTable[Metric],"Capex",ProfilesTable[Option ID],$B$19:$B$28) *IF(Table16[[#This Row],[Inc OB]],1+_xlfn.ANCHORARRAY($L$19),1)),0) +IF(AND($F$11<AW$29-$C$8,$F$12>=$G$29-$C$8),SUM(SUMIFS(OFFSET(ProfilesTable[Year 1],0,AW$29-1-$F$11-$C$8),ProfilesTable[Sub-Metric],Table16[[#This Row],[Asset life category lookup table]],ProfilesTable[Metric],"Capex",ProfilesTable[Option ID],$C$19:$C$28) *IF(Table16[[#This Row],[Inc OB]],1+_xlfn.ANCHORARRAY($M$19),1)),0) +IF(AND($F$12<AW$29-$C$8,$F$13>=$G$29-$C$8),SUM(SUMIFS(OFFSET(ProfilesTable[Year 1],0,AW$29-1-$F$12-$C$8),ProfilesTable[Sub-Metric],Table16[[#This Row],[Asset life category lookup table]],ProfilesTable[Metric],"Capex",ProfilesTable[Option ID],$D$19:$D$28) *IF(Table16[[#This Row],[Inc OB]],1+_xlfn.ANCHORARRAY($N$19),1)),0) +SUM(SUMIFS(OFFSET(ProfilesTable[Year 1],0,AW$29-1-$C$8),ProfilesTable[Sub-Metric],Table16[[#This Row],[Asset life category lookup table]],ProfilesTable[Metric],"Capex",ProfilesTable[Option ID],$E$19:$E$28) *IF(Table16[[#This Row],[Inc OB]],1+_xlfn.ANCHORARRAY($O$19),1))) -> 0 | AX31: =IF(AX$29<=$C$8,0, IF($E$11>=AX$29-$C$8,SUM(SUMIFS(OFFSET(ProfilesTable[Year 1],0,AX$29-1-$C$8),ProfilesTable[Sub-Metric],Table16[[#This Row],[Asset life category lookup table]],ProfilesTable[Metric],"Capex",ProfilesTable[Option ID],$B$19:$B$28) *IF(Table16[[#This Row],[Inc OB]],1+_xlfn.ANCHORARRAY($L$19),1)),0) +IF(AND($F$11<AX$29-$C$8,$F$12>=$G$29-$C$8),SUM(SUMIFS(OFFSET(ProfilesTable[Year 1],0,AX$29-1-$F$11-$C$8),ProfilesTable[Sub-Metric],Table16[[#This Row],[Asset life category lookup table]],ProfilesTable[Metric],"Capex",ProfilesTable[Option ID],$C$19:$C$28) *IF(Table16[[#This Row],[Inc OB]],1+_xlfn.ANCHORARRAY($M$19),1)),0) +IF(AND($F$12<AX$29-$C$8,$F$13>=$G$29-$C$8),SUM(SUMIFS(OFFSET(ProfilesTable[Year 1],0,AX$29-1-$F$12-$C$8),ProfilesTable[Sub-Metric],Table16[[#This Row],[Asset life category lookup table]],ProfilesTable[Metric],"Capex",ProfilesTable[Option ID],$D$19:$D$28) *IF(Table16[[#This Row],[Inc OB]],1+_xlfn.ANCHORARRAY($N$19),1)),0) +SUM(SUMIFS(OFFSET(ProfilesTable[Year 1],0,AX$29-1-$C$8),ProfilesTable[Sub-Metric],Table16[[#This Row],[Asset life category lookup table]],ProfilesTable[Metric],"Capex",ProfilesTable[Option ID],$E$19:$E$28) *IF(Table16[[#This Row],[Inc OB]],1+_xlfn.ANCHORARRAY($O$19),1))) -> 0 | AY31: =IF(AY$29<=$C$8,0, IF($E$11>=AY$29-$C$8,SUM(SUMIFS(OFFSET(ProfilesTable[Year 1],0,AY$29-1-$C$8),ProfilesTable[Sub-Metric],Table16[[#This Row],[Asset life category lookup table]],ProfilesTable[Metric],"Capex",ProfilesTable[Option ID],$B$19:$B$28) *IF(Table16[[#This Row],[Inc OB]],1+_xlfn.ANCHORARRAY($L$19),1)),0) +IF(AND($F$11<AY$29-$C$8,$F$12>=$G$29-$C$8),SUM(SUMIFS(OFFSET(ProfilesTable[Year 1],0,AY$29-1-$F$11-$C$8),ProfilesTable[Sub-Metric],Table16[[#This Row],[Asset life category lookup table]],ProfilesTable[Metric],"Capex",ProfilesTable[Option ID],$C$19:$C$28) *IF(Table16[[#This Row],[Inc OB]],1+_xlfn.ANCHORARRAY($M$19),1)),0) +IF(AND($F$12<AY$29-$C$8,$F$13>=$G$29-$C$8),SUM(SUMIFS(OFFSET(ProfilesTable[Year 1],0,AY$29-1-$F$12-$C$8),ProfilesTable[Sub-Metric],Table16[[#This Row],[Asset life category lookup table]],ProfilesTable[Metric],"Capex",ProfilesTable[Option ID],$D$19:$D$28) *IF(Table16[[#This Row],[Inc OB]],1+_xlfn.ANCHORARRAY($N$19),1)),0) +SUM(SUMIFS(OFFSET(ProfilesTable[Year 1],0,AY$29-1-$C$8),ProfilesTable[Sub-Metric],Table16[[#This Row],[Asset life category lookup table]],ProfilesTable[Metric],"Capex",ProfilesTable[Option ID],$E$19:$E$28) *IF(Table16[[#This Row],[Inc OB]],1+_xlfn.ANCHORARRAY($O$19),1))) -> 0 | AZ31: =IF(AZ$29<=$C$8,0, IF($E$11>=AZ$29-$C$8,SUM(SUMIFS(OFFSET(ProfilesTable[Year 1],0,AZ$29-1-$C$8),ProfilesTable[Sub-Metric],Table16[[#This Row],[Asset life category lookup table]],ProfilesTable[Metric],"Capex",ProfilesTable[Option ID],$B$19:$B$28) *IF(Table16[[#This Row],[Inc OB]],1+_xlfn.ANCHORARRAY($L$19),1)),0) +IF(AND($F$11<AZ$29-$C$8,$F$12>=$G$29-$C$8),SUM(SUMIFS(OFFSET(ProfilesTable[Year 1],0,AZ$29-1-$F$11-$C$8),ProfilesTable[Sub-Metric],Table16[[#This Row],[Asset life category lookup table]],ProfilesTable[Metric],"Capex",ProfilesTable[Option ID],$C$19:$C$28) *IF(Table16[[#This Row],[Inc OB]],1+_xlfn.ANCHORARRAY($M$19),1)),0) +IF(AND($F$12<AZ$29-$C$8,$F$13>=$G$29-$C$8),SUM(SUMIFS(OFFSET(ProfilesTable[Year 1],0,AZ$29-1-$F$12-$C$8),ProfilesTable[Sub-Metric],Table16[[#This Row],[Asset life category lookup table]],ProfilesTable[Metric],"Capex",ProfilesTable[Option ID],$D$19:$D$28) *IF(Table16[[#This Row],[Inc OB]],1+_xlfn.ANCHORARRAY($N$19),1)),0) +SUM(SUMIFS(OFFSET(ProfilesTable[Year 1],0,AZ$29-1-$C$8),ProfilesTable[Sub-Metric],Table16[[#This Row],[Asset life category lookup table]],ProfilesTable[Metric],"Capex",ProfilesTable[Option ID],$E$19:$E$28) *IF(Table16[[#This Row],[Inc OB]],1+_xlfn.ANCHORARRAY($O$19),1))) -> 0 | BA31: =IF(BA$29<=$C$8,0, IF($E$11>=BA$29-$C$8,SUM(SUMIFS(OFFSET(ProfilesTable[Year 1],0,BA$29-1-$C$8),ProfilesTable[Sub-Metric],Table16[[#This Row],[Asset life category lookup table]],ProfilesTable[Metric],"Capex",ProfilesTable[Option ID],$B$19:$B$28) *IF(Table16[[#This Row],[Inc OB]],1+_xlfn.ANCHORARRAY($L$19),1)),0) +IF(AND($F$11<BA$29-$C$8,$F$12>=$G$29-$C$8),SUM(SUMIFS(OFFSET(ProfilesTable[Year 1],0,BA$29-1-$F$11-$C$8),ProfilesTable[Sub-Metric],Table16[[#This Row],[Asset life category lookup table]],ProfilesTable[Metric],"Capex",ProfilesTable[Option ID],$C$19:$C$28) *IF(Table16[[#This Row],[Inc OB]],1+_xlfn.ANCHORARRAY($M$19),1)),0) +IF(AND($F$12<BA$29-$C$8,$F$13>=$G$29-$C$8),SUM(SUMIFS(OFFSET(ProfilesTable[Year 1],0,BA$29-1-$F$12-$C$8),ProfilesTable[Sub-Metric],Table16[[#This Row],[Asset life category lookup table]],ProfilesTable[Metric],"Capex",ProfilesTable[Option ID],$D$19:$D$28) *IF(Table16[[#This Row],[Inc OB]],1+_xlfn.ANCHORARRAY($N$19),1)),0) +SUM(SUMIFS(OFFSET(ProfilesTable[Year 1],0,BA$29-1-$C$8),ProfilesTable[Sub-Metric],Table16[[#This Row],[Asset life category lookup table]],ProfilesTable[Metric],"Capex",ProfilesTable[Option ID],$E$19:$E$28) *IF(Table16[[#This Row],[Inc OB]],1+_xlfn.ANCHORARRAY($O$19),1))) -> 0 | BB31: =IF(BB$29<=$C$8,0, IF($E$11>=BB$29-$C$8,SUM(SUMIFS(OFFSET(ProfilesTable[Year 1],0,BB$29-1-$C$8),ProfilesTable[Sub-Metric],Table16[[#This Row],[Asset life category lookup table]],ProfilesTable[Metric],"Capex",ProfilesTable[Option ID],$B$19:$B$28) *IF(Table16[[#This Row],[Inc OB]],1+_xlfn.ANCHORARRAY($L$19),1)),0) +IF(AND($F$11<BB$29-$C$8,$F$12>=$G$29-$C$8),SUM(SUMIFS(OFFSET(ProfilesTable[Year 1],0,BB$29-1-$F$11-$C$8),ProfilesTable[Sub-Metric],Table16[[#This Row],[Asset life category lookup table]],ProfilesTable[Metric],"Capex",ProfilesTable[Option ID],$C$19:$C$28) *IF(Table16[[#This Row],[Inc OB]],1+_xlfn.ANCHORARRAY($M$19),1)),0) +IF(AND($F$12<BB$29-$C$8,$F$13>=$G$29-$C$8),SUM(SUMIFS(OFFSET(ProfilesTable[Year 1],0,BB$29-1-$F$12-$C$8),ProfilesTable[Sub-Metric],Table16[[#This Row],[Asset life category lookup table]],ProfilesTable[Metric],"Capex",ProfilesTable[Option ID],$D$19:$D$28) *IF(Table16[[#This Row],[Inc OB]],1+_xlfn.ANCHORARRAY($N$19),1)),0) +SUM(SUMIFS(OFFSET(ProfilesTable[Year 1],0,BB$29-1-$C$8),ProfilesTable[Sub-Metric],Table16[[#This Row],[Asset life category lookup table]],ProfilesTable[Metric],"Capex",ProfilesTable[Option ID],$E$19:$E$28) *IF(Table16[[#This Row],[Inc OB]],1+_xlfn.ANCHORARRAY($O$19),1))) -> 0 | BC31: =IF(BC$29<=$C$8,0, IF($E$11>=BC$29-$C$8,SUM(SUMIFS(OFFSET(ProfilesTable[Year 1],0,BC$29-1-$C$8),ProfilesTable[Sub-Metric],Table16[[#This Row],[Asset life category lookup table]],ProfilesTable[Metric],"Capex",ProfilesTable[Option ID],$B$19:$B$28) *IF(Table16[[#This Row],[Inc OB]],1+_xlfn.ANCHORARRAY($L$19),1)),0) +IF(AND($F$11<BC$29-$C$8,$F$12>=$G$29-$C$8),SUM(SUMIFS(OFFSET(ProfilesTable[Year 1],0,BC$29-1-$F$11-$C$8),ProfilesTable[Sub-Metric],Table16[[#This Row],[Asset life category lookup table]],ProfilesTable[Metric],"Capex",ProfilesTable[Option ID],$C$19:$C$28) *IF(Table16[[#This Row],[Inc OB]],1+_xlfn.ANCHORARRAY($M$19),1)),0) +IF(AND($F$12<BC$29-$C$8,$F$13>=$G$29-$C$8),SUM(SUMIFS(OFFSET(ProfilesTable[Year 1],0,BC$29-1-$F$12-$C$8),ProfilesTable[Sub-Metric],Table16[[#This Row],[Asset life category lookup table]],ProfilesTable[Metric],"Capex",ProfilesTable[Option ID],$D$19:$D$28) *IF(Table16[[#This Row],[Inc OB]],1+_xlfn.ANCHORARRAY($N$19),1)),0) +SUM(SUMIFS(OFFSET(ProfilesTable[Year 1],0,BC$29-1-$C$8),ProfilesTable[Sub-Metric],Table16[[#This Row],[Asset life category lookup table]],ProfilesTable[Metric],"Capex",ProfilesTable[Option ID],$E$19:$E$28) *IF(Table16[[#This Row],[Inc OB]],1+_xlfn.ANCHORARRAY($O$19),1))) -> 0 | BD31: =IF(BD$29<=$C$8,0, IF($E$11>=BD$29-$C$8,SUM(SUMIFS(OFFSET(ProfilesTable[Year 1],0,BD$29-1-$C$8),ProfilesTable[Sub-Metric],Table16[[#This Row],[Asset life category lookup table]],ProfilesTable[Metric],"Capex",ProfilesTable[Option ID],$B$19:$B$28) *IF(Table16[[#This Row],[Inc OB]],1+_xlfn.ANCHORARRAY($L$19),1)),0) +IF(AND($F$11<BD$29-$C$8,$F$12>=$G$29-$C$8),SUM(SUMIFS(OFFSET(ProfilesTable[Year 1],0,BD$29-1-$F$11-$C$8),ProfilesTable[Sub-Metric],Table16[[#This Row],[Asset life category lookup table]],ProfilesTable[Metric],"Capex",ProfilesTable[Option ID],$C$19:$C$28) *IF(Table16[[#This Row],[Inc OB]],1+_xlfn.ANCHORARRAY($M$19),1)),0) +IF(AND($F$12<BD$29-$C$8,$F$13>=$G$29-$C$8),SUM(SUMIFS(OFFSET(ProfilesTable[Year 1],0,BD$29-1-$F$12-$C$8),ProfilesTable[Sub-Metric],Table16[[#This Row],[Asset life category lookup table]],ProfilesTable[Metric],"Capex",ProfilesTable[Option ID],$D$19:$D$28) *IF(Table16[[#This Row],[Inc OB]],1+_xlfn.ANCHORARRAY($N$19),1)),0) +SUM(SUMIFS(OFFSET(ProfilesTable[Year 1],0,BD$29-1-$C$8),ProfilesTable[Sub-Metric],Table16[[#This Row],[Asset life category lookup table]],ProfilesTable[Metric],"Capex",ProfilesTable[Option ID],$E$19:$E$28) *IF(Table16[[#This Row],[Inc OB]],1+_xlfn.ANCHORARRAY($O$19),1))) -> 0 | BE31: =IF(BE$29<=$C$8,0, IF($E$11>=BE$29-$C$8,SUM(SUMIFS(OFFSET(ProfilesTable[Year 1],0,BE$29-1-$C$8),ProfilesTable[Sub-Metric],Table16[[#This Row],[Asset life category lookup table]],ProfilesTable[Metric],"Capex",ProfilesTable[Option ID],$B$19:$B$28) *IF(Table16[[#This Row],[Inc OB]],1+_xlfn.ANCHORARRAY($L$19),1)),0) +IF(AND($F$11<BE$29-$C$8,$F$12>=$G$29-$C$8),SUM(SUMIFS(OFFSET(ProfilesTable[Year 1],0,BE$29-1-$F$11-$C$8),ProfilesTable[Sub-Metric],Table16[[#This Row],[Asset life category lookup table]],ProfilesTable[Metric],"Capex",ProfilesTable[Option ID],$C$19:$C$28) *IF(Table16[[#This Row],[Inc OB]],1+_xlfn.ANCHORARRAY($M$19),1)),0) +IF(AND($F$12<BE$29-$C$8,$F$13>=$G$29-$C$8),SUM(SUMIFS(OFFSET(ProfilesTable[Year 1],0,BE$29-1-$F$12-$C$8),ProfilesTable[Sub-Metric],Table16[[#This Row],[Asset life category lookup table]],ProfilesTable[Metric],"Capex",ProfilesTable[Option ID],$D$19:$D$28) *IF(Table16[[#This Row],[Inc OB]],1+_xlfn.ANCHORARRAY($N$19),1)),0) +SUM(SUMIFS(OFFSET(ProfilesTable[Year 1],0,BE$29-1-$C$8),ProfilesTable[Sub-Metric],Table16[[#This Row],[Asset life category lookup table]],ProfilesTable[Metric],"Capex",ProfilesTable[Option ID],$E$19:$E$28) *IF(Table16[[#This Row],[Inc OB]],1+_xlfn.ANCHORARRAY($O$19),1))) -> 0 | BF31: =IF(BF$29<=$C$8,0, IF($E$11>=BF$29-$C$8,SUM(SUMIFS(OFFSET(ProfilesTable[Year 1],0,BF$29-1-$C$8),ProfilesTable[Sub-Metric],Table16[[#This Row],[Asset life category lookup table]],ProfilesTable[Metric],"Capex",ProfilesTable[Option ID],$B$19:$B$28) *IF(Table16[[#This Row],[Inc OB]],1+_xlfn.ANCHORARRAY($L$19),1)),0) +IF(AND($F$11<BF$29-$C$8,$F$12>=$G$29-$C$8),SUM(SUMIFS(OFFSET(ProfilesTable[Year 1],0,BF$29-1-$F$11-$C$8),ProfilesTable[Sub-Metric],Table16[[#This Row],[Asset life category lookup table]],ProfilesTable[Metric],"Capex",ProfilesTable[Option ID],$C$19:$C$28) *IF(Table16[[#This Row],[Inc OB]],1+_xlfn.ANCHORARRAY($M$19),1)),0) +IF(AND($F$12<BF$29-$C$8,$F$13>=$G$29-$C$8),SUM(SUMIFS(OFFSET(ProfilesTable[Year 1],0,BF$29-1-$F$12-$C$8),ProfilesTable[Sub-Metric],Table16[[#This Row],[Asset life category lookup table]],ProfilesTable[Metric],"Capex",ProfilesTable[Option ID],$D$19:$D$28) *IF(Table16[[#This Row],[Inc OB]],1+_xlfn.ANCHORARRAY($N$19),1)),0) +SUM(SUMIFS(OFFSET(ProfilesTable[Year 1],0,BF$29-1-$C$8),ProfilesTable[Sub-Metric],Table16[[#This Row],[Asset life category lookup table]],ProfilesTable[Metric],"Capex",ProfilesTable[Option ID],$E$19:$E$28) *IF(Table16[[#This Row],[Inc OB]],1+_xlfn.ANCHORARRAY($O$19),1))) -> 0 | BG31: =IF(BG$29<=$C$8,0, IF($E$11>=BG$29-$C$8,SUM(SUMIFS(OFFSET(ProfilesTable[Year 1],0,BG$29-1-$C$8),ProfilesTable[Sub-Metric],Table16[[#This Row],[Asset life category lookup table]],ProfilesTable[Metric],"Capex",ProfilesTable[Option ID],$B$19:$B$28) *IF(Table16[[#This Row],[Inc OB]],1+_xlfn.ANCHORARRAY($L$19),1)),0) +IF(AND($F$11<BG$29-$C$8,$F$12>=$G$29-$C$8),SUM(SUMIFS(OFFSET(ProfilesTable[Year 1],0,BG$29-1-$F$11-$C$8),ProfilesTable[Sub-Metric],Table16[[#This Row],[Asset life category lookup table]],ProfilesTable[Metric],"Capex",ProfilesTable[Option ID],$C$19:$C$28) *IF(Table16[[#This Row],[Inc OB]],1+_xlfn.ANCHORARRAY($M$19),1)),0) +IF(AND($F$12<BG$29-$C$8,$F$13>=$G$29-$C$8),SUM(SUMIFS(OFFSET(ProfilesTable[Year 1],0,BG$29-1-$F$12-$C$8),ProfilesTable[Sub-Metric],Table16[[#This Row],[Asset life category lookup table]],ProfilesTable[Metric],"Capex",ProfilesTable[Option ID],$D$19:$D$28) *IF(Table16[[#This Row],[Inc OB]],1+_xlfn.ANCHORARRAY($N$19),1)),0) +SUM(SUMIFS(OFFSET(ProfilesTable[Year 1],0,BG$29-1-$C$8),ProfilesTable[Sub-Metric],Table16[[#This Row],[Asset life category lookup table]],ProfilesTable[Metric],"Capex",ProfilesTable[Option ID],$E$19:$E$28) *IF(Table16[[#This Row],[Inc OB]],1+_xlfn.ANCHORARRAY($O$19),1))) -> 0 | BH31: =IF(BH$29<=$C$8,0, IF($E$11>=BH$29-$C$8,SUM(SUMIFS(OFFSET(ProfilesTable[Year 1],0,BH$29-1-$C$8),ProfilesTable[Sub-Metric],Table16[[#This Row],[Asset life category lookup table]],ProfilesTable[Metric],"Capex",ProfilesTable[Option ID],$B$19:$B$28) *IF(Table16[[#This Row],[Inc OB]],1+_xlfn.ANCHORARRAY($L$19),1)),0) +IF(AND($F$11<BH$29-$C$8,$F$12>=$G$29-$C$8),SUM(SUMIFS(OFFSET(ProfilesTable[Year 1],0,BH$29-1-$F$11-$C$8),ProfilesTable[Sub-Metric],Table16[[#This Row],[Asset life category lookup table]],ProfilesTable[Metric],"Capex",ProfilesTable[Option ID],$C$19:$C$28) *IF(Table16[[#This Row],[Inc OB]],1+_xlfn.ANCHORARRAY($M$19),1)),0) +IF(AND($F$12<BH$29-$C$8,$F$13>=$G$29-$C$8),SUM(SUMIFS(OFFSET(ProfilesTable[Year 1],0,BH$29-1-$F$12-$C$8),ProfilesTable[Sub-Metric],Table16[[#This Row],[Asset life category lookup table]],ProfilesTable[Metric],"Capex",ProfilesTable[Option ID],$D$19:$D$28) *IF(Table16[[#This Row],[Inc OB]],1+_xlfn.ANCHORARRAY($N$19),1)),0) +SUM(SUMIFS(OFFSET(ProfilesTable[Year 1],0,BH$29-1-$C$8),ProfilesTable[Sub-Metric],Table16[[#This Row],[Asset life category lookup table]],ProfilesTable[Metric],"Capex",ProfilesTable[Option ID],$E$19:$E$28) *IF(Table16[[#This Row],[Inc OB]],1+_xlfn.ANCHORARRAY($O$19),1))) -> 0 | BI31: =IF(BI$29<=$C$8,0, IF($E$11>=BI$29-$C$8,SUM(SUMIFS(OFFSET(ProfilesTable[Year 1],0,BI$29-1-$C$8),ProfilesTable[Sub-Metric],Table16[[#This Row],[Asset life category lookup table]],ProfilesTable[Metric],"Capex",ProfilesTable[Option ID],$B$19:$B$28) *IF(Table16[[#This Row],[Inc OB]],1+_xlfn.ANCHORARRAY($L$19),1)),0) +IF(AND($F$11<BI$29-$C$8,$F$12>=$G$29-$C$8),SUM(SUMIFS(OFFSET(ProfilesTable[Year 1],0,BI$29-1-$F$11-$C$8),ProfilesTable[Sub-Metric],Table16[[#This Row],[Asset life category lookup table]],ProfilesTable[Metric],"Capex",ProfilesTable[Option ID],$C$19:$C$28) *IF(Table16[[#This Row],[Inc OB]],1+_xlfn.ANCHORARRAY($M$19),1)),0) +IF(AND($F$12<BI$29-$C$8,$F$13>=$G$29-$C$8),SUM(SUMIFS(OFFSET(ProfilesTable[Year 1],0,BI$29-1-$F$12-$C$8),ProfilesTable[Sub-Metric],Table16[[#This Row],[Asset life category lookup table]],ProfilesTable[Metric],"Capex",ProfilesTable[Option ID],$D$19:$D$28) *IF(Table16[[#This Row],[Inc OB]],1+_xlfn.ANCHORARRAY($N$19),1)),0) +SUM(SUMIFS(OFFSET(ProfilesTable[Year 1],0,BI$29-1-$C$8),ProfilesTable[Sub-Metric],Table16[[#This Row],[Asset life category lookup table]],ProfilesTable[Metric],"Capex",ProfilesTable[Option ID],$E$19:$E$28) *IF(Table16[[#This Row],[Inc OB]],1+_xlfn.ANCHORARRAY($O$19),1))) -> 0 | BJ31: =IF(BJ$29<=$C$8,0, IF($E$11>=BJ$29-$C$8,SUM(SUMIFS(OFFSET(ProfilesTable[Year 1],0,BJ$29-1-$C$8),ProfilesTable[Sub-Metric],Table16[[#This Row],[Asset life category lookup table]],ProfilesTable[Metric],"Capex",ProfilesTable[Option ID],$B$19:$B$28) *IF(Table16[[#This Row],[Inc OB]],1+_xlfn.ANCHORARRAY($L$19),1)),0) +IF(AND($F$11<BJ$29-$C$8,$F$12>=$G$29-$C$8),SUM(SUMIFS(OFFSET(ProfilesTable[Year 1],0,BJ$29-1-$F$11-$C$8),ProfilesTable[Sub-Metric],Table16[[#This Row],[Asset life category lookup table]],ProfilesTable[Metric],"Capex",ProfilesTable[Option ID],$C$19:$C$28) *IF(Table16[[#This Row],[Inc OB]],1+_xlfn.ANCHORARRAY($M$19),1)),0) +IF(AND($F$12<BJ$29-$C$8,$F$13>=$G$29-$C$8),SUM(SUMIFS(OFFSET(ProfilesTable[Year 1],0,BJ$29-1-$F$12-$C$8),ProfilesTable[Sub-Metric],Table16[[#This Row],[Asset life category lookup table]],ProfilesTable[Metric],"Capex",ProfilesTable[Option ID],$D$19:$D$28) *IF(Table16[[#This Row],[Inc OB]],1+_xlfn.ANCHORARRAY($N$19),1)),0) +SUM(SUMIFS(OFFSET(ProfilesTable[Year 1],0,BJ$29-1-$C$8),ProfilesTable[Sub-Metric],Table16[[#This Row],[Asset life category lookup table]],ProfilesTable[Metric],"Capex",ProfilesTable[Option ID],$E$19:$E$28) *IF(Table16[[#This Row],[Inc OB]],1+_xlfn.ANCHORARRAY($O$19),1))) -> 0 | BK31: =IF(BK$29<=$C$8,0, IF($E$11>=BK$29-$C$8,SUM(SUMIFS(OFFSET(ProfilesTable[Year 1],0,BK$29-1-$C$8),ProfilesTable[Sub-Metric],Table16[[#This Row],[Asset life category lookup table]],ProfilesTable[Metric],"Capex",ProfilesTable[Option ID],$B$19:$B$28) *IF(Table16[[#This Row],[Inc OB]],1+_xlfn.ANCHORARRAY($L$19),1)),0) +IF(AND($F$11<BK$29-$C$8,$F$12>=$G$29-$C$8),SUM(SUMIFS(OFFSET(ProfilesTable[Year 1],0,BK$29-1-$F$11-$C$8),ProfilesTable[Sub-Metric],Table16[[#This Row],[Asset life category lookup table]],ProfilesTable[Metric],"Capex",ProfilesTable[Option ID],$C$19:$C$28) *IF(Table16[[#This Row],[Inc OB]],1+_xlfn.ANCHORARRAY($M$19),1)),0) +IF(AND($F$12<BK$29-$C$8,$F$13>=$G$29-$C$8),SUM(SUMIFS(OFFSET(ProfilesTable[Year 1],0,BK$29-1-$F$12-$C$8),ProfilesTable[Sub-Metric],Table16[[#This Row],[Asset life category lookup table]],ProfilesTable[Metric],"Capex",ProfilesTable[Option ID],$D$19:$D$28) *IF(Table16[[#This Row],[Inc OB]],1+_xlfn.ANCHORARRAY($N$19),1)),0) +SUM(SUMIFS(OFFSET(ProfilesTable[Year 1],0,BK$29-1-$C$8),ProfilesTable[Sub-Metric],Table16[[#This Row],[Asset life category lookup table]],ProfilesTable[Metric],"Capex",ProfilesTable[Option ID],$E$19:$E$28) *IF(Table16[[#This Row],[Inc OB]],1+_xlfn.ANCHORARRAY($O$19),1))) -> 0 | BL31: =IF(BL$29<=$C$8,0, IF($E$11>=BL$29-$C$8,SUM(SUMIFS(OFFSET(ProfilesTable[Year 1],0,BL$29-1-$C$8),ProfilesTable[Sub-Metric],Table16[[#This Row],[Asset life category lookup table]],ProfilesTable[Metric],"Capex",ProfilesTable[Option ID],$B$19:$B$28) *IF(Table16[[#This Row],[Inc OB]],1+_xlfn.ANCHORARRAY($L$19),1)),0) +IF(AND($F$11<BL$29-$C$8,$F$12>=$G$29-$C$8),SUM(SUMIFS(OFFSET(ProfilesTable[Year 1],0,BL$29-1-$F$11-$C$8),ProfilesTable[Sub-Metric],Table16[[#This Row],[Asset life category lookup table]],ProfilesTable[Metric],"Capex",ProfilesTable[Option ID],$C$19:$C$28) *IF(Table16[[#This Row],[Inc OB]],1+_xlfn.ANCHORARRAY($M$19),1)),0) +IF(AND($F$12<BL$29-$C$8,$F$13>=$G$29-$C$8),SUM(SUMIFS(OFFSET(ProfilesTable[Year 1],0,BL$29-1-$F$12-$C$8),ProfilesTable[Sub-Metric],Table16[[#This Row],[Asset life category lookup table]],ProfilesTable[Metric],"Capex",ProfilesTable[Option ID],$D$19:$D$28) *IF(Table16[[#This Row],[Inc OB]],1+_xlfn.ANCHORARRAY($N$19),1)),0) +SUM(SUMIFS(OFFSET(ProfilesTable[Year 1],0,BL$29-1-$C$8),ProfilesTable[Sub-Metric],Table16[[#This Row],[Asset life category lookup table]],ProfilesTable[Metric],"Capex",ProfilesTable[Option ID],$E$19:$E$28) *IF(Table16[[#This Row],[Inc OB]],1+_xlfn.ANCHORARRAY($O$19),1))) -> 0 | BM31: =IF(BM$29<=$C$8,0, IF($E$11>=BM$29-$C$8,SUM(SUMIFS(OFFSET(ProfilesTable[Year 1],0,BM$29-1-$C$8),ProfilesTable[Sub-Metric],Table16[[#This Row],[Asset life category lookup table]],ProfilesTable[Metric],"Capex",ProfilesTable[Option ID],$B$19:$B$28) *IF(Table16[[#This Row],[Inc OB]],1+_xlfn.ANCHORARRAY($L$19),1)),0) +IF(AND($F$11<BM$29-$C$8,$F$12>=$G$29-$C$8),SUM(SUMIFS(OFFSET(ProfilesTable[Year 1],0,BM$29-1-$F$11-$C$8),ProfilesTable[Sub-Metric],Table16[[#This Row],[Asset life category lookup table]],ProfilesTable[Metric],"Capex",ProfilesTable[Option ID],$C$19:$C$28) *IF(Table16[[#This Row],[Inc OB]],1+_xlfn.ANCHORARRAY($M$19),1)),0) +IF(AND($F$12<BM$29-$C$8,$F$13>=$G$29-$C$8),SUM(SUMIFS(OFFSET(ProfilesTable[Year 1],0,BM$29-1-$F$12-$C$8),ProfilesTable[Sub-Metric],Table16[[#This Row],[Asset life category lookup table]],ProfilesTable[Metric],"Capex",ProfilesTable[Option ID],$D$19:$D$28) *IF(Table16[[#This Row],[Inc OB]],1+_xlfn.ANCHORARRAY($N$19),1)),0) +SUM(SUMIFS(OFFSET(ProfilesTable[Year 1],0,BM$29-1-$C$8),ProfilesTable[Sub-Metric],Table16[[#This Row],[Asset life category lookup table]],ProfilesTable[Metric],"Capex",ProfilesTable[Option ID],$E$19:$E$28) *IF(Table16[[#This Row],[Inc OB]],1+_xlfn.ANCHORARRAY($O$19),1))) -> 0 | BN31: =IF(BN$29<=$C$8,0, IF($E$11>=BN$29-$C$8,SUM(SUMIFS(OFFSET(ProfilesTable[Year 1],0,BN$29-1-$C$8),ProfilesTable[Sub-Metric],Table16[[#This Row],[Asset life category lookup table]],ProfilesTable[Metric],"Capex",ProfilesTable[Option ID],$B$19:$B$28) *IF(Table16[[#This Row],[Inc OB]],1+_xlfn.ANCHORARRAY($L$19),1)),0) +IF(AND($F$11<BN$29-$C$8,$F$12>=$G$29-$C$8),SUM(SUMIFS(OFFSET(ProfilesTable[Year 1],0,BN$29-1-$F$11-$C$8),ProfilesTable[Sub-Metric],Table16[[#This Row],[Asset life category lookup table]],ProfilesTable[Metric],"Capex",ProfilesTable[Option ID],$C$19:$C$28) *IF(Table16[[#This Row],[Inc OB]],1+_xlfn.ANCHORARRAY($M$19),1)),0) +IF(AND($F$12<BN$29-$C$8,$F$13>=$G$29-$C$8),SUM(SUMIFS(OFFSET(ProfilesTable[Year 1],0,BN$29-1-$F$12-$C$8),ProfilesTable[Sub-Metric],Table16[[#This Row],[Asset life category lookup table]],ProfilesTable[Metric],"Capex",ProfilesTable[Option ID],$D$19:$D$28) *IF(Table16[[#This Row],[Inc OB]],1+_xlfn.ANCHORARRAY($N$19),1)),0) +SUM(SUMIFS(OFFSET(ProfilesTable[Year 1],0,BN$29-1-$C$8),ProfilesTable[Sub-Metric],Table16[[#This Row],[Asset life category lookup table]],ProfilesTable[Metric],"Capex",ProfilesTable[Option ID],$E$19:$E$28) *IF(Table16[[#This Row],[Inc OB]],1+_xlfn.ANCHORARRAY($O$19),1))) -> 0 | BO31: =IF(BO$29<=$C$8,0, IF($E$11>=BO$29-$C$8,SUM(SUMIFS(OFFSET(ProfilesTable[Year 1],0,BO$29-1-$C$8),ProfilesTable[Sub-Metric],Table16[[#This Row],[Asset life category lookup table]],ProfilesTable[Metric],"Capex",ProfilesTable[Option ID],$B$19:$B$28) *IF(Table16[[#This Row],[Inc OB]],1+_xlfn.ANCHORARRAY($L$19),1)),0) +IF(AND($F$11<BO$29-$C$8,$F$12>=$G$29-$C$8),SUM(SUMIFS(OFFSET(ProfilesTable[Year 1],0,BO$29-1-$F$11-$C$8),ProfilesTable[Sub-Metric],Table16[[#This Row],[Asset life category lookup table]],ProfilesTable[Metric],"Capex",ProfilesTable[Option ID],$C$19:$C$28) *IF(Table16[[#This Row],[Inc OB]],1+_xlfn.ANCHORARRAY($M$19),1)),0) +IF(AND($F$12<BO$29-$C$8,$F$13>=$G$29-$C$8),SUM(SUMIFS(OFFSET(ProfilesTable[Year 1],0,BO$29-1-$F$12-$C$8),ProfilesTable[Sub-Metric],Table16[[#This Row],[Asset life category lookup table]],ProfilesTable[Metric],"Capex",ProfilesTable[Option ID],$D$19:$D$28) *IF(Table16[[#This Row],[Inc OB]],1+_xlfn.ANCHORARRAY($N$19),1)),0) +SUM(SUMIFS(OFFSET(ProfilesTable[Year 1],0,BO$29-1-$C$8),ProfilesTable[Sub-Metric],Table16[[#This Row],[Asset life category lookup table]],ProfilesTable[Metric],"Capex",ProfilesTable[Option ID],$E$19:$E$28) *IF(Table16[[#This Row],[Inc OB]],1+_xlfn.ANCHORARRAY($O$19),1))) -> 0 | BP31: =IF(BP$29<=$C$8,0, IF($E$11>=BP$29-$C$8,SUM(SUMIFS(OFFSET(ProfilesTable[Year 1],0,BP$29-1-$C$8),ProfilesTable[Sub-Metric],Table16[[#This Row],[Asset life category lookup table]],ProfilesTable[Metric],"Capex",ProfilesTable[Option ID],$B$19:$B$28) *IF(Table16[[#This Row],[Inc OB]],1+_xlfn.ANCHORARRAY($L$19),1)),0) +IF(AND($F$11<BP$29-$C$8,$F$12>=$G$29-$C$8),SUM(SUMIFS(OFFSET(ProfilesTable[Year 1],0,BP$29-1-$F$11-$C$8),ProfilesTable[Sub-Metric],Table16[[#This Row],[Asset life category lookup table]],ProfilesTable[Metric],"Capex",ProfilesTable[Option ID],$C$19:$C$28) *IF(Table16[[#This Row],[Inc OB]],1+_xlfn.ANCHORARRAY($M$19),1)),0) +IF(AND($F$12<BP$29-$C$8,$F$13>=$G$29-$C$8),SUM(SUMIFS(OFFSET(ProfilesTable[Year 1],0,BP$29-1-$F$12-$C$8),ProfilesTable[Sub-Metric],Table16[[#This Row],[Asset life category lookup table]],ProfilesTable[Metric],"Capex",ProfilesTable[Option ID],$D$19:$D$28) *IF(Table16[[#This Row],[Inc OB]],1+_xlfn.ANCHORARRAY($N$19),1)),0) +SUM(SUMIFS(OFFSET(ProfilesTable[Year 1],0,BP$29-1-$C$8),ProfilesTable[Sub-Metric],Table16[[#This Row],[Asset life category lookup table]],ProfilesTable[Metric],"Capex",ProfilesTable[Option ID],$E$19:$E$28) *IF(Table16[[#This Row],[Inc OB]],1+_xlfn.ANCHORARRAY($O$19),1))) -> 0 | BQ31: =IF(BQ$29<=$C$8,0, IF($E$11>=BQ$29-$C$8,SUM(SUMIFS(OFFSET(ProfilesTable[Year 1],0,BQ$29-1-$C$8),ProfilesTable[Sub-Metric],Table16[[#This Row],[Asset life category lookup table]],ProfilesTable[Metric],"Capex",ProfilesTable[Option ID],$B$19:$B$28) *IF(Table16[[#This Row],[Inc OB]],1+_xlfn.ANCHORARRAY($L$19),1)),0) +IF(AND($F$11<BQ$29-$C$8,$F$12>=$G$29-$C$8),SUM(SUMIFS(OFFSET(ProfilesTable[Year 1],0,BQ$29-1-$F$11-$C$8),ProfilesTable[Sub-Metric],Table16[[#This Row],[Asset life category lookup table]],ProfilesTable[Metric],"Capex",ProfilesTable[Option ID],$C$19:$C$28) *IF(Table16[[#This Row],[Inc OB]],1+_xlfn.ANCHORARRAY($M$19),1)),0) +IF(AND($F$12<BQ$29-$C$8,$F$13>=$G$29-$C$8),SUM(SUMIFS(OFFSET(ProfilesTable[Year 1],0,BQ$29-1-$F$12-$C$8),ProfilesTable[Sub-Metric],Table16[[#This Row],[Asset life category lookup table]],ProfilesTable[Metric],"Capex",ProfilesTable[Option ID],$D$19:$D$28) *IF(Table16[[#This Row],[Inc OB]],1+_xlfn.ANCHORARRAY($N$19),1)),0) +SUM(SUMIFS(OFFSET(ProfilesTable[Year 1],0,BQ$29-1-$C$8),ProfilesTable[Sub-Metric],Table16[[#This Row],[Asset life category lookup table]],ProfilesTable[Metric],"Capex",ProfilesTable[Option ID],$E$19:$E$28) *IF(Table16[[#This Row],[Inc OB]],1+_xlfn.ANCHORARRAY($O$19),1))) -> 0 | BR31: =IF(BR$29<=$C$8,0, IF($E$11>=BR$29-$C$8,SUM(SUMIFS(OFFSET(ProfilesTable[Year 1],0,BR$29-1-$C$8),ProfilesTable[Sub-Metric],Table16[[#This Row],[Asset life category lookup table]],ProfilesTable[Metric],"Capex",ProfilesTable[Option ID],$B$19:$B$28) *IF(Table16[[#This Row],[Inc OB]],1+_xlfn.ANCHORARRAY($L$19),1)),0) +IF(AND($F$11<BR$29-$C$8,$F$12>=$G$29-$C$8),SUM(SUMIFS(OFFSET(ProfilesTable[Year 1],0,BR$29-1-$F$11-$C$8),ProfilesTable[Sub-Metric],Table16[[#This Row],[Asset life category lookup table]],ProfilesTable[Metric],"Capex",ProfilesTable[Option ID],$C$19:$C$28) *IF(Table16[[#This Row],[Inc OB]],1+_xlfn.ANCHORARRAY($M$19),1)),0) +IF(AND($F$12<BR$29-$C$8,$F$13>=$G$29-$C$8),SUM(SUMIFS(OFFSET(ProfilesTable[Year 1],0,BR$29-1-$F$12-$C$8),ProfilesTable[Sub-Metric],Table16[[#This Row],[Asset life category lookup table]],ProfilesTable[Metric],"Capex",ProfilesTable[Option ID],$D$19:$D$28) *IF(Table16[[#This Row],[Inc OB]],1+_xlfn.ANCHORARRAY($N$19),1)),0) +SUM(SUMIFS(OFFSET(ProfilesTable[Year 1],0,BR$29-1-$C$8),ProfilesTable[Sub-Metric],Table16[[#This Row],[Asset life category lookup table]],ProfilesTable[Metric],"Capex",ProfilesTable[Option ID],$E$19:$E$28) *IF(Table16[[#This Row],[Inc OB]],1+_xlfn.ANCHORARRAY($O$19),1))) -> 0 | BS31: =IF(BS$29<=$C$8,0, IF($E$11>=BS$29-$C$8,SUM(SUMIFS(OFFSET(ProfilesTable[Year 1],0,BS$29-1-$C$8),ProfilesTable[Sub-Metric],Table16[[#This Row],[Asset life category lookup table]],ProfilesTable[Metric],"Capex",ProfilesTable[Option ID],$B$19:$B$28) *IF(Table16[[#This Row],[Inc OB]],1+_xlfn.ANCHORARRAY($L$19),1)),0) +IF(AND($F$11<BS$29-$C$8,$F$12>=$G$29-$C$8),SUM(SUMIFS(OFFSET(ProfilesTable[Year 1],0,BS$29-1-$F$11-$C$8),ProfilesTable[Sub-Metric],Table16[[#This Row],[Asset life category lookup table]],ProfilesTable[Metric],"Capex",ProfilesTable[Option ID],$C$19:$C$28) *IF(Table16[[#This Row],[Inc OB]],1+_xlfn.ANCHORARRAY($M$19),1)),0) +IF(AND($F$12<BS$29-$C$8,$F$13>=$G$29-$C$8),SUM(SUMIFS(OFFSET(ProfilesTable[Year 1],0,BS$29-1-$F$12-$C$8),ProfilesTable[Sub-Metric],Table16[[#This Row],[Asset life category lookup table]],ProfilesTable[Metric],"Capex",ProfilesTable[Option ID],$D$19:$D$28) *IF(Table16[[#This Row],[Inc OB]],1+_xlfn.ANCHORARRAY($N$19),1)),0) +SUM(SUMIFS(OFFSET(ProfilesTable[Year 1],0,BS$29-1-$C$8),ProfilesTable[Sub-Metric],Table16[[#This Row],[Asset life category lookup table]],ProfilesTable[Metric],"Capex",ProfilesTable[Option ID],$E$19:$E$28) *IF(Table16[[#This Row],[Inc OB]],1+_xlfn.ANCHORARRAY($O$19),1))) -> 0 | BT31: =IF(BT$29<=$C$8,0, IF($E$11>=BT$29-$C$8,SUM(SUMIFS(OFFSET(ProfilesTable[Year 1],0,BT$29-1-$C$8),ProfilesTable[Sub-Metric],Table16[[#This Row],[Asset life category lookup table]],ProfilesTable[Metric],"Capex",ProfilesTable[Option ID],$B$19:$B$28) *IF(Table16[[#This Row],[Inc OB]],1+_xlfn.ANCHORARRAY($L$19),1)),0) +IF(AND($F$11<BT$29-$C$8,$F$12>=$G$29-$C$8),SUM(SUMIFS(OFFSET(ProfilesTable[Year 1],0,BT$29-1-$F$11-$C$8),ProfilesTable[Sub-Metric],Table16[[#This Row],[Asset life category lookup table]],ProfilesTable[Metric],"Capex",ProfilesTable[Option ID],$C$19:$C$28) *IF(Table16[[#This Row],[Inc OB]],1+_xlfn.ANCHORARRAY($M$19),1)),0) +IF(AND($F$12<BT$29-$C$8,$F$13>=$G$29-$C$8),SUM(SUMIFS(OFFSET(ProfilesTable[Year 1],0,BT$29-1-$F$12-$C$8),ProfilesTable[Sub-Metric],Table16[[#This Row],[Asset life category lookup table]],ProfilesTable[Metric],"Capex",ProfilesTable[Option ID],$D$19:$D$28) *IF(Table16[[#This Row],[Inc OB]],1+_xlfn.ANCHORARRAY($N$19),1)),0) +SUM(SUMIFS(OFFSET(ProfilesTable[Year 1],0,BT$29-1-$C$8),ProfilesTable[Sub-Metric],Table16[[#This Row],[Asset life category lookup table]],ProfilesTable[Metric],"Capex",ProfilesTable[Option ID],$E$19:$E$28) *IF(Table16[[#This Row],[Inc OB]],1+_xlfn.ANCHORARRAY($O$19),1))) -> 0 | BU31: =IF(BU$29<=$C$8,0, IF($E$11>=BU$29-$C$8,SUM(SUMIFS(OFFSET(ProfilesTable[Year 1],0,BU$29-1-$C$8),ProfilesTable[Sub-Metric],Table16[[#This Row],[Asset life category lookup table]],ProfilesTable[Metric],"Capex",ProfilesTable[Option ID],$B$19:$B$28) *IF(Table16[[#This Row],[Inc OB]],1+_xlfn.ANCHORARRAY($L$19),1)),0) +IF(AND($F$11<BU$29-$C$8,$F$12>=$G$29-$C$8),SUM(SUMIFS(OFFSET(ProfilesTable[Year 1],0,BU$29-1-$F$11-$C$8),ProfilesTable[Sub-Metric],Table16[[#This Row],[Asset life category lookup table]],ProfilesTable[Metric],"Capex",ProfilesTable[Option ID],$C$19:$C$28) *IF(Table16[[#This Row],[Inc OB]],1+_xlfn.ANCHORARRAY($M$19),1)),0) +IF(AND($F$12<BU$29-$C$8,$F$13>=$G$29-$C$8),SUM(SUMIFS(OFFSET(ProfilesTable[Year 1],0,BU$29-1-$F$12-$C$8),ProfilesTable[Sub-Metric],Table16[[#This Row],[Asset life category lookup table]],ProfilesTable[Metric],"Capex",ProfilesTable[Option ID],$D$19:$D$28) *IF(Table16[[#This Row],[Inc OB]],1+_xlfn.ANCHORARRAY($N$19),1)),0) +SUM(SUMIFS(OFFSET(ProfilesTable[Year 1],0,BU$29-1-$C$8),ProfilesTable[Sub-Metric],Table16[[#This Row],[Asset life category lookup table]],ProfilesTable[Metric],"Capex",ProfilesTable[Option ID],$E$19:$E$28) *IF(Table16[[#This Row],[Inc OB]],1+_xlfn.ANCHORARRAY($O$19),1))) -> 0 | BV31: =IF(BV$29<=$C$8,0, IF($E$11>=BV$29-$C$8,SUM(SUMIFS(OFFSET(ProfilesTable[Year 1],0,BV$29-1-$C$8),ProfilesTable[Sub-Metric],Table16[[#This Row],[Asset life category lookup table]],ProfilesTable[Metric],"Capex",ProfilesTable[Option ID],$B$19:$B$28) *IF(Table16[[#This Row],[Inc OB]],1+_xlfn.ANCHORARRAY($L$19),1)),0) +IF(AND($F$11<BV$29-$C$8,$F$12>=$G$29-$C$8),SUM(SUMIFS(OFFSET(ProfilesTable[Year 1],0,BV$29-1-$F$11-$C$8),ProfilesTable[Sub-Metric],Table16[[#This Row],[Asset life category lookup table]],ProfilesTable[Metric],"Capex",ProfilesTable[Option ID],$C$19:$C$28) *IF(Table16[[#This Row],[Inc OB]],1+_xlfn.ANCHORARRAY($M$19),1)),0) +IF(AND($F$12<BV$29-$C$8,$F$13>=$G$29-$C$8),SUM(SUMIFS(OFFSET(ProfilesTable[Year 1],0,BV$29-1-$F$12-$C$8),ProfilesTable[Sub-Metric],Table16[[#This Row],[Asset life category lookup table]],ProfilesTable[Metric],"Capex",ProfilesTable[Option ID],$D$19:$D$28) *IF(Table16[[#This Row],[Inc OB]],1+_xlfn.ANCHORARRAY($N$19),1)),0) +SUM(SUMIFS(OFFSET(ProfilesTable[Year 1],0,BV$29-1-$C$8),ProfilesTable[Sub-Metric],Table16[[#This Row],[Asset life category lookup table]],ProfilesTable[Metric],"Capex",ProfilesTable[Option ID],$E$19:$E$28) *IF(Table16[[#This Row],[Inc OB]],1+_xlfn.ANCHORARRAY($O$19),1))) -> 0 | BW31: =IF(BW$29<=$C$8,0, IF($E$11>=BW$29-$C$8,SUM(SUMIFS(OFFSET(ProfilesTable[Year 1],0,BW$29-1-$C$8),ProfilesTable[Sub-Metric],Table16[[#This Row],[Asset life category lookup table]],ProfilesTable[Metric],"Capex",ProfilesTable[Option ID],$B$19:$B$28) *IF(Table16[[#This Row],[Inc OB]],1+_xlfn.ANCHORARRAY($L$19),1)),0) +IF(AND($F$11<BW$29-$C$8,$F$12>=$G$29-$C$8),SUM(SUMIFS(OFFSET(ProfilesTable[Year 1],0,BW$29-1-$F$11-$C$8),ProfilesTable[Sub-Metric],Table16[[#This Row],[Asset life category lookup table]],ProfilesTable[Metric],"Capex",ProfilesTable[Option ID],$C$19:$C$28) *IF(Table16[[#This Row],[Inc OB]],1+_xlfn.ANCHORARRAY($M$19),1)),0) +IF(AND($F$12<BW$29-$C$8,$F$13>=$G$29-$C$8),SUM(SUMIFS(OFFSET(ProfilesTable[Year 1],0,BW$29-1-$F$12-$C$8),ProfilesTable[Sub-Metric],Table16[[#This Row],[Asset life category lookup table]],ProfilesTable[Metric],"Capex",ProfilesTable[Option ID],$D$19:$D$28) *IF(Table16[[#This Row],[Inc OB]],1+_xlfn.ANCHORARRAY($N$19),1)),0) +SUM(SUMIFS(OFFSET(ProfilesTable[Year 1],0,BW$29-1-$C$8),ProfilesTable[Sub-Metric],Table16[[#This Row],[Asset life category lookup table]],ProfilesTable[Metric],"Capex",ProfilesTable[Option ID],$E$19:$E$28) *IF(Table16[[#This Row],[Inc OB]],1+_xlfn.ANCHORARRAY($O$19),1))) -> 0 | BX31: =IF(BX$29<=$C$8,0, IF($E$11>=BX$29-$C$8,SUM(SUMIFS(OFFSET(ProfilesTable[Year 1],0,BX$29-1-$C$8),ProfilesTable[Sub-Metric],Table16[[#This Row],[Asset life category lookup table]],ProfilesTable[Metric],"Capex",ProfilesTable[Option ID],$B$19:$B$28) *IF(Table16[[#This Row],[Inc OB]],1+_xlfn.ANCHORARRAY($L$19),1)),0) +IF(AND($F$11<BX$29-$C$8,$F$12>=$G$29-$C$8),SUM(SUMIFS(OFFSET(ProfilesTable[Year 1],0,BX$29-1-$F$11-$C$8),ProfilesTable[Sub-Metric],Table16[[#This Row],[Asset life category lookup table]],ProfilesTable[Metric],"Capex",ProfilesTable[Option ID],$C$19:$C$28) *IF(Table16[[#This Row],[Inc OB]],1+_xlfn.ANCHORARRAY($M$19),1)),0) +IF(AND($F$12<BX$29-$C$8,$F$13>=$G$29-$C$8),SUM(SUMIFS(OFFSET(ProfilesTable[Year 1],0,BX$29-1-$F$12-$C$8),ProfilesTable[Sub-Metric],Table16[[#This Row],[Asset life category lookup table]],ProfilesTable[Metric],"Capex",ProfilesTable[Option ID],$D$19:$D$28) *IF(Table16[[#This Row],[Inc OB]],1+_xlfn.ANCHORARRAY($N$19),1)),0) +SUM(SUMIFS(OFFSET(ProfilesTable[Year 1],0,BX$29-1-$C$8),ProfilesTable[Sub-Metric],Table16[[#This Row],[Asset life category lookup table]],ProfilesTable[Metric],"Capex",ProfilesTable[Option ID],$E$19:$E$28) *IF(Table16[[#This Row],[Inc OB]],1+_xlfn.ANCHORARRAY($O$19),1))) -> 0 | BY31: =IF(BY$29<=$C$8,0, IF($E$11>=BY$29-$C$8,SUM(SUMIFS(OFFSET(ProfilesTable[Year 1],0,BY$29-1-$C$8),ProfilesTable[Sub-Metric],Table16[[#This Row],[Asset life category lookup table]],ProfilesTable[Metric],"Capex",ProfilesTable[Option ID],$B$19:$B$28) *IF(Table16[[#This Row],[Inc OB]],1+_xlfn.ANCHORARRAY($L$19),1)),0) +IF(AND($F$11<BY$29-$C$8,$F$12>=$G$29-$C$8),SUM(SUMIFS(OFFSET(ProfilesTable[Year 1],0,BY$29-1-$F$11-$C$8),ProfilesTable[Sub-Metric],Table16[[#This Row],[Asset life category lookup table]],ProfilesTable[Metric],"Capex",ProfilesTable[Option ID],$C$19:$C$28) *IF(Table16[[#This Row],[Inc OB]],1+_xlfn.ANCHORARRAY($M$19),1)),0) +IF(AND($F$12<BY$29-$C$8,$F$13>=$G$29-$C$8),SUM(SUMIFS(OFFSET(ProfilesTable[Year 1],0,BY$29-1-$F$12-$C$8),ProfilesTable[Sub-Metric],Table16[[#This Row],[Asset life category lookup table]],ProfilesTable[Metric],"Capex",ProfilesTable[Option ID],$D$19:$D$28) *IF(Table16[[#This Row],[Inc OB]],1+_xlfn.ANCHORARRAY($N$19),1)),0) +SUM(SUMIFS(OFFSET(ProfilesTable[Year 1],0,BY$29-1-$C$8),ProfilesTable[Sub-Metric],Table16[[#This Row],[Asset life category lookup table]],ProfilesTable[Metric],"Capex",ProfilesTable[Option ID],$E$19:$E$28) *IF(Table16[[#This Row],[Inc OB]],1+_xlfn.ANCHORARRAY($O$19),1))) -> 0 | BZ31: =IF(BZ$29<=$C$8,0, IF($E$11>=BZ$29-$C$8,SUM(SUMIFS(OFFSET(ProfilesTable[Year 1],0,BZ$29-1-$C$8),ProfilesTable[Sub-Metric],Table16[[#This Row],[Asset life category lookup table]],ProfilesTable[Metric],"Capex",ProfilesTable[Option ID],$B$19:$B$28) *IF(Table16[[#This Row],[Inc OB]],1+_xlfn.ANCHORARRAY($L$19),1)),0) +IF(AND($F$11<BZ$29-$C$8,$F$12>=$G$29-$C$8),SUM(SUMIFS(OFFSET(ProfilesTable[Year 1],0,BZ$29-1-$F$11-$C$8),ProfilesTable[Sub-Metric],Table16[[#This Row],[Asset life category lookup table]],ProfilesTable[Metric],"Capex",ProfilesTable[Option ID],$C$19:$C$28) *IF(Table16[[#This Row],[Inc OB]],1+_xlfn.ANCHORARRAY($M$19),1)),0) +IF(AND($F$12<BZ$29-$C$8,$F$13>=$G$29-$C$8),SUM(SUMIFS(OFFSET(ProfilesTable[Year 1],0,BZ$29-1-$F$12-$C$8),ProfilesTable[Sub-Metric],Table16[[#This Row],[Asset life category lookup table]],ProfilesTable[Metric],"Capex",ProfilesTable[Option ID],$D$19:$D$28) *IF(Table16[[#This Row],[Inc OB]],1+_xlfn.ANCHORARRAY($N$19),1)),0) +SUM(SUMIFS(OFFSET(ProfilesTable[Year 1],0,BZ$29-1-$C$8),ProfilesTable[Sub-Metric],Table16[[#This Row],[Asset life category lookup table]],ProfilesTable[Metric],"Capex",ProfilesTable[Option ID],$E$19:$E$28) *IF(Table16[[#This Row],[Inc OB]],1+_xlfn.ANCHORARRAY($O$19),1))) -> 0 | CA31: =IF(CA$29<=$C$8,0, IF($E$11>=CA$29-$C$8,SUM(SUMIFS(OFFSET(ProfilesTable[Year 1],0,CA$29-1-$C$8),ProfilesTable[Sub-Metric],Table16[[#This Row],[Asset life category lookup table]],ProfilesTable[Metric],"Capex",ProfilesTable[Option ID],$B$19:$B$28) *IF(Table16[[#This Row],[Inc OB]],1+_xlfn.ANCHORARRAY($L$19),1)),0) +IF(AND($F$11<CA$29-$C$8,$F$12>=$G$29-$C$8),SUM(SUMIFS(OFFSET(ProfilesTable[Year 1],0,CA$29-1-$F$11-$C$8),ProfilesTable[Sub-Metric],Table16[[#This Row],[Asset life category lookup table]],ProfilesTable[Metric],"Capex",ProfilesTable[Option ID],$C$19:$C$28) *IF(Table16[[#This Row],[Inc OB]],1+_xlfn.ANCHORARRAY($M$19),1)),0) +IF(AND($F$12<CA$29-$C$8,$F$13>=$G$29-$C$8),SUM(SUMIFS(OFFSET(ProfilesTable[Year 1],0,CA$29-1-$F$12-$C$8),ProfilesTable[Sub-Metric],Table16[[#This Row],[Asset life category lookup table]],ProfilesTable[Metric],"Capex",ProfilesTable[Option ID],$D$19:$D$28) *IF(Table16[[#This Row],[Inc OB]],1+_xlfn.ANCHORARRAY($N$19),1)),0) +SUM(SUMIFS(OFFSET(ProfilesTable[Year 1],0,CA$29-1-$C$8),ProfilesTable[Sub-Metric],Table16[[#This Row],[Asset life category lookup table]],ProfilesTable[Metric],"Capex",ProfilesTable[Option ID],$E$19:$E$28) *IF(Table16[[#This Row],[Inc OB]],1+_xlfn.ANCHORARRAY($O$19),1))) -> 0 | CB31: =IF(CB$29<=$C$8,0, IF($E$11>=CB$29-$C$8,SUM(SUMIFS(OFFSET(ProfilesTable[Year 1],0,CB$29-1-$C$8),ProfilesTable[Sub-Metric],Table16[[#This Row],[Asset life category lookup table]],ProfilesTable[Metric],"Capex",ProfilesTable[Option ID],$B$19:$B$28) *IF(Table16[[#This Row],[Inc OB]],1+_xlfn.ANCHORARRAY($L$19),1)),0) +IF(AND($F$11<CB$29-$C$8,$F$12>=$G$29-$C$8),SUM(SUMIFS(OFFSET(ProfilesTable[Year 1],0,CB$29-1-$F$11-$C$8),ProfilesTable[Sub-Metric],Table16[[#This Row],[Asset life category lookup table]],ProfilesTable[Metric],"Capex",ProfilesTable[Option ID],$C$19:$C$28) *IF(Table16[[#This Row],[Inc OB]],1+_xlfn.ANCHORARRAY($M$19),1)),0) +IF(AND($F$12<CB$29-$C$8,$F$13>=$G$29-$C$8),SUM(SUMIFS(OFFSET(ProfilesTable[Year 1],0,CB$29-1-$F$12-$C$8),ProfilesTable[Sub-Metric],Table16[[#This Row],[Asset life category lookup table]],ProfilesTable[Metric],"Capex",ProfilesTable[Option ID],$D$19:$D$28) *IF(Table16[[#This Row],[Inc OB]],1+_xlfn.ANCHORARRAY($N$19),1)),0) +SUM(SUMIFS(OFFSET(ProfilesTable[Year 1],0,CB$29-1-$C$8),ProfilesTable[Sub-Metric],Table16[[#This Row],[Asset life category lookup table]],ProfilesTable[Metric],"Capex",ProfilesTable[Option ID],$E$19:$E$28) *IF(Table16[[#This Row],[Inc OB]],1+_xlfn.ANCHORARRAY($O$19),1))) -> 0 | CC31: =IF(CC$29<=$C$8,0, IF($E$11>=CC$29-$C$8,SUM(SUMIFS(OFFSET(ProfilesTable[Year 1],0,CC$29-1-$C$8),ProfilesTable[Sub-Metric],Table16[[#This Row],[Asset life category lookup table]],ProfilesTable[Metric],"Capex",ProfilesTable[Option ID],$B$19:$B$28) *IF(Table16[[#This Row],[Inc OB]],1+_xlfn.ANCHORARRAY($L$19),1)),0) +IF(AND($F$11<CC$29-$C$8,$F$12>=$G$29-$C$8),SUM(SUMIFS(OFFSET(ProfilesTable[Year 1],0,CC$29-1-$F$11-$C$8),ProfilesTable[Sub-Metric],Table16[[#This Row],[Asset life category lookup table]],ProfilesTable[Metric],"Capex",ProfilesTable[Option ID],$C$19:$C$28) *IF(Table16[[#This Row],[Inc OB]],1+_xlfn.ANCHORARRAY($M$19),1)),0) +IF(AND($F$12<CC$29-$C$8,$F$13>=$G$29-$C$8),SUM(SUMIFS(OFFSET(ProfilesTable[Year 1],0,CC$29-1-$F$12-$C$8),ProfilesTable[Sub-Metric],Table16[[#This Row],[Asset life category lookup table]],ProfilesTable[Metric],"Capex",ProfilesTable[Option ID],$D$19:$D$28) *IF(Table16[[#This Row],[Inc OB]],1+_xlfn.ANCHORARRAY($N$19),1)),0) +SUM(SUMIFS(OFFSET(ProfilesTable[Year 1],0,CC$29-1-$C$8),ProfilesTable[Sub-Metric],Table16[[#This Row],[Asset life category lookup table]],ProfilesTable[Metric],"Capex",ProfilesTable[Option ID],$E$19:$E$28) *IF(Table16[[#This Row],[Inc OB]],1+_xlfn.ANCHORARRAY($O$19),1))) -> 0 | CD31: =IF(CD$29<=$C$8,0, IF($E$11>=CD$29-$C$8,SUM(SUMIFS(OFFSET(ProfilesTable[Year 1],0,CD$29-1-$C$8),ProfilesTable[Sub-Metric],Table16[[#This Row],[Asset life category lookup table]],ProfilesTable[Metric],"Capex",ProfilesTable[Option ID],$B$19:$B$28) *IF(Table16[[#This Row],[Inc OB]],1+_xlfn.ANCHORARRAY($L$19),1)),0) +IF(AND($F$11<CD$29-$C$8,$F$12>=$G$29-$C$8),SUM(SUMIFS(OFFSET(ProfilesTable[Year 1],0,CD$29-1-$F$11-$C$8),ProfilesTable[Sub-Metric],Table16[[#This Row],[Asset life category lookup table]],ProfilesTable[Metric],"Capex",ProfilesTable[Option ID],$C$19:$C$28) *IF(Table16[[#This Row],[Inc OB]],1+_xlfn.ANCHORARRAY($M$19),1)),0) +IF(AND($F$12<CD$29-$C$8,$F$13>=$G$29-$C$8),SUM(SUMIFS(OFFSET(ProfilesTable[Year 1],0,CD$29-1-$F$12-$C$8),ProfilesTable[Sub-Metric],Table16[[#This Row],[Asset life category lookup table]],ProfilesTable[Metric],"Capex",ProfilesTable[Option ID],$D$19:$D$28) *IF(Table16[[#This Row],[Inc OB]],1+_xlfn.ANCHORARRAY($N$19),1)),0) +SUM(SUMIFS(OFFSET(ProfilesTable[Year 1],0,CD$29-1-$C$8),ProfilesTable[Sub-Metric],Table16[[#This Row],[Asset life category lookup table]],ProfilesTable[Metric],"Capex",ProfilesTable[Option ID],$E$19:$E$28) *IF(Table16[[#This Row],[Inc OB]],1+_xlfn.ANCHORARRAY($O$19),1))) -> 0 | CE31: =IF(CE$29<=$C$8,0, IF($E$11>=CE$29-$C$8,SUM(SUMIFS(OFFSET(ProfilesTable[Year 1],0,CE$29-1-$C$8),ProfilesTable[Sub-Metric],Table16[[#This Row],[Asset life category lookup table]],ProfilesTable[Metric],"Capex",ProfilesTable[Option ID],$B$19:$B$28) *IF(Table16[[#This Row],[Inc OB]],1+_xlfn.ANCHORARRAY($L$19),1)),0) +IF(AND($F$11<CE$29-$C$8,$F$12>=$G$29-$C$8),SUM(SUMIFS(OFFSET(ProfilesTable[Year 1],0,CE$29-1-$F$11-$C$8),ProfilesTable[Sub-Metric],Table16[[#This Row],[Asset life category lookup table]],ProfilesTable[Metric],"Capex",ProfilesTable[Option ID],$C$19:$C$28) *IF(Table16[[#This Row],[Inc OB]],1+_xlfn.ANCHORARRAY($M$19),1)),0) +IF(AND($F$12<CE$29-$C$8,$F$13>=$G$29-$C$8),SUM(SUMIFS(OFFSET(ProfilesTable[Year 1],0,CE$29-1-$F$12-$C$8),ProfilesTable[Sub-Metric],Table16[[#This Row],[Asset life category lookup table]],ProfilesTable[Metric],"Capex",ProfilesTable[Option ID],$D$19:$D$28) *IF(Table16[[#This Row],[Inc OB]],1+_xlfn.ANCHORARRAY($N$19),1)),0) +SUM(SUMIFS(OFFSET(ProfilesTable[Year 1],0,CE$29-1-$C$8),ProfilesTable[Sub-Metric],Table16[[#This Row],[Asset life category lookup table]],ProfilesTable[Metric],"Capex",ProfilesTable[Option ID],$E$19:$E$28) *IF(Table16[[#This Row],[Inc OB]],1+_xlfn.ANCHORARRAY($O$19),1))) -> 0 | CF31: =IF(CF$29<=$C$8,0, IF($E$11>=CF$29-$C$8,SUM(SUMIFS(OFFSET(ProfilesTable[Year 1],0,CF$29-1-$C$8),ProfilesTable[Sub-Metric],Table16[[#This Row],[Asset life category lookup table]],ProfilesTable[Metric],"Capex",ProfilesTable[Option ID],$B$19:$B$28) *IF(Table16[[#This Row],[Inc OB]],1+_xlfn.ANCHORARRAY($L$19),1)),0) +IF(AND($F$11<CF$29-$C$8,$F$12>=$G$29-$C$8),SUM(SUMIFS(OFFSET(ProfilesTable[Year 1],0,CF$29-1-$F$11-$C$8),ProfilesTable[Sub-Metric],Table16[[#This Row],[Asset life category lookup table]],ProfilesTable[Metric],"Capex",ProfilesTable[Option ID],$C$19:$C$28) *IF(Table16[[#This Row],[Inc OB]],1+_xlfn.ANCHORARRAY($M$19),1)),0) +IF(AND($F$12<CF$29-$C$8,$F$13>=$G$29-$C$8),SUM(SUMIFS(OFFSET(ProfilesTable[Year 1],0,CF$29-1-$F$12-$C$8),ProfilesTable[Sub-Metric],Table16[[#This Row],[Asset life category lookup table]],ProfilesTable[Metric],"Capex",ProfilesTable[Option ID],$D$19:$D$28) *IF(Table16[[#This Row],[Inc OB]],1+_xlfn.ANCHORARRAY($N$19),1)),0) +SUM(SUMIFS(OFFSET(ProfilesTable[Year 1],0,CF$29-1-$C$8),ProfilesTable[Sub-Metric],Table16[[#This Row],[Asset life category lookup table]],ProfilesTable[Metric],"Capex",ProfilesTable[Option ID],$E$19:$E$28) *IF(Table16[[#This Row],[Inc OB]],1+_xlfn.ANCHORARRAY($O$19),1))) -> 0 | CG31: =IF(CG$29<=$C$8,0, IF($E$11>=CG$29-$C$8,SUM(SUMIFS(OFFSET(ProfilesTable[Year 1],0,CG$29-1-$C$8),ProfilesTable[Sub-Metric],Table16[[#This Row],[Asset life category lookup table]],ProfilesTable[Metric],"Capex",ProfilesTable[Option ID],$B$19:$B$28) *IF(Table16[[#This Row],[Inc OB]],1+_xlfn.ANCHORARRAY($L$19),1)),0) +IF(AND($F$11<CG$29-$C$8,$F$12>=$G$29-$C$8),SUM(SUMIFS(OFFSET(ProfilesTable[Year 1],0,CG$29-1-$F$11-$C$8),ProfilesTable[Sub-Metric],Table16[[#This Row],[Asset life category lookup table]],ProfilesTable[Metric],"Capex",ProfilesTable[Option ID],$C$19:$C$28) *IF(Table16[[#This Row],[Inc OB]],1+_xlfn.ANCHORARRAY($M$19),1)),0) +IF(AND($F$12<CG$29-$C$8,$F$13>=$G$29-$C$8),SUM(SUMIFS(OFFSET(ProfilesTable[Year 1],0,CG$29-1-$F$12-$C$8),ProfilesTable[Sub-Metric],Table16[[#This Row],[Asset life category lookup table]],ProfilesTable[Metric],"Capex",ProfilesTable[Option ID],$D$19:$D$28) *IF(Table16[[#This Row],[Inc OB]],1+_xlfn.ANCHORARRAY($N$19),1)),0) +SUM(SUMIFS(OFFSET(ProfilesTable[Year 1],0,CG$29-1-$C$8),ProfilesTable[Sub-Metric],Table16[[#This Row],[Asset life category lookup table]],ProfilesTable[Metric],"Capex",ProfilesTable[Option ID],$E$19:$E$28) *IF(Table16[[#This Row],[Inc OB]],1+_xlfn.ANCHORARRAY($O$19),1))) -> 0 | CH31: =IF(CH$29<=$C$8,0, IF($E$11>=CH$29-$C$8,SUM(SUMIFS(OFFSET(ProfilesTable[Year 1],0,CH$29-1-$C$8),ProfilesTable[Sub-Metric],Table16[[#This Row],[Asset life category lookup table]],ProfilesTable[Metric],"Capex",ProfilesTable[Option ID],$B$19:$B$28) *IF(Table16[[#This Row],[Inc OB]],1+_xlfn.ANCHORARRAY($L$19),1)),0) +IF(AND($F$11<CH$29-$C$8,$F$12>=$G$29-$C$8),SUM(SUMIFS(OFFSET(ProfilesTable[Year 1],0,CH$29-1-$F$11-$C$8),ProfilesTable[Sub-Metric],Table16[[#This Row],[Asset life category lookup table]],ProfilesTable[Metric],"Capex",ProfilesTable[Option ID],$C$19:$C$28) *IF(Table16[[#This Row],[Inc OB]],1+_xlfn.ANCHORARRAY($M$19),1)),0) +IF(AND($F$12<CH$29-$C$8,$F$13>=$G$29-$C$8),SUM(SUMIFS(OFFSET(ProfilesTable[Year 1],0,CH$29-1-$F$12-$C$8),ProfilesTable[Sub-Metric],Table16[[#This Row],[Asset life category lookup table]],ProfilesTable[Metric],"Capex",ProfilesTable[Option ID],$D$19:$D$28) *IF(Table16[[#This Row],[Inc OB]],1+_xlfn.ANCHORARRAY($N$19),1)),0) +SUM(SUMIFS(OFFSET(ProfilesTable[Year 1],0,CH$29-1-$C$8),ProfilesTable[Sub-Metric],Table16[[#This Row],[Asset life category lookup table]],ProfilesTable[Metric],"Capex",ProfilesTable[Option ID],$E$19:$E$28) *IF(Table16[[#This Row],[Inc OB]],1+_xlfn.ANCHORARRAY($O$19),1))) -> 0
B32: Planning and Development (Non depreciating) | C32: ND | D32: TRUE | F32: =SUM(Table16[[#This Row],[Year 1]:[Year 80]]) -> 487166399.5 | G32: =IF(G$29<=$C$8,0, IF($E$11>=G$29-$C$8,SUM(SUMIFS(OFFSET(ProfilesTable[Year 1],0,G$29-1-$C$8),ProfilesTable[Sub-Metric],Table16[[#This Row],[Asset life category lookup table]],ProfilesTable[Metric],"Capex",ProfilesTable[Option ID],$B$19:$B$28) *IF(Table16[[#This Row],[Inc OB]],1+_xlfn.ANCHORARRAY($L$19),1)),0) +IF(AND($F$11<G$29-$C$8,$F$12>=$G$29-$C$8),SUM(SUMIFS(OFFSET(ProfilesTable[Year 1],0,G$29-1-$F$11-$C$8),ProfilesTable[Sub-Metric],Table16[[#This Row],[Asset life category lookup table]],ProfilesTable[Metric],"Capex",ProfilesTable[Option ID],$C$19:$C$28) *IF(Table16[[#This Row],[Inc OB]],1+_xlfn.ANCHORARRAY($M$19),1)),0) +IF(AND($F$12<G$29-$C$8,$F$13>=$G$29-$C$8),SUM(SUMIFS(OFFSET(ProfilesTable[Year 1],0,G$29-1-$F$12-$C$8),ProfilesTable[Sub-Metric],Table16[[#This Row],[Asset life category lookup table]],ProfilesTable[Metric],"Capex",ProfilesTable[Option ID],$D$19:$D$28) *IF(Table16[[#This Row],[Inc OB]],1+_xlfn.ANCHORARRAY($N$19),1)),0) +SUM(SUMIFS(OFFSET(ProfilesTable[Year 1],0,G$29-1-$C$8),ProfilesTable[Sub-Metric],Table16[[#This Row],[Asset life category lookup table]],ProfilesTable[Metric],"Capex",ProfilesTable[Option ID],$E$19:$E$28) *IF(Table16[[#This Row],[Inc OB]],1+_xlfn.ANCHORARRAY($O$19),1))) -> 121791599.9 | H32: =IF(H$29<=$C$8,0, IF($E$11>=H$29-$C$8,SUM(SUMIFS(OFFSET(ProfilesTable[Year 1],0,H$29-1-$C$8),ProfilesTable[Sub-Metric],Table16[[#This Row],[Asset life category lookup table]],ProfilesTable[Metric],"Capex",ProfilesTable[Option ID],$B$19:$B$28) *IF(Table16[[#This Row],[Inc OB]],1+_xlfn.ANCHORARRAY($L$19),1)),0) +IF(AND($F$11<H$29-$C$8,$F$12>=$G$29-$C$8),SUM(SUMIFS(OFFSET(ProfilesTable[Year 1],0,H$29-1-$F$11-$C$8),ProfilesTable[Sub-Metric],Table16[[#This Row],[Asset life category lookup table]],ProfilesTable[Metric],"Capex",ProfilesTable[Option ID],$C$19:$C$28) *IF(Table16[[#This Row],[Inc OB]],1+_xlfn.ANCHORARRAY($M$19),1)),0) +IF(AND($F$12<H$29-$C$8,$F$13>=$G$29-$C$8),SUM(SUMIFS(OFFSET(ProfilesTable[Year 1],0,H$29-1-$F$12-$C$8),ProfilesTable[Sub-Metric],Table16[[#This Row],[Asset life category lookup table]],ProfilesTable[Metric],"Capex",ProfilesTable[Option ID],$D$19:$D$28) *IF(Table16[[#This Row],[Inc OB]],1+_xlfn.ANCHORARRAY($N$19),1)),0) +SUM(SUMIFS(OFFSET(ProfilesTable[Year 1],0,H$29-1-$C$8),ProfilesTable[Sub-Metric],Table16[[#This Row],[Asset life category lookup table]],ProfilesTable[Metric],"Capex",ProfilesTable[Option ID],$E$19:$E$28) *IF(Table16[[#This Row],[Inc OB]],1+_xlfn.ANCHORARRAY($O$19),1))) -> 121791599.9 | I32: =IF(I$29<=$C$8,0, IF($E$11>=I$29-$C$8,SUM(SUMIFS(OFFSET(ProfilesTable[Year 1],0,I$29-1-$C$8),ProfilesTable[Sub-Metric],Table16[[#This Row],[Asset life category lookup table]],ProfilesTable[Metric],"Capex",ProfilesTable[Option ID],$B$19:$B$28) *IF(Table16[[#This Row],[Inc OB]],1+_xlfn.ANCHORARRAY($L$19),1)),0) +IF(AND($F$11<I$29-$C$8,$F$12>=$G$29-$C$8),SUM(SUMIFS(OFFSET(ProfilesTable[Year 1],0,I$29-1-$F$11-$C$8),ProfilesTable[Sub-Metric],Table16[[#This Row],[Asset life category lookup table]],ProfilesTable[Metric],"Capex",ProfilesTable[Option ID],$C$19:$C$28) *IF(Table16[[#This Row],[Inc OB]],1+_xlfn.ANCHORARRAY($M$19),1)),0) +IF(AND($F$12<I$29-$C$8,$F$13>=$G$29-$C$8),SUM(SUMIFS(OFFSET(ProfilesTable[Year 1],0,I$29-1-$F$12-$C$8),ProfilesTable[Sub-Metric],Table16[[#This Row],[Asset life category lookup table]],ProfilesTable[Metric],"Capex",ProfilesTable[Option ID],$D$19:$D$28) *IF(Table16[[#This Row],[Inc OB]],1+_xlfn.ANCHORARRAY($N$19),1)),0) +SUM(SUMIFS(OFFSET(ProfilesTable[Year 1],0,I$29-1-$C$8),ProfilesTable[Sub-Metric],Table16[[#This Row],[Asset life category lookup table]],ProfilesTable[Metric],"Capex",ProfilesTable[Option ID],$E$19:$E$28) *IF(Table16[[#This Row],[Inc OB]],1+_xlfn.ANCHORARRAY($O$19),1))) -> 121791599.9 | J32: =IF(J$29<=$C$8,0, IF($E$11>=J$29-$C$8,SUM(SUMIFS(OFFSET(ProfilesTable[Year 1],0,J$29-1-$C$8),ProfilesTable[Sub-Metric],Table16[[#This Row],[Asset life category lookup table]],ProfilesTable[Metric],"Capex",ProfilesTable[Option ID],$B$19:$B$28) *IF(Table16[[#This Row],[Inc OB]],1+_xlfn.ANCHORARRAY($L$19),1)),0) +IF(AND($F$11<J$29-$C$8,$F$12>=$G$29-$C$8),SUM(SUMIFS(OFFSET(ProfilesTable[Year 1],0,J$29-1-$F$11-$C$8),ProfilesTable[Sub-Metric],Table16[[#This Row],[Asset life category lookup table]],ProfilesTable[Metric],"Capex",ProfilesTable[Option ID],$C$19:$C$28) *IF(Table16[[#This Row],[Inc OB]],1+_xlfn.ANCHORARRAY($M$19),1)),0) +IF(AND($F$12<J$29-$C$8,$F$13>=$G$29-$C$8),SUM(SUMIFS(OFFSET(ProfilesTable[Year 1],0,J$29-1-$F$12-$C$8),ProfilesTable[Sub-Metric],Table16[[#This Row],[Asset life category lookup table]],ProfilesTable[Metric],"Capex",ProfilesTable[Option ID],$D$19:$D$28) *IF(Table16[[#This Row],[Inc OB]],1+_xlfn.ANCHORARRAY($N$19),1)),0) +SUM(SUMIFS(OFFSET(ProfilesTable[Year 1],0,J$29-1-$C$8),ProfilesTable[Sub-Metric],Table16[[#This Row],[Asset life category lookup table]],ProfilesTable[Metric],"Capex",ProfilesTable[Option ID],$E$19:$E$28) *IF(Table16[[#This Row],[Inc OB]],1+_xlfn.ANCHORARRAY($O$19),1))) -> 121791599.9 | K32: =IF(K$29<=$C$8,0, IF($E$11>=K$29-$C$8,SUM(SUMIFS(OFFSET(ProfilesTable[Year 1],0,K$29-1-$C$8),ProfilesTable[Sub-Metric],Table16[[#This Row],[Asset life category lookup table]],ProfilesTable[Metric],"Capex",ProfilesTable[Option ID],$B$19:$B$28) *IF(Table16[[#This Row],[Inc OB]],1+_xlfn.ANCHORARRAY($L$19),1)),0) +IF(AND($F$11<K$29-$C$8,$F$12>=$G$29-$C$8),SUM(SUMIFS(OFFSET(ProfilesTable[Year 1],0,K$29-1-$F$11-$C$8),ProfilesTable[Sub-Metric],Table16[[#This Row],[Asset life category lookup table]],ProfilesTable[Metric],"Capex",ProfilesTable[Option ID],$C$19:$C$28) *IF(Table16[[#This Row],[Inc OB]],1+_xlfn.ANCHORARRAY($M$19),1)),0) +IF(AND($F$12<K$29-$C$8,$F$13>=$G$29-$C$8),SUM(SUMIFS(OFFSET(ProfilesTable[Year 1],0,K$29-1-$F$12-$C$8),ProfilesTable[Sub-Metric],Table16[[#This Row],[Asset life category lookup table]],ProfilesTable[Metric],"Capex",ProfilesTable[Option ID],$D$19:$D$28) *IF(Table16[[#This Row],[Inc OB]],1+_xlfn.ANCHORARRAY($N$19),1)),0) +SUM(SUMIFS(OFFSET(ProfilesTable[Year 1],0,K$29-1-$C$8),ProfilesTable[Sub-Metric],Table16[[#This Row],[Asset life category lookup table]],ProfilesTable[Metric],"Capex",ProfilesTable[Option ID],$E$19:$E$28) *IF(Table16[[#This Row],[Inc OB]],1+_xlfn.ANCHORARRAY($O$19),1))) -> 0 | L32: =IF(L$29<=$C$8,0, IF($E$11>=L$29-$C$8,SUM(SUMIFS(OFFSET(ProfilesTable[Year 1],0,L$29-1-$C$8),ProfilesTable[Sub-Metric],Table16[[#This Row],[Asset life category lookup table]],ProfilesTable[Metric],"Capex",ProfilesTable[Option ID],$B$19:$B$28) *IF(Table16[[#This Row],[Inc OB]],1+_xlfn.ANCHORARRAY($L$19),1)),0) +IF(AND($F$11<L$29-$C$8,$F$12>=$G$29-$C$8),SUM(SUMIFS(OFFSET(ProfilesTable[Year 1],0,L$29-1-$F$11-$C$8),ProfilesTable[Sub-Metric],Table16[[#This Row],[Asset life category lookup table]],ProfilesTable[Metric],"Capex",ProfilesTable[Option ID],$C$19:$C$28) *IF(Table16[[#This Row],[Inc OB]],1+_xlfn.ANCHORARRAY($M$19),1)),0) +IF(AND($F$12<L$29-$C$8,$F$13>=$G$29-$C$8),SUM(SUMIFS(OFFSET(ProfilesTable[Year 1],0,L$29-1-$F$12-$C$8),ProfilesTable[Sub-Metric],Table16[[#This Row],[Asset life category lookup table]],ProfilesTable[Metric],"Capex",ProfilesTable[Option ID],$D$19:$D$28) *IF(Table16[[#This Row],[Inc OB]],1+_xlfn.ANCHORARRAY($N$19),1)),0) +SUM(SUMIFS(OFFSET(ProfilesTable[Year 1],0,L$29-1-$C$8),ProfilesTable[Sub-Metric],Table16[[#This Row],[Asset life category lookup table]],ProfilesTable[Metric],"Capex",ProfilesTable[Option ID],$E$19:$E$28) *IF(Table16[[#This Row],[Inc OB]],1+_xlfn.ANCHORARRAY($O$19),1))) -> 0 | M32: =IF(M$29<=$C$8,0, IF($E$11>=M$29-$C$8,SUM(SUMIFS(OFFSET(ProfilesTable[Year 1],0,M$29-1-$C$8),ProfilesTable[Sub-Metric],Table16[[#This Row],[Asset life category lookup table]],ProfilesTable[Metric],"Capex",ProfilesTable[Option ID],$B$19:$B$28) *IF(Table16[[#This Row],[Inc OB]],1+_xlfn.ANCHORARRAY($L$19),1)),0) +IF(AND($F$11<M$29-$C$8,$F$12>=$G$29-$C$8),SUM(SUMIFS(OFFSET(ProfilesTable[Year 1],0,M$29-1-$F$11-$C$8),ProfilesTable[Sub-Metric],Table16[[#This Row],[Asset life category lookup table]],ProfilesTable[Metric],"Capex",ProfilesTable[Option ID],$C$19:$C$28) *IF(Table16[[#This Row],[Inc OB]],1+_xlfn.ANCHORARRAY($M$19),1)),0) +IF(AND($F$12<M$29-$C$8,$F$13>=$G$29-$C$8),SUM(SUMIFS(OFFSET(ProfilesTable[Year 1],0,M$29-1-$F$12-$C$8),ProfilesTable[Sub-Metric],Table16[[#This Row],[Asset life category lookup table]],ProfilesTable[Metric],"Capex",ProfilesTable[Option ID],$D$19:$D$28) *IF(Table16[[#This Row],[Inc OB]],1+_xlfn.ANCHORARRAY($N$19),1)),0) +SUM(SUMIFS(OFFSET(ProfilesTable[Year 1],0,M$29-1-$C$8),ProfilesTable[Sub-Metric],Table16[[#This Row],[Asset life category lookup table]],ProfilesTable[Metric],"Capex",ProfilesTable[Option ID],$E$19:$E$28) *IF(Table16[[#This Row],[Inc OB]],1+_xlfn.ANCHORARRAY($O$19),1))) -> 0 | N32: =IF(N$29<=$C$8,0, IF($E$11>=N$29-$C$8,SUM(SUMIFS(OFFSET(ProfilesTable[Year 1],0,N$29-1-$C$8),ProfilesTable[Sub-Metric],Table16[[#This Row],[Asset life category lookup table]],ProfilesTable[Metric],"Capex",ProfilesTable[Option ID],$B$19:$B$28) *IF(Table16[[#This Row],[Inc OB]],1+_xlfn.ANCHORARRAY($L$19),1)),0) +IF(AND($F$11<N$29-$C$8,$F$12>=$G$29-$C$8),SUM(SUMIFS(OFFSET(ProfilesTable[Year 1],0,N$29-1-$F$11-$C$8),ProfilesTable[Sub-Metric],Table16[[#This Row],[Asset life category lookup table]],ProfilesTable[Metric],"Capex",ProfilesTable[Option ID],$C$19:$C$28) *IF(Table16[[#This Row],[Inc OB]],1+_xlfn.ANCHORARRAY($M$19),1)),0) +IF(AND($F$12<N$29-$C$8,$F$13>=$G$29-$C$8),SUM(SUMIFS(OFFSET(ProfilesTable[Year 1],0,N$29-1-$F$12-$C$8),ProfilesTable[Sub-Metric],Table16[[#This Row],[Asset life category lookup table]],ProfilesTable[Metric],"Capex",ProfilesTable[Option ID],$D$19:$D$28) *IF(Table16[[#This Row],[Inc OB]],1+_xlfn.ANCHORARRAY($N$19),1)),0) +SUM(SUMIFS(OFFSET(ProfilesTable[Year 1],0,N$29-1-$C$8),ProfilesTable[Sub-Metric],Table16[[#This Row],[Asset life category lookup table]],ProfilesTable[Metric],"Capex",ProfilesTable[Option ID],$E$19:$E$28) *IF(Table16[[#This Row],[Inc OB]],1+_xlfn.ANCHORARRAY($O$19),1))) -> 0 | O32: =IF(O$29<=$C$8,0, IF($E$11>=O$29-$C$8,SUM(SUMIFS(OFFSET(ProfilesTable[Year 1],0,O$29-1-$C$8),ProfilesTable[Sub-Metric],Table16[[#This Row],[Asset life category lookup table]],ProfilesTable[Metric],"Capex",ProfilesTable[Option ID],$B$19:$B$28) *IF(Table16[[#This Row],[Inc OB]],1+_xlfn.ANCHORARRAY($L$19),1)),0) +IF(AND($F$11<O$29-$C$8,$F$12>=$G$29-$C$8),SUM(SUMIFS(OFFSET(ProfilesTable[Year 1],0,O$29-1-$F$11-$C$8),ProfilesTable[Sub-Metric],Table16[[#This Row],[Asset life category lookup table]],ProfilesTable[Metric],"Capex",ProfilesTable[Option ID],$C$19:$C$28) *IF(Table16[[#This Row],[Inc OB]],1+_xlfn.ANCHORARRAY($M$19),1)),0) +IF(AND($F$12<O$29-$C$8,$F$13>=$G$29-$C$8),SUM(SUMIFS(OFFSET(ProfilesTable[Year 1],0,O$29-1-$F$12-$C$8),ProfilesTable[Sub-Metric],Table16[[#This Row],[Asset life category lookup table]],ProfilesTable[Metric],"Capex",ProfilesTable[Option ID],$D$19:$D$28) *IF(Table16[[#This Row],[Inc OB]],1+_xlfn.ANCHORARRAY($N$19),1)),0) +SUM(SUMIFS(OFFSET(ProfilesTable[Year 1],0,O$29-1-$C$8),ProfilesTable[Sub-Metric],Table16[[#This Row],[Asset life category lookup table]],ProfilesTable[Metric],"Capex",ProfilesTable[Option ID],$E$19:$E$28) *IF(Table16[[#This Row],[Inc OB]],1+_xlfn.ANCHORARRAY($O$19),1))) -> 0 | P32: =IF(P$29<=$C$8,0, IF($E$11>=P$29-$C$8,SUM(SUMIFS(OFFSET(ProfilesTable[Year 1],0,P$29-1-$C$8),ProfilesTable[Sub-Metric],Table16[[#This Row],[Asset life category lookup table]],ProfilesTable[Metric],"Capex",ProfilesTable[Option ID],$B$19:$B$28) *IF(Table16[[#This Row],[Inc OB]],1+_xlfn.ANCHORARRAY($L$19),1)),0) +IF(AND($F$11<P$29-$C$8,$F$12>=$G$29-$C$8),SUM(SUMIFS(OFFSET(ProfilesTable[Year 1],0,P$29-1-$F$11-$C$8),ProfilesTable[Sub-Metric],Table16[[#This Row],[Asset life category lookup table]],ProfilesTable[Metric],"Capex",ProfilesTable[Option ID],$C$19:$C$28) *IF(Table16[[#This Row],[Inc OB]],1+_xlfn.ANCHORARRAY($M$19),1)),0) +IF(AND($F$12<P$29-$C$8,$F$13>=$G$29-$C$8),SUM(SUMIFS(OFFSET(ProfilesTable[Year 1],0,P$29-1-$F$12-$C$8),ProfilesTable[Sub-Metric],Table16[[#This Row],[Asset life category lookup table]],ProfilesTable[Metric],"Capex",ProfilesTable[Option ID],$D$19:$D$28) *IF(Table16[[#This Row],[Inc OB]],1+_xlfn.ANCHORARRAY($N$19),1)),0) +SUM(SUMIFS(OFFSET(ProfilesTable[Year 1],0,P$29-1-$C$8),ProfilesTable[Sub-Metric],Table16[[#This Row],[Asset life category lookup table]],ProfilesTable[Metric],"Capex",ProfilesTable[Option ID],$E$19:$E$28) *IF(Table16[[#This Row],[Inc OB]],1+_xlfn.ANCHORARRAY($O$19),1))) -> 0 | Q32: =IF(Q$29<=$C$8,0, IF($E$11>=Q$29-$C$8,SUM(SUMIFS(OFFSET(ProfilesTable[Year 1],0,Q$29-1-$C$8),ProfilesTable[Sub-Metric],Table16[[#This Row],[Asset life category lookup table]],ProfilesTable[Metric],"Capex",ProfilesTable[Option ID],$B$19:$B$28) *IF(Table16[[#This Row],[Inc OB]],1+_xlfn.ANCHORARRAY($L$19),1)),0) +IF(AND($F$11<Q$29-$C$8,$F$12>=$G$29-$C$8),SUM(SUMIFS(OFFSET(ProfilesTable[Year 1],0,Q$29-1-$F$11-$C$8),ProfilesTable[Sub-Metric],Table16[[#This Row],[Asset life category lookup table]],ProfilesTable[Metric],"Capex",ProfilesTable[Option ID],$C$19:$C$28) *IF(Table16[[#This Row],[Inc OB]],1+_xlfn.ANCHORARRAY($M$19),1)),0) +IF(AND($F$12<Q$29-$C$8,$F$13>=$G$29-$C$8),SUM(SUMIFS(OFFSET(ProfilesTable[Year 1],0,Q$29-1-$F$12-$C$8),ProfilesTable[Sub-Metric],Table16[[#This Row],[Asset life category lookup table]],ProfilesTable[Metric],"Capex",ProfilesTable[Option ID],$D$19:$D$28) *IF(Table16[[#This Row],[Inc OB]],1+_xlfn.ANCHORARRAY($N$19),1)),0) +SUM(SUMIFS(OFFSET(ProfilesTable[Year 1],0,Q$29-1-$C$8),ProfilesTable[Sub-Metric],Table16[[#This Row],[Asset life category lookup table]],ProfilesTable[Metric],"Capex",ProfilesTable[Option ID],$E$19:$E$28) *IF(Table16[[#This Row],[Inc OB]],1+_xlfn.ANCHORARRAY($O$19),1))) -> 0 | R32: =IF(R$29<=$C$8,0, IF($E$11>=R$29-$C$8,SUM(SUMIFS(OFFSET(ProfilesTable[Year 1],0,R$29-1-$C$8),ProfilesTable[Sub-Metric],Table16[[#This Row],[Asset life category lookup table]],ProfilesTable[Metric],"Capex",ProfilesTable[Option ID],$B$19:$B$28) *IF(Table16[[#This Row],[Inc OB]],1+_xlfn.ANCHORARRAY($L$19),1)),0) +IF(AND($F$11<R$29-$C$8,$F$12>=$G$29-$C$8),SUM(SUMIFS(OFFSET(ProfilesTable[Year 1],0,R$29-1-$F$11-$C$8),ProfilesTable[Sub-Metric],Table16[[#This Row],[Asset life category lookup table]],ProfilesTable[Metric],"Capex",ProfilesTable[Option ID],$C$19:$C$28) *IF(Table16[[#This Row],[Inc OB]],1+_xlfn.ANCHORARRAY($M$19),1)),0) +IF(AND($F$12<R$29-$C$8,$F$13>=$G$29-$C$8),SUM(SUMIFS(OFFSET(ProfilesTable[Year 1],0,R$29-1-$F$12-$C$8),ProfilesTable[Sub-Metric],Table16[[#This Row],[Asset life category lookup table]],ProfilesTable[Metric],"Capex",ProfilesTable[Option ID],$D$19:$D$28) *IF(Table16[[#This Row],[Inc OB]],1+_xlfn.ANCHORARRAY($N$19),1)),0) +SUM(SUMIFS(OFFSET(ProfilesTable[Year 1],0,R$29-1-$C$8),ProfilesTable[Sub-Metric],Table16[[#This Row],[Asset life category lookup table]],ProfilesTable[Metric],"Capex",ProfilesTable[Option ID],$E$19:$E$28) *IF(Table16[[#This Row],[Inc OB]],1+_xlfn.ANCHORARRAY($O$19),1))) -> 0 | S32: =IF(S$29<=$C$8,0, IF($E$11>=S$29-$C$8,SUM(SUMIFS(OFFSET(ProfilesTable[Year 1],0,S$29-1-$C$8),ProfilesTable[Sub-Metric],Table16[[#This Row],[Asset life category lookup table]],ProfilesTable[Metric],"Capex",ProfilesTable[Option ID],$B$19:$B$28) *IF(Table16[[#This Row],[Inc OB]],1+_xlfn.ANCHORARRAY($L$19),1)),0) +IF(AND($F$11<S$29-$C$8,$F$12>=$G$29-$C$8),SUM(SUMIFS(OFFSET(ProfilesTable[Year 1],0,S$29-1-$F$11-$C$8),ProfilesTable[Sub-Metric],Table16[[#This Row],[Asset life category lookup table]],ProfilesTable[Metric],"Capex",ProfilesTable[Option ID],$C$19:$C$28) *IF(Table16[[#This Row],[Inc OB]],1+_xlfn.ANCHORARRAY($M$19),1)),0) +IF(AND($F$12<S$29-$C$8,$F$13>=$G$29-$C$8),SUM(SUMIFS(OFFSET(ProfilesTable[Year 1],0,S$29-1-$F$12-$C$8),ProfilesTable[Sub-Metric],Table16[[#This Row],[Asset life category lookup table]],ProfilesTable[Metric],"Capex",ProfilesTable[Option ID],$D$19:$D$28) *IF(Table16[[#This Row],[Inc OB]],1+_xlfn.ANCHORARRAY($N$19),1)),0) +SUM(SUMIFS(OFFSET(ProfilesTable[Year 1],0,S$29-1-$C$8),ProfilesTable[Sub-Metric],Table16[[#This Row],[Asset life category lookup table]],ProfilesTable[Metric],"Capex",ProfilesTable[Option ID],$E$19:$E$28) *IF(Table16[[#This Row],[Inc OB]],1+_xlfn.ANCHORARRAY($O$19),1))) -> 0 | T32: =IF(T$29<=$C$8,0, IF($E$11>=T$29-$C$8,SUM(SUMIFS(OFFSET(ProfilesTable[Year 1],0,T$29-1-$C$8),ProfilesTable[Sub-Metric],Table16[[#This Row],[Asset life category lookup table]],ProfilesTable[Metric],"Capex",ProfilesTable[Option ID],$B$19:$B$28) *IF(Table16[[#This Row],[Inc OB]],1+_xlfn.ANCHORARRAY($L$19),1)),0) +IF(AND($F$11<T$29-$C$8,$F$12>=$G$29-$C$8),SUM(SUMIFS(OFFSET(ProfilesTable[Year 1],0,T$29-1-$F$11-$C$8),ProfilesTable[Sub-Metric],Table16[[#This Row],[Asset life category lookup table]],ProfilesTable[Metric],"Capex",ProfilesTable[Option ID],$C$19:$C$28) *IF(Table16[[#This Row],[Inc OB]],1+_xlfn.ANCHORARRAY($M$19),1)),0) +IF(AND($F$12<T$29-$C$8,$F$13>=$G$29-$C$8),SUM(SUMIFS(OFFSET(ProfilesTable[Year 1],0,T$29-1-$F$12-$C$8),ProfilesTable[Sub-Metric],Table16[[#This Row],[Asset life category lookup table]],ProfilesTable[Metric],"Capex",ProfilesTable[Option ID],$D$19:$D$28) *IF(Table16[[#This Row],[Inc OB]],1+_xlfn.ANCHORARRAY($N$19),1)),0) +SUM(SUMIFS(OFFSET(ProfilesTable[Year 1],0,T$29-1-$C$8),ProfilesTable[Sub-Metric],Table16[[#This Row],[Asset life category lookup table]],ProfilesTable[Metric],"Capex",ProfilesTable[Option ID],$E$19:$E$28) *IF(Table16[[#This Row],[Inc OB]],1+_xlfn.ANCHORARRAY($O$19),1))) -> 0 | U32: =IF(U$29<=$C$8,0, IF($E$11>=U$29-$C$8,SUM(SUMIFS(OFFSET(ProfilesTable[Year 1],0,U$29-1-$C$8),ProfilesTable[Sub-Metric],Table16[[#This Row],[Asset life category lookup table]],ProfilesTable[Metric],"Capex",ProfilesTable[Option ID],$B$19:$B$28) *IF(Table16[[#This Row],[Inc OB]],1+_xlfn.ANCHORARRAY($L$19),1)),0) +IF(AND($F$11<U$29-$C$8,$F$12>=$G$29-$C$8),SUM(SUMIFS(OFFSET(ProfilesTable[Year 1],0,U$29-1-$F$11-$C$8),ProfilesTable[Sub-Metric],Table16[[#This Row],[Asset life category lookup table]],ProfilesTable[Metric],"Capex",ProfilesTable[Option ID],$C$19:$C$28) *IF(Table16[[#This Row],[Inc OB]],1+_xlfn.ANCHORARRAY($M$19),1)),0) +IF(AND($F$12<U$29-$C$8,$F$13>=$G$29-$C$8),SUM(SUMIFS(OFFSET(ProfilesTable[Year 1],0,U$29-1-$F$12-$C$8),ProfilesTable[Sub-Metric],Table16[[#This Row],[Asset life category lookup table]],ProfilesTable[Metric],"Capex",ProfilesTable[Option ID],$D$19:$D$28) *IF(Table16[[#This Row],[Inc OB]],1+_xlfn.ANCHORARRAY($N$19),1)),0) +SUM(SUMIFS(OFFSET(ProfilesTable[Year 1],0,U$29-1-$C$8),ProfilesTable[Sub-Metric],Table16[[#This Row],[Asset life category lookup table]],ProfilesTable[Metric],"Capex",ProfilesTable[Option ID],$E$19:$E$28) *IF(Table16[[#This Row],[Inc OB]],1+_xlfn.ANCHORARRAY($O$19),1))) -> 0 | V32: =IF(V$29<=$C$8,0, IF($E$11>=V$29-$C$8,SUM(SUMIFS(OFFSET(ProfilesTable[Year 1],0,V$29-1-$C$8),ProfilesTable[Sub-Metric],Table16[[#This Row],[Asset life category lookup table]],ProfilesTable[Metric],"Capex",ProfilesTable[Option ID],$B$19:$B$28) *IF(Table16[[#This Row],[Inc OB]],1+_xlfn.ANCHORARRAY($L$19),1)),0) +IF(AND($F$11<V$29-$C$8,$F$12>=$G$29-$C$8),SUM(SUMIFS(OFFSET(ProfilesTable[Year 1],0,V$29-1-$F$11-$C$8),ProfilesTable[Sub-Metric],Table16[[#This Row],[Asset life category lookup table]],ProfilesTable[Metric],"Capex",ProfilesTable[Option ID],$C$19:$C$28) *IF(Table16[[#This Row],[Inc OB]],1+_xlfn.ANCHORARRAY($M$19),1)),0) +IF(AND($F$12<V$29-$C$8,$F$13>=$G$29-$C$8),SUM(SUMIFS(OFFSET(ProfilesTable[Year 1],0,V$29-1-$F$12-$C$8),ProfilesTable[Sub-Metric],Table16[[#This Row],[Asset life category lookup table]],ProfilesTable[Metric],"Capex",ProfilesTable[Option ID],$D$19:$D$28) *IF(Table16[[#This Row],[Inc OB]],1+_xlfn.ANCHORARRAY($N$19),1)),0) +SUM(SUMIFS(OFFSET(ProfilesTable[Year 1],0,V$29-1-$C$8),ProfilesTable[Sub-Metric],Table16[[#This Row],[Asset life category lookup table]],ProfilesTable[Metric],"Capex",ProfilesTable[Option ID],$E$19:$E$28) *IF(Table16[[#This Row],[Inc OB]],1+_xlfn.ANCHORARRAY($O$19),1))) -> 0 | W32: =IF(W$29<=$C$8,0, IF($E$11>=W$29-$C$8,SUM(SUMIFS(OFFSET(ProfilesTable[Year 1],0,W$29-1-$C$8),ProfilesTable[Sub-Metric],Table16[[#This Row],[Asset life category lookup table]],ProfilesTable[Metric],"Capex",ProfilesTable[Option ID],$B$19:$B$28) *IF(Table16[[#This Row],[Inc OB]],1+_xlfn.ANCHORARRAY($L$19),1)),0) +IF(AND($F$11<W$29-$C$8,$F$12>=$G$29-$C$8),SUM(SUMIFS(OFFSET(ProfilesTable[Year 1],0,W$29-1-$F$11-$C$8),ProfilesTable[Sub-Metric],Table16[[#This Row],[Asset life category lookup table]],ProfilesTable[Metric],"Capex",ProfilesTable[Option ID],$C$19:$C$28) *IF(Table16[[#This Row],[Inc OB]],1+_xlfn.ANCHORARRAY($M$19),1)),0) +IF(AND($F$12<W$29-$C$8,$F$13>=$G$29-$C$8),SUM(SUMIFS(OFFSET(ProfilesTable[Year 1],0,W$29-1-$F$12-$C$8),ProfilesTable[Sub-Metric],Table16[[#This Row],[Asset life category lookup table]],ProfilesTable[Metric],"Capex",ProfilesTable[Option ID],$D$19:$D$28) *IF(Table16[[#This Row],[Inc OB]],1+_xlfn.ANCHORARRAY($N$19),1)),0) +SUM(SUMIFS(OFFSET(ProfilesTable[Year 1],0,W$29-1-$C$8),ProfilesTable[Sub-Metric],Table16[[#This Row],[Asset life category lookup table]],ProfilesTable[Metric],"Capex",ProfilesTable[Option ID],$E$19:$E$28) *IF(Table16[[#This Row],[Inc OB]],1+_xlfn.ANCHORARRAY($O$19),1))) -> 0 | X32: =IF(X$29<=$C$8,0, IF($E$11>=X$29-$C$8,SUM(SUMIFS(OFFSET(ProfilesTable[Year 1],0,X$29-1-$C$8),ProfilesTable[Sub-Metric],Table16[[#This Row],[Asset life category lookup table]],ProfilesTable[Metric],"Capex",ProfilesTable[Option ID],$B$19:$B$28) *IF(Table16[[#This Row],[Inc OB]],1+_xlfn.ANCHORARRAY($L$19),1)),0) +IF(AND($F$11<X$29-$C$8,$F$12>=$G$29-$C$8),SUM(SUMIFS(OFFSET(ProfilesTable[Year 1],0,X$29-1-$F$11-$C$8),ProfilesTable[Sub-Metric],Table16[[#This Row],[Asset life category lookup table]],ProfilesTable[Metric],"Capex",ProfilesTable[Option ID],$C$19:$C$28) *IF(Table16[[#This Row],[Inc OB]],1+_xlfn.ANCHORARRAY($M$19),1)),0) +IF(AND($F$12<X$29-$C$8,$F$13>=$G$29-$C$8),SUM(SUMIFS(OFFSET(ProfilesTable[Year 1],0,X$29-1-$F$12-$C$8),ProfilesTable[Sub-Metric],Table16[[#This Row],[Asset life category lookup table]],ProfilesTable[Metric],"Capex",ProfilesTable[Option ID],$D$19:$D$28) *IF(Table16[[#This Row],[Inc OB]],1+_xlfn.ANCHORARRAY($N$19),1)),0) +SUM(SUMIFS(OFFSET(ProfilesTable[Year 1],0,X$29-1-$C$8),ProfilesTable[Sub-Metric],Table16[[#This Row],[Asset life category lookup table]],ProfilesTable[Metric],"Capex",ProfilesTable[Option ID],$E$19:$E$28) *IF(Table16[[#This Row],[Inc OB]],1+_xlfn.ANCHORARRAY($O$19),1))) -> 0 | Y32: =IF(Y$29<=$C$8,0, IF($E$11>=Y$29-$C$8,SUM(SUMIFS(OFFSET(ProfilesTable[Year 1],0,Y$29-1-$C$8),ProfilesTable[Sub-Metric],Table16[[#This Row],[Asset life category lookup table]],ProfilesTable[Metric],"Capex",ProfilesTable[Option ID],$B$19:$B$28) *IF(Table16[[#This Row],[Inc OB]],1+_xlfn.ANCHORARRAY($L$19),1)),0) +IF(AND($F$11<Y$29-$C$8,$F$12>=$G$29-$C$8),SUM(SUMIFS(OFFSET(ProfilesTable[Year 1],0,Y$29-1-$F$11-$C$8),ProfilesTable[Sub-Metric],Table16[[#This Row],[Asset life category lookup table]],ProfilesTable[Metric],"Capex",ProfilesTable[Option ID],$C$19:$C$28) *IF(Table16[[#This Row],[Inc OB]],1+_xlfn.ANCHORARRAY($M$19),1)),0) +IF(AND($F$12<Y$29-$C$8,$F$13>=$G$29-$C$8),SUM(SUMIFS(OFFSET(ProfilesTable[Year 1],0,Y$29-1-$F$12-$C$8),ProfilesTable[Sub-Metric],Table16[[#This Row],[Asset life category lookup table]],ProfilesTable[Metric],"Capex",ProfilesTable[Option ID],$D$19:$D$28) *IF(Table16[[#This Row],[Inc OB]],1+_xlfn.ANCHORARRAY($N$19),1)),0) +SUM(SUMIFS(OFFSET(ProfilesTable[Year 1],0,Y$29-1-$C$8),ProfilesTable[Sub-Metric],Table16[[#This Row],[Asset life category lookup table]],ProfilesTable[Metric],"Capex",ProfilesTable[Option ID],$E$19:$E$28) *IF(Table16[[#This Row],[Inc OB]],1+_xlfn.ANCHORARRAY($O$19),1))) -> 0 | Z32: =IF(Z$29<=$C$8,0, IF($E$11>=Z$29-$C$8,SUM(SUMIFS(OFFSET(ProfilesTable[Year 1],0,Z$29-1-$C$8),ProfilesTable[Sub-Metric],Table16[[#This Row],[Asset life category lookup table]],ProfilesTable[Metric],"Capex",ProfilesTable[Option ID],$B$19:$B$28) *IF(Table16[[#This Row],[Inc OB]],1+_xlfn.ANCHORARRAY($L$19),1)),0) +IF(AND($F$11<Z$29-$C$8,$F$12>=$G$29-$C$8),SUM(SUMIFS(OFFSET(ProfilesTable[Year 1],0,Z$29-1-$F$11-$C$8),ProfilesTable[Sub-Metric],Table16[[#This Row],[Asset life category lookup table]],ProfilesTable[Metric],"Capex",ProfilesTable[Option ID],$C$19:$C$28) *IF(Table16[[#This Row],[Inc OB]],1+_xlfn.ANCHORARRAY($M$19),1)),0) +IF(AND($F$12<Z$29-$C$8,$F$13>=$G$29-$C$8),SUM(SUMIFS(OFFSET(ProfilesTable[Year 1],0,Z$29-1-$F$12-$C$8),ProfilesTable[Sub-Metric],Table16[[#This Row],[Asset life category lookup table]],ProfilesTable[Metric],"Capex",ProfilesTable[Option ID],$D$19:$D$28) *IF(Table16[[#This Row],[Inc OB]],1+_xlfn.ANCHORARRAY($N$19),1)),0) +SUM(SUMIFS(OFFSET(ProfilesTable[Year 1],0,Z$29-1-$C$8),ProfilesTable[Sub-Metric],Table16[[#This Row],[Asset life category lookup table]],ProfilesTable[Metric],"Capex",ProfilesTable[Option ID],$E$19:$E$28) *IF(Table16[[#This Row],[Inc OB]],1+_xlfn.ANCHORARRAY($O$19),1))) -> 0 | AA32: =IF(AA$29<=$C$8,0, IF($E$11>=AA$29-$C$8,SUM(SUMIFS(OFFSET(ProfilesTable[Year 1],0,AA$29-1-$C$8),ProfilesTable[Sub-Metric],Table16[[#This Row],[Asset life category lookup table]],ProfilesTable[Metric],"Capex",ProfilesTable[Option ID],$B$19:$B$28) *IF(Table16[[#This Row],[Inc OB]],1+_xlfn.ANCHORARRAY($L$19),1)),0) +IF(AND($F$11<AA$29-$C$8,$F$12>=$G$29-$C$8),SUM(SUMIFS(OFFSET(ProfilesTable[Year 1],0,AA$29-1-$F$11-$C$8),ProfilesTable[Sub-Metric],Table16[[#This Row],[Asset life category lookup table]],ProfilesTable[Metric],"Capex",ProfilesTable[Option ID],$C$19:$C$28) *IF(Table16[[#This Row],[Inc OB]],1+_xlfn.ANCHORARRAY($M$19),1)),0) +IF(AND($F$12<AA$29-$C$8,$F$13>=$G$29-$C$8),SUM(SUMIFS(OFFSET(ProfilesTable[Year 1],0,AA$29-1-$F$12-$C$8),ProfilesTable[Sub-Metric],Table16[[#This Row],[Asset life category lookup table]],ProfilesTable[Metric],"Capex",ProfilesTable[Option ID],$D$19:$D$28) *IF(Table16[[#This Row],[Inc OB]],1+_xlfn.ANCHORARRAY($N$19),1)),0) +SUM(SUMIFS(OFFSET(ProfilesTable[Year 1],0,AA$29-1-$C$8),ProfilesTable[Sub-Metric],Table16[[#This Row],[Asset life category lookup table]],ProfilesTable[Metric],"Capex",ProfilesTable[Option ID],$E$19:$E$28) *IF(Table16[[#This Row],[Inc OB]],1+_xlfn.ANCHORARRAY($O$19),1))) -> 0 | AB32: =IF(AB$29<=$C$8,0, IF($E$11>=AB$29-$C$8,SUM(SUMIFS(OFFSET(ProfilesTable[Year 1],0,AB$29-1-$C$8),ProfilesTable[Sub-Metric],Table16[[#This Row],[Asset life category lookup table]],ProfilesTable[Metric],"Capex",ProfilesTable[Option ID],$B$19:$B$28) *IF(Table16[[#This Row],[Inc OB]],1+_xlfn.ANCHORARRAY($L$19),1)),0) +IF(AND($F$11<AB$29-$C$8,$F$12>=$G$29-$C$8),SUM(SUMIFS(OFFSET(ProfilesTable[Year 1],0,AB$29-1-$F$11-$C$8),ProfilesTable[Sub-Metric],Table16[[#This Row],[Asset life category lookup table]],ProfilesTable[Metric],"Capex",ProfilesTable[Option ID],$C$19:$C$28) *IF(Table16[[#This Row],[Inc OB]],1+_xlfn.ANCHORARRAY($M$19),1)),0) +IF(AND($F$12<AB$29-$C$8,$F$13>=$G$29-$C$8),SUM(SUMIFS(OFFSET(ProfilesTable[Year 1],0,AB$29-1-$F$12-$C$8),ProfilesTable[Sub-Metric],Table16[[#This Row],[Asset life category lookup table]],ProfilesTable[Metric],"Capex",ProfilesTable[Option ID],$D$19:$D$28) *IF(Table16[[#This Row],[Inc OB]],1+_xlfn.ANCHORARRAY($N$19),1)),0) +SUM(SUMIFS(OFFSET(ProfilesTable[Year 1],0,AB$29-1-$C$8),ProfilesTable[Sub-Metric],Table16[[#This Row],[Asset life category lookup table]],ProfilesTable[Metric],"Capex",ProfilesTable[Option ID],$E$19:$E$28) *IF(Table16[[#This Row],[Inc OB]],1+_xlfn.ANCHORARRAY($O$19),1))) -> 0 | AC32: =IF(AC$29<=$C$8,0, IF($E$11>=AC$29-$C$8,SUM(SUMIFS(OFFSET(ProfilesTable[Year 1],0,AC$29-1-$C$8),ProfilesTable[Sub-Metric],Table16[[#This Row],[Asset life category lookup table]],ProfilesTable[Metric],"Capex",ProfilesTable[Option ID],$B$19:$B$28) *IF(Table16[[#This Row],[Inc OB]],1+_xlfn.ANCHORARRAY($L$19),1)),0) +IF(AND($F$11<AC$29-$C$8,$F$12>=$G$29-$C$8),SUM(SUMIFS(OFFSET(ProfilesTable[Year 1],0,AC$29-1-$F$11-$C$8),ProfilesTable[Sub-Metric],Table16[[#This Row],[Asset life category lookup table]],ProfilesTable[Metric],"Capex",ProfilesTable[Option ID],$C$19:$C$28) *IF(Table16[[#This Row],[Inc OB]],1+_xlfn.ANCHORARRAY($M$19),1)),0) +IF(AND($F$12<AC$29-$C$8,$F$13>=$G$29-$C$8),SUM(SUMIFS(OFFSET(ProfilesTable[Year 1],0,AC$29-1-$F$12-$C$8),ProfilesTable[Sub-Metric],Table16[[#This Row],[Asset life category lookup table]],ProfilesTable[Metric],"Capex",ProfilesTable[Option ID],$D$19:$D$28) *IF(Table16[[#This Row],[Inc OB]],1+_xlfn.ANCHORARRAY($N$19),1)),0) +SUM(SUMIFS(OFFSET(ProfilesTable[Year 1],0,AC$29-1-$C$8),ProfilesTable[Sub-Metric],Table16[[#This Row],[Asset life category lookup table]],ProfilesTable[Metric],"Capex",ProfilesTable[Option ID],$E$19:$E$28) *IF(Table16[[#This Row],[Inc OB]],1+_xlfn.ANCHORARRAY($O$19),1))) -> 0 | AD32: =IF(AD$29<=$C$8,0, IF($E$11>=AD$29-$C$8,SUM(SUMIFS(OFFSET(ProfilesTable[Year 1],0,AD$29-1-$C$8),ProfilesTable[Sub-Metric],Table16[[#This Row],[Asset life category lookup table]],ProfilesTable[Metric],"Capex",ProfilesTable[Option ID],$B$19:$B$28) *IF(Table16[[#This Row],[Inc OB]],1+_xlfn.ANCHORARRAY($L$19),1)),0) +IF(AND($F$11<AD$29-$C$8,$F$12>=$G$29-$C$8),SUM(SUMIFS(OFFSET(ProfilesTable[Year 1],0,AD$29-1-$F$11-$C$8),ProfilesTable[Sub-Metric],Table16[[#This Row],[Asset life category lookup table]],ProfilesTable[Metric],"Capex",ProfilesTable[Option ID],$C$19:$C$28) *IF(Table16[[#This Row],[Inc OB]],1+_xlfn.ANCHORARRAY($M$19),1)),0) +IF(AND($F$12<AD$29-$C$8,$F$13>=$G$29-$C$8),SUM(SUMIFS(OFFSET(ProfilesTable[Year 1],0,AD$29-1-$F$12-$C$8),ProfilesTable[Sub-Metric],Table16[[#This Row],[Asset life category lookup table]],ProfilesTable[Metric],"Capex",ProfilesTable[Option ID],$D$19:$D$28) *IF(Table16[[#This Row],[Inc OB]],1+_xlfn.ANCHORARRAY($N$19),1)),0) +SUM(SUMIFS(OFFSET(ProfilesTable[Year 1],0,AD$29-1-$C$8),ProfilesTable[Sub-Metric],Table16[[#This Row],[Asset life category lookup table]],ProfilesTable[Metric],"Capex",ProfilesTable[Option ID],$E$19:$E$28) *IF(Table16[[#This Row],[Inc OB]],1+_xlfn.ANCHORARRAY($O$19),1))) -> 0 | AE32: =IF(AE$29<=$C$8,0, IF($E$11>=AE$29-$C$8,SUM(SUMIFS(OFFSET(ProfilesTable[Year 1],0,AE$29-1-$C$8),ProfilesTable[Sub-Metric],Table16[[#This Row],[Asset life category lookup table]],ProfilesTable[Metric],"Capex",ProfilesTable[Option ID],$B$19:$B$28) *IF(Table16[[#This Row],[Inc OB]],1+_xlfn.ANCHORARRAY($L$19),1)),0) +IF(AND($F$11<AE$29-$C$8,$F$12>=$G$29-$C$8),SUM(SUMIFS(OFFSET(ProfilesTable[Year 1],0,AE$29-1-$F$11-$C$8),ProfilesTable[Sub-Metric],Table16[[#This Row],[Asset life category lookup table]],ProfilesTable[Metric],"Capex",ProfilesTable[Option ID],$C$19:$C$28) *IF(Table16[[#This Row],[Inc OB]],1+_xlfn.ANCHORARRAY($M$19),1)),0) +IF(AND($F$12<AE$29-$C$8,$F$13>=$G$29-$C$8),SUM(SUMIFS(OFFSET(ProfilesTable[Year 1],0,AE$29-1-$F$12-$C$8),ProfilesTable[Sub-Metric],Table16[[#This Row],[Asset life category lookup table]],ProfilesTable[Metric],"Capex",ProfilesTable[Option ID],$D$19:$D$28) *IF(Table16[[#This Row],[Inc OB]],1+_xlfn.ANCHORARRAY($N$19),1)),0) +SUM(SUMIFS(OFFSET(ProfilesTable[Year 1],0,AE$29-1-$C$8),ProfilesTable[Sub-Metric],Table16[[#This Row],[Asset life category lookup table]],ProfilesTable[Metric],"Capex",ProfilesTable[Option ID],$E$19:$E$28) *IF(Table16[[#This Row],[Inc OB]],1+_xlfn.ANCHORARRAY($O$19),1))) -> 0 | AF32: =IF(AF$29<=$C$8,0, IF($E$11>=AF$29-$C$8,SUM(SUMIFS(OFFSET(ProfilesTable[Year 1],0,AF$29-1-$C$8),ProfilesTable[Sub-Metric],Table16[[#This Row],[Asset life category lookup table]],ProfilesTable[Metric],"Capex",ProfilesTable[Option ID],$B$19:$B$28) *IF(Table16[[#This Row],[Inc OB]],1+_xlfn.ANCHORARRAY($L$19),1)),0) +IF(AND($F$11<AF$29-$C$8,$F$12>=$G$29-$C$8),SUM(SUMIFS(OFFSET(ProfilesTable[Year 1],0,AF$29-1-$F$11-$C$8),ProfilesTable[Sub-Metric],Table16[[#This Row],[Asset life category lookup table]],ProfilesTable[Metric],"Capex",ProfilesTable[Option ID],$C$19:$C$28) *IF(Table16[[#This Row],[Inc OB]],1+_xlfn.ANCHORARRAY($M$19),1)),0) +IF(AND($F$12<AF$29-$C$8,$F$13>=$G$29-$C$8),SUM(SUMIFS(OFFSET(ProfilesTable[Year 1],0,AF$29-1-$F$12-$C$8),ProfilesTable[Sub-Metric],Table16[[#This Row],[Asset life category lookup table]],ProfilesTable[Metric],"Capex",ProfilesTable[Option ID],$D$19:$D$28) *IF(Table16[[#This Row],[Inc OB]],1+_xlfn.ANCHORARRAY($N$19),1)),0) +SUM(SUMIFS(OFFSET(ProfilesTable[Year 1],0,AF$29-1-$C$8),ProfilesTable[Sub-Metric],Table16[[#This Row],[Asset life category lookup table]],ProfilesTable[Metric],"Capex",ProfilesTable[Option ID],$E$19:$E$28) *IF(Table16[[#This Row],[Inc OB]],1+_xlfn.ANCHORARRAY($O$19),1))) -> 0 | AG32: =IF(AG$29<=$C$8,0, IF($E$11>=AG$29-$C$8,SUM(SUMIFS(OFFSET(ProfilesTable[Year 1],0,AG$29-1-$C$8),ProfilesTable[Sub-Metric],Table16[[#This Row],[Asset life category lookup table]],ProfilesTable[Metric],"Capex",ProfilesTable[Option ID],$B$19:$B$28) *IF(Table16[[#This Row],[Inc OB]],1+_xlfn.ANCHORARRAY($L$19),1)),0) +IF(AND($F$11<AG$29-$C$8,$F$12>=$G$29-$C$8),SUM(SUMIFS(OFFSET(ProfilesTable[Year 1],0,AG$29-1-$F$11-$C$8),ProfilesTable[Sub-Metric],Table16[[#This Row],[Asset life category lookup table]],ProfilesTable[Metric],"Capex",ProfilesTable[Option ID],$C$19:$C$28) *IF(Table16[[#This Row],[Inc OB]],1+_xlfn.ANCHORARRAY($M$19),1)),0) +IF(AND($F$12<AG$29-$C$8,$F$13>=$G$29-$C$8),SUM(SUMIFS(OFFSET(ProfilesTable[Year 1],0,AG$29-1-$F$12-$C$8),ProfilesTable[Sub-Metric],Table16[[#This Row],[Asset life category lookup table]],ProfilesTable[Metric],"Capex",ProfilesTable[Option ID],$D$19:$D$28) *IF(Table16[[#This Row],[Inc OB]],1+_xlfn.ANCHORARRAY($N$19),1)),0) +SUM(SUMIFS(OFFSET(ProfilesTable[Year 1],0,AG$29-1-$C$8),ProfilesTable[Sub-Metric],Table16[[#This Row],[Asset life category lookup table]],ProfilesTable[Metric],"Capex",ProfilesTable[Option ID],$E$19:$E$28) *IF(Table16[[#This Row],[Inc OB]],1+_xlfn.ANCHORARRAY($O$19),1))) -> 0 | AH32: =IF(AH$29<=$C$8,0, IF($E$11>=AH$29-$C$8,SUM(SUMIFS(OFFSET(ProfilesTable[Year 1],0,AH$29-1-$C$8),ProfilesTable[Sub-Metric],Table16[[#This Row],[Asset life category lookup table]],ProfilesTable[Metric],"Capex",ProfilesTable[Option ID],$B$19:$B$28) *IF(Table16[[#This Row],[Inc OB]],1+_xlfn.ANCHORARRAY($L$19),1)),0) +IF(AND($F$11<AH$29-$C$8,$F$12>=$G$29-$C$8),SUM(SUMIFS(OFFSET(ProfilesTable[Year 1],0,AH$29-1-$F$11-$C$8),ProfilesTable[Sub-Metric],Table16[[#This Row],[Asset life category lookup table]],ProfilesTable[Metric],"Capex",ProfilesTable[Option ID],$C$19:$C$28) *IF(Table16[[#This Row],[Inc OB]],1+_xlfn.ANCHORARRAY($M$19),1)),0) +IF(AND($F$12<AH$29-$C$8,$F$13>=$G$29-$C$8),SUM(SUMIFS(OFFSET(ProfilesTable[Year 1],0,AH$29-1-$F$12-$C$8),ProfilesTable[Sub-Metric],Table16[[#This Row],[Asset life category lookup table]],ProfilesTable[Metric],"Capex",ProfilesTable[Option ID],$D$19:$D$28) *IF(Table16[[#This Row],[Inc OB]],1+_xlfn.ANCHORARRAY($N$19),1)),0) +SUM(SUMIFS(OFFSET(ProfilesTable[Year 1],0,AH$29-1-$C$8),ProfilesTable[Sub-Metric],Table16[[#This Row],[Asset life category lookup table]],ProfilesTable[Metric],"Capex",ProfilesTable[Option ID],$E$19:$E$28) *IF(Table16[[#This Row],[Inc OB]],1+_xlfn.ANCHORARRAY($O$19),1))) -> 0 | AI32: =IF(AI$29<=$C$8,0, IF($E$11>=AI$29-$C$8,SUM(SUMIFS(OFFSET(ProfilesTable[Year 1],0,AI$29-1-$C$8),ProfilesTable[Sub-Metric],Table16[[#This Row],[Asset life category lookup table]],ProfilesTable[Metric],"Capex",ProfilesTable[Option ID],$B$19:$B$28) *IF(Table16[[#This Row],[Inc OB]],1+_xlfn.ANCHORARRAY($L$19),1)),0) +IF(AND($F$11<AI$29-$C$8,$F$12>=$G$29-$C$8),SUM(SUMIFS(OFFSET(ProfilesTable[Year 1],0,AI$29-1-$F$11-$C$8),ProfilesTable[Sub-Metric],Table16[[#This Row],[Asset life category lookup table]],ProfilesTable[Metric],"Capex",ProfilesTable[Option ID],$C$19:$C$28) *IF(Table16[[#This Row],[Inc OB]],1+_xlfn.ANCHORARRAY($M$19),1)),0) +IF(AND($F$12<AI$29-$C$8,$F$13>=$G$29-$C$8),SUM(SUMIFS(OFFSET(ProfilesTable[Year 1],0,AI$29-1-$F$12-$C$8),ProfilesTable[Sub-Metric],Table16[[#This Row],[Asset life category lookup table]],ProfilesTable[Metric],"Capex",ProfilesTable[Option ID],$D$19:$D$28) *IF(Table16[[#This Row],[Inc OB]],1+_xlfn.ANCHORARRAY($N$19),1)),0) +SUM(SUMIFS(OFFSET(ProfilesTable[Year 1],0,AI$29-1-$C$8),ProfilesTable[Sub-Metric],Table16[[#This Row],[Asset life category lookup table]],ProfilesTable[Metric],"Capex",ProfilesTable[Option ID],$E$19:$E$28) *IF(Table16[[#This Row],[Inc OB]],1+_xlfn.ANCHORARRAY($O$19),1))) -> 0 | AJ32: =IF(AJ$29<=$C$8,0, IF($E$11>=AJ$29-$C$8,SUM(SUMIFS(OFFSET(ProfilesTable[Year 1],0,AJ$29-1-$C$8),ProfilesTable[Sub-Metric],Table16[[#This Row],[Asset life category lookup table]],ProfilesTable[Metric],"Capex",ProfilesTable[Option ID],$B$19:$B$28) *IF(Table16[[#This Row],[Inc OB]],1+_xlfn.ANCHORARRAY($L$19),1)),0) +IF(AND($F$11<AJ$29-$C$8,$F$12>=$G$29-$C$8),SUM(SUMIFS(OFFSET(ProfilesTable[Year 1],0,AJ$29-1-$F$11-$C$8),ProfilesTable[Sub-Metric],Table16[[#This Row],[Asset life category lookup table]],ProfilesTable[Metric],"Capex",ProfilesTable[Option ID],$C$19:$C$28) *IF(Table16[[#This Row],[Inc OB]],1+_xlfn.ANCHORARRAY($M$19),1)),0) +IF(AND($F$12<AJ$29-$C$8,$F$13>=$G$29-$C$8),SUM(SUMIFS(OFFSET(ProfilesTable[Year 1],0,AJ$29-1-$F$12-$C$8),ProfilesTable[Sub-Metric],Table16[[#This Row],[Asset life category lookup table]],ProfilesTable[Metric],"Capex",ProfilesTable[Option ID],$D$19:$D$28) *IF(Table16[[#This Row],[Inc OB]],1+_xlfn.ANCHORARRAY($N$19),1)),0) +SUM(SUMIFS(OFFSET(ProfilesTable[Year 1],0,AJ$29-1-$C$8),ProfilesTable[Sub-Metric],Table16[[#This Row],[Asset life category lookup table]],ProfilesTable[Metric],"Capex",ProfilesTable[Option ID],$E$19:$E$28) *IF(Table16[[#This Row],[Inc OB]],1+_xlfn.ANCHORARRAY($O$19),1))) -> 0 | AK32: =IF(AK$29<=$C$8,0, IF($E$11>=AK$29-$C$8,SUM(SUMIFS(OFFSET(ProfilesTable[Year 1],0,AK$29-1-$C$8),ProfilesTable[Sub-Metric],Table16[[#This Row],[Asset life category lookup table]],ProfilesTable[Metric],"Capex",ProfilesTable[Option ID],$B$19:$B$28) *IF(Table16[[#This Row],[Inc OB]],1+_xlfn.ANCHORARRAY($L$19),1)),0) +IF(AND($F$11<AK$29-$C$8,$F$12>=$G$29-$C$8),SUM(SUMIFS(OFFSET(ProfilesTable[Year 1],0,AK$29-1-$F$11-$C$8),ProfilesTable[Sub-Metric],Table16[[#This Row],[Asset life category lookup table]],ProfilesTable[Metric],"Capex",ProfilesTable[Option ID],$C$19:$C$28) *IF(Table16[[#This Row],[Inc OB]],1+_xlfn.ANCHORARRAY($M$19),1)),0) +IF(AND($F$12<AK$29-$C$8,$F$13>=$G$29-$C$8),SUM(SUMIFS(OFFSET(ProfilesTable[Year 1],0,AK$29-1-$F$12-$C$8),ProfilesTable[Sub-Metric],Table16[[#This Row],[Asset life category lookup table]],ProfilesTable[Metric],"Capex",ProfilesTable[Option ID],$D$19:$D$28) *IF(Table16[[#This Row],[Inc OB]],1+_xlfn.ANCHORARRAY($N$19),1)),0) +SUM(SUMIFS(OFFSET(ProfilesTable[Year 1],0,AK$29-1-$C$8),ProfilesTable[Sub-Metric],Table16[[#This Row],[Asset life category lookup table]],ProfilesTable[Metric],"Capex",ProfilesTable[Option ID],$E$19:$E$28) *IF(Table16[[#This Row],[Inc OB]],1+_xlfn.ANCHORARRAY($O$19),1))) -> 0 | AL32: =IF(AL$29<=$C$8,0, IF($E$11>=AL$29-$C$8,SUM(SUMIFS(OFFSET(ProfilesTable[Year 1],0,AL$29-1-$C$8),ProfilesTable[Sub-Metric],Table16[[#This Row],[Asset life category lookup table]],ProfilesTable[Metric],"Capex",ProfilesTable[Option ID],$B$19:$B$28) *IF(Table16[[#This Row],[Inc OB]],1+_xlfn.ANCHORARRAY($L$19),1)),0) +IF(AND($F$11<AL$29-$C$8,$F$12>=$G$29-$C$8),SUM(SUMIFS(OFFSET(ProfilesTable[Year 1],0,AL$29-1-$F$11-$C$8),ProfilesTable[Sub-Metric],Table16[[#This Row],[Asset life category lookup table]],ProfilesTable[Metric],"Capex",ProfilesTable[Option ID],$C$19:$C$28) *IF(Table16[[#This Row],[Inc OB]],1+_xlfn.ANCHORARRAY($M$19),1)),0) +IF(AND($F$12<AL$29-$C$8,$F$13>=$G$29-$C$8),SUM(SUMIFS(OFFSET(ProfilesTable[Year 1],0,AL$29-1-$F$12-$C$8),ProfilesTable[Sub-Metric],Table16[[#This Row],[Asset life category lookup table]],ProfilesTable[Metric],"Capex",ProfilesTable[Option ID],$D$19:$D$28) *IF(Table16[[#This Row],[Inc OB]],1+_xlfn.ANCHORARRAY($N$19),1)),0) +SUM(SUMIFS(OFFSET(ProfilesTable[Year 1],0,AL$29-1-$C$8),ProfilesTable[Sub-Metric],Table16[[#This Row],[Asset life category lookup table]],ProfilesTable[Metric],"Capex",ProfilesTable[Option ID],$E$19:$E$28) *IF(Table16[[#This Row],[Inc OB]],1+_xlfn.ANCHORARRAY($O$19),1))) -> 0 | AM32: =IF(AM$29<=$C$8,0, IF($E$11>=AM$29-$C$8,SUM(SUMIFS(OFFSET(ProfilesTable[Year 1],0,AM$29-1-$C$8),ProfilesTable[Sub-Metric],Table16[[#This Row],[Asset life category lookup table]],ProfilesTable[Metric],"Capex",ProfilesTable[Option ID],$B$19:$B$28) *IF(Table16[[#This Row],[Inc OB]],1+_xlfn.ANCHORARRAY($L$19),1)),0) +IF(AND($F$11<AM$29-$C$8,$F$12>=$G$29-$C$8),SUM(SUMIFS(OFFSET(ProfilesTable[Year 1],0,AM$29-1-$F$11-$C$8),ProfilesTable[Sub-Metric],Table16[[#This Row],[Asset life category lookup table]],ProfilesTable[Metric],"Capex",ProfilesTable[Option ID],$C$19:$C$28) *IF(Table16[[#This Row],[Inc OB]],1+_xlfn.ANCHORARRAY($M$19),1)),0) +IF(AND($F$12<AM$29-$C$8,$F$13>=$G$29-$C$8),SUM(SUMIFS(OFFSET(ProfilesTable[Year 1],0,AM$29-1-$F$12-$C$8),ProfilesTable[Sub-Metric],Table16[[#This Row],[Asset life category lookup table]],ProfilesTable[Metric],"Capex",ProfilesTable[Option ID],$D$19:$D$28) *IF(Table16[[#This Row],[Inc OB]],1+_xlfn.ANCHORARRAY($N$19),1)),0) +SUM(SUMIFS(OFFSET(ProfilesTable[Year 1],0,AM$29-1-$C$8),ProfilesTable[Sub-Metric],Table16[[#This Row],[Asset life category lookup table]],ProfilesTable[Metric],"Capex",ProfilesTable[Option ID],$E$19:$E$28) *IF(Table16[[#This Row],[Inc OB]],1+_xlfn.ANCHORARRAY($O$19),1))) -> 0 | AN32: =IF(AN$29<=$C$8,0, IF($E$11>=AN$29-$C$8,SUM(SUMIFS(OFFSET(ProfilesTable[Year 1],0,AN$29-1-$C$8),ProfilesTable[Sub-Metric],Table16[[#This Row],[Asset life category lookup table]],ProfilesTable[Metric],"Capex",ProfilesTable[Option ID],$B$19:$B$28) *IF(Table16[[#This Row],[Inc OB]],1+_xlfn.ANCHORARRAY($L$19),1)),0) +IF(AND($F$11<AN$29-$C$8,$F$12>=$G$29-$C$8),SUM(SUMIFS(OFFSET(ProfilesTable[Year 1],0,AN$29-1-$F$11-$C$8),ProfilesTable[Sub-Metric],Table16[[#This Row],[Asset life category lookup table]],ProfilesTable[Metric],"Capex",ProfilesTable[Option ID],$C$19:$C$28) *IF(Table16[[#This Row],[Inc OB]],1+_xlfn.ANCHORARRAY($M$19),1)),0) +IF(AND($F$12<AN$29-$C$8,$F$13>=$G$29-$C$8),SUM(SUMIFS(OFFSET(ProfilesTable[Year 1],0,AN$29-1-$F$12-$C$8),ProfilesTable[Sub-Metric],Table16[[#This Row],[Asset life category lookup table]],ProfilesTable[Metric],"Capex",ProfilesTable[Option ID],$D$19:$D$28) *IF(Table16[[#This Row],[Inc OB]],1+_xlfn.ANCHORARRAY($N$19),1)),0) +SUM(SUMIFS(OFFSET(ProfilesTable[Year 1],0,AN$29-1-$C$8),ProfilesTable[Sub-Metric],Table16[[#This Row],[Asset life category lookup table]],ProfilesTable[Metric],"Capex",ProfilesTable[Option ID],$E$19:$E$28) *IF(Table16[[#This Row],[Inc OB]],1+_xlfn.ANCHORARRAY($O$19),1))) -> 0 | AO32: =IF(AO$29<=$C$8,0, IF($E$11>=AO$29-$C$8,SUM(SUMIFS(OFFSET(ProfilesTable[Year 1],0,AO$29-1-$C$8),ProfilesTable[Sub-Metric],Table16[[#This Row],[Asset life category lookup table]],ProfilesTable[Metric],"Capex",ProfilesTable[Option ID],$B$19:$B$28) *IF(Table16[[#This Row],[Inc OB]],1+_xlfn.ANCHORARRAY($L$19),1)),0) +IF(AND($F$11<AO$29-$C$8,$F$12>=$G$29-$C$8),SUM(SUMIFS(OFFSET(ProfilesTable[Year 1],0,AO$29-1-$F$11-$C$8),ProfilesTable[Sub-Metric],Table16[[#This Row],[Asset life category lookup table]],ProfilesTable[Metric],"Capex",ProfilesTable[Option ID],$C$19:$C$28) *IF(Table16[[#This Row],[Inc OB]],1+_xlfn.ANCHORARRAY($M$19),1)),0) +IF(AND($F$12<AO$29-$C$8,$F$13>=$G$29-$C$8),SUM(SUMIFS(OFFSET(ProfilesTable[Year 1],0,AO$29-1-$F$12-$C$8),ProfilesTable[Sub-Metric],Table16[[#This Row],[Asset life category lookup table]],ProfilesTable[Metric],"Capex",ProfilesTable[Option ID],$D$19:$D$28) *IF(Table16[[#This Row],[Inc OB]],1+_xlfn.ANCHORARRAY($N$19),1)),0) +SUM(SUMIFS(OFFSET(ProfilesTable[Year 1],0,AO$29-1-$C$8),ProfilesTable[Sub-Metric],Table16[[#This Row],[Asset life category lookup table]],ProfilesTable[Metric],"Capex",ProfilesTable[Option ID],$E$19:$E$28) *IF(Table16[[#This Row],[Inc OB]],1+_xlfn.ANCHORARRAY($O$19),1))) -> 0 | AP32: =IF(AP$29<=$C$8,0, IF($E$11>=AP$29-$C$8,SUM(SUMIFS(OFFSET(ProfilesTable[Year 1],0,AP$29-1-$C$8),ProfilesTable[Sub-Metric],Table16[[#This Row],[Asset life category lookup table]],ProfilesTable[Metric],"Capex",ProfilesTable[Option ID],$B$19:$B$28) *IF(Table16[[#This Row],[Inc OB]],1+_xlfn.ANCHORARRAY($L$19),1)),0) +IF(AND($F$11<AP$29-$C$8,$F$12>=$G$29-$C$8),SUM(SUMIFS(OFFSET(ProfilesTable[Year 1],0,AP$29-1-$F$11-$C$8),ProfilesTable[Sub-Metric],Table16[[#This Row],[Asset life category lookup table]],ProfilesTable[Metric],"Capex",ProfilesTable[Option ID],$C$19:$C$28) *IF(Table16[[#This Row],[Inc OB]],1+_xlfn.ANCHORARRAY($M$19),1)),0) +IF(AND($F$12<AP$29-$C$8,$F$13>=$G$29-$C$8),SUM(SUMIFS(OFFSET(ProfilesTable[Year 1],0,AP$29-1-$F$12-$C$8),ProfilesTable[Sub-Metric],Table16[[#This Row],[Asset life category lookup table]],ProfilesTable[Metric],"Capex",ProfilesTable[Option ID],$D$19:$D$28) *IF(Table16[[#This Row],[Inc OB]],1+_xlfn.ANCHORARRAY($N$19),1)),0) +SUM(SUMIFS(OFFSET(ProfilesTable[Year 1],0,AP$29-1-$C$8),ProfilesTable[Sub-Metric],Table16[[#This Row],[Asset life category lookup table]],ProfilesTable[Metric],"Capex",ProfilesTable[Option ID],$E$19:$E$28) *IF(Table16[[#This Row],[Inc OB]],1+_xlfn.ANCHORARRAY($O$19),1))) -> 0 | AQ32: =IF(AQ$29<=$C$8,0, IF($E$11>=AQ$29-$C$8,SUM(SUMIFS(OFFSET(ProfilesTable[Year 1],0,AQ$29-1-$C$8),ProfilesTable[Sub-Metric],Table16[[#This Row],[Asset life category lookup table]],ProfilesTable[Metric],"Capex",ProfilesTable[Option ID],$B$19:$B$28) *IF(Table16[[#This Row],[Inc OB]],1+_xlfn.ANCHORARRAY($L$19),1)),0) +IF(AND($F$11<AQ$29-$C$8,$F$12>=$G$29-$C$8),SUM(SUMIFS(OFFSET(ProfilesTable[Year 1],0,AQ$29-1-$F$11-$C$8),ProfilesTable[Sub-Metric],Table16[[#This Row],[Asset life category lookup table]],ProfilesTable[Metric],"Capex",ProfilesTable[Option ID],$C$19:$C$28) *IF(Table16[[#This Row],[Inc OB]],1+_xlfn.ANCHORARRAY($M$19),1)),0) +IF(AND($F$12<AQ$29-$C$8,$F$13>=$G$29-$C$8),SUM(SUMIFS(OFFSET(ProfilesTable[Year 1],0,AQ$29-1-$F$12-$C$8),ProfilesTable[Sub-Metric],Table16[[#This Row],[Asset life category lookup table]],ProfilesTable[Metric],"Capex",ProfilesTable[Option ID],$D$19:$D$28) *IF(Table16[[#This Row],[Inc OB]],1+_xlfn.ANCHORARRAY($N$19),1)),0) +SUM(SUMIFS(OFFSET(ProfilesTable[Year 1],0,AQ$29-1-$C$8),ProfilesTable[Sub-Metric],Table16[[#This Row],[Asset life category lookup table]],ProfilesTable[Metric],"Capex",ProfilesTable[Option ID],$E$19:$E$28) *IF(Table16[[#This Row],[Inc OB]],1+_xlfn.ANCHORARRAY($O$19),1))) -> 0 | AR32: =IF(AR$29<=$C$8,0, IF($E$11>=AR$29-$C$8,SUM(SUMIFS(OFFSET(ProfilesTable[Year 1],0,AR$29-1-$C$8),ProfilesTable[Sub-Metric],Table16[[#This Row],[Asset life category lookup table]],ProfilesTable[Metric],"Capex",ProfilesTable[Option ID],$B$19:$B$28) *IF(Table16[[#This Row],[Inc OB]],1+_xlfn.ANCHORARRAY($L$19),1)),0) +IF(AND($F$11<AR$29-$C$8,$F$12>=$G$29-$C$8),SUM(SUMIFS(OFFSET(ProfilesTable[Year 1],0,AR$29-1-$F$11-$C$8),ProfilesTable[Sub-Metric],Table16[[#This Row],[Asset life category lookup table]],ProfilesTable[Metric],"Capex",ProfilesTable[Option ID],$C$19:$C$28) *IF(Table16[[#This Row],[Inc OB]],1+_xlfn.ANCHORARRAY($M$19),1)),0) +IF(AND($F$12<AR$29-$C$8,$F$13>=$G$29-$C$8),SUM(SUMIFS(OFFSET(ProfilesTable[Year 1],0,AR$29-1-$F$12-$C$8),ProfilesTable[Sub-Metric],Table16[[#This Row],[Asset life category lookup table]],ProfilesTable[Metric],"Capex",ProfilesTable[Option ID],$D$19:$D$28) *IF(Table16[[#This Row],[Inc OB]],1+_xlfn.ANCHORARRAY($N$19),1)),0) +SUM(SUMIFS(OFFSET(ProfilesTable[Year 1],0,AR$29-1-$C$8),ProfilesTable[Sub-Metric],Table16[[#This Row],[Asset life category lookup table]],ProfilesTable[Metric],"Capex",ProfilesTable[Option ID],$E$19:$E$28) *IF(Table16[[#This Row],[Inc OB]],1+_xlfn.ANCHORARRAY($O$19),1))) -> 0 | AS32: =IF(AS$29<=$C$8,0, IF($E$11>=AS$29-$C$8,SUM(SUMIFS(OFFSET(ProfilesTable[Year 1],0,AS$29-1-$C$8),ProfilesTable[Sub-Metric],Table16[[#This Row],[Asset life category lookup table]],ProfilesTable[Metric],"Capex",ProfilesTable[Option ID],$B$19:$B$28) *IF(Table16[[#This Row],[Inc OB]],1+_xlfn.ANCHORARRAY($L$19),1)),0) +IF(AND($F$11<AS$29-$C$8,$F$12>=$G$29-$C$8),SUM(SUMIFS(OFFSET(ProfilesTable[Year 1],0,AS$29-1-$F$11-$C$8),ProfilesTable[Sub-Metric],Table16[[#This Row],[Asset life category lookup table]],ProfilesTable[Metric],"Capex",ProfilesTable[Option ID],$C$19:$C$28) *IF(Table16[[#This Row],[Inc OB]],1+_xlfn.ANCHORARRAY($M$19),1)),0) +IF(AND($F$12<AS$29-$C$8,$F$13>=$G$29-$C$8),SUM(SUMIFS(OFFSET(ProfilesTable[Year 1],0,AS$29-1-$F$12-$C$8),ProfilesTable[Sub-Metric],Table16[[#This Row],[Asset life category lookup table]],ProfilesTable[Metric],"Capex",ProfilesTable[Option ID],$D$19:$D$28) *IF(Table16[[#This Row],[Inc OB]],1+_xlfn.ANCHORARRAY($N$19),1)),0) +SUM(SUMIFS(OFFSET(ProfilesTable[Year 1],0,AS$29-1-$C$8),ProfilesTable[Sub-Metric],Table16[[#This Row],[Asset life category lookup table]],ProfilesTable[Metric],"Capex",ProfilesTable[Option ID],$E$19:$E$28) *IF(Table16[[#This Row],[Inc OB]],1+_xlfn.ANCHORARRAY($O$19),1))) -> 0 | AT32: =IF(AT$29<=$C$8,0, IF($E$11>=AT$29-$C$8,SUM(SUMIFS(OFFSET(ProfilesTable[Year 1],0,AT$29-1-$C$8),ProfilesTable[Sub-Metric],Table16[[#This Row],[Asset life category lookup table]],ProfilesTable[Metric],"Capex",ProfilesTable[Option ID],$B$19:$B$28) *IF(Table16[[#This Row],[Inc OB]],1+_xlfn.ANCHORARRAY($L$19),1)),0) +IF(AND($F$11<AT$29-$C$8,$F$12>=$G$29-$C$8),SUM(SUMIFS(OFFSET(ProfilesTable[Year 1],0,AT$29-1-$F$11-$C$8),ProfilesTable[Sub-Metric],Table16[[#This Row],[Asset life category lookup table]],ProfilesTable[Metric],"Capex",ProfilesTable[Option ID],$C$19:$C$28) *IF(Table16[[#This Row],[Inc OB]],1+_xlfn.ANCHORARRAY($M$19),1)),0) +IF(AND($F$12<AT$29-$C$8,$F$13>=$G$29-$C$8),SUM(SUMIFS(OFFSET(ProfilesTable[Year 1],0,AT$29-1-$F$12-$C$8),ProfilesTable[Sub-Metric],Table16[[#This Row],[Asset life category lookup table]],ProfilesTable[Metric],"Capex",ProfilesTable[Option ID],$D$19:$D$28) *IF(Table16[[#This Row],[Inc OB]],1+_xlfn.ANCHORARRAY($N$19),1)),0) +SUM(SUMIFS(OFFSET(ProfilesTable[Year 1],0,AT$29-1-$C$8),ProfilesTable[Sub-Metric],Table16[[#This Row],[Asset life category lookup table]],ProfilesTable[Metric],"Capex",ProfilesTable[Option ID],$E$19:$E$28) *IF(Table16[[#This Row],[Inc OB]],1+_xlfn.ANCHORARRAY($O$19),1))) -> 0 | AU32: =IF(AU$29<=$C$8,0, IF($E$11>=AU$29-$C$8,SUM(SUMIFS(OFFSET(ProfilesTable[Year 1],0,AU$29-1-$C$8),ProfilesTable[Sub-Metric],Table16[[#This Row],[Asset life category lookup table]],ProfilesTable[Metric],"Capex",ProfilesTable[Option ID],$B$19:$B$28) *IF(Table16[[#This Row],[Inc OB]],1+_xlfn.ANCHORARRAY($L$19),1)),0) +IF(AND($F$11<AU$29-$C$8,$F$12>=$G$29-$C$8),SUM(SUMIFS(OFFSET(ProfilesTable[Year 1],0,AU$29-1-$F$11-$C$8),ProfilesTable[Sub-Metric],Table16[[#This Row],[Asset life category lookup table]],ProfilesTable[Metric],"Capex",ProfilesTable[Option ID],$C$19:$C$28) *IF(Table16[[#This Row],[Inc OB]],1+_xlfn.ANCHORARRAY($M$19),1)),0) +IF(AND($F$12<AU$29-$C$8,$F$13>=$G$29-$C$8),SUM(SUMIFS(OFFSET(ProfilesTable[Year 1],0,AU$29-1-$F$12-$C$8),ProfilesTable[Sub-Metric],Table16[[#This Row],[Asset life category lookup table]],ProfilesTable[Metric],"Capex",ProfilesTable[Option ID],$D$19:$D$28) *IF(Table16[[#This Row],[Inc OB]],1+_xlfn.ANCHORARRAY($N$19),1)),0) +SUM(SUMIFS(OFFSET(ProfilesTable[Year 1],0,AU$29-1-$C$8),ProfilesTable[Sub-Metric],Table16[[#This Row],[Asset life category lookup table]],ProfilesTable[Metric],"Capex",ProfilesTable[Option ID],$E$19:$E$28) *IF(Table16[[#This Row],[Inc OB]],1+_xlfn.ANCHORARRAY($O$19),1))) -> 0 | AV32: =IF(AV$29<=$C$8,0, IF($E$11>=AV$29-$C$8,SUM(SUMIFS(OFFSET(ProfilesTable[Year 1],0,AV$29-1-$C$8),ProfilesTable[Sub-Metric],Table16[[#This Row],[Asset life category lookup table]],ProfilesTable[Metric],"Capex",ProfilesTable[Option ID],$B$19:$B$28) *IF(Table16[[#This Row],[Inc OB]],1+_xlfn.ANCHORARRAY($L$19),1)),0) +IF(AND($F$11<AV$29-$C$8,$F$12>=$G$29-$C$8),SUM(SUMIFS(OFFSET(ProfilesTable[Year 1],0,AV$29-1-$F$11-$C$8),ProfilesTable[Sub-Metric],Table16[[#This Row],[Asset life category lookup table]],ProfilesTable[Metric],"Capex",ProfilesTable[Option ID],$C$19:$C$28) *IF(Table16[[#This Row],[Inc OB]],1+_xlfn.ANCHORARRAY($M$19),1)),0) +IF(AND($F$12<AV$29-$C$8,$F$13>=$G$29-$C$8),SUM(SUMIFS(OFFSET(ProfilesTable[Year 1],0,AV$29-1-$F$12-$C$8),ProfilesTable[Sub-Metric],Table16[[#This Row],[Asset life category lookup table]],ProfilesTable[Metric],"Capex",ProfilesTable[Option ID],$D$19:$D$28) *IF(Table16[[#This Row],[Inc OB]],1+_xlfn.ANCHORARRAY($N$19),1)),0) +SUM(SUMIFS(OFFSET(ProfilesTable[Year 1],0,AV$29-1-$C$8),ProfilesTable[Sub-Metric],Table16[[#This Row],[Asset life category lookup table]],ProfilesTable[Metric],"Capex",ProfilesTable[Option ID],$E$19:$E$28) *IF(Table16[[#This Row],[Inc OB]],1+_xlfn.ANCHORARRAY($O$19),1))) -> 0 | AW32: =IF(AW$29<=$C$8,0, IF($E$11>=AW$29-$C$8,SUM(SUMIFS(OFFSET(ProfilesTable[Year 1],0,AW$29-1-$C$8),ProfilesTable[Sub-Metric],Table16[[#This Row],[Asset life category lookup table]],ProfilesTable[Metric],"Capex",ProfilesTable[Option ID],$B$19:$B$28) *IF(Table16[[#This Row],[Inc OB]],1+_xlfn.ANCHORARRAY($L$19),1)),0) +IF(AND($F$11<AW$29-$C$8,$F$12>=$G$29-$C$8),SUM(SUMIFS(OFFSET(ProfilesTable[Year 1],0,AW$29-1-$F$11-$C$8),ProfilesTable[Sub-Metric],Table16[[#This Row],[Asset life category lookup table]],ProfilesTable[Metric],"Capex",ProfilesTable[Option ID],$C$19:$C$28) *IF(Table16[[#This Row],[Inc OB]],1+_xlfn.ANCHORARRAY($M$19),1)),0) +IF(AND($F$12<AW$29-$C$8,$F$13>=$G$29-$C$8),SUM(SUMIFS(OFFSET(ProfilesTable[Year 1],0,AW$29-1-$F$12-$C$8),ProfilesTable[Sub-Metric],Table16[[#This Row],[Asset life category lookup table]],ProfilesTable[Metric],"Capex",ProfilesTable[Option ID],$D$19:$D$28) *IF(Table16[[#This Row],[Inc OB]],1+_xlfn.ANCHORARRAY($N$19),1)),0) +SUM(SUMIFS(OFFSET(ProfilesTable[Year 1],0,AW$29-1-$C$8),ProfilesTable[Sub-Metric],Table16[[#This Row],[Asset life category lookup table]],ProfilesTable[Metric],"Capex",ProfilesTable[Option ID],$E$19:$E$28) *IF(Table16[[#This Row],[Inc OB]],1+_xlfn.ANCHORARRAY($O$19),1))) -> 0 | AX32: =IF(AX$29<=$C$8,0, IF($E$11>=AX$29-$C$8,SUM(SUMIFS(OFFSET(ProfilesTable[Year 1],0,AX$29-1-$C$8),ProfilesTable[Sub-Metric],Table16[[#This Row],[Asset life category lookup table]],ProfilesTable[Metric],"Capex",ProfilesTable[Option ID],$B$19:$B$28) *IF(Table16[[#This Row],[Inc OB]],1+_xlfn.ANCHORARRAY($L$19),1)),0) +IF(AND($F$11<AX$29-$C$8,$F$12>=$G$29-$C$8),SUM(SUMIFS(OFFSET(ProfilesTable[Year 1],0,AX$29-1-$F$11-$C$8),ProfilesTable[Sub-Metric],Table16[[#This Row],[Asset life category lookup table]],ProfilesTable[Metric],"Capex",ProfilesTable[Option ID],$C$19:$C$28) *IF(Table16[[#This Row],[Inc OB]],1+_xlfn.ANCHORARRAY($M$19),1)),0) +IF(AND($F$12<AX$29-$C$8,$F$13>=$G$29-$C$8),SUM(SUMIFS(OFFSET(ProfilesTable[Year 1],0,AX$29-1-$F$12-$C$8),ProfilesTable[Sub-Metric],Table16[[#This Row],[Asset life category lookup table]],ProfilesTable[Metric],"Capex",ProfilesTable[Option ID],$D$19:$D$28) *IF(Table16[[#This Row],[Inc OB]],1+_xlfn.ANCHORARRAY($N$19),1)),0) +SUM(SUMIFS(OFFSET(ProfilesTable[Year 1],0,AX$29-1-$C$8),ProfilesTable[Sub-Metric],Table16[[#This Row],[Asset life category lookup table]],ProfilesTable[Metric],"Capex",ProfilesTable[Option ID],$E$19:$E$28) *IF(Table16[[#This Row],[Inc OB]],1+_xlfn.ANCHORARRAY($O$19),1))) -> 0 | AY32: =IF(AY$29<=$C$8,0, IF($E$11>=AY$29-$C$8,SUM(SUMIFS(OFFSET(ProfilesTable[Year 1],0,AY$29-1-$C$8),ProfilesTable[Sub-Metric],Table16[[#This Row],[Asset life category lookup table]],ProfilesTable[Metric],"Capex",ProfilesTable[Option ID],$B$19:$B$28) *IF(Table16[[#This Row],[Inc OB]],1+_xlfn.ANCHORARRAY($L$19),1)),0) +IF(AND($F$11<AY$29-$C$8,$F$12>=$G$29-$C$8),SUM(SUMIFS(OFFSET(ProfilesTable[Year 1],0,AY$29-1-$F$11-$C$8),ProfilesTable[Sub-Metric],Table16[[#This Row],[Asset life category lookup table]],ProfilesTable[Metric],"Capex",ProfilesTable[Option ID],$C$19:$C$28) *IF(Table16[[#This Row],[Inc OB]],1+_xlfn.ANCHORARRAY($M$19),1)),0) +IF(AND($F$12<AY$29-$C$8,$F$13>=$G$29-$C$8),SUM(SUMIFS(OFFSET(ProfilesTable[Year 1],0,AY$29-1-$F$12-$C$8),ProfilesTable[Sub-Metric],Table16[[#This Row],[Asset life category lookup table]],ProfilesTable[Metric],"Capex",ProfilesTable[Option ID],$D$19:$D$28) *IF(Table16[[#This Row],[Inc OB]],1+_xlfn.ANCHORARRAY($N$19),1)),0) +SUM(SUMIFS(OFFSET(ProfilesTable[Year 1],0,AY$29-1-$C$8),ProfilesTable[Sub-Metric],Table16[[#This Row],[Asset life category lookup table]],ProfilesTable[Metric],"Capex",ProfilesTable[Option ID],$E$19:$E$28) *IF(Table16[[#This Row],[Inc OB]],1+_xlfn.ANCHORARRAY($O$19),1))) -> 0 | AZ32: =IF(AZ$29<=$C$8,0, IF($E$11>=AZ$29-$C$8,SUM(SUMIFS(OFFSET(ProfilesTable[Year 1],0,AZ$29-1-$C$8),ProfilesTable[Sub-Metric],Table16[[#This Row],[Asset life category lookup table]],ProfilesTable[Metric],"Capex",ProfilesTable[Option ID],$B$19:$B$28) *IF(Table16[[#This Row],[Inc OB]],1+_xlfn.ANCHORARRAY($L$19),1)),0) +IF(AND($F$11<AZ$29-$C$8,$F$12>=$G$29-$C$8),SUM(SUMIFS(OFFSET(ProfilesTable[Year 1],0,AZ$29-1-$F$11-$C$8),ProfilesTable[Sub-Metric],Table16[[#This Row],[Asset life category lookup table]],ProfilesTable[Metric],"Capex",ProfilesTable[Option ID],$C$19:$C$28) *IF(Table16[[#This Row],[Inc OB]],1+_xlfn.ANCHORARRAY($M$19),1)),0) +IF(AND($F$12<AZ$29-$C$8,$F$13>=$G$29-$C$8),SUM(SUMIFS(OFFSET(ProfilesTable[Year 1],0,AZ$29-1-$F$12-$C$8),ProfilesTable[Sub-Metric],Table16[[#This Row],[Asset life category lookup table]],ProfilesTable[Metric],"Capex",ProfilesTable[Option ID],$D$19:$D$28) *IF(Table16[[#This Row],[Inc OB]],1+_xlfn.ANCHORARRAY($N$19),1)),0) +SUM(SUMIFS(OFFSET(ProfilesTable[Year 1],0,AZ$29-1-$C$8),ProfilesTable[Sub-Metric],Table16[[#This Row],[Asset life category lookup table]],ProfilesTable[Metric],"Capex",ProfilesTable[Option ID],$E$19:$E$28) *IF(Table16[[#This Row],[Inc OB]],1+_xlfn.ANCHORARRAY($O$19),1))) -> 0 | BA32: =IF(BA$29<=$C$8,0, IF($E$11>=BA$29-$C$8,SUM(SUMIFS(OFFSET(ProfilesTable[Year 1],0,BA$29-1-$C$8),ProfilesTable[Sub-Metric],Table16[[#This Row],[Asset life category lookup table]],ProfilesTable[Metric],"Capex",ProfilesTable[Option ID],$B$19:$B$28) *IF(Table16[[#This Row],[Inc OB]],1+_xlfn.ANCHORARRAY($L$19),1)),0) +IF(AND($F$11<BA$29-$C$8,$F$12>=$G$29-$C$8),SUM(SUMIFS(OFFSET(ProfilesTable[Year 1],0,BA$29-1-$F$11-$C$8),ProfilesTable[Sub-Metric],Table16[[#This Row],[Asset life category lookup table]],ProfilesTable[Metric],"Capex",ProfilesTable[Option ID],$C$19:$C$28) *IF(Table16[[#This Row],[Inc OB]],1+_xlfn.ANCHORARRAY($M$19),1)),0) +IF(AND($F$12<BA$29-$C$8,$F$13>=$G$29-$C$8),SUM(SUMIFS(OFFSET(ProfilesTable[Year 1],0,BA$29-1-$F$12-$C$8),ProfilesTable[Sub-Metric],Table16[[#This Row],[Asset life category lookup table]],ProfilesTable[Metric],"Capex",ProfilesTable[Option ID],$D$19:$D$28) *IF(Table16[[#This Row],[Inc OB]],1+_xlfn.ANCHORARRAY($N$19),1)),0) +SUM(SUMIFS(OFFSET(ProfilesTable[Year 1],0,BA$29-1-$C$8),ProfilesTable[Sub-Metric],Table16[[#This Row],[Asset life category lookup table]],ProfilesTable[Metric],"Capex",ProfilesTable[Option ID],$E$19:$E$28) *IF(Table16[[#This Row],[Inc OB]],1+_xlfn.ANCHORARRAY($O$19),1))) -> 0 | BB32: =IF(BB$29<=$C$8,0, IF($E$11>=BB$29-$C$8,SUM(SUMIFS(OFFSET(ProfilesTable[Year 1],0,BB$29-1-$C$8),ProfilesTable[Sub-Metric],Table16[[#This Row],[Asset life category lookup table]],ProfilesTable[Metric],"Capex",ProfilesTable[Option ID],$B$19:$B$28) *IF(Table16[[#This Row],[Inc OB]],1+_xlfn.ANCHORARRAY($L$19),1)),0) +IF(AND($F$11<BB$29-$C$8,$F$12>=$G$29-$C$8),SUM(SUMIFS(OFFSET(ProfilesTable[Year 1],0,BB$29-1-$F$11-$C$8),ProfilesTable[Sub-Metric],Table16[[#This Row],[Asset life category lookup table]],ProfilesTable[Metric],"Capex",ProfilesTable[Option ID],$C$19:$C$28) *IF(Table16[[#This Row],[Inc OB]],1+_xlfn.ANCHORARRAY($M$19),1)),0) +IF(AND($F$12<BB$29-$C$8,$F$13>=$G$29-$C$8),SUM(SUMIFS(OFFSET(ProfilesTable[Year 1],0,BB$29-1-$F$12-$C$8),ProfilesTable[Sub-Metric],Table16[[#This Row],[Asset life category lookup table]],ProfilesTable[Metric],"Capex",ProfilesTable[Option ID],$D$19:$D$28) *IF(Table16[[#This Row],[Inc OB]],1+_xlfn.ANCHORARRAY($N$19),1)),0) +SUM(SUMIFS(OFFSET(ProfilesTable[Year 1],0,BB$29-1-$C$8),ProfilesTable[Sub-Metric],Table16[[#This Row],[Asset life category lookup table]],ProfilesTable[Metric],"Capex",ProfilesTable[Option ID],$E$19:$E$28) *IF(Table16[[#This Row],[Inc OB]],1+_xlfn.ANCHORARRAY($O$19),1))) -> 0 | BC32: =IF(BC$29<=$C$8,0, IF($E$11>=BC$29-$C$8,SUM(SUMIFS(OFFSET(ProfilesTable[Year 1],0,BC$29-1-$C$8),ProfilesTable[Sub-Metric],Table16[[#This Row],[Asset life category lookup table]],ProfilesTable[Metric],"Capex",ProfilesTable[Option ID],$B$19:$B$28) *IF(Table16[[#This Row],[Inc OB]],1+_xlfn.ANCHORARRAY($L$19),1)),0) +IF(AND($F$11<BC$29-$C$8,$F$12>=$G$29-$C$8),SUM(SUMIFS(OFFSET(ProfilesTable[Year 1],0,BC$29-1-$F$11-$C$8),ProfilesTable[Sub-Metric],Table16[[#This Row],[Asset life category lookup table]],ProfilesTable[Metric],"Capex",ProfilesTable[Option ID],$C$19:$C$28) *IF(Table16[[#This Row],[Inc OB]],1+_xlfn.ANCHORARRAY($M$19),1)),0) +IF(AND($F$12<BC$29-$C$8,$F$13>=$G$29-$C$8),SUM(SUMIFS(OFFSET(ProfilesTable[Year 1],0,BC$29-1-$F$12-$C$8),ProfilesTable[Sub-Metric],Table16[[#This Row],[Asset life category lookup table]],ProfilesTable[Metric],"Capex",ProfilesTable[Option ID],$D$19:$D$28) *IF(Table16[[#This Row],[Inc OB]],1+_xlfn.ANCHORARRAY($N$19),1)),0) +SUM(SUMIFS(OFFSET(ProfilesTable[Year 1],0,BC$29-1-$C$8),ProfilesTable[Sub-Metric],Table16[[#This Row],[Asset life category lookup table]],ProfilesTable[Metric],"Capex",ProfilesTable[Option ID],$E$19:$E$28) *IF(Table16[[#This Row],[Inc OB]],1+_xlfn.ANCHORARRAY($O$19),1))) -> 0 | BD32: =IF(BD$29<=$C$8,0, IF($E$11>=BD$29-$C$8,SUM(SUMIFS(OFFSET(ProfilesTable[Year 1],0,BD$29-1-$C$8),ProfilesTable[Sub-Metric],Table16[[#This Row],[Asset life category lookup table]],ProfilesTable[Metric],"Capex",ProfilesTable[Option ID],$B$19:$B$28) *IF(Table16[[#This Row],[Inc OB]],1+_xlfn.ANCHORARRAY($L$19),1)),0) +IF(AND($F$11<BD$29-$C$8,$F$12>=$G$29-$C$8),SUM(SUMIFS(OFFSET(ProfilesTable[Year 1],0,BD$29-1-$F$11-$C$8),ProfilesTable[Sub-Metric],Table16[[#This Row],[Asset life category lookup table]],ProfilesTable[Metric],"Capex",ProfilesTable[Option ID],$C$19:$C$28) *IF(Table16[[#This Row],[Inc OB]],1+_xlfn.ANCHORARRAY($M$19),1)),0) +IF(AND($F$12<BD$29-$C$8,$F$13>=$G$29-$C$8),SUM(SUMIFS(OFFSET(ProfilesTable[Year 1],0,BD$29-1-$F$12-$C$8),ProfilesTable[Sub-Metric],Table16[[#This Row],[Asset life category lookup table]],ProfilesTable[Metric],"Capex",ProfilesTable[Option ID],$D$19:$D$28) *IF(Table16[[#This Row],[Inc OB]],1+_xlfn.ANCHORARRAY($N$19),1)),0) +SUM(SUMIFS(OFFSET(ProfilesTable[Year 1],0,BD$29-1-$C$8),ProfilesTable[Sub-Metric],Table16[[#This Row],[Asset life category lookup table]],ProfilesTable[Metric],"Capex",ProfilesTable[Option ID],$E$19:$E$28) *IF(Table16[[#This Row],[Inc OB]],1+_xlfn.ANCHORARRAY($O$19),1))) -> 0 | BE32: =IF(BE$29<=$C$8,0, IF($E$11>=BE$29-$C$8,SUM(SUMIFS(OFFSET(ProfilesTable[Year 1],0,BE$29-1-$C$8),ProfilesTable[Sub-Metric],Table16[[#This Row],[Asset life category lookup table]],ProfilesTable[Metric],"Capex",ProfilesTable[Option ID],$B$19:$B$28) *IF(Table16[[#This Row],[Inc OB]],1+_xlfn.ANCHORARRAY($L$19),1)),0) +IF(AND($F$11<BE$29-$C$8,$F$12>=$G$29-$C$8),SUM(SUMIFS(OFFSET(ProfilesTable[Year 1],0,BE$29-1-$F$11-$C$8),ProfilesTable[Sub-Metric],Table16[[#This Row],[Asset life category lookup table]],ProfilesTable[Metric],"Capex",ProfilesTable[Option ID],$C$19:$C$28) *IF(Table16[[#This Row],[Inc OB]],1+_xlfn.ANCHORARRAY($M$19),1)),0) +IF(AND($F$12<BE$29-$C$8,$F$13>=$G$29-$C$8),SUM(SUMIFS(OFFSET(ProfilesTable[Year 1],0,BE$29-1-$F$12-$C$8),ProfilesTable[Sub-Metric],Table16[[#This Row],[Asset life category lookup table]],ProfilesTable[Metric],"Capex",ProfilesTable[Option ID],$D$19:$D$28) *IF(Table16[[#This Row],[Inc OB]],1+_xlfn.ANCHORARRAY($N$19),1)),0) +SUM(SUMIFS(OFFSET(ProfilesTable[Year 1],0,BE$29-1-$C$8),ProfilesTable[Sub-Metric],Table16[[#This Row],[Asset life category lookup table]],ProfilesTable[Metric],"Capex",ProfilesTable[Option ID],$E$19:$E$28) *IF(Table16[[#This Row],[Inc OB]],1+_xlfn.ANCHORARRAY($O$19),1))) -> 0 | BF32: =IF(BF$29<=$C$8,0, IF($E$11>=BF$29-$C$8,SUM(SUMIFS(OFFSET(ProfilesTable[Year 1],0,BF$29-1-$C$8),ProfilesTable[Sub-Metric],Table16[[#This Row],[Asset life category lookup table]],ProfilesTable[Metric],"Capex",ProfilesTable[Option ID],$B$19:$B$28) *IF(Table16[[#This Row],[Inc OB]],1+_xlfn.ANCHORARRAY($L$19),1)),0) +IF(AND($F$11<BF$29-$C$8,$F$12>=$G$29-$C$8),SUM(SUMIFS(OFFSET(ProfilesTable[Year 1],0,BF$29-1-$F$11-$C$8),ProfilesTable[Sub-Metric],Table16[[#This Row],[Asset life category lookup table]],ProfilesTable[Metric],"Capex",ProfilesTable[Option ID],$C$19:$C$28) *IF(Table16[[#This Row],[Inc OB]],1+_xlfn.ANCHORARRAY($M$19),1)),0) +IF(AND($F$12<BF$29-$C$8,$F$13>=$G$29-$C$8),SUM(SUMIFS(OFFSET(ProfilesTable[Year 1],0,BF$29-1-$F$12-$C$8),ProfilesTable[Sub-Metric],Table16[[#This Row],[Asset life category lookup table]],ProfilesTable[Metric],"Capex",ProfilesTable[Option ID],$D$19:$D$28) *IF(Table16[[#This Row],[Inc OB]],1+_xlfn.ANCHORARRAY($N$19),1)),0) +SUM(SUMIFS(OFFSET(ProfilesTable[Year 1],0,BF$29-1-$C$8),ProfilesTable[Sub-Metric],Table16[[#This Row],[Asset life category lookup table]],ProfilesTable[Metric],"Capex",ProfilesTable[Option ID],$E$19:$E$28) *IF(Table16[[#This Row],[Inc OB]],1+_xlfn.ANCHORARRAY($O$19),1))) -> 0 | BG32: =IF(BG$29<=$C$8,0, IF($E$11>=BG$29-$C$8,SUM(SUMIFS(OFFSET(ProfilesTable[Year 1],0,BG$29-1-$C$8),ProfilesTable[Sub-Metric],Table16[[#This Row],[Asset life category lookup table]],ProfilesTable[Metric],"Capex",ProfilesTable[Option ID],$B$19:$B$28) *IF(Table16[[#This Row],[Inc OB]],1+_xlfn.ANCHORARRAY($L$19),1)),0) +IF(AND($F$11<BG$29-$C$8,$F$12>=$G$29-$C$8),SUM(SUMIFS(OFFSET(ProfilesTable[Year 1],0,BG$29-1-$F$11-$C$8),ProfilesTable[Sub-Metric],Table16[[#This Row],[Asset life category lookup table]],ProfilesTable[Metric],"Capex",ProfilesTable[Option ID],$C$19:$C$28) *IF(Table16[[#This Row],[Inc OB]],1+_xlfn.ANCHORARRAY($M$19),1)),0) +IF(AND($F$12<BG$29-$C$8,$F$13>=$G$29-$C$8),SUM(SUMIFS(OFFSET(ProfilesTable[Year 1],0,BG$29-1-$F$12-$C$8),ProfilesTable[Sub-Metric],Table16[[#This Row],[Asset life category lookup table]],ProfilesTable[Metric],"Capex",ProfilesTable[Option ID],$D$19:$D$28) *IF(Table16[[#This Row],[Inc OB]],1+_xlfn.ANCHORARRAY($N$19),1)),0) +SUM(SUMIFS(OFFSET(ProfilesTable[Year 1],0,BG$29-1-$C$8),ProfilesTable[Sub-Metric],Table16[[#This Row],[Asset life category lookup table]],ProfilesTable[Metric],"Capex",ProfilesTable[Option ID],$E$19:$E$28) *IF(Table16[[#This Row],[Inc OB]],1+_xlfn.ANCHORARRAY($O$19),1))) -> 0 | BH32: =IF(BH$29<=$C$8,0, IF($E$11>=BH$29-$C$8,SUM(SUMIFS(OFFSET(ProfilesTable[Year 1],0,BH$29-1-$C$8),ProfilesTable[Sub-Metric],Table16[[#This Row],[Asset life category lookup table]],ProfilesTable[Metric],"Capex",ProfilesTable[Option ID],$B$19:$B$28) *IF(Table16[[#This Row],[Inc OB]],1+_xlfn.ANCHORARRAY($L$19),1)),0) +IF(AND($F$11<BH$29-$C$8,$F$12>=$G$29-$C$8),SUM(SUMIFS(OFFSET(ProfilesTable[Year 1],0,BH$29-1-$F$11-$C$8),ProfilesTable[Sub-Metric],Table16[[#This Row],[Asset life category lookup table]],ProfilesTable[Metric],"Capex",ProfilesTable[Option ID],$C$19:$C$28) *IF(Table16[[#This Row],[Inc OB]],1+_xlfn.ANCHORARRAY($M$19),1)),0) +IF(AND($F$12<BH$29-$C$8,$F$13>=$G$29-$C$8),SUM(SUMIFS(OFFSET(ProfilesTable[Year 1],0,BH$29-1-$F$12-$C$8),ProfilesTable[Sub-Metric],Table16[[#This Row],[Asset life category lookup table]],ProfilesTable[Metric],"Capex",ProfilesTable[Option ID],$D$19:$D$28) *IF(Table16[[#This Row],[Inc OB]],1+_xlfn.ANCHORARRAY($N$19),1)),0) +SUM(SUMIFS(OFFSET(ProfilesTable[Year 1],0,BH$29-1-$C$8),ProfilesTable[Sub-Metric],Table16[[#This Row],[Asset life category lookup table]],ProfilesTable[Metric],"Capex",ProfilesTable[Option ID],$E$19:$E$28) *IF(Table16[[#This Row],[Inc OB]],1+_xlfn.ANCHORARRAY($O$19),1))) -> 0 | BI32: =IF(BI$29<=$C$8,0, IF($E$11>=BI$29-$C$8,SUM(SUMIFS(OFFSET(ProfilesTable[Year 1],0,BI$29-1-$C$8),ProfilesTable[Sub-Metric],Table16[[#This Row],[Asset life category lookup table]],ProfilesTable[Metric],"Capex",ProfilesTable[Option ID],$B$19:$B$28) *IF(Table16[[#This Row],[Inc OB]],1+_xlfn.ANCHORARRAY($L$19),1)),0) +IF(AND($F$11<BI$29-$C$8,$F$12>=$G$29-$C$8),SUM(SUMIFS(OFFSET(ProfilesTable[Year 1],0,BI$29-1-$F$11-$C$8),ProfilesTable[Sub-Metric],Table16[[#This Row],[Asset life category lookup table]],ProfilesTable[Metric],"Capex",ProfilesTable[Option ID],$C$19:$C$28) *IF(Table16[[#This Row],[Inc OB]],1+_xlfn.ANCHORARRAY($M$19),1)),0) +IF(AND($F$12<BI$29-$C$8,$F$13>=$G$29-$C$8),SUM(SUMIFS(OFFSET(ProfilesTable[Year 1],0,BI$29-1-$F$12-$C$8),ProfilesTable[Sub-Metric],Table16[[#This Row],[Asset life category lookup table]],ProfilesTable[Metric],"Capex",ProfilesTable[Option ID],$D$19:$D$28) *IF(Table16[[#This Row],[Inc OB]],1+_xlfn.ANCHORARRAY($N$19),1)),0) +SUM(SUMIFS(OFFSET(ProfilesTable[Year 1],0,BI$29-1-$C$8),ProfilesTable[Sub-Metric],Table16[[#This Row],[Asset life category lookup table]],ProfilesTable[Metric],"Capex",ProfilesTable[Option ID],$E$19:$E$28) *IF(Table16[[#This Row],[Inc OB]],1+_xlfn.ANCHORARRAY($O$19),1))) -> 0 | BJ32: =IF(BJ$29<=$C$8,0, IF($E$11>=BJ$29-$C$8,SUM(SUMIFS(OFFSET(ProfilesTable[Year 1],0,BJ$29-1-$C$8),ProfilesTable[Sub-Metric],Table16[[#This Row],[Asset life category lookup table]],ProfilesTable[Metric],"Capex",ProfilesTable[Option ID],$B$19:$B$28) *IF(Table16[[#This Row],[Inc OB]],1+_xlfn.ANCHORARRAY($L$19),1)),0) +IF(AND($F$11<BJ$29-$C$8,$F$12>=$G$29-$C$8),SUM(SUMIFS(OFFSET(ProfilesTable[Year 1],0,BJ$29-1-$F$11-$C$8),ProfilesTable[Sub-Metric],Table16[[#This Row],[Asset life category lookup table]],ProfilesTable[Metric],"Capex",ProfilesTable[Option ID],$C$19:$C$28) *IF(Table16[[#This Row],[Inc OB]],1+_xlfn.ANCHORARRAY($M$19),1)),0) +IF(AND($F$12<BJ$29-$C$8,$F$13>=$G$29-$C$8),SUM(SUMIFS(OFFSET(ProfilesTable[Year 1],0,BJ$29-1-$F$12-$C$8),ProfilesTable[Sub-Metric],Table16[[#This Row],[Asset life category lookup table]],ProfilesTable[Metric],"Capex",ProfilesTable[Option ID],$D$19:$D$28) *IF(Table16[[#This Row],[Inc OB]],1+_xlfn.ANCHORARRAY($N$19),1)),0) +SUM(SUMIFS(OFFSET(ProfilesTable[Year 1],0,BJ$29-1-$C$8),ProfilesTable[Sub-Metric],Table16[[#This Row],[Asset life category lookup table]],ProfilesTable[Metric],"Capex",ProfilesTable[Option ID],$E$19:$E$28) *IF(Table16[[#This Row],[Inc OB]],1+_xlfn.ANCHORARRAY($O$19),1))) -> 0 | BK32: =IF(BK$29<=$C$8,0, IF($E$11>=BK$29-$C$8,SUM(SUMIFS(OFFSET(ProfilesTable[Year 1],0,BK$29-1-$C$8),ProfilesTable[Sub-Metric],Table16[[#This Row],[Asset life category lookup table]],ProfilesTable[Metric],"Capex",ProfilesTable[Option ID],$B$19:$B$28) *IF(Table16[[#This Row],[Inc OB]],1+_xlfn.ANCHORARRAY($L$19),1)),0) +IF(AND($F$11<BK$29-$C$8,$F$12>=$G$29-$C$8),SUM(SUMIFS(OFFSET(ProfilesTable[Year 1],0,BK$29-1-$F$11-$C$8),ProfilesTable[Sub-Metric],Table16[[#This Row],[Asset life category lookup table]],ProfilesTable[Metric],"Capex",ProfilesTable[Option ID],$C$19:$C$28) *IF(Table16[[#This Row],[Inc OB]],1+_xlfn.ANCHORARRAY($M$19),1)),0) +IF(AND($F$12<BK$29-$C$8,$F$13>=$G$29-$C$8),SUM(SUMIFS(OFFSET(ProfilesTable[Year 1],0,BK$29-1-$F$12-$C$8),ProfilesTable[Sub-Metric],Table16[[#This Row],[Asset life category lookup table]],ProfilesTable[Metric],"Capex",ProfilesTable[Option ID],$D$19:$D$28) *IF(Table16[[#This Row],[Inc OB]],1+_xlfn.ANCHORARRAY($N$19),1)),0) +SUM(SUMIFS(OFFSET(ProfilesTable[Year 1],0,BK$29-1-$C$8),ProfilesTable[Sub-Metric],Table16[[#This Row],[Asset life category lookup table]],ProfilesTable[Metric],"Capex",ProfilesTable[Option ID],$E$19:$E$28) *IF(Table16[[#This Row],[Inc OB]],1+_xlfn.ANCHORARRAY($O$19),1))) -> 0 | BL32: =IF(BL$29<=$C$8,0, IF($E$11>=BL$29-$C$8,SUM(SUMIFS(OFFSET(ProfilesTable[Year 1],0,BL$29-1-$C$8),ProfilesTable[Sub-Metric],Table16[[#This Row],[Asset life category lookup table]],ProfilesTable[Metric],"Capex",ProfilesTable[Option ID],$B$19:$B$28) *IF(Table16[[#This Row],[Inc OB]],1+_xlfn.ANCHORARRAY($L$19),1)),0) +IF(AND($F$11<BL$29-$C$8,$F$12>=$G$29-$C$8),SUM(SUMIFS(OFFSET(ProfilesTable[Year 1],0,BL$29-1-$F$11-$C$8),ProfilesTable[Sub-Metric],Table16[[#This Row],[Asset life category lookup table]],ProfilesTable[Metric],"Capex",ProfilesTable[Option ID],$C$19:$C$28) *IF(Table16[[#This Row],[Inc OB]],1+_xlfn.ANCHORARRAY($M$19),1)),0) +IF(AND($F$12<BL$29-$C$8,$F$13>=$G$29-$C$8),SUM(SUMIFS(OFFSET(ProfilesTable[Year 1],0,BL$29-1-$F$12-$C$8),ProfilesTable[Sub-Metric],Table16[[#This Row],[Asset life category lookup table]],ProfilesTable[Metric],"Capex",ProfilesTable[Option ID],$D$19:$D$28) *IF(Table16[[#This Row],[Inc OB]],1+_xlfn.ANCHORARRAY($N$19),1)),0) +SUM(SUMIFS(OFFSET(ProfilesTable[Year 1],0,BL$29-1-$C$8),ProfilesTable[Sub-Metric],Table16[[#This Row],[Asset life category lookup table]],ProfilesTable[Metric],"Capex",ProfilesTable[Option ID],$E$19:$E$28) *IF(Table16[[#This Row],[Inc OB]],1+_xlfn.ANCHORARRAY($O$19),1))) -> 0 | BM32: =IF(BM$29<=$C$8,0, IF($E$11>=BM$29-$C$8,SUM(SUMIFS(OFFSET(ProfilesTable[Year 1],0,BM$29-1-$C$8),ProfilesTable[Sub-Metric],Table16[[#This Row],[Asset life category lookup table]],ProfilesTable[Metric],"Capex",ProfilesTable[Option ID],$B$19:$B$28) *IF(Table16[[#This Row],[Inc OB]],1+_xlfn.ANCHORARRAY($L$19),1)),0) +IF(AND($F$11<BM$29-$C$8,$F$12>=$G$29-$C$8),SUM(SUMIFS(OFFSET(ProfilesTable[Year 1],0,BM$29-1-$F$11-$C$8),ProfilesTable[Sub-Metric],Table16[[#This Row],[Asset life category lookup table]],ProfilesTable[Metric],"Capex",ProfilesTable[Option ID],$C$19:$C$28) *IF(Table16[[#This Row],[Inc OB]],1+_xlfn.ANCHORARRAY($M$19),1)),0) +IF(AND($F$12<BM$29-$C$8,$F$13>=$G$29-$C$8),SUM(SUMIFS(OFFSET(ProfilesTable[Year 1],0,BM$29-1-$F$12-$C$8),ProfilesTable[Sub-Metric],Table16[[#This Row],[Asset life category lookup table]],ProfilesTable[Metric],"Capex",ProfilesTable[Option ID],$D$19:$D$28) *IF(Table16[[#This Row],[Inc OB]],1+_xlfn.ANCHORARRAY($N$19),1)),0) +SUM(SUMIFS(OFFSET(ProfilesTable[Year 1],0,BM$29-1-$C$8),ProfilesTable[Sub-Metric],Table16[[#This Row],[Asset life category lookup table]],ProfilesTable[Metric],"Capex",ProfilesTable[Option ID],$E$19:$E$28) *IF(Table16[[#This Row],[Inc OB]],1+_xlfn.ANCHORARRAY($O$19),1))) -> 0 | BN32: =IF(BN$29<=$C$8,0, IF($E$11>=BN$29-$C$8,SUM(SUMIFS(OFFSET(ProfilesTable[Year 1],0,BN$29-1-$C$8),ProfilesTable[Sub-Metric],Table16[[#This Row],[Asset life category lookup table]],ProfilesTable[Metric],"Capex",ProfilesTable[Option ID],$B$19:$B$28) *IF(Table16[[#This Row],[Inc OB]],1+_xlfn.ANCHORARRAY($L$19),1)),0) +IF(AND($F$11<BN$29-$C$8,$F$12>=$G$29-$C$8),SUM(SUMIFS(OFFSET(ProfilesTable[Year 1],0,BN$29-1-$F$11-$C$8),ProfilesTable[Sub-Metric],Table16[[#This Row],[Asset life category lookup table]],ProfilesTable[Metric],"Capex",ProfilesTable[Option ID],$C$19:$C$28) *IF(Table16[[#This Row],[Inc OB]],1+_xlfn.ANCHORARRAY($M$19),1)),0) +IF(AND($F$12<BN$29-$C$8,$F$13>=$G$29-$C$8),SUM(SUMIFS(OFFSET(ProfilesTable[Year 1],0,BN$29-1-$F$12-$C$8),ProfilesTable[Sub-Metric],Table16[[#This Row],[Asset life category lookup table]],ProfilesTable[Metric],"Capex",ProfilesTable[Option ID],$D$19:$D$28) *IF(Table16[[#This Row],[Inc OB]],1+_xlfn.ANCHORARRAY($N$19),1)),0) +SUM(SUMIFS(OFFSET(ProfilesTable[Year 1],0,BN$29-1-$C$8),ProfilesTable[Sub-Metric],Table16[[#This Row],[Asset life category lookup table]],ProfilesTable[Metric],"Capex",ProfilesTable[Option ID],$E$19:$E$28) *IF(Table16[[#This Row],[Inc OB]],1+_xlfn.ANCHORARRAY($O$19),1))) -> 0 | BO32: =IF(BO$29<=$C$8,0, IF($E$11>=BO$29-$C$8,SUM(SUMIFS(OFFSET(ProfilesTable[Year 1],0,BO$29-1-$C$8),ProfilesTable[Sub-Metric],Table16[[#This Row],[Asset life category lookup table]],ProfilesTable[Metric],"Capex",ProfilesTable[Option ID],$B$19:$B$28) *IF(Table16[[#This Row],[Inc OB]],1+_xlfn.ANCHORARRAY($L$19),1)),0) +IF(AND($F$11<BO$29-$C$8,$F$12>=$G$29-$C$8),SUM(SUMIFS(OFFSET(ProfilesTable[Year 1],0,BO$29-1-$F$11-$C$8),ProfilesTable[Sub-Metric],Table16[[#This Row],[Asset life category lookup table]],ProfilesTable[Metric],"Capex",ProfilesTable[Option ID],$C$19:$C$28) *IF(Table16[[#This Row],[Inc OB]],1+_xlfn.ANCHORARRAY($M$19),1)),0) +IF(AND($F$12<BO$29-$C$8,$F$13>=$G$29-$C$8),SUM(SUMIFS(OFFSET(ProfilesTable[Year 1],0,BO$29-1-$F$12-$C$8),ProfilesTable[Sub-Metric],Table16[[#This Row],[Asset life category lookup table]],ProfilesTable[Metric],"Capex",ProfilesTable[Option ID],$D$19:$D$28) *IF(Table16[[#This Row],[Inc OB]],1+_xlfn.ANCHORARRAY($N$19),1)),0) +SUM(SUMIFS(OFFSET(ProfilesTable[Year 1],0,BO$29-1-$C$8),ProfilesTable[Sub-Metric],Table16[[#This Row],[Asset life category lookup table]],ProfilesTable[Metric],"Capex",ProfilesTable[Option ID],$E$19:$E$28) *IF(Table16[[#This Row],[Inc OB]],1+_xlfn.ANCHORARRAY($O$19),1))) -> 0 | BP32: =IF(BP$29<=$C$8,0, IF($E$11>=BP$29-$C$8,SUM(SUMIFS(OFFSET(ProfilesTable[Year 1],0,BP$29-1-$C$8),ProfilesTable[Sub-Metric],Table16[[#This Row],[Asset life category lookup table]],ProfilesTable[Metric],"Capex",ProfilesTable[Option ID],$B$19:$B$28) *IF(Table16[[#This Row],[Inc OB]],1+_xlfn.ANCHORARRAY($L$19),1)),0) +IF(AND($F$11<BP$29-$C$8,$F$12>=$G$29-$C$8),SUM(SUMIFS(OFFSET(ProfilesTable[Year 1],0,BP$29-1-$F$11-$C$8),ProfilesTable[Sub-Metric],Table16[[#This Row],[Asset life category lookup table]],ProfilesTable[Metric],"Capex",ProfilesTable[Option ID],$C$19:$C$28) *IF(Table16[[#This Row],[Inc OB]],1+_xlfn.ANCHORARRAY($M$19),1)),0) +IF(AND($F$12<BP$29-$C$8,$F$13>=$G$29-$C$8),SUM(SUMIFS(OFFSET(ProfilesTable[Year 1],0,BP$29-1-$F$12-$C$8),ProfilesTable[Sub-Metric],Table16[[#This Row],[Asset life category lookup table]],ProfilesTable[Metric],"Capex",ProfilesTable[Option ID],$D$19:$D$28) *IF(Table16[[#This Row],[Inc OB]],1+_xlfn.ANCHORARRAY($N$19),1)),0) +SUM(SUMIFS(OFFSET(ProfilesTable[Year 1],0,BP$29-1-$C$8),ProfilesTable[Sub-Metric],Table16[[#This Row],[Asset life category lookup table]],ProfilesTable[Metric],"Capex",ProfilesTable[Option ID],$E$19:$E$28) *IF(Table16[[#This Row],[Inc OB]],1+_xlfn.ANCHORARRAY($O$19),1))) -> 0 | BQ32: =IF(BQ$29<=$C$8,0, IF($E$11>=BQ$29-$C$8,SUM(SUMIFS(OFFSET(ProfilesTable[Year 1],0,BQ$29-1-$C$8),ProfilesTable[Sub-Metric],Table16[[#This Row],[Asset life category lookup table]],ProfilesTable[Metric],"Capex",ProfilesTable[Option ID],$B$19:$B$28) *IF(Table16[[#This Row],[Inc OB]],1+_xlfn.ANCHORARRAY($L$19),1)),0) +IF(AND($F$11<BQ$29-$C$8,$F$12>=$G$29-$C$8),SUM(SUMIFS(OFFSET(ProfilesTable[Year 1],0,BQ$29-1-$F$11-$C$8),ProfilesTable[Sub-Metric],Table16[[#This Row],[Asset life category lookup table]],ProfilesTable[Metric],"Capex",ProfilesTable[Option ID],$C$19:$C$28) *IF(Table16[[#This Row],[Inc OB]],1+_xlfn.ANCHORARRAY($M$19),1)),0) +IF(AND($F$12<BQ$29-$C$8,$F$13>=$G$29-$C$8),SUM(SUMIFS(OFFSET(ProfilesTable[Year 1],0,BQ$29-1-$F$12-$C$8),ProfilesTable[Sub-Metric],Table16[[#This Row],[Asset life category lookup table]],ProfilesTable[Metric],"Capex",ProfilesTable[Option ID],$D$19:$D$28) *IF(Table16[[#This Row],[Inc OB]],1+_xlfn.ANCHORARRAY($N$19),1)),0) +SUM(SUMIFS(OFFSET(ProfilesTable[Year 1],0,BQ$29-1-$C$8),ProfilesTable[Sub-Metric],Table16[[#This Row],[Asset life category lookup table]],ProfilesTable[Metric],"Capex",ProfilesTable[Option ID],$E$19:$E$28) *IF(Table16[[#This Row],[Inc OB]],1+_xlfn.ANCHORARRAY($O$19),1))) -> 0 | BR32: =IF(BR$29<=$C$8,0, IF($E$11>=BR$29-$C$8,SUM(SUMIFS(OFFSET(ProfilesTable[Year 1],0,BR$29-1-$C$8),ProfilesTable[Sub-Metric],Table16[[#This Row],[Asset life category lookup table]],ProfilesTable[Metric],"Capex",ProfilesTable[Option ID],$B$19:$B$28) *IF(Table16[[#This Row],[Inc OB]],1+_xlfn.ANCHORARRAY($L$19),1)),0) +IF(AND($F$11<BR$29-$C$8,$F$12>=$G$29-$C$8),SUM(SUMIFS(OFFSET(ProfilesTable[Year 1],0,BR$29-1-$F$11-$C$8),ProfilesTable[Sub-Metric],Table16[[#This Row],[Asset life category lookup table]],ProfilesTable[Metric],"Capex",ProfilesTable[Option ID],$C$19:$C$28) *IF(Table16[[#This Row],[Inc OB]],1+_xlfn.ANCHORARRAY($M$19),1)),0) +IF(AND($F$12<BR$29-$C$8,$F$13>=$G$29-$C$8),SUM(SUMIFS(OFFSET(ProfilesTable[Year 1],0,BR$29-1-$F$12-$C$8),ProfilesTable[Sub-Metric],Table16[[#This Row],[Asset life category lookup table]],ProfilesTable[Metric],"Capex",ProfilesTable[Option ID],$D$19:$D$28) *IF(Table16[[#This Row],[Inc OB]],1+_xlfn.ANCHORARRAY($N$19),1)),0) +SUM(SUMIFS(OFFSET(ProfilesTable[Year 1],0,BR$29-1-$C$8),ProfilesTable[Sub-Metric],Table16[[#This Row],[Asset life category lookup table]],ProfilesTable[Metric],"Capex",ProfilesTable[Option ID],$E$19:$E$28) *IF(Table16[[#This Row],[Inc OB]],1+_xlfn.ANCHORARRAY($O$19),1))) -> 0 | BS32: =IF(BS$29<=$C$8,0, IF($E$11>=BS$29-$C$8,SUM(SUMIFS(OFFSET(ProfilesTable[Year 1],0,BS$29-1-$C$8),ProfilesTable[Sub-Metric],Table16[[#This Row],[Asset life category lookup table]],ProfilesTable[Metric],"Capex",ProfilesTable[Option ID],$B$19:$B$28) *IF(Table16[[#This Row],[Inc OB]],1+_xlfn.ANCHORARRAY($L$19),1)),0) +IF(AND($F$11<BS$29-$C$8,$F$12>=$G$29-$C$8),SUM(SUMIFS(OFFSET(ProfilesTable[Year 1],0,BS$29-1-$F$11-$C$8),ProfilesTable[Sub-Metric],Table16[[#This Row],[Asset life category lookup table]],ProfilesTable[Metric],"Capex",ProfilesTable[Option ID],$C$19:$C$28) *IF(Table16[[#This Row],[Inc OB]],1+_xlfn.ANCHORARRAY($M$19),1)),0) +IF(AND($F$12<BS$29-$C$8,$F$13>=$G$29-$C$8),SUM(SUMIFS(OFFSET(ProfilesTable[Year 1],0,BS$29-1-$F$12-$C$8),ProfilesTable[Sub-Metric],Table16[[#This Row],[Asset life category lookup table]],ProfilesTable[Metric],"Capex",ProfilesTable[Option ID],$D$19:$D$28) *IF(Table16[[#This Row],[Inc OB]],1+_xlfn.ANCHORARRAY($N$19),1)),0) +SUM(SUMIFS(OFFSET(ProfilesTable[Year 1],0,BS$29-1-$C$8),ProfilesTable[Sub-Metric],Table16[[#This Row],[Asset life category lookup table]],ProfilesTable[Metric],"Capex",ProfilesTable[Option ID],$E$19:$E$28) *IF(Table16[[#This Row],[Inc OB]],1+_xlfn.ANCHORARRAY($O$19),1))) -> 0 | BT32: =IF(BT$29<=$C$8,0, IF($E$11>=BT$29-$C$8,SUM(SUMIFS(OFFSET(ProfilesTable[Year 1],0,BT$29-1-$C$8),ProfilesTable[Sub-Metric],Table16[[#This Row],[Asset life category lookup table]],ProfilesTable[Metric],"Capex",ProfilesTable[Option ID],$B$19:$B$28) *IF(Table16[[#This Row],[Inc OB]],1+_xlfn.ANCHORARRAY($L$19),1)),0) +IF(AND($F$11<BT$29-$C$8,$F$12>=$G$29-$C$8),SUM(SUMIFS(OFFSET(ProfilesTable[Year 1],0,BT$29-1-$F$11-$C$8),ProfilesTable[Sub-Metric],Table16[[#This Row],[Asset life category lookup table]],ProfilesTable[Metric],"Capex",ProfilesTable[Option ID],$C$19:$C$28) *IF(Table16[[#This Row],[Inc OB]],1+_xlfn.ANCHORARRAY($M$19),1)),0) +IF(AND($F$12<BT$29-$C$8,$F$13>=$G$29-$C$8),SUM(SUMIFS(OFFSET(ProfilesTable[Year 1],0,BT$29-1-$F$12-$C$8),ProfilesTable[Sub-Metric],Table16[[#This Row],[Asset life category lookup table]],ProfilesTable[Metric],"Capex",ProfilesTable[Option ID],$D$19:$D$28) *IF(Table16[[#This Row],[Inc OB]],1+_xlfn.ANCHORARRAY($N$19),1)),0) +SUM(SUMIFS(OFFSET(ProfilesTable[Year 1],0,BT$29-1-$C$8),ProfilesTable[Sub-Metric],Table16[[#This Row],[Asset life category lookup table]],ProfilesTable[Metric],"Capex",ProfilesTable[Option ID],$E$19:$E$28) *IF(Table16[[#This Row],[Inc OB]],1+_xlfn.ANCHORARRAY($O$19),1))) -> 0 | BU32: =IF(BU$29<=$C$8,0, IF($E$11>=BU$29-$C$8,SUM(SUMIFS(OFFSET(ProfilesTable[Year 1],0,BU$29-1-$C$8),ProfilesTable[Sub-Metric],Table16[[#This Row],[Asset life category lookup table]],ProfilesTable[Metric],"Capex",ProfilesTable[Option ID],$B$19:$B$28) *IF(Table16[[#This Row],[Inc OB]],1+_xlfn.ANCHORARRAY($L$19),1)),0) +IF(AND($F$11<BU$29-$C$8,$F$12>=$G$29-$C$8),SUM(SUMIFS(OFFSET(ProfilesTable[Year 1],0,BU$29-1-$F$11-$C$8),ProfilesTable[Sub-Metric],Table16[[#This Row],[Asset life category lookup table]],ProfilesTable[Metric],"Capex",ProfilesTable[Option ID],$C$19:$C$28) *IF(Table16[[#This Row],[Inc OB]],1+_xlfn.ANCHORARRAY($M$19),1)),0) +IF(AND($F$12<BU$29-$C$8,$F$13>=$G$29-$C$8),SUM(SUMIFS(OFFSET(ProfilesTable[Year 1],0,BU$29-1-$F$12-$C$8),ProfilesTable[Sub-Metric],Table16[[#This Row],[Asset life category lookup table]],ProfilesTable[Metric],"Capex",ProfilesTable[Option ID],$D$19:$D$28) *IF(Table16[[#This Row],[Inc OB]],1+_xlfn.ANCHORARRAY($N$19),1)),0) +SUM(SUMIFS(OFFSET(ProfilesTable[Year 1],0,BU$29-1-$C$8),ProfilesTable[Sub-Metric],Table16[[#This Row],[Asset life category lookup table]],ProfilesTable[Metric],"Capex",ProfilesTable[Option ID],$E$19:$E$28) *IF(Table16[[#This Row],[Inc OB]],1+_xlfn.ANCHORARRAY($O$19),1))) -> 0 | BV32: =IF(BV$29<=$C$8,0, IF($E$11>=BV$29-$C$8,SUM(SUMIFS(OFFSET(ProfilesTable[Year 1],0,BV$29-1-$C$8),ProfilesTable[Sub-Metric],Table16[[#This Row],[Asset life category lookup table]],ProfilesTable[Metric],"Capex",ProfilesTable[Option ID],$B$19:$B$28) *IF(Table16[[#This Row],[Inc OB]],1+_xlfn.ANCHORARRAY($L$19),1)),0) +IF(AND($F$11<BV$29-$C$8,$F$12>=$G$29-$C$8),SUM(SUMIFS(OFFSET(ProfilesTable[Year 1],0,BV$29-1-$F$11-$C$8),ProfilesTable[Sub-Metric],Table16[[#This Row],[Asset life category lookup table]],ProfilesTable[Metric],"Capex",ProfilesTable[Option ID],$C$19:$C$28) *IF(Table16[[#This Row],[Inc OB]],1+_xlfn.ANCHORARRAY($M$19),1)),0) +IF(AND($F$12<BV$29-$C$8,$F$13>=$G$29-$C$8),SUM(SUMIFS(OFFSET(ProfilesTable[Year 1],0,BV$29-1-$F$12-$C$8),ProfilesTable[Sub-Metric],Table16[[#This Row],[Asset life category lookup table]],ProfilesTable[Metric],"Capex",ProfilesTable[Option ID],$D$19:$D$28) *IF(Table16[[#This Row],[Inc OB]],1+_xlfn.ANCHORARRAY($N$19),1)),0) +SUM(SUMIFS(OFFSET(ProfilesTable[Year 1],0,BV$29-1-$C$8),ProfilesTable[Sub-Metric],Table16[[#This Row],[Asset life category lookup table]],ProfilesTable[Metric],"Capex",ProfilesTable[Option ID],$E$19:$E$28) *IF(Table16[[#This Row],[Inc OB]],1+_xlfn.ANCHORARRAY($O$19),1))) -> 0 | BW32: =IF(BW$29<=$C$8,0, IF($E$11>=BW$29-$C$8,SUM(SUMIFS(OFFSET(ProfilesTable[Year 1],0,BW$29-1-$C$8),ProfilesTable[Sub-Metric],Table16[[#This Row],[Asset life category lookup table]],ProfilesTable[Metric],"Capex",ProfilesTable[Option ID],$B$19:$B$28) *IF(Table16[[#This Row],[Inc OB]],1+_xlfn.ANCHORARRAY($L$19),1)),0) +IF(AND($F$11<BW$29-$C$8,$F$12>=$G$29-$C$8),SUM(SUMIFS(OFFSET(ProfilesTable[Year 1],0,BW$29-1-$F$11-$C$8),ProfilesTable[Sub-Metric],Table16[[#This Row],[Asset life category lookup table]],ProfilesTable[Metric],"Capex",ProfilesTable[Option ID],$C$19:$C$28) *IF(Table16[[#This Row],[Inc OB]],1+_xlfn.ANCHORARRAY($M$19),1)),0) +IF(AND($F$12<BW$29-$C$8,$F$13>=$G$29-$C$8),SUM(SUMIFS(OFFSET(ProfilesTable[Year 1],0,BW$29-1-$F$12-$C$8),ProfilesTable[Sub-Metric],Table16[[#This Row],[Asset life category lookup table]],ProfilesTable[Metric],"Capex",ProfilesTable[Option ID],$D$19:$D$28) *IF(Table16[[#This Row],[Inc OB]],1+_xlfn.ANCHORARRAY($N$19),1)),0) +SUM(SUMIFS(OFFSET(ProfilesTable[Year 1],0,BW$29-1-$C$8),ProfilesTable[Sub-Metric],Table16[[#This Row],[Asset life category lookup table]],ProfilesTable[Metric],"Capex",ProfilesTable[Option ID],$E$19:$E$28) *IF(Table16[[#This Row],[Inc OB]],1+_xlfn.ANCHORARRAY($O$19),1))) -> 0 | BX32: =IF(BX$29<=$C$8,0, IF($E$11>=BX$29-$C$8,SUM(SUMIFS(OFFSET(ProfilesTable[Year 1],0,BX$29-1-$C$8),ProfilesTable[Sub-Metric],Table16[[#This Row],[Asset life category lookup table]],ProfilesTable[Metric],"Capex",ProfilesTable[Option ID],$B$19:$B$28) *IF(Table16[[#This Row],[Inc OB]],1+_xlfn.ANCHORARRAY($L$19),1)),0) +IF(AND($F$11<BX$29-$C$8,$F$12>=$G$29-$C$8),SUM(SUMIFS(OFFSET(ProfilesTable[Year 1],0,BX$29-1-$F$11-$C$8),ProfilesTable[Sub-Metric],Table16[[#This Row],[Asset life category lookup table]],ProfilesTable[Metric],"Capex",ProfilesTable[Option ID],$C$19:$C$28) *IF(Table16[[#This Row],[Inc OB]],1+_xlfn.ANCHORARRAY($M$19),1)),0) +IF(AND($F$12<BX$29-$C$8,$F$13>=$G$29-$C$8),SUM(SUMIFS(OFFSET(ProfilesTable[Year 1],0,BX$29-1-$F$12-$C$8),ProfilesTable[Sub-Metric],Table16[[#This Row],[Asset life category lookup table]],ProfilesTable[Metric],"Capex",ProfilesTable[Option ID],$D$19:$D$28) *IF(Table16[[#This Row],[Inc OB]],1+_xlfn.ANCHORARRAY($N$19),1)),0) +SUM(SUMIFS(OFFSET(ProfilesTable[Year 1],0,BX$29-1-$C$8),ProfilesTable[Sub-Metric],Table16[[#This Row],[Asset life category lookup table]],ProfilesTable[Metric],"Capex",ProfilesTable[Option ID],$E$19:$E$28) *IF(Table16[[#This Row],[Inc OB]],1+_xlfn.ANCHORARRAY($O$19),1))) -> 0 | BY32: =IF(BY$29<=$C$8,0, IF($E$11>=BY$29-$C$8,SUM(SUMIFS(OFFSET(ProfilesTable[Year 1],0,BY$29-1-$C$8),ProfilesTable[Sub-Metric],Table16[[#This Row],[Asset life category lookup table]],ProfilesTable[Metric],"Capex",ProfilesTable[Option ID],$B$19:$B$28) *IF(Table16[[#This Row],[Inc OB]],1+_xlfn.ANCHORARRAY($L$19),1)),0) +IF(AND($F$11<BY$29-$C$8,$F$12>=$G$29-$C$8),SUM(SUMIFS(OFFSET(ProfilesTable[Year 1],0,BY$29-1-$F$11-$C$8),ProfilesTable[Sub-Metric],Table16[[#This Row],[Asset life category lookup table]],ProfilesTable[Metric],"Capex",ProfilesTable[Option ID],$C$19:$C$28) *IF(Table16[[#This Row],[Inc OB]],1+_xlfn.ANCHORARRAY($M$19),1)),0) +IF(AND($F$12<BY$29-$C$8,$F$13>=$G$29-$C$8),SUM(SUMIFS(OFFSET(ProfilesTable[Year 1],0,BY$29-1-$F$12-$C$8),ProfilesTable[Sub-Metric],Table16[[#This Row],[Asset life category lookup table]],ProfilesTable[Metric],"Capex",ProfilesTable[Option ID],$D$19:$D$28) *IF(Table16[[#This Row],[Inc OB]],1+_xlfn.ANCHORARRAY($N$19),1)),0) +SUM(SUMIFS(OFFSET(ProfilesTable[Year 1],0,BY$29-1-$C$8),ProfilesTable[Sub-Metric],Table16[[#This Row],[Asset life category lookup table]],ProfilesTable[Metric],"Capex",ProfilesTable[Option ID],$E$19:$E$28) *IF(Table16[[#This Row],[Inc OB]],1+_xlfn.ANCHORARRAY($O$19),1))) -> 0 | BZ32: =IF(BZ$29<=$C$8,0, IF($E$11>=BZ$29-$C$8,SUM(SUMIFS(OFFSET(ProfilesTable[Year 1],0,BZ$29-1-$C$8),ProfilesTable[Sub-Metric],Table16[[#This Row],[Asset life category lookup table]],ProfilesTable[Metric],"Capex",ProfilesTable[Option ID],$B$19:$B$28) *IF(Table16[[#This Row],[Inc OB]],1+_xlfn.ANCHORARRAY($L$19),1)),0) +IF(AND($F$11<BZ$29-$C$8,$F$12>=$G$29-$C$8),SUM(SUMIFS(OFFSET(ProfilesTable[Year 1],0,BZ$29-1-$F$11-$C$8),ProfilesTable[Sub-Metric],Table16[[#This Row],[Asset life category lookup table]],ProfilesTable[Metric],"Capex",ProfilesTable[Option ID],$C$19:$C$28) *IF(Table16[[#This Row],[Inc OB]],1+_xlfn.ANCHORARRAY($M$19),1)),0) +IF(AND($F$12<BZ$29-$C$8,$F$13>=$G$29-$C$8),SUM(SUMIFS(OFFSET(ProfilesTable[Year 1],0,BZ$29-1-$F$12-$C$8),ProfilesTable[Sub-Metric],Table16[[#This Row],[Asset life category lookup table]],ProfilesTable[Metric],"Capex",ProfilesTable[Option ID],$D$19:$D$28) *IF(Table16[[#This Row],[Inc OB]],1+_xlfn.ANCHORARRAY($N$19),1)),0) +SUM(SUMIFS(OFFSET(ProfilesTable[Year 1],0,BZ$29-1-$C$8),ProfilesTable[Sub-Metric],Table16[[#This Row],[Asset life category lookup table]],ProfilesTable[Metric],"Capex",ProfilesTable[Option ID],$E$19:$E$28) *IF(Table16[[#This Row],[Inc OB]],1+_xlfn.ANCHORARRAY($O$19),1))) -> 0 | CA32: =IF(CA$29<=$C$8,0, IF($E$11>=CA$29-$C$8,SUM(SUMIFS(OFFSET(ProfilesTable[Year 1],0,CA$29-1-$C$8),ProfilesTable[Sub-Metric],Table16[[#This Row],[Asset life category lookup table]],ProfilesTable[Metric],"Capex",ProfilesTable[Option ID],$B$19:$B$28) *IF(Table16[[#This Row],[Inc OB]],1+_xlfn.ANCHORARRAY($L$19),1)),0) +IF(AND($F$11<CA$29-$C$8,$F$12>=$G$29-$C$8),SUM(SUMIFS(OFFSET(ProfilesTable[Year 1],0,CA$29-1-$F$11-$C$8),ProfilesTable[Sub-Metric],Table16[[#This Row],[Asset life category lookup table]],ProfilesTable[Metric],"Capex",ProfilesTable[Option ID],$C$19:$C$28) *IF(Table16[[#This Row],[Inc OB]],1+_xlfn.ANCHORARRAY($M$19),1)),0) +IF(AND($F$12<CA$29-$C$8,$F$13>=$G$29-$C$8),SUM(SUMIFS(OFFSET(ProfilesTable[Year 1],0,CA$29-1-$F$12-$C$8),ProfilesTable[Sub-Metric],Table16[[#This Row],[Asset life category lookup table]],ProfilesTable[Metric],"Capex",ProfilesTable[Option ID],$D$19:$D$28) *IF(Table16[[#This Row],[Inc OB]],1+_xlfn.ANCHORARRAY($N$19),1)),0) +SUM(SUMIFS(OFFSET(ProfilesTable[Year 1],0,CA$29-1-$C$8),ProfilesTable[Sub-Metric],Table16[[#This Row],[Asset life category lookup table]],ProfilesTable[Metric],"Capex",ProfilesTable[Option ID],$E$19:$E$28) *IF(Table16[[#This Row],[Inc OB]],1+_xlfn.ANCHORARRAY($O$19),1))) -> 0 | CB32: =IF(CB$29<=$C$8,0, IF($E$11>=CB$29-$C$8,SUM(SUMIFS(OFFSET(ProfilesTable[Year 1],0,CB$29-1-$C$8),ProfilesTable[Sub-Metric],Table16[[#This Row],[Asset life category lookup table]],ProfilesTable[Metric],"Capex",ProfilesTable[Option ID],$B$19:$B$28) *IF(Table16[[#This Row],[Inc OB]],1+_xlfn.ANCHORARRAY($L$19),1)),0) +IF(AND($F$11<CB$29-$C$8,$F$12>=$G$29-$C$8),SUM(SUMIFS(OFFSET(ProfilesTable[Year 1],0,CB$29-1-$F$11-$C$8),ProfilesTable[Sub-Metric],Table16[[#This Row],[Asset life category lookup table]],ProfilesTable[Metric],"Capex",ProfilesTable[Option ID],$C$19:$C$28) *IF(Table16[[#This Row],[Inc OB]],1+_xlfn.ANCHORARRAY($M$19),1)),0) +IF(AND($F$12<CB$29-$C$8,$F$13>=$G$29-$C$8),SUM(SUMIFS(OFFSET(ProfilesTable[Year 1],0,CB$29-1-$F$12-$C$8),ProfilesTable[Sub-Metric],Table16[[#This Row],[Asset life category lookup table]],ProfilesTable[Metric],"Capex",ProfilesTable[Option ID],$D$19:$D$28) *IF(Table16[[#This Row],[Inc OB]],1+_xlfn.ANCHORARRAY($N$19),1)),0) +SUM(SUMIFS(OFFSET(ProfilesTable[Year 1],0,CB$29-1-$C$8),ProfilesTable[Sub-Metric],Table16[[#This Row],[Asset life category lookup table]],ProfilesTable[Metric],"Capex",ProfilesTable[Option ID],$E$19:$E$28) *IF(Table16[[#This Row],[Inc OB]],1+_xlfn.ANCHORARRAY($O$19),1))) -> 0 | CC32: =IF(CC$29<=$C$8,0, IF($E$11>=CC$29-$C$8,SUM(SUMIFS(OFFSET(ProfilesTable[Year 1],0,CC$29-1-$C$8),ProfilesTable[Sub-Metric],Table16[[#This Row],[Asset life category lookup table]],ProfilesTable[Metric],"Capex",ProfilesTable[Option ID],$B$19:$B$28) *IF(Table16[[#This Row],[Inc OB]],1+_xlfn.ANCHORARRAY($L$19),1)),0) +IF(AND($F$11<CC$29-$C$8,$F$12>=$G$29-$C$8),SUM(SUMIFS(OFFSET(ProfilesTable[Year 1],0,CC$29-1-$F$11-$C$8),ProfilesTable[Sub-Metric],Table16[[#This Row],[Asset life category lookup table]],ProfilesTable[Metric],"Capex",ProfilesTable[Option ID],$C$19:$C$28) *IF(Table16[[#This Row],[Inc OB]],1+_xlfn.ANCHORARRAY($M$19),1)),0) +IF(AND($F$12<CC$29-$C$8,$F$13>=$G$29-$C$8),SUM(SUMIFS(OFFSET(ProfilesTable[Year 1],0,CC$29-1-$F$12-$C$8),ProfilesTable[Sub-Metric],Table16[[#This Row],[Asset life category lookup table]],ProfilesTable[Metric],"Capex",ProfilesTable[Option ID],$D$19:$D$28) *IF(Table16[[#This Row],[Inc OB]],1+_xlfn.ANCHORARRAY($N$19),1)),0) +SUM(SUMIFS(OFFSET(ProfilesTable[Year 1],0,CC$29-1-$C$8),ProfilesTable[Sub-Metric],Table16[[#This Row],[Asset life category lookup table]],ProfilesTable[Metric],"Capex",ProfilesTable[Option ID],$E$19:$E$28) *IF(Table16[[#This Row],[Inc OB]],1+_xlfn.ANCHORARRAY($O$19),1))) -> 0 | CD32: =IF(CD$29<=$C$8,0, IF($E$11>=CD$29-$C$8,SUM(SUMIFS(OFFSET(ProfilesTable[Year 1],0,CD$29-1-$C$8),ProfilesTable[Sub-Metric],Table16[[#This Row],[Asset life category lookup table]],ProfilesTable[Metric],"Capex",ProfilesTable[Option ID],$B$19:$B$28) *IF(Table16[[#This Row],[Inc OB]],1+_xlfn.ANCHORARRAY($L$19),1)),0) +IF(AND($F$11<CD$29-$C$8,$F$12>=$G$29-$C$8),SUM(SUMIFS(OFFSET(ProfilesTable[Year 1],0,CD$29-1-$F$11-$C$8),ProfilesTable[Sub-Metric],Table16[[#This Row],[Asset life category lookup table]],ProfilesTable[Metric],"Capex",ProfilesTable[Option ID],$C$19:$C$28) *IF(Table16[[#This Row],[Inc OB]],1+_xlfn.ANCHORARRAY($M$19),1)),0) +IF(AND($F$12<CD$29-$C$8,$F$13>=$G$29-$C$8),SUM(SUMIFS(OFFSET(ProfilesTable[Year 1],0,CD$29-1-$F$12-$C$8),ProfilesTable[Sub-Metric],Table16[[#This Row],[Asset life category lookup table]],ProfilesTable[Metric],"Capex",ProfilesTable[Option ID],$D$19:$D$28) *IF(Table16[[#This Row],[Inc OB]],1+_xlfn.ANCHORARRAY($N$19),1)),0) +SUM(SUMIFS(OFFSET(ProfilesTable[Year 1],0,CD$29-1-$C$8),ProfilesTable[Sub-Metric],Table16[[#This Row],[Asset life category lookup table]],ProfilesTable[Metric],"Capex",ProfilesTable[Option ID],$E$19:$E$28) *IF(Table16[[#This Row],[Inc OB]],1+_xlfn.ANCHORARRAY($O$19),1))) -> 0 | CE32: =IF(CE$29<=$C$8,0, IF($E$11>=CE$29-$C$8,SUM(SUMIFS(OFFSET(ProfilesTable[Year 1],0,CE$29-1-$C$8),ProfilesTable[Sub-Metric],Table16[[#This Row],[Asset life category lookup table]],ProfilesTable[Metric],"Capex",ProfilesTable[Option ID],$B$19:$B$28) *IF(Table16[[#This Row],[Inc OB]],1+_xlfn.ANCHORARRAY($L$19),1)),0) +IF(AND($F$11<CE$29-$C$8,$F$12>=$G$29-$C$8),SUM(SUMIFS(OFFSET(ProfilesTable[Year 1],0,CE$29-1-$F$11-$C$8),ProfilesTable[Sub-Metric],Table16[[#This Row],[Asset life category lookup table]],ProfilesTable[Metric],"Capex",ProfilesTable[Option ID],$C$19:$C$28) *IF(Table16[[#This Row],[Inc OB]],1+_xlfn.ANCHORARRAY($M$19),1)),0) +IF(AND($F$12<CE$29-$C$8,$F$13>=$G$29-$C$8),SUM(SUMIFS(OFFSET(ProfilesTable[Year 1],0,CE$29-1-$F$12-$C$8),ProfilesTable[Sub-Metric],Table16[[#This Row],[Asset life category lookup table]],ProfilesTable[Metric],"Capex",ProfilesTable[Option ID],$D$19:$D$28) *IF(Table16[[#This Row],[Inc OB]],1+_xlfn.ANCHORARRAY($N$19),1)),0) +SUM(SUMIFS(OFFSET(ProfilesTable[Year 1],0,CE$29-1-$C$8),ProfilesTable[Sub-Metric],Table16[[#This Row],[Asset life category lookup table]],ProfilesTable[Metric],"Capex",ProfilesTable[Option ID],$E$19:$E$28) *IF(Table16[[#This Row],[Inc OB]],1+_xlfn.ANCHORARRAY($O$19),1))) -> 0 | CF32: =IF(CF$29<=$C$8,0, IF($E$11>=CF$29-$C$8,SUM(SUMIFS(OFFSET(ProfilesTable[Year 1],0,CF$29-1-$C$8),ProfilesTable[Sub-Metric],Table16[[#This Row],[Asset life category lookup table]],ProfilesTable[Metric],"Capex",ProfilesTable[Option ID],$B$19:$B$28) *IF(Table16[[#This Row],[Inc OB]],1+_xlfn.ANCHORARRAY($L$19),1)),0) +IF(AND($F$11<CF$29-$C$8,$F$12>=$G$29-$C$8),SUM(SUMIFS(OFFSET(ProfilesTable[Year 1],0,CF$29-1-$F$11-$C$8),ProfilesTable[Sub-Metric],Table16[[#This Row],[Asset life category lookup table]],ProfilesTable[Metric],"Capex",ProfilesTable[Option ID],$C$19:$C$28) *IF(Table16[[#This Row],[Inc OB]],1+_xlfn.ANCHORARRAY($M$19),1)),0) +IF(AND($F$12<CF$29-$C$8,$F$13>=$G$29-$C$8),SUM(SUMIFS(OFFSET(ProfilesTable[Year 1],0,CF$29-1-$F$12-$C$8),ProfilesTable[Sub-Metric],Table16[[#This Row],[Asset life category lookup table]],ProfilesTable[Metric],"Capex",ProfilesTable[Option ID],$D$19:$D$28) *IF(Table16[[#This Row],[Inc OB]],1+_xlfn.ANCHORARRAY($N$19),1)),0) +SUM(SUMIFS(OFFSET(ProfilesTable[Year 1],0,CF$29-1-$C$8),ProfilesTable[Sub-Metric],Table16[[#This Row],[Asset life category lookup table]],ProfilesTable[Metric],"Capex",ProfilesTable[Option ID],$E$19:$E$28) *IF(Table16[[#This Row],[Inc OB]],1+_xlfn.ANCHORARRAY($O$19),1))) -> 0 | CG32: =IF(CG$29<=$C$8,0, IF($E$11>=CG$29-$C$8,SUM(SUMIFS(OFFSET(ProfilesTable[Year 1],0,CG$29-1-$C$8),ProfilesTable[Sub-Metric],Table16[[#This Row],[Asset life category lookup table]],ProfilesTable[Metric],"Capex",ProfilesTable[Option ID],$B$19:$B$28) *IF(Table16[[#This Row],[Inc OB]],1+_xlfn.ANCHORARRAY($L$19),1)),0) +IF(AND($F$11<CG$29-$C$8,$F$12>=$G$29-$C$8),SUM(SUMIFS(OFFSET(ProfilesTable[Year 1],0,CG$29-1-$F$11-$C$8),ProfilesTable[Sub-Metric],Table16[[#This Row],[Asset life category lookup table]],ProfilesTable[Metric],"Capex",ProfilesTable[Option ID],$C$19:$C$28) *IF(Table16[[#This Row],[Inc OB]],1+_xlfn.ANCHORARRAY($M$19),1)),0) +IF(AND($F$12<CG$29-$C$8,$F$13>=$G$29-$C$8),SUM(SUMIFS(OFFSET(ProfilesTable[Year 1],0,CG$29-1-$F$12-$C$8),ProfilesTable[Sub-Metric],Table16[[#This Row],[Asset life category lookup table]],ProfilesTable[Metric],"Capex",ProfilesTable[Option ID],$D$19:$D$28) *IF(Table16[[#This Row],[Inc OB]],1+_xlfn.ANCHORARRAY($N$19),1)),0) +SUM(SUMIFS(OFFSET(ProfilesTable[Year 1],0,CG$29-1-$C$8),ProfilesTable[Sub-Metric],Table16[[#This Row],[Asset life category lookup table]],ProfilesTable[Metric],"Capex",ProfilesTable[Option ID],$E$19:$E$28) *IF(Table16[[#This Row],[Inc OB]],1+_xlfn.ANCHORARRAY($O$19),1))) -> 0 | CH32: =IF(CH$29<=$C$8,0, IF($E$11>=CH$29-$C$8,SUM(SUMIFS(OFFSET(ProfilesTable[Year 1],0,CH$29-1-$C$8),ProfilesTable[Sub-Metric],Table16[[#This Row],[Asset life category lookup table]],ProfilesTable[Metric],"Capex",ProfilesTable[Option ID],$B$19:$B$28) *IF(Table16[[#This Row],[Inc OB]],1+_xlfn.ANCHORARRAY($L$19),1)),0) +IF(AND($F$11<CH$29-$C$8,$F$12>=$G$29-$C$8),SUM(SUMIFS(OFFSET(ProfilesTable[Year 1],0,CH$29-1-$F$11-$C$8),ProfilesTable[Sub-Metric],Table16[[#This Row],[Asset life category lookup table]],ProfilesTable[Metric],"Capex",ProfilesTable[Option ID],$C$19:$C$28) *IF(Table16[[#This Row],[Inc OB]],1+_xlfn.ANCHORARRAY($M$19),1)),0) +IF(AND($F$12<CH$29-$C$8,$F$13>=$G$29-$C$8),SUM(SUMIFS(OFFSET(ProfilesTable[Year 1],0,CH$29-1-$F$12-$C$8),ProfilesTable[Sub-Metric],Table16[[#This Row],[Asset life category lookup table]],ProfilesTable[Metric],"Capex",ProfilesTable[Option ID],$D$19:$D$28) *IF(Table16[[#This Row],[Inc OB]],1+_xlfn.ANCHORARRAY($N$19),1)),0) +SUM(SUMIFS(OFFSET(ProfilesTable[Year 1],0,CH$29-1-$C$8),ProfilesTable[Sub-Metric],Table16[[#This Row],[Asset life category lookup table]],ProfilesTable[Metric],"Capex",ProfilesTable[Option ID],$E$19:$E$28) *IF(Table16[[#This Row],[Inc OB]],1+_xlfn.ANCHORARRAY($O$19),1))) -> 0
